Workbook

Sheet Navigation Pane
C2: Gladstone Regional Council
C3: Refer to the accompanying User Manual for detailed instructions on how to use the Spreadsheet
B6: Version No | D6: 3 | F6: Date | G6: 2017-03-07 | J6: Author | K6: C Adam
B8: Comments | D8: Collated the original (separate) SOW model into a single, consolidated and up to date SOW model Updated the demand projections to align more closely with the background reports; also included contingency estimates
D10: Inputs | I10: Calculation | N10: Outputs
C12: General Input Sheet | H12: Calculation Function | M12: Summary Cost Schedule
C13: l Financial Inputs l Other "generic" inputs | H13: l Catchment based summary of demand, infrastructure (existing and new) and cost allocation l Infrastructure Cost calculation for each catchment ("Average Cost" approach) l Optional Discounted Cashflow | M13: l Summary of demand and cost allocation by catchment l Final costs by catchment
M15: Summary Cash flow Projections
C16: l Unit Cost of Passive Assets l Unit Cost of Land | M16: l Summary of forecast Cap X and anticipated IC revenues
C19: l Estimates of current and future demand (per cost catchment)
C21: Asset Inputs

Sheet General Input Sheet
B2: ='Navigation Pane'!C2 -> Gladstone Regional Council
A3: Return to Navigation Pane
B4: General Input Sheet
B6: General Inputs | E6: Reference | G6: Value | I6: Comments
C8: Base Year | E8: YEAR | G8: 2011
G9: =YEAR -> 2011
C10: Term (between 15 and 30 years) | E10: TERM | G10: 20
B12: Application of Discounted Cash flow
C14: Calculate charges using Discounted Cash flow? (Y/N) | E14: DCFTRIGGER | G14: Yes
B16: General Financial Inputs
B18: Discount Rate (WACC):
C19: Average 10 Year Bond Rate | E19: TenYr | G19: 0.04
B21: Option 1 | C21: Basic Margin on 10 Yr. Bond Rate | E21: Margin | G21: 0.035 | I21: 3.5% is the baseline figure quoted in LG Bulletin 06/01
C23: WACC: | E23: WACC1 | G23: =G19+G21 -> 0.075
B25: Option 2 | C25: Capital Structure (% Debt) | E25: Capstr
C26: Market Risk Premium | E26: Risk | G26: 0.06
C27: Asset Beta | E27: AssetBeta
C28: Cost of Debt | E28: Debt
C30: WACC: | E30: WACC2 | G30: =(G25*G28)+(G19+(G27*G26)*(1-G25)) -> 0.04
C32: WACC Option to be applied in the calculation? | E32: WACC1 | G32: =IF(G14="No",0,IF(E32="WACC1",WACC1,IF(E32="WACC2",WACC2,"Error"))) -> 0.075
B34: Escalation Rates
C35: Capital Escalation - Future Cap X | E35: PPI | G35: 0.04 | I35: ten (10) yr. average Roads and Bridges Index (ABS 6427, Table 15, Index 3101)
C37: Capital Indexation Rates - Historical (June Qtr.)
E38: =YEAR -> 2011 | G38: 102.5 | I38: Roads and Bridges Index (ABS 6427, Table 15, Index 3101)
E39: =E38-1 -> 2010 | G39: 100.3
E40: =E39-1 -> 2009 | G40: 96.6
E41: 2008 | G41: 95.2
E42: 2007 | G42: 91.8
E43: 2006 | G43: 83.2
E44: 2005 | G44: 80.1
C46: Land Escalation | E46: LandInd | G46: 0
C48: Charges Escalation Rate | E48: Chargeind | G48: 0
G49: =Chargeind -> 0
G51: =Chargeind -> 0

Sheet Unit Rates
B2: ='Navigation Pane'!C2 -> Gladstone Regional Council
B4: Unit Rates
B6: Land Cost | D6: Transportation
B8: Water Supply | D8: Sewerage
B10: Stormwater | D10: Parks & Community Facilities

Sheet Catchment Demand
B2: ='Navigation Pane'!C2 -> Gladstone Regional Council
B4: Demand Forecast
B6: Anticpated Growth Residential | D6: Anticpated Growth - NON Residential
B8: Water Supply | D8: Transportation
B10: Sewerage | D10: Parks & Community Facilities
B12: Stormwater

Sheet Existing Trunk Assets (hidden)
B2: ='Navigation Pane'!C2 -> Gladstone Regional Council
B4: Existing Trunk Assets
B6: Water Supply | D6: Transportation
B8: Sewerage | D8: Parks & Community Facilities
B10: Stormwater

Sheet Existing Trunk Assets - Water (hidden)
B2: ='Navigation Pane'!C2 -> Gladstone Regional Council
B3: Water Supply
A4: Return to "Existing Trunk Assets"
B5: EXISTING TRUNK ASSETS
B8: Land Valuation Type | E8: Location
I10: Asset Data | W10: Catchment Asset Allocation | BP10: Asset Usage | CV10: Cost Allocation
B11: Basic Asset Data | H11: Asset Attributes | K11: Baseline Asset Valuation | P11: Land Attributes | T11: Refined Asset Value | W11: ='Catchment Demand - Water Supply'!$C8 -> Gladstone | X11: ='Catchment Demand - Water Supply'!$C9 -> Boyne/Tannum/Calliope Village | Y11: ='Catchment Demand - Water Supply'!$C10 -> Beecher | Z11: ='Catchment Demand - Water Supply'!$C11 -> Mt Larcom | AA11: ='Catchment Demand - Water Supply'!$C12 -> Miriam Vale | AB11: ='Catchment Demand - Water Supply'!$C13 -> Agnes/1770 | AC11: ='Catchment Demand - Water Supply'!$C14 -> 0 | AD11: ='Catchment Demand - Water Supply'!$C15 -> 0 | AE11: ='Catchment Demand - Water Supply'!$C16 -> 0 | AF11: ='Catchment Demand - Water Supply'!$C17 -> 0 | AG11: ='Catchment Demand - Water Supply'!$C18 -> 0 | AH11: ='Catchment Demand - Water Supply'!$C19 -> 0 | AI11: ='Catchment Demand - Water Supply'!$C20 -> 0 | AJ11: ='Catchment Demand - Water Supply'!$C21 -> 0 | AK11: ='Catchment Demand - Water Supply'!$C22 -> 0 | AL11: ='Catchment Demand - Water Supply'!$C23 -> 0 | AM11: ='Catchment Demand - Water Supply'!$C24 -> 0 | AN11: ='Catchment Demand - Water Supply'!$C25 -> 0 | AO11: ='Catchment Demand - Water Supply'!$C26 -> 0 | AP11: ='Catchment Demand - Water Supply'!$C27 -> 0 | AQ11: ='Catchment Demand - Water Supply'!$C28 -> 0 | AR11: ='Catchment Demand - Water Supply'!$C29 -> 0 | AS11: ='Catchment Demand - Water Supply'!$C30 -> 0 | AT11: ='Catchment Demand - Water Supply'!$C31 -> 0 | AU11: ='Catchment Demand - Water Supply'!$C32 -> 0 | AV11: ='Catchment Demand - Water Supply'!$C33 -> 0 | AW11: ='Catchment Demand - Water Supply'!$C34 -> 0 | AX11: ='Catchment Demand - Water Supply'!$C35 -> 0 | AY11: ='Catchment Demand - Water Supply'!$C36 -> 0 | AZ11: ='Catchment Demand - Water Supply'!$C37 -> 0 | BB11: ='Catchment Demand - Water Supply'!$C8 -> Gladstone | BC11: ='Catchment Demand - Water Supply'!$C9 -> Boyne/Tannum/Calliope Village | BD11: ='Catchment Demand - Water Supply'!$C10 -> Beecher | BE11: ='Catchment Demand - Water Supply'!$C11 -> Mt Larcom | BF11: ='Catchment Demand - Water Supply'!$C12 -> Miriam Vale | BG11: ='Catchment Demand - Water Supply'!$C13 -> Agnes/1770 | BH11: ='Catchment Demand - Water Supply'!$C14 -> 0 | BI11: ='Catchment Demand - Water Supply'!$C15 -> 0 | BJ11: ='Catchment Demand - Water Supply'!$C16 -> 0 | BK11: ='Catchment Demand - Water Supply'!$C17 -> 0 | BL11: ='Catchment Demand - Water Supply'!$C18 -> 0 | BM11: ='Catchment Demand - Water Supply'!$C19 -> 0 | BN11: ='Catchment Demand - Water Supply'!$C20 -> 0 | BO11: ='Catchment Demand - Water Supply'!$C21 -> 0 | BP11: ='Catchment Demand - Water Supply'!$C22 -> 0 | BQ11: ='Catchment Demand - Water Supply'!$C23 -> 0 | BR11: ='Catchment Demand - Water Supply'!$C24 -> 0 | BS11: ='Catchment Demand - Water Supply'!$C25 -> 0 | BT11: ='Catchment Demand - Water Supply'!$C26 -> 0 | BU11: ='Catchment Demand - Water Supply'!$C27 -> 0 | BV11: ='Catchment Demand - Water Supply'!$C28 -> 0 | BW11: ='Catchment Demand - Water Supply'!$C29 -> 0 | BX11: ='Catchment Demand - Water Supply'!$C30 -> 0 | BY11: ='Catchment Demand - Water Supply'!$C31 -> 0 | BZ11: ='Catchment Demand - Water Supply'!$C32 -> 0 | CA11: ='Catchment Demand - Water Supply'!$C33 -> 0 | CB11: ='Catchment Demand - Water Supply'!$C34 -> 0 | CC11: ='Catchment Demand - Water Supply'!$C35 -> 0 | CD11: ='Catchment Demand - Water Supply'!$C36 -> 0 | CE11: ='Catchment Demand - Water Supply'!$C37 -> 0 | CF11: TOTALS | CH11: ='Catchment Demand - Water Supply'!$C8 -> Gladstone | CI11: ='Catchment Demand - Water Supply'!$C9 -> Boyne/Tannum/Calliope Village | CJ11: ='Catchment Demand - Water Supply'!$C10 -> Beecher | CK11: ='Catchment Demand - Water Supply'!$C11 -> Mt Larcom | CL11: ='Catchment Demand - Water Supply'!$C12 -> Miriam Vale | CM11: ='Catchment Demand - Water Supply'!$C13 -> Agnes/1770 | CN11: ='Catchment Demand - Water Supply'!$C14 -> 0 | CO11: ='Catchment Demand - Water Supply'!$C15 -> 0 | CP11: ='Catchment Demand - Water Supply'!$C16 -> 0 | CQ11: ='Catchment Demand - Water Supply'!$C17 -> 0 | CR11: ='Catchment Demand - Water Supply'!$C18 -> 0 | CS11: ='Catchment Demand - Water Supply'!$C19 -> 0 | CT11: ='Catchment Demand - Water Supply'!$C20 -> 0 | CU11: ='Catchment Demand - Water Supply'!$C21 -> 0 | CV11: ='Catchment Demand - Water Supply'!$C22 -> 0 | CW11: ='Catchment Demand - Water Supply'!$C23 -> 0 | CX11: ='Catchment Demand - Water Supply'!$C24 -> 0 | CY11: ='Catchment Demand - Water Supply'!$C25 -> 0 | CZ11: ='Catchment Demand - Water Supply'!$C26 -> 0 | DA11: ='Catchment Demand - Water Supply'!$C27 -> 0 | DB11: ='Catchment Demand - Water Supply'!$C28 -> 0 | DC11: ='Catchment Demand - Water Supply'!$C29 -> 0 | DD11: ='Catchment Demand - Water Supply'!$C30 -> 0 | DE11: ='Catchment Demand - Water Supply'!$C31 -> 0 | DF11: ='Catchment Demand - Water Supply'!$C32 -> 0 | DG11: ='Catchment Demand - Water Supply'!$C33 -> 0 | DH11: ='Catchment Demand - Water Supply'!$C34 -> 0 | DI11: ='Catchment Demand - Water Supply'!$C35 -> 0 | DJ11: ='Catchment Demand - Water Supply'!$C36 -> 0 | DK11: ='Catchment Demand - Water Supply'!$C37 -> 0 | DL11: Checksum 2
B12: Asset ID | C12: LGIP ID | D12: Asset Type (*) | E12: Asset Class | F12: Asset Name | G12: Description | H12: Unit Rate Type (*) | I12: Length/unit (*) | J12: Diameter (*) | K12: Unit Rate | L12: Baseline Valuation | M12: Site/Condition | N12: Multiplier | O12: Gross Value | P12: Land Location/Type | Q12: Size of land (ha) (*) | R12: Unit Cost | S12: Land Value | T12: Valuation Year | U12: Escalation | V12: Current Replacement Cost
W13: 1 | X13: =W13+1 -> 2 | Y13: =X13+1 -> 3 | Z13: 4 | AA13: 5 | AB13: 6 | AC13: 7 | AD13: 8 | AE13: 9 | AF13: 10 | AG13: 11 | AH13: 12 | AI13: 13 | AJ13: 14 | AK13: 15 | AL13: 16 | AM13: 17 | AN13: 18 | AO13: 19 | AP13: 20 | AQ13: 21 | AR13: 22 | AS13: 23 | AT13: 24 | AU13: 25 | AV13: 26 | AW13: 27 | AX13: 28 | AY13: 29 | AZ13: 30
B14: Councils ID (from GIS, FAR, AMA etc.) | C14: ID from the LGIP drawings | E14: Reservoir, Trunk Main, etc. | L14: =SUM(L15:L2025) ->  | V14: CRC | W14: =IFERROR(VLOOKUP(W11,watercatch,6,FALSE),"") -> 52900 | X14: 29606 | Y14: 1062 | Z14: 150 | AA14: 700 | AB14: 3000 | BB14: =VLOOKUP(BB11,'Catchment Demand - Water Supply'!$C$8:$H$37,6,FALSE) -> 52900 | BC14: =VLOOKUP(BC11,'Catchment Demand - Water Supply'!$C$8:$H$37,6,FALSE) -> 29606 | BD14: =VLOOKUP(BD11,'Catchment Demand - Water Supply'!$C$8:$H$37,6,FALSE) -> 1062 | BE14: =VLOOKUP(BE11,'Catchment Demand - Water Supply'!$C$8:$H$37,6,FALSE) -> 150 | BF14: =VLOOKUP(BF11,'Catchment Demand - Water Supply'!$C$8:$H$37,6,FALSE) -> 700 | BG14: =VLOOKUP(BG11,'Catchment Demand - Water Supply'!$C$8:$H$37,6,FALSE) -> 3000 | BH14: =VLOOKUP(BH11,'Catchment Demand - Water Supply'!$C$8:$H$37,6,FALSE) ->  | BI14: =VLOOKUP(BI11,'Catchment Demand - Water Supply'!$C$8:$H$37,6,FALSE) ->  | BJ14: =VLOOKUP(BJ11,'Catchment Demand - Water Supply'!$C$8:$H$37,6,FALSE) ->  | BK14: =VLOOKUP(BK11,'Catchment Demand - Water Supply'!$C$8:$H$37,6,FALSE) ->  | BL14: =VLOOKUP(BL11,'Catchment Demand - Water Supply'!$C$8:$H$37,6,FALSE) ->  | BM14: =VLOOKUP(BM11,'Catchment Demand - Water Supply'!$C$8:$H$37,6,FALSE) ->  | BN14: =VLOOKUP(BN11,'Catchment Demand - Water Supply'!$C$8:$H$37,6,FALSE) ->  | BO14: =VLOOKUP(BO11,'Catchment Demand - Water Supply'!$C$8:$H$37,6,FALSE) ->  | BP14: =VLOOKUP(BP11,'Catchment Demand - Water Supply'!$C$8:$H$37,6,FALSE) ->  | BQ14: =VLOOKUP(BQ11,'Catchment Demand - Water Supply'!$C$8:$H$37,6,FALSE) ->  | BR14: =VLOOKUP(BR11,'Catchment Demand - Water Supply'!$C$8:$H$37,6,FALSE) ->  | BS14: =VLOOKUP(BS11,'Catchment Demand - Water Supply'!$C$8:$H$37,6,FALSE) ->  | BT14: =VLOOKUP(BT11,'Catchment Demand - Water Supply'!$C$8:$H$37,6,FALSE) ->  | BU14: =VLOOKUP(BU11,'Catchment Demand - Water Supply'!$C$8:$H$37,6,FALSE) ->  | BV14: =VLOOKUP(BV11,'Catchment Demand - Water Supply'!$C$8:$H$37,6,FALSE) ->  | BW14: =VLOOKUP(BW11,'Catchment Demand - Water Supply'!$C$8:$H$37,6,FALSE) ->  | BX14: =VLOOKUP(BX11,'Catchment Demand - Water Supply'!$C$8:$H$37,6,FALSE) ->  | BY14: =VLOOKUP(BY11,'Catchment Demand - Water Supply'!$C$8:$H$37,6,FALSE) ->  | BZ14: =VLOOKUP(BZ11,'Catchment Demand - Water Supply'!$C$8:$H$37,6,FALSE) ->  | CA14: =VLOOKUP(CA11,'Catchment Demand - Water Supply'!$C$8:$H$37,6,FALSE) ->  | CB14: =VLOOKUP(CB11,'Catchment Demand - Water Supply'!$C$8:$H$37,6,FALSE) ->  | CC14: =VLOOKUP(CC11,'Catchment Demand - Water Supply'!$C$8:$H$37,6,FALSE) ->  | CD14: =VLOOKUP(CD11,'Catchment Demand - Water Supply'!$C$8:$H$37,6,FALSE) ->  | CE14: =VLOOKUP(CE11,'Catchment Demand - Water Supply'!$C$8:$H$37,6,FALSE) ->  | CH14: =SUM(CH15:CH2041) -> 110423349 | CI14: 33036741 | CJ14: 4580179 | CK14: 3149718 | CL14: 4763770.5 | CM14: 7014598.28 | CN14: 0 | CO14: 0 | CP14: 0 | CQ14: 0 | CR14: 0 | CS14: 0 | CT14: 0 | CU14: 0 | CV14: 0 | CW14: 0 | CX14: 0 | CY14: 0 | CZ14: 0 | DA14: 0 | DB14: 0 | DC14: 0 | DD14: 0 | DE14: 0 | DF14: 0 | DG14: 0 | DH14: 0 | DI14: 0 | DJ14: 0 | DK14: 0 | DL14: 0
D15: ='[1]Existing Trunk Assets'!D13 -> Active | E15: ='[1]Existing Trunk Assets'!E13 -> Water Reservoirs | F15: ='[1]Existing Trunk Assets'!F13 -> CLINTON PARK 13.6ML res | G15: ='[1]Existing Trunk Assets'!G13 -> CLINTON PARK 13.6ML res | K15: =IF(H15=TYPE1,VLOOKUP(J15,WaterUnitrates1,2,FALSE),IF(H15=TYPE2,VLOOKUP(J15,Unitrates2,2,FALSE),0)) -> 0 | L15: ='[1]Existing Trunk Assets'!M13 -> 2108076 | N15: =IF(M15="",1,VLOOKUP(M15,'Unit Rates - Water'!$H$12:$I$23,2,FALSE)) -> 1 | O15: =L15*N15 -> 2108076 | R15: =IF(P15="",'Unit Rates - Land'!landcst,IF($E$8="Landuse",VLOOKUP(P15,LAndcost3,2,FALSE),IF($E$8="Location",VLOOKUP(P15,Landcost2,2,FALSE),"Error"))) -> 0 | S15: =IF(R15="",0,R15*10000*Q15) -> 0 | U15: =IFERROR(('General Input Sheet'!$G$38/(VLOOKUP('Existing Trunk Assets - Water'!T15,Histindex,3,FALSE))),1) -> 1 | V15: =IFERROR((O15+S15)*U15,0) -> 2108076 | W15: ='[1]Existing Trunk Assets'!R13 -> y | X15: ='[1]Existing Trunk Assets'!S13 -> 0 | Y15: ='[1]Existing Trunk Assets'!T13 -> 0 | Z15: ='[1]Existing Trunk Assets'!U13 -> 0 | AA15: ='[1]Existing Trunk Assets'!V13 -> 0 | AB15: ='[1]Existing Trunk Assets'!W13 -> 0 | BB15: =IF(W15="y",BB$14,IF(AND(W15>0,W15<=1),W15*BB$14,"")) -> 52900 | BC15: =IF(X15="y",BC$14,IF(AND(X15>0,X15<=1),X15*BC$14,"")) ->  | CF15: =SUM(BB15:CE15) -> 52900 | CH15: =IF(BB15="","",(BB15/$CF15)*$V15) -> 2108076 | CX15: =IF(BR15="","",(BR15/$CF15)*$V15) ->  | DL15: =IF(SUM(CH15:DK15)=V15,"","ERROR") -> 
D16: ='[1]Existing Trunk Assets'!D14 -> Active | E16: ='[1]Existing Trunk Assets'!E14 -> Water Reservoirs | F16: ='[1]Existing Trunk Assets'!F14 -> PATERSON STREET 4.6ML res | G16: ='[1]Existing Trunk Assets'!G14 -> PATERSON STREET 4.6ML res | K16: =IF(H16=TYPE1,VLOOKUP(J16,WaterUnitrates1,2,FALSE),IF(H16=TYPE2,VLOOKUP(J16,Unitrates2,2,FALSE),0)) -> 0 | L16: ='[1]Existing Trunk Assets'!M14 -> 1094270 | N16: =IF(M16="",1,VLOOKUP(M16,'Unit Rates - Water'!$H$12:$I$23,2,FALSE)) -> 1 | O16: =L16*N16 -> 1094270 | R16: =IF(P16="",'Unit Rates - Land'!landcst,IF($E$8="Landuse",VLOOKUP(P16,LAndcost3,2,FALSE),IF($E$8="Location",VLOOKUP(P16,Landcost2,2,FALSE),"Error"))) -> 0 | S16: =IF(R16="",0,R16*10000*Q16) -> 0 | U16: =IFERROR(('General Input Sheet'!$G$38/(VLOOKUP('Existing Trunk Assets - Water'!T16,Histindex,3,FALSE))),1) -> 1 | V16: =IFERROR((O16+S16)*U16,0) -> 1094270 | W16: ='[1]Existing Trunk Assets'!R14 -> y | X16: ='[1]Existing Trunk Assets'!S14 -> 0 | Y16: ='[1]Existing Trunk Assets'!T14 -> 0 | Z16: ='[1]Existing Trunk Assets'!U14 -> 0 | AA16: ='[1]Existing Trunk Assets'!V14 -> 0 | AB16: ='[1]Existing Trunk Assets'!W14 -> 0 | BB16: =IF(W16="y",BB$14,IF(AND(W16>0,W16<=1),W16*BB$14,"")) -> 52900 | BC16: =IF(X16="y",BC$14,IF(AND(X16>0,X16<=1),X16*BC$14,"")) ->  | BD16: =IF(Y16="y",BD$14,IF(AND(Y16>0,Y16<=1),Y16*BD$14,"")) ->  | BE16: =IF(Z16="y",BE$14,IF(AND(Z16>0,Z16<=1),Z16*BE$14,"")) ->  | BF16: =IF(AA16="y",BF$14,IF(AND(AA16>0,AA16<=1),AA16*BF$14,"")) ->  | BG16: =IF(AB16="y",BG$14,IF(AND(AB16>0,AB16<=1),AB16*BG$14,"")) ->  | BH16: =IF(AC16="y",BH$14,IF(AND(AC16>0,AC16<=1),AC16*BH$14,"")) ->  | BI16: =IF(AD16="y",BI$14,IF(AND(AD16>0,AD16<=1),AD16*BI$14,"")) ->  | BJ16: =IF(AE16="y",BJ$14,IF(AND(AE16>0,AE16<=1),AE16*BJ$14,"")) ->  | BK16: =IF(AF16="y",BK$14,IF(AND(AF16>0,AF16<=1),AF16*BK$14,"")) ->  | BL16: =IF(AG16="y",BL$14,IF(AND(AG16>0,AG16<=1),AG16*BL$14,"")) ->  | BM16: =IF(AH16="y",BM$14,IF(AND(AH16>0,AH16<=1),AH16*BM$14,"")) ->  | BN16: =IF(AI16="y",BN$14,IF(AND(AI16>0,AI16<=1),AI16*BN$14,"")) ->  | BO16: =IF(AJ16="y",BO$14,IF(AND(AJ16>0,AJ16<=1),AJ16*BO$14,"")) ->  | BP16: =IF(AK16="y",BP$14,IF(AND(AK16>0,AK16<=1),AK16*BP$14,"")) ->  | BQ16: =IF(AL16="y",BQ$14,IF(AND(AL16>0,AL16<=1),AL16*BQ$14,"")) ->  | BR16: =IF(AM16="y",BR$14,IF(AND(AM16>0,AM16<=1),AM16*BR$14,"")) ->  | BS16: =IF(AN16="y",BS$14,IF(AND(AN16>0,AN16<=1),AN16*BS$14,"")) ->  | BT16: =IF(AO16="y",BT$14,IF(AND(AO16>0,AO16<=1),AO16*BT$14,"")) ->  | BU16: =IF(AP16="y",BU$14,IF(AND(AP16>0,AP16<=1),AP16*BU$14,"")) ->  | BV16: =IF(AQ16="y",BV$14,IF(AND(AQ16>0,AQ16<=1),AQ16*BV$14,"")) ->  | BW16: =IF(AR16="y",BW$14,IF(AND(AR16>0,AR16<=1),AR16*BW$14,"")) ->  | BX16: =IF(AS16="y",BX$14,IF(AND(AS16>0,AS16<=1),AS16*BX$14,"")) ->  | BY16: =IF(AT16="y",BY$14,IF(AND(AT16>0,AT16<=1),AT16*BY$14,"")) ->  | BZ16: =IF(AU16="y",BZ$14,IF(AND(AU16>0,AU16<=1),AU16*BZ$14,"")) ->  | CA16: =IF(AV16="y",CA$14,IF(AND(AV16>0,AV16<=1),AV16*CA$14,"")) ->  | CB16: =IF(AW16="y",CB$14,IF(AND(AW16>0,AW16<=1),AW16*CB$14,"")) ->  | CC16: =IF(AX16="y",CC$14,IF(AND(AX16>0,AX16<=1),AX16*CC$14,"")) ->  | CD16: =IF(AY16="y",CD$14,IF(AND(AY16>0,AY16<=1),AY16*CD$14,"")) ->  | CE16: =IF(AZ16="y",CE$14,IF(AND(AZ16>0,AZ16<=1),AZ16*CE$14,"")) ->  | CF16: =SUM(BB16:CE16) -> 52900 | CH16: 1094270 | DL16: =IF(SUM(CH16:DK16)=V16,"","ERROR") -> 
D17: ='[1]Existing Trunk Assets'!D15 -> Active | E17: ='[1]Existing Trunk Assets'!E15 -> Water Reservoirs | F17: ='[1]Existing Trunk Assets'!F15 -> ROUND HILL 13.6ML res | G17: ='[1]Existing Trunk Assets'!G15 -> ROUND HILL 13.6ML res | K17: 0 | L17: ='[1]Existing Trunk Assets'!M15 -> 2108076 | N17: =IF(M17="",1,VLOOKUP(M17,'Unit Rates - Water'!$H$12:$I$23,2,FALSE)) -> 1 | O17: 2108076 | R17: =IF(P17="",'Unit Rates - Land'!landcst,IF($E$8="Landuse",VLOOKUP(P17,LAndcost3,2,FALSE),IF($E$8="Location",VLOOKUP(P17,Landcost2,2,FALSE),"Error"))) -> 0 | S17: 0 | U17: =IFERROR(('General Input Sheet'!$G$38/(VLOOKUP('Existing Trunk Assets - Water'!T17,Histindex,3,FALSE))),1) -> 1 | V17: 2108076 | W17: ='[1]Existing Trunk Assets'!R15 -> y | X17: ='[1]Existing Trunk Assets'!S15 -> 0 | Y17: ='[1]Existing Trunk Assets'!T15 -> 0 | Z17: ='[1]Existing Trunk Assets'!U15 -> 0 | AA17: ='[1]Existing Trunk Assets'!V15 -> 0 | AB17: ='[1]Existing Trunk Assets'!W15 -> 0 | BB17: 52900 | CF17: =SUM(BB17:CE17) -> 52900 | CH17: 2108076 | DL17: =IF(SUM(CH17:DK17)=V17,"","ERROR") -> 
D18: ='[1]Existing Trunk Assets'!D16 -> Active | E18: ='[1]Existing Trunk Assets'!E16 -> Water Reservoirs | F18: ='[1]Existing Trunk Assets'!F16 -> FISHER STREET 2.3ML res | G18: ='[1]Existing Trunk Assets'!G16 -> FISHER STREET 2.3ML res | K18: 0 | L18: ='[1]Existing Trunk Assets'!M16 -> 697217 | N18: =IF(M18="",1,VLOOKUP(M18,'Unit Rates - Water'!$H$12:$I$23,2,FALSE)) -> 1 | O18: 697217 | R18: =IF(P18="",'Unit Rates - Land'!landcst,IF($E$8="Landuse",VLOOKUP(P18,LAndcost3,2,FALSE),IF($E$8="Location",VLOOKUP(P18,Landcost2,2,FALSE),"Error"))) -> 0 | S18: 0 | U18: =IFERROR(('General Input Sheet'!$G$38/(VLOOKUP('Existing Trunk Assets - Water'!T18,Histindex,3,FALSE))),1) -> 1 | V18: 697217 | W18: ='[1]Existing Trunk Assets'!R16 -> y | X18: ='[1]Existing Trunk Assets'!S16 -> 0 | Y18: ='[1]Existing Trunk Assets'!T16 -> 0 | Z18: ='[1]Existing Trunk Assets'!U16 -> 0 | AA18: ='[1]Existing Trunk Assets'!V16 -> 0 | AB18: ='[1]Existing Trunk Assets'!W16 -> 0 | BB18: 52900 | CF18: =SUM(BB18:CE18) -> 52900 | CH18: 697217 | DL18: =IF(SUM(CH18:DK18)=V18,"","ERROR") -> 
D19: ='[1]Existing Trunk Assets'!D17 -> Active | E19: ='[1]Existing Trunk Assets'!E17 -> Water Reservoirs | F19: ='[1]Existing Trunk Assets'!F17 -> FERRIS HILL 9.1ML res | G19: ='[1]Existing Trunk Assets'!G17 -> FERRIS HILL 9.1ML res | K19: 0 | L19: ='[1]Existing Trunk Assets'!M17 -> 1657564 | N19: =IF(M19="",1,VLOOKUP(M19,'Unit Rates - Water'!$H$12:$I$23,2,FALSE)) -> 1 | O19: 1657564 | R19: =IF(P19="",'Unit Rates - Land'!landcst,IF($E$8="Landuse",VLOOKUP(P19,LAndcost3,2,FALSE),IF($E$8="Location",VLOOKUP(P19,Landcost2,2,FALSE),"Error"))) -> 0 | S19: 0 | U19: =IFERROR(('General Input Sheet'!$G$38/(VLOOKUP('Existing Trunk Assets - Water'!T19,Histindex,3,FALSE))),1) -> 1 | V19: 1657564 | W19: ='[1]Existing Trunk Assets'!R17 -> y | X19: ='[1]Existing Trunk Assets'!S17 -> 0 | Y19: ='[1]Existing Trunk Assets'!T17 -> 0 | Z19: ='[1]Existing Trunk Assets'!U17 -> 0 | AA19: ='[1]Existing Trunk Assets'!V17 -> 0 | AB19: ='[1]Existing Trunk Assets'!W17 -> 0 | BB19: 52900 | CF19: 52900 | CH19: 1657564
D20: ='[1]Existing Trunk Assets'!D18 -> Active | E20: ='[1]Existing Trunk Assets'!E18 -> Water Reservoirs | F20: ='[1]Existing Trunk Assets'!F18 -> RADAR HILL 2.3ML res | G20: ='[1]Existing Trunk Assets'!G18 -> RADAR HILL 2.3ML res | K20: 0 | L20: ='[1]Existing Trunk Assets'!M18 -> 697217 | N20: =IF(M20="",1,VLOOKUP(M20,'Unit Rates - Water'!$H$12:$I$23,2,FALSE)) -> 1 | O20: 697217 | R20: =IF(P20="",'Unit Rates - Land'!landcst,IF($E$8="Landuse",VLOOKUP(P20,LAndcost3,2,FALSE),IF($E$8="Location",VLOOKUP(P20,Landcost2,2,FALSE),"Error"))) -> 0 | S20: 0 | U20: =IFERROR(('General Input Sheet'!$G$38/(VLOOKUP('Existing Trunk Assets - Water'!T20,Histindex,3,FALSE))),1) -> 1 | V20: 697217 | W20: ='[1]Existing Trunk Assets'!R18 -> y | X20: ='[1]Existing Trunk Assets'!S18 -> 0 | Y20: ='[1]Existing Trunk Assets'!T18 -> 0 | Z20: ='[1]Existing Trunk Assets'!U18 -> 0 | AA20: ='[1]Existing Trunk Assets'!V18 -> 0 | AB20: ='[1]Existing Trunk Assets'!W18 -> 0 | BB20: =IF(W20="y",BB$14,IF(AND(W20>0,W20<=1),W20*BB$14,"")) -> 52900 | BC20: =IF(X20="y",BC$14,IF(AND(X20>0,X20<=1),X20*BC$14,"")) ->  | BD20: =IF(Y20="y",BD$14,IF(AND(Y20>0,Y20<=1),Y20*BD$14,"")) ->  | BE20: =IF(Z20="y",BE$14,IF(AND(Z20>0,Z20<=1),Z20*BE$14,"")) ->  | BF20: =IF(AA20="y",BF$14,IF(AND(AA20>0,AA20<=1),AA20*BF$14,"")) ->  | BG20: =IF(AB20="y",BG$14,IF(AND(AB20>0,AB20<=1),AB20*BG$14,"")) ->  | BH20: =IF(AC20="y",BH$14,IF(AND(AC20>0,AC20<=1),AC20*BH$14,"")) ->  | BI20: =IF(AD20="y",BI$14,IF(AND(AD20>0,AD20<=1),AD20*BI$14,"")) ->  | BJ20: =IF(AE20="y",BJ$14,IF(AND(AE20>0,AE20<=1),AE20*BJ$14,"")) ->  | BK20: =IF(AF20="y",BK$14,IF(AND(AF20>0,AF20<=1),AF20*BK$14,"")) ->  | BL20: =IF(AG20="y",BL$14,IF(AND(AG20>0,AG20<=1),AG20*BL$14,"")) ->  | BM20: =IF(AH20="y",BM$14,IF(AND(AH20>0,AH20<=1),AH20*BM$14,"")) ->  | BN20: =IF(AI20="y",BN$14,IF(AND(AI20>0,AI20<=1),AI20*BN$14,"")) ->  | BO20: =IF(AJ20="y",BO$14,IF(AND(AJ20>0,AJ20<=1),AJ20*BO$14,"")) ->  | BP20: =IF(AK20="y",BP$14,IF(AND(AK20>0,AK20<=1),AK20*BP$14,"")) ->  | BQ20: =IF(AL20="y",BQ$14,IF(AND(AL20>0,AL20<=1),AL20*BQ$14,"")) ->  | BR20: =IF(AM20="y",BR$14,IF(AND(AM20>0,AM20<=1),AM20*BR$14,"")) ->  | BS20: =IF(AN20="y",BS$14,IF(AND(AN20>0,AN20<=1),AN20*BS$14,"")) ->  | BT20: =IF(AO20="y",BT$14,IF(AND(AO20>0,AO20<=1),AO20*BT$14,"")) ->  | BU20: =IF(AP20="y",BU$14,IF(AND(AP20>0,AP20<=1),AP20*BU$14,"")) ->  | BV20: =IF(AQ20="y",BV$14,IF(AND(AQ20>0,AQ20<=1),AQ20*BV$14,"")) ->  | BW20: =IF(AR20="y",BW$14,IF(AND(AR20>0,AR20<=1),AR20*BW$14,"")) ->  | BX20: =IF(AS20="y",BX$14,IF(AND(AS20>0,AS20<=1),AS20*BX$14,"")) ->  | BY20: =IF(AT20="y",BY$14,IF(AND(AT20>0,AT20<=1),AT20*BY$14,"")) ->  | BZ20: =IF(AU20="y",BZ$14,IF(AND(AU20>0,AU20<=1),AU20*BZ$14,"")) ->  | CA20: =IF(AV20="y",CA$14,IF(AND(AV20>0,AV20<=1),AV20*CA$14,"")) ->  | CB20: =IF(AW20="y",CB$14,IF(AND(AW20>0,AW20<=1),AW20*CB$14,"")) ->  | CC20: =IF(AX20="y",CC$14,IF(AND(AX20>0,AX20<=1),AX20*CC$14,"")) ->  | CD20: =IF(AY20="y",CD$14,IF(AND(AY20>0,AY20<=1),AY20*CD$14,"")) ->  | CE20: =IF(AZ20="y",CE$14,IF(AND(AZ20>0,AZ20<=1),AZ20*CE$14,"")) ->  | CF20: 52900 | CH20: 697217
D21: ='[1]Existing Trunk Assets'!D19 -> Active | E21: ='[1]Existing Trunk Assets'!E19 -> Water Reservoirs | F21: ='[1]Existing Trunk Assets'!F19 -> POWER STATION 13.6ML res | G21: ='[1]Existing Trunk Assets'!G19 -> POWER STATION 13.6ML res | K21: 0 | L21: ='[1]Existing Trunk Assets'!M19 -> 2108076 | N21: =IF(M21="",1,VLOOKUP(M21,'Unit Rates - Water'!$H$12:$I$23,2,FALSE)) -> 1 | O21: 2108076 | R21: =IF(P21="",'Unit Rates - Land'!landcst,IF($E$8="Landuse",VLOOKUP(P21,LAndcost3,2,FALSE),IF($E$8="Location",VLOOKUP(P21,Landcost2,2,FALSE),"Error"))) -> 0 | S21: 0 | U21: =IFERROR(('General Input Sheet'!$G$38/(VLOOKUP('Existing Trunk Assets - Water'!T21,Histindex,3,FALSE))),1) -> 1 | V21: 2108076 | W21: ='[1]Existing Trunk Assets'!R19 -> y | X21: ='[1]Existing Trunk Assets'!S19 -> 0 | Y21: ='[1]Existing Trunk Assets'!T19 -> 0 | Z21: ='[1]Existing Trunk Assets'!U19 -> 0 | AA21: ='[1]Existing Trunk Assets'!V19 -> 0 | AB21: ='[1]Existing Trunk Assets'!W19 -> 0 | BB21: 52900 | CF21: 52900 | CH21: 2108076
D22: ='[1]Existing Trunk Assets'!D20 -> Active | E22: ='[1]Existing Trunk Assets'!E20 -> Pump Stations | F22: ='[1]Existing Trunk Assets'!F20 -> Auck Cr P/ Stn -WSP01 | G22: ='[1]Existing Trunk Assets'!G20 -> Auck Cr P/ Stn -WSP01 | K22: 0 | L22: ='[1]Existing Trunk Assets'!M20 -> 96752 | N22: =IF(M22="",1,VLOOKUP(M22,'Unit Rates - Water'!$H$12:$I$23,2,FALSE)) -> 1 | O22: 96752 | R22: =IF(P22="",'Unit Rates - Land'!landcst,IF($E$8="Landuse",VLOOKUP(P22,LAndcost3,2,FALSE),IF($E$8="Location",VLOOKUP(P22,Landcost2,2,FALSE),"Error"))) -> 0 | S22: 0 | U22: =IFERROR(('General Input Sheet'!$G$38/(VLOOKUP('Existing Trunk Assets - Water'!T22,Histindex,3,FALSE))),1) -> 1 | V22: 96752 | W22: ='[1]Existing Trunk Assets'!R20 -> y | X22: ='[1]Existing Trunk Assets'!S20 -> 0 | Y22: ='[1]Existing Trunk Assets'!T20 -> 0 | Z22: ='[1]Existing Trunk Assets'!U20 -> 0 | AA22: ='[1]Existing Trunk Assets'!V20 -> 0 | AB22: ='[1]Existing Trunk Assets'!W20 -> 0 | BB22: 52900 | CF22: 52900 | CH22: 96752
D23: ='[1]Existing Trunk Assets'!D21 -> Active | E23: ='[1]Existing Trunk Assets'!E21 -> Pump Stations | F23: ='[1]Existing Trunk Assets'!F21 -> Fisher St P/ Stn -WSP02 | G23: ='[1]Existing Trunk Assets'!G21 -> Fisher St P/ Stn -WSP02 | K23: 0 | L23: ='[1]Existing Trunk Assets'!M21 -> 76711 | N23: =IF(M23="",1,VLOOKUP(M23,'Unit Rates - Water'!$H$12:$I$23,2,FALSE)) -> 1 | O23: 76711 | R23: =IF(P23="",'Unit Rates - Land'!landcst,IF($E$8="Landuse",VLOOKUP(P23,LAndcost3,2,FALSE),IF($E$8="Location",VLOOKUP(P23,Landcost2,2,FALSE),"Error"))) -> 0 | S23: 0 | U23: =IFERROR(('General Input Sheet'!$G$38/(VLOOKUP('Existing Trunk Assets - Water'!T23,Histindex,3,FALSE))),1) -> 1 | V23: 76711 | W23: ='[1]Existing Trunk Assets'!R21 -> y | X23: ='[1]Existing Trunk Assets'!S21 -> 0 | Y23: ='[1]Existing Trunk Assets'!T21 -> 0 | Z23: ='[1]Existing Trunk Assets'!U21 -> 0 | AA23: ='[1]Existing Trunk Assets'!V21 -> 0 | AB23: ='[1]Existing Trunk Assets'!W21 -> 0 | BB23: 52900 | CF23: 52900 | CH23: 76711
D24: ='[1]Existing Trunk Assets'!D22 -> Active | E24: ='[1]Existing Trunk Assets'!E22 -> Water Treatment Plant | F24: ='[1]Existing Trunk Assets'!F22 -> Gladstone WTP | G24: ='[1]Existing Trunk Assets'!G22 -> Water Treatment plant | K24: 0 | L24: ='[1]Existing Trunk Assets'!M22 -> 0 | N24: =IF(M24="",1,VLOOKUP(M24,'Unit Rates - Water'!$H$12:$I$23,2,FALSE)) -> 1 | O24: 0 | R24: =IF(P24="",'Unit Rates - Land'!landcst,IF($E$8="Landuse",VLOOKUP(P24,LAndcost3,2,FALSE),IF($E$8="Location",VLOOKUP(P24,Landcost2,2,FALSE),"Error"))) -> 0 | S24: 0 | U24: =IFERROR(('General Input Sheet'!$G$38/(VLOOKUP('Existing Trunk Assets - Water'!T24,Histindex,3,FALSE))),1) -> 1 | V24: 0 | W24: ='[1]Existing Trunk Assets'!R22 -> y | X24: ='[1]Existing Trunk Assets'!S22 -> 0 | Y24: ='[1]Existing Trunk Assets'!T22 -> 0 | Z24: ='[1]Existing Trunk Assets'!U22 -> 0 | AA24: ='[1]Existing Trunk Assets'!V22 -> 0 | AB24: ='[1]Existing Trunk Assets'!W22 -> 0 | BB24: 52900 | CF24: 52900 | CH24: 0
D25: ='[1]Existing Trunk Assets'!D23 -> Active | E25: ='[1]Existing Trunk Assets'!E23 -> Dam | F25: ='[1]Existing Trunk Assets'!F23 -> Awoonga | G25: ='[1]Existing Trunk Assets'!G23 -> Awoonga Dam | K25: 0 | L25: ='[1]Existing Trunk Assets'!M23 -> 0 | N25: =IF(M25="",1,VLOOKUP(M25,'Unit Rates - Water'!$H$12:$I$23,2,FALSE)) -> 1 | O25: 0 | R25: =IF(P25="",'Unit Rates - Land'!landcst,IF($E$8="Landuse",VLOOKUP(P25,LAndcost3,2,FALSE),IF($E$8="Location",VLOOKUP(P25,Landcost2,2,FALSE),"Error"))) -> 0 | S25: 0 | U25: =IFERROR(('General Input Sheet'!$G$38/(VLOOKUP('Existing Trunk Assets - Water'!T25,Histindex,3,FALSE))),1) -> 1 | V25: 0 | W25: ='[1]Existing Trunk Assets'!R23 -> y | X25: ='[1]Existing Trunk Assets'!S23 -> 0 | Y25: ='[1]Existing Trunk Assets'!T23 -> 0 | Z25: ='[1]Existing Trunk Assets'!U23 -> 0 | AA25: ='[1]Existing Trunk Assets'!V23 -> 0 | AB25: ='[1]Existing Trunk Assets'!W23 -> 0 | BB25: 52900 | CF25: 52900 | CH25: 0
D26: ='[1]Existing Trunk Assets'!D24 -> Passive | E26: ='[1]Existing Trunk Assets'!E24 -> Water Mains | F26: ='[1]Existing Trunk Assets'!F24 -> 0 | G26: ='[1]Existing Trunk Assets'!G24 -> Watermain - 22 m of 600dia. Asset No - 0 | K26: 0 | L26: ='[1]Existing Trunk Assets'!M24 -> 27566 | N26: =IF(M26="",1,VLOOKUP(M26,'Unit Rates - Water'!$H$12:$I$23,2,FALSE)) -> 1 | O26: 27566 | R26: =IF(P26="",'Unit Rates - Land'!landcst,IF($E$8="Landuse",VLOOKUP(P26,LAndcost3,2,FALSE),IF($E$8="Location",VLOOKUP(P26,Landcost2,2,FALSE),"Error"))) -> 0 | S26: 0 | U26: =IFERROR(('General Input Sheet'!$G$38/(VLOOKUP('Existing Trunk Assets - Water'!T26,Histindex,3,FALSE))),1) -> 1 | V26: 27566 | W26: ='[1]Existing Trunk Assets'!R24 -> y | X26: ='[1]Existing Trunk Assets'!S24 -> 0 | Y26: ='[1]Existing Trunk Assets'!T24 -> 0 | Z26: ='[1]Existing Trunk Assets'!U24 -> 0 | AA26: ='[1]Existing Trunk Assets'!V24 -> 0 | AB26: ='[1]Existing Trunk Assets'!W24 -> 0 | BB26: 52900 | CF26: 52900 | CH26: 27566
D27: ='[1]Existing Trunk Assets'!D25 -> Passive | E27: ='[1]Existing Trunk Assets'!E25 -> Water Mains | F27: ='[1]Existing Trunk Assets'!F25 -> 0 | G27: ='[1]Existing Trunk Assets'!G25 -> Watermain - 152 m of 200dia. Asset No - 999991 | K27: 0 | L27: ='[1]Existing Trunk Assets'!M25 -> 65208 | N27: =IF(M27="",1,VLOOKUP(M27,'Unit Rates - Water'!$H$12:$I$23,2,FALSE)) -> 1 | O27: 65208 | R27: =IF(P27="",'Unit Rates - Land'!landcst,IF($E$8="Landuse",VLOOKUP(P27,LAndcost3,2,FALSE),IF($E$8="Location",VLOOKUP(P27,Landcost2,2,FALSE),"Error"))) -> 0 | S27: 0 | U27: =IFERROR(('General Input Sheet'!$G$38/(VLOOKUP('Existing Trunk Assets - Water'!T27,Histindex,3,FALSE))),1) -> 1 | V27: 65208 | W27: ='[1]Existing Trunk Assets'!R25 -> y | X27: ='[1]Existing Trunk Assets'!S25 -> 0 | Y27: ='[1]Existing Trunk Assets'!T25 -> 0 | Z27: ='[1]Existing Trunk Assets'!U25 -> 0 | AA27: ='[1]Existing Trunk Assets'!V25 -> 0 | AB27: ='[1]Existing Trunk Assets'!W25 -> 0 | BB27: 52900 | CF27: 52900 | CH27: 65208
D28: ='[1]Existing Trunk Assets'!D26 -> Passive | E28: ='[1]Existing Trunk Assets'!E26 -> Water Mains | F28: ='[1]Existing Trunk Assets'!F26 -> 0 | G28: ='[1]Existing Trunk Assets'!G26 -> Watermain - 246 m of 200dia. Asset No - 9999910 | K28: 0 | L28: ='[1]Existing Trunk Assets'!M26 -> 105534 | N28: =IF(M28="",1,VLOOKUP(M28,'Unit Rates - Water'!$H$12:$I$23,2,FALSE)) -> 1 | O28: 105534 | R28: =IF(P28="",'Unit Rates - Land'!landcst,IF($E$8="Landuse",VLOOKUP(P28,LAndcost3,2,FALSE),IF($E$8="Location",VLOOKUP(P28,Landcost2,2,FALSE),"Error"))) -> 0 | S28: 0 | U28: =IFERROR(('General Input Sheet'!$G$38/(VLOOKUP('Existing Trunk Assets - Water'!T28,Histindex,3,FALSE))),1) -> 1 | V28: 105534 | W28: ='[1]Existing Trunk Assets'!R26 -> y | X28: ='[1]Existing Trunk Assets'!S26 -> 0 | Y28: ='[1]Existing Trunk Assets'!T26 -> 0 | Z28: ='[1]Existing Trunk Assets'!U26 -> 0 | AA28: ='[1]Existing Trunk Assets'!V26 -> 0 | AB28: ='[1]Existing Trunk Assets'!W26 -> 0 | BB28: 52900 | CF28: 52900 | CH28: 105534
D29: ='[1]Existing Trunk Assets'!D27 -> Passive | E29: ='[1]Existing Trunk Assets'!E27 -> Water Mains | F29: ='[1]Existing Trunk Assets'!F27 -> 0 | G29: ='[1]Existing Trunk Assets'!G27 -> Watermain - 121 m of 250dia. Asset No - 9999911 | K29: 0 | L29: ='[1]Existing Trunk Assets'!M27 -> 59169 | N29: =IF(M29="",1,VLOOKUP(M29,'Unit Rates - Water'!$H$12:$I$23,2,FALSE)) -> 1 | O29: 59169 | R29: =IF(P29="",'Unit Rates - Land'!landcst,IF($E$8="Landuse",VLOOKUP(P29,LAndcost3,2,FALSE),IF($E$8="Location",VLOOKUP(P29,Landcost2,2,FALSE),"Error"))) -> 0 | S29: 0 | U29: =IFERROR(('General Input Sheet'!$G$38/(VLOOKUP('Existing Trunk Assets - Water'!T29,Histindex,3,FALSE))),1) -> 1 | V29: 59169 | W29: ='[1]Existing Trunk Assets'!R27 -> y | X29: ='[1]Existing Trunk Assets'!S27 -> 0 | Y29: ='[1]Existing Trunk Assets'!T27 -> 0 | Z29: ='[1]Existing Trunk Assets'!U27 -> 0 | AA29: ='[1]Existing Trunk Assets'!V27 -> 0 | AB29: ='[1]Existing Trunk Assets'!W27 -> 0 | BB29: 52900 | CF29: 52900 | CH29: 59169
D30: ='[1]Existing Trunk Assets'!D28 -> Passive | E30: ='[1]Existing Trunk Assets'!E28 -> Water Mains | F30: ='[1]Existing Trunk Assets'!F28 -> 0 | G30: ='[1]Existing Trunk Assets'!G28 -> Watermain - 43 m of 200dia. Asset No - 999992 | K30: 0 | L30: ='[1]Existing Trunk Assets'!M28 -> 18447 | N30: =IF(M30="",1,VLOOKUP(M30,'Unit Rates - Water'!$H$12:$I$23,2,FALSE)) -> 1 | O30: 18447 | R30: =IF(P30="",'Unit Rates - Land'!landcst,IF($E$8="Landuse",VLOOKUP(P30,LAndcost3,2,FALSE),IF($E$8="Location",VLOOKUP(P30,Landcost2,2,FALSE),"Error"))) -> 0 | S30: 0 | U30: =IFERROR(('General Input Sheet'!$G$38/(VLOOKUP('Existing Trunk Assets - Water'!T30,Histindex,3,FALSE))),1) -> 1 | V30: 18447 | W30: ='[1]Existing Trunk Assets'!R28 -> y | X30: ='[1]Existing Trunk Assets'!S28 -> 0 | Y30: ='[1]Existing Trunk Assets'!T28 -> 0 | Z30: ='[1]Existing Trunk Assets'!U28 -> 0 | AA30: ='[1]Existing Trunk Assets'!V28 -> 0 | AB30: ='[1]Existing Trunk Assets'!W28 -> 0 | BB30: 52900 | CF30: 52900 | CH30: 18447 | CW30: =IF(BQ30="","",(BQ30/$CF30)*$V30) -> 
D31: ='[1]Existing Trunk Assets'!D29 -> Passive | E31: ='[1]Existing Trunk Assets'!E29 -> Water Mains | F31: ='[1]Existing Trunk Assets'!F29 -> 0 | G31: ='[1]Existing Trunk Assets'!G29 -> Watermain - 64 m of 250dia. Asset No - 999999 | K31: 0 | L31: ='[1]Existing Trunk Assets'!M29 -> 31296 | N31: =IF(M31="",1,VLOOKUP(M31,'Unit Rates - Water'!$H$12:$I$23,2,FALSE)) -> 1 | O31: 31296 | R31: =IF(P31="",'Unit Rates - Land'!landcst,IF($E$8="Landuse",VLOOKUP(P31,LAndcost3,2,FALSE),IF($E$8="Location",VLOOKUP(P31,Landcost2,2,FALSE),"Error"))) -> 0 | S31: 0 | U31: =IFERROR(('General Input Sheet'!$G$38/(VLOOKUP('Existing Trunk Assets - Water'!T31,Histindex,3,FALSE))),1) -> 1 | V31: 31296 | W31: ='[1]Existing Trunk Assets'!R29 -> y | X31: ='[1]Existing Trunk Assets'!S29 -> 0 | Y31: ='[1]Existing Trunk Assets'!T29 -> 0 | Z31: ='[1]Existing Trunk Assets'!U29 -> 0 | AA31: ='[1]Existing Trunk Assets'!V29 -> 0 | AB31: ='[1]Existing Trunk Assets'!W29 -> 0 | BB31: 52900 | CF31: 52900 | CH31: =IF(BB31="","",(BB31/$CF31)*$V31) -> 31296
D32: ='[1]Existing Trunk Assets'!D30 -> Passive | E32: ='[1]Existing Trunk Assets'!E30 -> Water Mains | F32: ='[1]Existing Trunk Assets'!F30 -> 0 | G32: ='[1]Existing Trunk Assets'!G30 -> Watermain - 10 m of 375dia. Asset No - 1 | K32: 0 | L32: ='[1]Existing Trunk Assets'!M30 -> 7210 | N32: =IF(M32="",1,VLOOKUP(M32,'Unit Rates - Water'!$H$12:$I$23,2,FALSE)) -> 1 | O32: 7210 | R32: =IF(P32="",'Unit Rates - Land'!landcst,IF($E$8="Landuse",VLOOKUP(P32,LAndcost3,2,FALSE),IF($E$8="Location",VLOOKUP(P32,Landcost2,2,FALSE),"Error"))) -> 0 | S32: 0 | U32: =IFERROR(('General Input Sheet'!$G$38/(VLOOKUP('Existing Trunk Assets - Water'!T32,Histindex,3,FALSE))),1) -> 1 | V32: 7210 | W32: ='[1]Existing Trunk Assets'!R30 -> y | X32: ='[1]Existing Trunk Assets'!S30 -> 0 | Y32: ='[1]Existing Trunk Assets'!T30 -> 0 | Z32: ='[1]Existing Trunk Assets'!U30 -> 0 | AA32: ='[1]Existing Trunk Assets'!V30 -> 0 | AB32: ='[1]Existing Trunk Assets'!W30 -> 0 | BB32: 52900 | CF32: 52900 | CH32: 7210
D33: ='[1]Existing Trunk Assets'!D31 -> Passive | E33: ='[1]Existing Trunk Assets'!E31 -> Water Mains | F33: ='[1]Existing Trunk Assets'!F31 -> 0 | G33: ='[1]Existing Trunk Assets'!G31 -> Watermain - 453 m of 600dia. Asset No - 10 | K33: 0 | L33: ='[1]Existing Trunk Assets'!M31 -> 567609 | N33: =IF(M33="",1,VLOOKUP(M33,'Unit Rates - Water'!$H$12:$I$23,2,FALSE)) -> 1 | O33: 567609 | R33: =IF(P33="",'Unit Rates - Land'!landcst,IF($E$8="Landuse",VLOOKUP(P33,LAndcost3,2,FALSE),IF($E$8="Location",VLOOKUP(P33,Landcost2,2,FALSE),"Error"))) -> 0 | S33: 0 | U33: =IFERROR(('General Input Sheet'!$G$38/(VLOOKUP('Existing Trunk Assets - Water'!T33,Histindex,3,FALSE))),1) -> 1 | V33: 567609 | W33: ='[1]Existing Trunk Assets'!R31 -> y | X33: ='[1]Existing Trunk Assets'!S31 -> 0 | Y33: ='[1]Existing Trunk Assets'!T31 -> 0 | Z33: ='[1]Existing Trunk Assets'!U31 -> 0 | AA33: ='[1]Existing Trunk Assets'!V31 -> 0 | AB33: ='[1]Existing Trunk Assets'!W31 -> 0 | BB33: 52900 | CF33: 52900 | CH33: 567609
D34: ='[1]Existing Trunk Assets'!D32 -> Passive | E34: ='[1]Existing Trunk Assets'!E32 -> Water Mains | F34: ='[1]Existing Trunk Assets'!F32 -> 0 | G34: ='[1]Existing Trunk Assets'!G32 -> Watermain - 20 m of 250dia. Asset No - 10000 | K34: 0 | L34: ='[1]Existing Trunk Assets'!M32 -> 9780 | N34: =IF(M34="",1,VLOOKUP(M34,'Unit Rates - Water'!$H$12:$I$23,2,FALSE)) -> 1 | O34: 9780 | R34: =IF(P34="",'Unit Rates - Land'!landcst,IF($E$8="Landuse",VLOOKUP(P34,LAndcost3,2,FALSE),IF($E$8="Location",VLOOKUP(P34,Landcost2,2,FALSE),"Error"))) -> 0 | S34: 0 | U34: =IFERROR(('General Input Sheet'!$G$38/(VLOOKUP('Existing Trunk Assets - Water'!T34,Histindex,3,FALSE))),1) -> 1 | V34: 9780 | W34: ='[1]Existing Trunk Assets'!R32 -> y | X34: ='[1]Existing Trunk Assets'!S32 -> 0 | Y34: ='[1]Existing Trunk Assets'!T32 -> 0 | Z34: ='[1]Existing Trunk Assets'!U32 -> 0 | AA34: ='[1]Existing Trunk Assets'!V32 -> 0 | AB34: ='[1]Existing Trunk Assets'!W32 -> 0 | BB34: 52900 | CF34: 52900 | CH34: 9780
D35: ='[1]Existing Trunk Assets'!D33 -> Passive | E35: ='[1]Existing Trunk Assets'!E33 -> Water Mains | F35: ='[1]Existing Trunk Assets'!F33 -> 0 | G35: ='[1]Existing Trunk Assets'!G33 -> Watermain - 1046 m of 450dia. Asset No - 1000001 | K35: 0 | L35: ='[1]Existing Trunk Assets'!M33 -> 914204 | N35: =IF(M35="",1,VLOOKUP(M35,'Unit Rates - Water'!$H$12:$I$23,2,FALSE)) -> 1 | O35: 914204 | R35: =IF(P35="",'Unit Rates - Land'!landcst,IF($E$8="Landuse",VLOOKUP(P35,LAndcost3,2,FALSE),IF($E$8="Location",VLOOKUP(P35,Landcost2,2,FALSE),"Error"))) -> 0 | S35: 0 | U35: =IFERROR(('General Input Sheet'!$G$38/(VLOOKUP('Existing Trunk Assets - Water'!T35,Histindex,3,FALSE))),1) -> 1 | V35: 914204 | W35: ='[1]Existing Trunk Assets'!R33 -> y | X35: ='[1]Existing Trunk Assets'!S33 -> 0 | Y35: ='[1]Existing Trunk Assets'!T33 -> 0 | Z35: ='[1]Existing Trunk Assets'!U33 -> 0 | AA35: ='[1]Existing Trunk Assets'!V33 -> 0 | AB35: ='[1]Existing Trunk Assets'!W33 -> 0 | BB35: 52900 | CF35: 52900 | CH35: 914204
D36: ='[1]Existing Trunk Assets'!D34 -> Passive | E36: ='[1]Existing Trunk Assets'!E34 -> Water Mains | F36: ='[1]Existing Trunk Assets'!F34 -> 0 | G36: ='[1]Existing Trunk Assets'!G34 -> Watermain - 189 m of 375dia. Asset No - 10000010 | K36: 0 | L36: ='[1]Existing Trunk Assets'!M34 -> 136269 | N36: =IF(M36="",1,VLOOKUP(M36,'Unit Rates - Water'!$H$12:$I$23,2,FALSE)) -> 1 | O36: 136269 | R36: =IF(P36="",'Unit Rates - Land'!landcst,IF($E$8="Landuse",VLOOKUP(P36,LAndcost3,2,FALSE),IF($E$8="Location",VLOOKUP(P36,Landcost2,2,FALSE),"Error"))) -> 0 | S36: 0 | U36: =IFERROR(('General Input Sheet'!$G$38/(VLOOKUP('Existing Trunk Assets - Water'!T36,Histindex,3,FALSE))),1) -> 1 | V36: 136269 | W36: ='[1]Existing Trunk Assets'!R34 -> y | X36: ='[1]Existing Trunk Assets'!S34 -> 0 | Y36: ='[1]Existing Trunk Assets'!T34 -> 0 | Z36: ='[1]Existing Trunk Assets'!U34 -> 0 | AA36: ='[1]Existing Trunk Assets'!V34 -> 0 | AB36: ='[1]Existing Trunk Assets'!W34 -> 0 | BB36: 52900 | CF36: 52900 | CH36: 136269
D37: ='[1]Existing Trunk Assets'!D35 -> Passive | E37: ='[1]Existing Trunk Assets'!E35 -> Water Mains | F37: ='[1]Existing Trunk Assets'!F35 -> 0 | G37: ='[1]Existing Trunk Assets'!G35 -> Watermain - 854 m of 200dia. Asset No - 100000103 | K37: 0 | L37: ='[1]Existing Trunk Assets'!M35 -> 366366 | N37: =IF(M37="",1,VLOOKUP(M37,'Unit Rates - Water'!$H$12:$I$23,2,FALSE)) -> 1 | O37: 366366 | R37: =IF(P37="",'Unit Rates - Land'!landcst,IF($E$8="Landuse",VLOOKUP(P37,LAndcost3,2,FALSE),IF($E$8="Location",VLOOKUP(P37,Landcost2,2,FALSE),"Error"))) -> 0 | S37: 0 | U37: =IFERROR(('General Input Sheet'!$G$38/(VLOOKUP('Existing Trunk Assets - Water'!T37,Histindex,3,FALSE))),1) -> 1 | V37: 366366 | W37: ='[1]Existing Trunk Assets'!R35 -> y | X37: ='[1]Existing Trunk Assets'!S35 -> 0 | Y37: ='[1]Existing Trunk Assets'!T35 -> 0 | Z37: ='[1]Existing Trunk Assets'!U35 -> 0 | AA37: ='[1]Existing Trunk Assets'!V35 -> 0 | AB37: ='[1]Existing Trunk Assets'!W35 -> 0 | BB37: 52900 | CF37: 52900 | CH37: 366366
D38: ='[1]Existing Trunk Assets'!D36 -> Passive | E38: ='[1]Existing Trunk Assets'!E36 -> Water Mains | F38: ='[1]Existing Trunk Assets'!F36 -> 0 | G38: ='[1]Existing Trunk Assets'!G36 -> Watermain - 29 m of 375dia. Asset No - 100000104 | K38: 0 | L38: ='[1]Existing Trunk Assets'!M36 -> 20909 | N38: =IF(M38="",1,VLOOKUP(M38,'Unit Rates - Water'!$H$12:$I$23,2,FALSE)) -> 1 | O38: 20909 | R38: =IF(P38="",'Unit Rates - Land'!landcst,IF($E$8="Landuse",VLOOKUP(P38,LAndcost3,2,FALSE),IF($E$8="Location",VLOOKUP(P38,Landcost2,2,FALSE),"Error"))) -> 0 | S38: 0 | U38: =IFERROR(('General Input Sheet'!$G$38/(VLOOKUP('Existing Trunk Assets - Water'!T38,Histindex,3,FALSE))),1) -> 1 | V38: 20909 | W38: ='[1]Existing Trunk Assets'!R36 -> y | X38: ='[1]Existing Trunk Assets'!S36 -> 0 | Y38: ='[1]Existing Trunk Assets'!T36 -> 0 | Z38: ='[1]Existing Trunk Assets'!U36 -> 0 | AA38: ='[1]Existing Trunk Assets'!V36 -> 0 | AB38: ='[1]Existing Trunk Assets'!W36 -> 0 | BB38: 52900 | CF38: 52900 | CH38: 20909
D39: ='[1]Existing Trunk Assets'!D37 -> Passive | E39: ='[1]Existing Trunk Assets'!E37 -> Water Mains | F39: ='[1]Existing Trunk Assets'!F37 -> 0 | G39: ='[1]Existing Trunk Assets'!G37 -> Watermain - 810 m of 300dia. Asset No - 100000105 | K39: 0 | L39: ='[1]Existing Trunk Assets'!M37 -> 462510 | N39: =IF(M39="",1,VLOOKUP(M39,'Unit Rates - Water'!$H$12:$I$23,2,FALSE)) -> 1 | O39: 462510 | R39: =IF(P39="",'Unit Rates - Land'!landcst,IF($E$8="Landuse",VLOOKUP(P39,LAndcost3,2,FALSE),IF($E$8="Location",VLOOKUP(P39,Landcost2,2,FALSE),"Error"))) -> 0 | S39: 0 | U39: =IFERROR(('General Input Sheet'!$G$38/(VLOOKUP('Existing Trunk Assets - Water'!T39,Histindex,3,FALSE))),1) -> 1 | V39: 462510 | W39: ='[1]Existing Trunk Assets'!R37 -> y | X39: ='[1]Existing Trunk Assets'!S37 -> 0 | Y39: ='[1]Existing Trunk Assets'!T37 -> 0 | Z39: ='[1]Existing Trunk Assets'!U37 -> 0 | AA39: ='[1]Existing Trunk Assets'!V37 -> 0 | AB39: ='[1]Existing Trunk Assets'!W37 -> 0 | BB39: 52900 | CF39: 52900 | CH39: 462510
D40: ='[1]Existing Trunk Assets'!D38 -> Passive | E40: ='[1]Existing Trunk Assets'!E38 -> Water Mains | F40: ='[1]Existing Trunk Assets'!F38 -> 0 | G40: ='[1]Existing Trunk Assets'!G38 -> Watermain - 16 m of 300dia. Asset No - 100000106 | K40: 0 | L40: ='[1]Existing Trunk Assets'!M38 -> 9136 | N40: =IF(M40="",1,VLOOKUP(M40,'Unit Rates - Water'!$H$12:$I$23,2,FALSE)) -> 1 | O40: 9136 | R40: =IF(P40="",'Unit Rates - Land'!landcst,IF($E$8="Landuse",VLOOKUP(P40,LAndcost3,2,FALSE),IF($E$8="Location",VLOOKUP(P40,Landcost2,2,FALSE),"Error"))) -> 0 | S40: 0 | U40: =IFERROR(('General Input Sheet'!$G$38/(VLOOKUP('Existing Trunk Assets - Water'!T40,Histindex,3,FALSE))),1) -> 1 | V40: 9136 | W40: ='[1]Existing Trunk Assets'!R38 -> y | X40: ='[1]Existing Trunk Assets'!S38 -> 0 | Y40: ='[1]Existing Trunk Assets'!T38 -> 0 | Z40: ='[1]Existing Trunk Assets'!U38 -> 0 | AA40: ='[1]Existing Trunk Assets'!V38 -> 0 | AB40: ='[1]Existing Trunk Assets'!W38 -> 0 | BB40: 52900 | CF40: 52900 | CH40: 9136
D41: ='[1]Existing Trunk Assets'!D39 -> Passive | E41: ='[1]Existing Trunk Assets'!E39 -> Water Mains | F41: ='[1]Existing Trunk Assets'!F39 -> 0 | G41: ='[1]Existing Trunk Assets'!G39 -> Watermain - 181 m of 200dia. Asset No - 100000107 | K41: 0 | L41: ='[1]Existing Trunk Assets'!M39 -> 77649 | N41: =IF(M41="",1,VLOOKUP(M41,'Unit Rates - Water'!$H$12:$I$23,2,FALSE)) -> 1 | O41: 77649 | R41: =IF(P41="",'Unit Rates - Land'!landcst,IF($E$8="Landuse",VLOOKUP(P41,LAndcost3,2,FALSE),IF($E$8="Location",VLOOKUP(P41,Landcost2,2,FALSE),"Error"))) -> 0 | S41: 0 | U41: =IFERROR(('General Input Sheet'!$G$38/(VLOOKUP('Existing Trunk Assets - Water'!T41,Histindex,3,FALSE))),1) -> 1 | V41: 77649 | W41: ='[1]Existing Trunk Assets'!R39 -> y | X41: ='[1]Existing Trunk Assets'!S39 -> 0 | Y41: ='[1]Existing Trunk Assets'!T39 -> 0 | Z41: ='[1]Existing Trunk Assets'!U39 -> 0 | AA41: ='[1]Existing Trunk Assets'!V39 -> 0 | AB41: ='[1]Existing Trunk Assets'!W39 -> 0 | BB41: 52900 | CF41: 52900 | CH41: 77649
D42: ='[1]Existing Trunk Assets'!D40 -> Passive | E42: ='[1]Existing Trunk Assets'!E40 -> Water Mains | F42: ='[1]Existing Trunk Assets'!F40 -> 0 | G42: ='[1]Existing Trunk Assets'!G40 -> Watermain - 10 m of 375dia. Asset No - 10000011 | K42: 0 | L42: ='[1]Existing Trunk Assets'!M40 -> 7210 | N42: =IF(M42="",1,VLOOKUP(M42,'Unit Rates - Water'!$H$12:$I$23,2,FALSE)) -> 1 | O42: 7210 | R42: =IF(P42="",'Unit Rates - Land'!landcst,IF($E$8="Landuse",VLOOKUP(P42,LAndcost3,2,FALSE),IF($E$8="Location",VLOOKUP(P42,Landcost2,2,FALSE),"Error"))) -> 0 | S42: 0 | U42: =IFERROR(('General Input Sheet'!$G$38/(VLOOKUP('Existing Trunk Assets - Water'!T42,Histindex,3,FALSE))),1) -> 1 | V42: 7210 | W42: ='[1]Existing Trunk Assets'!R40 -> y | X42: ='[1]Existing Trunk Assets'!S40 -> 0 | Y42: ='[1]Existing Trunk Assets'!T40 -> 0 | Z42: ='[1]Existing Trunk Assets'!U40 -> 0 | AA42: ='[1]Existing Trunk Assets'!V40 -> 0 | AB42: ='[1]Existing Trunk Assets'!W40 -> 0 | BB42: 52900 | CF42: 52900 | CH42: 7210
D43: ='[1]Existing Trunk Assets'!D41 -> Passive | E43: ='[1]Existing Trunk Assets'!E41 -> Water Mains | F43: ='[1]Existing Trunk Assets'!F41 -> 0 | G43: ='[1]Existing Trunk Assets'!G41 -> Watermain - 385 m of 450dia. Asset No - 100000112 | K43: 0 | L43: ='[1]Existing Trunk Assets'!M41 -> 336490 | N43: =IF(M43="",1,VLOOKUP(M43,'Unit Rates - Water'!$H$12:$I$23,2,FALSE)) -> 1 | O43: 336490 | R43: =IF(P43="",'Unit Rates - Land'!landcst,IF($E$8="Landuse",VLOOKUP(P43,LAndcost3,2,FALSE),IF($E$8="Location",VLOOKUP(P43,Landcost2,2,FALSE),"Error"))) -> 0 | S43: 0 | U43: =IFERROR(('General Input Sheet'!$G$38/(VLOOKUP('Existing Trunk Assets - Water'!T43,Histindex,3,FALSE))),1) -> 1 | V43: 336490 | W43: ='[1]Existing Trunk Assets'!R41 -> y | X43: ='[1]Existing Trunk Assets'!S41 -> 0 | Y43: ='[1]Existing Trunk Assets'!T41 -> 0 | Z43: ='[1]Existing Trunk Assets'!U41 -> 0 | AA43: ='[1]Existing Trunk Assets'!V41 -> 0 | AB43: ='[1]Existing Trunk Assets'!W41 -> 0 | BB43: 52900 | CF43: 52900 | CH43: 336490
D44: ='[1]Existing Trunk Assets'!D42 -> Passive | E44: ='[1]Existing Trunk Assets'!E42 -> Water Mains | F44: ='[1]Existing Trunk Assets'!F42 -> 0 | G44: ='[1]Existing Trunk Assets'!G42 -> Watermain - 371 m of 375dia. Asset No - 100000113 | K44: 0 | L44: ='[1]Existing Trunk Assets'!M42 -> 267491 | N44: =IF(M44="",1,VLOOKUP(M44,'Unit Rates - Water'!$H$12:$I$23,2,FALSE)) -> 1 | O44: 267491 | R44: =IF(P44="",'Unit Rates - Land'!landcst,IF($E$8="Landuse",VLOOKUP(P44,LAndcost3,2,FALSE),IF($E$8="Location",VLOOKUP(P44,Landcost2,2,FALSE),"Error"))) -> 0 | S44: 0 | U44: =IFERROR(('General Input Sheet'!$G$38/(VLOOKUP('Existing Trunk Assets - Water'!T44,Histindex,3,FALSE))),1) -> 1 | V44: 267491 | W44: ='[1]Existing Trunk Assets'!R42 -> y | X44: ='[1]Existing Trunk Assets'!S42 -> 0 | Y44: ='[1]Existing Trunk Assets'!T42 -> 0 | Z44: ='[1]Existing Trunk Assets'!U42 -> 0 | AA44: ='[1]Existing Trunk Assets'!V42 -> 0 | AB44: ='[1]Existing Trunk Assets'!W42 -> 0 | BB44: 52900 | CF44: 52900 | CH44: 267491
D45: ='[1]Existing Trunk Assets'!D43 -> Passive | E45: ='[1]Existing Trunk Assets'!E43 -> Water Mains | F45: ='[1]Existing Trunk Assets'!F43 -> 0 | G45: ='[1]Existing Trunk Assets'!G43 -> Watermain - 172 m of 375dia. Asset No - 100000114 | K45: 0 | L45: ='[1]Existing Trunk Assets'!M43 -> 124012 | N45: =IF(M45="",1,VLOOKUP(M45,'Unit Rates - Water'!$H$12:$I$23,2,FALSE)) -> 1 | O45: 124012 | R45: =IF(P45="",'Unit Rates - Land'!landcst,IF($E$8="Landuse",VLOOKUP(P45,LAndcost3,2,FALSE),IF($E$8="Location",VLOOKUP(P45,Landcost2,2,FALSE),"Error"))) -> 0 | S45: 0 | U45: =IFERROR(('General Input Sheet'!$G$38/(VLOOKUP('Existing Trunk Assets - Water'!T45,Histindex,3,FALSE))),1) -> 1 | V45: 124012 | W45: ='[1]Existing Trunk Assets'!R43 -> y | X45: ='[1]Existing Trunk Assets'!S43 -> 0 | Y45: ='[1]Existing Trunk Assets'!T43 -> 0 | Z45: ='[1]Existing Trunk Assets'!U43 -> 0 | AA45: ='[1]Existing Trunk Assets'!V43 -> 0 | AB45: ='[1]Existing Trunk Assets'!W43 -> 0 | BB45: 52900 | CF45: 52900 | CH45: 124012
D46: ='[1]Existing Trunk Assets'!D44 -> Passive | E46: ='[1]Existing Trunk Assets'!E44 -> Water Mains | F46: ='[1]Existing Trunk Assets'!F44 -> 0 | G46: ='[1]Existing Trunk Assets'!G44 -> Watermain - 80 m of 375dia. Asset No - 100000115 | K46: 0 | L46: ='[1]Existing Trunk Assets'!M44 -> 57680 | N46: =IF(M46="",1,VLOOKUP(M46,'Unit Rates - Water'!$H$12:$I$23,2,FALSE)) -> 1 | O46: 57680 | R46: =IF(P46="",'Unit Rates - Land'!landcst,IF($E$8="Landuse",VLOOKUP(P46,LAndcost3,2,FALSE),IF($E$8="Location",VLOOKUP(P46,Landcost2,2,FALSE),"Error"))) -> 0 | S46: 0 | U46: =IFERROR(('General Input Sheet'!$G$38/(VLOOKUP('Existing Trunk Assets - Water'!T46,Histindex,3,FALSE))),1) -> 1 | V46: 57680 | W46: ='[1]Existing Trunk Assets'!R44 -> y | X46: ='[1]Existing Trunk Assets'!S44 -> 0 | Y46: ='[1]Existing Trunk Assets'!T44 -> 0 | Z46: ='[1]Existing Trunk Assets'!U44 -> 0 | AA46: ='[1]Existing Trunk Assets'!V44 -> 0 | AB46: ='[1]Existing Trunk Assets'!W44 -> 0 | BB46: 52900 | CF46: 52900 | CH46: 57680
D47: ='[1]Existing Trunk Assets'!D45 -> Passive | E47: ='[1]Existing Trunk Assets'!E45 -> Water Mains | F47: ='[1]Existing Trunk Assets'!F45 -> 0 | G47: ='[1]Existing Trunk Assets'!G45 -> Watermain - 128 m of 225dia. Asset No - 10000012 | K47: 0 | L47: ='[1]Existing Trunk Assets'!M45 -> 56704 | N47: =IF(M47="",1,VLOOKUP(M47,'Unit Rates - Water'!$H$12:$I$23,2,FALSE)) -> 1 | O47: 56704 | R47: =IF(P47="",'Unit Rates - Land'!landcst,IF($E$8="Landuse",VLOOKUP(P47,LAndcost3,2,FALSE),IF($E$8="Location",VLOOKUP(P47,Landcost2,2,FALSE),"Error"))) -> 0 | S47: 0 | U47: =IFERROR(('General Input Sheet'!$G$38/(VLOOKUP('Existing Trunk Assets - Water'!T47,Histindex,3,FALSE))),1) -> 1 | V47: 56704 | W47: ='[1]Existing Trunk Assets'!R45 -> y | X47: ='[1]Existing Trunk Assets'!S45 -> 0 | Y47: ='[1]Existing Trunk Assets'!T45 -> 0 | Z47: ='[1]Existing Trunk Assets'!U45 -> 0 | AA47: ='[1]Existing Trunk Assets'!V45 -> 0 | AB47: ='[1]Existing Trunk Assets'!W45 -> 0 | BB47: 52900 | CF47: 52900 | CH47: 56704 | DK47: =IF(CE47="","",(CE47/$CF47)*$V47) -> 
D48: ='[1]Existing Trunk Assets'!D46 -> Passive | E48: ='[1]Existing Trunk Assets'!E46 -> Water Mains | F48: ='[1]Existing Trunk Assets'!F46 -> 0 | G48: ='[1]Existing Trunk Assets'!G46 -> Watermain - 542 m of 200dia. Asset No - 100000121 | K48: 0 | L48: ='[1]Existing Trunk Assets'!M46 -> 232518 | N48: =IF(M48="",1,VLOOKUP(M48,'Unit Rates - Water'!$H$12:$I$23,2,FALSE)) -> 1 | O48: 232518 | R48: =IF(P48="",'Unit Rates - Land'!landcst,IF($E$8="Landuse",VLOOKUP(P48,LAndcost3,2,FALSE),IF($E$8="Location",VLOOKUP(P48,Landcost2,2,FALSE),"Error"))) -> 0 | S48: 0 | U48: =IFERROR(('General Input Sheet'!$G$38/(VLOOKUP('Existing Trunk Assets - Water'!T48,Histindex,3,FALSE))),1) -> 1 | V48: 232518 | W48: ='[1]Existing Trunk Assets'!R46 -> y | X48: ='[1]Existing Trunk Assets'!S46 -> 0 | Y48: ='[1]Existing Trunk Assets'!T46 -> 0 | Z48: ='[1]Existing Trunk Assets'!U46 -> 0 | AA48: ='[1]Existing Trunk Assets'!V46 -> 0 | AB48: ='[1]Existing Trunk Assets'!W46 -> 0 | BB48: 52900 | CF48: 52900 | CH48: =IF(BB48="","",(BB48/$CF48)*$V48) -> 232518 | CX48: =IF(BR48="","",(BR48/$CF48)*$V48) -> 
D49: ='[1]Existing Trunk Assets'!D47 -> Passive | E49: ='[1]Existing Trunk Assets'!E47 -> Water Mains | F49: ='[1]Existing Trunk Assets'!F47 -> 0 | G49: ='[1]Existing Trunk Assets'!G47 -> Watermain - 518 m of 300dia. Asset No - 100000122 | K49: 0 | L49: ='[1]Existing Trunk Assets'!M47 -> 295778 | N49: =IF(M49="",1,VLOOKUP(M49,'Unit Rates - Water'!$H$12:$I$23,2,FALSE)) -> 1 | O49: 295778 | R49: =IF(P49="",'Unit Rates - Land'!landcst,IF($E$8="Landuse",VLOOKUP(P49,LAndcost3,2,FALSE),IF($E$8="Location",VLOOKUP(P49,Landcost2,2,FALSE),"Error"))) -> 0 | S49: 0 | U49: =IFERROR(('General Input Sheet'!$G$38/(VLOOKUP('Existing Trunk Assets - Water'!T49,Histindex,3,FALSE))),1) -> 1 | V49: 295778 | W49: ='[1]Existing Trunk Assets'!R47 -> y | X49: ='[1]Existing Trunk Assets'!S47 -> 0 | Y49: ='[1]Existing Trunk Assets'!T47 -> 0 | Z49: ='[1]Existing Trunk Assets'!U47 -> 0 | AA49: ='[1]Existing Trunk Assets'!V47 -> 0 | AB49: ='[1]Existing Trunk Assets'!W47 -> 0 | BB49: 52900 | CF49: 52900 | CH49: 295778
D50: ='[1]Existing Trunk Assets'!D48 -> Passive | E50: ='[1]Existing Trunk Assets'!E48 -> Water Mains | F50: ='[1]Existing Trunk Assets'!F48 -> 0 | G50: ='[1]Existing Trunk Assets'!G48 -> Watermain - 480 m of 375dia. Asset No - 100000123 | K50: 0 | L50: ='[1]Existing Trunk Assets'!M48 -> 346080 | N50: =IF(M50="",1,VLOOKUP(M50,'Unit Rates - Water'!$H$12:$I$23,2,FALSE)) -> 1 | O50: 346080 | R50: =IF(P50="",'Unit Rates - Land'!landcst,IF($E$8="Landuse",VLOOKUP(P50,LAndcost3,2,FALSE),IF($E$8="Location",VLOOKUP(P50,Landcost2,2,FALSE),"Error"))) -> 0 | S50: 0 | U50: =IFERROR(('General Input Sheet'!$G$38/(VLOOKUP('Existing Trunk Assets - Water'!T50,Histindex,3,FALSE))),1) -> 1 | V50: 346080 | W50: ='[1]Existing Trunk Assets'!R48 -> y | X50: ='[1]Existing Trunk Assets'!S48 -> 0 | Y50: ='[1]Existing Trunk Assets'!T48 -> 0 | Z50: ='[1]Existing Trunk Assets'!U48 -> 0 | AA50: ='[1]Existing Trunk Assets'!V48 -> 0 | AB50: ='[1]Existing Trunk Assets'!W48 -> 0 | BB50: 52900 | CF50: 52900 | CH50: 346080
D51: ='[1]Existing Trunk Assets'!D49 -> Passive | E51: ='[1]Existing Trunk Assets'!E49 -> Water Mains | F51: ='[1]Existing Trunk Assets'!F49 -> 0 | G51: ='[1]Existing Trunk Assets'!G49 -> Watermain - 352 m of 200dia. Asset No - 100000124 | K51: 0 | L51: ='[1]Existing Trunk Assets'!M49 -> 151008 | N51: =IF(M51="",1,VLOOKUP(M51,'Unit Rates - Water'!$H$12:$I$23,2,FALSE)) -> 1 | O51: 151008 | R51: =IF(P51="",'Unit Rates - Land'!landcst,IF($E$8="Landuse",VLOOKUP(P51,LAndcost3,2,FALSE),IF($E$8="Location",VLOOKUP(P51,Landcost2,2,FALSE),"Error"))) -> 0 | S51: 0 | U51: =IFERROR(('General Input Sheet'!$G$38/(VLOOKUP('Existing Trunk Assets - Water'!T51,Histindex,3,FALSE))),1) -> 1 | V51: 151008 | W51: ='[1]Existing Trunk Assets'!R49 -> y | X51: ='[1]Existing Trunk Assets'!S49 -> 0 | Y51: ='[1]Existing Trunk Assets'!T49 -> 0 | Z51: ='[1]Existing Trunk Assets'!U49 -> 0 | AA51: ='[1]Existing Trunk Assets'!V49 -> 0 | AB51: ='[1]Existing Trunk Assets'!W49 -> 0 | BB51: 52900 | CF51: 52900 | CH51: 151008
D52: ='[1]Existing Trunk Assets'!D50 -> Passive | E52: ='[1]Existing Trunk Assets'!E50 -> Water Mains | F52: ='[1]Existing Trunk Assets'!F50 -> 0 | G52: ='[1]Existing Trunk Assets'!G50 -> Watermain - 483 m of 200dia. Asset No - 100000125 | K52: 0 | L52: ='[1]Existing Trunk Assets'!M50 -> 207207 | N52: =IF(M52="",1,VLOOKUP(M52,'Unit Rates - Water'!$H$12:$I$23,2,FALSE)) -> 1 | O52: 207207 | R52: =IF(P52="",'Unit Rates - Land'!landcst,IF($E$8="Landuse",VLOOKUP(P52,LAndcost3,2,FALSE),IF($E$8="Location",VLOOKUP(P52,Landcost2,2,FALSE),"Error"))) -> 0 | S52: 0 | U52: =IFERROR(('General Input Sheet'!$G$38/(VLOOKUP('Existing Trunk Assets - Water'!T52,Histindex,3,FALSE))),1) -> 1 | V52: 207207 | W52: ='[1]Existing Trunk Assets'!R50 -> y | X52: ='[1]Existing Trunk Assets'!S50 -> 0 | Y52: ='[1]Existing Trunk Assets'!T50 -> 0 | Z52: ='[1]Existing Trunk Assets'!U50 -> 0 | AA52: ='[1]Existing Trunk Assets'!V50 -> 0 | AB52: ='[1]Existing Trunk Assets'!W50 -> 0 | BB52: 52900 | CF52: 52900 | CH52: 207207
D53: ='[1]Existing Trunk Assets'!D51 -> Passive | E53: ='[1]Existing Trunk Assets'!E51 -> Water Mains | F53: ='[1]Existing Trunk Assets'!F51 -> 0 | G53: ='[1]Existing Trunk Assets'!G51 -> Watermain - 185 m of 200dia. Asset No - 100000126 | K53: 0 | L53: ='[1]Existing Trunk Assets'!M51 -> 79365 | N53: =IF(M53="",1,VLOOKUP(M53,'Unit Rates - Water'!$H$12:$I$23,2,FALSE)) -> 1 | O53: 79365 | R53: =IF(P53="",'Unit Rates - Land'!landcst,IF($E$8="Landuse",VLOOKUP(P53,LAndcost3,2,FALSE),IF($E$8="Location",VLOOKUP(P53,Landcost2,2,FALSE),"Error"))) -> 0 | S53: 0 | U53: =IFERROR(('General Input Sheet'!$G$38/(VLOOKUP('Existing Trunk Assets - Water'!T53,Histindex,3,FALSE))),1) -> 1 | V53: 79365 | W53: ='[1]Existing Trunk Assets'!R51 -> y | X53: ='[1]Existing Trunk Assets'!S51 -> 0 | Y53: ='[1]Existing Trunk Assets'!T51 -> 0 | Z53: ='[1]Existing Trunk Assets'!U51 -> 0 | AA53: ='[1]Existing Trunk Assets'!V51 -> 0 | AB53: ='[1]Existing Trunk Assets'!W51 -> 0 | BB53: 52900 | CF53: 52900 | CH53: 79365
D54: ='[1]Existing Trunk Assets'!D52 -> Passive | E54: ='[1]Existing Trunk Assets'!E52 -> Water Mains | F54: ='[1]Existing Trunk Assets'!F52 -> 0 | G54: ='[1]Existing Trunk Assets'!G52 -> Watermain - 299 m of 200dia. Asset No - 100000127 | K54: 0 | L54: ='[1]Existing Trunk Assets'!M52 -> 128271 | N54: =IF(M54="",1,VLOOKUP(M54,'Unit Rates - Water'!$H$12:$I$23,2,FALSE)) -> 1 | O54: 128271 | R54: =IF(P54="",'Unit Rates - Land'!landcst,IF($E$8="Landuse",VLOOKUP(P54,LAndcost3,2,FALSE),IF($E$8="Location",VLOOKUP(P54,Landcost2,2,FALSE),"Error"))) -> 0 | S54: 0 | U54: =IFERROR(('General Input Sheet'!$G$38/(VLOOKUP('Existing Trunk Assets - Water'!T54,Histindex,3,FALSE))),1) -> 1 | V54: 128271 | W54: ='[1]Existing Trunk Assets'!R52 -> y | X54: ='[1]Existing Trunk Assets'!S52 -> 0 | Y54: ='[1]Existing Trunk Assets'!T52 -> 0 | Z54: ='[1]Existing Trunk Assets'!U52 -> 0 | AA54: ='[1]Existing Trunk Assets'!V52 -> 0 | AB54: ='[1]Existing Trunk Assets'!W52 -> 0 | BB54: 52900 | CF54: 52900 | CH54: 128271
D55: ='[1]Existing Trunk Assets'!D53 -> Passive | E55: ='[1]Existing Trunk Assets'!E53 -> Water Mains | F55: ='[1]Existing Trunk Assets'!F53 -> 0 | G55: ='[1]Existing Trunk Assets'!G53 -> Watermain - 232 m of 300dia. Asset No - 100000129 | K55: 0 | L55: ='[1]Existing Trunk Assets'!M53 -> 132472 | N55: =IF(M55="",1,VLOOKUP(M55,'Unit Rates - Water'!$H$12:$I$23,2,FALSE)) -> 1 | O55: 132472 | R55: =IF(P55="",'Unit Rates - Land'!landcst,IF($E$8="Landuse",VLOOKUP(P55,LAndcost3,2,FALSE),IF($E$8="Location",VLOOKUP(P55,Landcost2,2,FALSE),"Error"))) -> 0 | S55: 0 | U55: =IFERROR(('General Input Sheet'!$G$38/(VLOOKUP('Existing Trunk Assets - Water'!T55,Histindex,3,FALSE))),1) -> 1 | V55: 132472 | W55: ='[1]Existing Trunk Assets'!R53 -> y | X55: ='[1]Existing Trunk Assets'!S53 -> 0 | Y55: ='[1]Existing Trunk Assets'!T53 -> 0 | Z55: ='[1]Existing Trunk Assets'!U53 -> 0 | AA55: ='[1]Existing Trunk Assets'!V53 -> 0 | AB55: ='[1]Existing Trunk Assets'!W53 -> 0 | BB55: 52900 | CF55: 52900 | CH55: 132472
D56: ='[1]Existing Trunk Assets'!D54 -> Passive | E56: ='[1]Existing Trunk Assets'!E54 -> Water Mains | F56: ='[1]Existing Trunk Assets'!F54 -> 0 | G56: ='[1]Existing Trunk Assets'!G54 -> Watermain - 12 m of 225dia. Asset No - 10000013 | K56: 0 | L56: ='[1]Existing Trunk Assets'!M54 -> 5316 | N56: =IF(M56="",1,VLOOKUP(M56,'Unit Rates - Water'!$H$12:$I$23,2,FALSE)) -> 1 | O56: 5316 | R56: =IF(P56="",'Unit Rates - Land'!landcst,IF($E$8="Landuse",VLOOKUP(P56,LAndcost3,2,FALSE),IF($E$8="Location",VLOOKUP(P56,Landcost2,2,FALSE),"Error"))) -> 0 | S56: 0 | U56: =IFERROR(('General Input Sheet'!$G$38/(VLOOKUP('Existing Trunk Assets - Water'!T56,Histindex,3,FALSE))),1) -> 1 | V56: 5316 | W56: ='[1]Existing Trunk Assets'!R54 -> y | X56: ='[1]Existing Trunk Assets'!S54 -> 0 | Y56: ='[1]Existing Trunk Assets'!T54 -> 0 | Z56: ='[1]Existing Trunk Assets'!U54 -> 0 | AA56: ='[1]Existing Trunk Assets'!V54 -> 0 | AB56: ='[1]Existing Trunk Assets'!W54 -> 0 | BB56: 52900 | CF56: 52900 | CH56: 5316
D57: ='[1]Existing Trunk Assets'!D55 -> Passive | E57: ='[1]Existing Trunk Assets'!E55 -> Water Mains | F57: ='[1]Existing Trunk Assets'!F55 -> 0 | G57: ='[1]Existing Trunk Assets'!G55 -> Watermain - 161 m of 225dia. Asset No - 100000130 | K57: 0 | L57: ='[1]Existing Trunk Assets'!M55 -> 71323 | N57: =IF(M57="",1,VLOOKUP(M57,'Unit Rates - Water'!$H$12:$I$23,2,FALSE)) -> 1 | O57: 71323 | R57: =IF(P57="",'Unit Rates - Land'!landcst,IF($E$8="Landuse",VLOOKUP(P57,LAndcost3,2,FALSE),IF($E$8="Location",VLOOKUP(P57,Landcost2,2,FALSE),"Error"))) -> 0 | S57: 0 | U57: =IFERROR(('General Input Sheet'!$G$38/(VLOOKUP('Existing Trunk Assets - Water'!T57,Histindex,3,FALSE))),1) -> 1 | V57: 71323 | W57: ='[1]Existing Trunk Assets'!R55 -> y | X57: ='[1]Existing Trunk Assets'!S55 -> 0 | Y57: ='[1]Existing Trunk Assets'!T55 -> 0 | Z57: ='[1]Existing Trunk Assets'!U55 -> 0 | AA57: ='[1]Existing Trunk Assets'!V55 -> 0 | AB57: ='[1]Existing Trunk Assets'!W55 -> 0 | BB57: 52900 | CF57: 52900 | CH57: 71323
D58: ='[1]Existing Trunk Assets'!D56 -> Passive | E58: ='[1]Existing Trunk Assets'!E56 -> Water Mains | F58: ='[1]Existing Trunk Assets'!F56 -> 0 | G58: ='[1]Existing Trunk Assets'!G56 -> Watermain - 179 m of 225dia. Asset No - 100000131 | K58: 0 | L58: ='[1]Existing Trunk Assets'!M56 -> 79297 | N58: =IF(M58="",1,VLOOKUP(M58,'Unit Rates - Water'!$H$12:$I$23,2,FALSE)) -> 1 | O58: 79297 | R58: =IF(P58="",'Unit Rates - Land'!landcst,IF($E$8="Landuse",VLOOKUP(P58,LAndcost3,2,FALSE),IF($E$8="Location",VLOOKUP(P58,Landcost2,2,FALSE),"Error"))) -> 0 | S58: 0 | U58: =IFERROR(('General Input Sheet'!$G$38/(VLOOKUP('Existing Trunk Assets - Water'!T58,Histindex,3,FALSE))),1) -> 1 | V58: 79297 | W58: ='[1]Existing Trunk Assets'!R56 -> y | X58: ='[1]Existing Trunk Assets'!S56 -> 0 | Y58: ='[1]Existing Trunk Assets'!T56 -> 0 | Z58: ='[1]Existing Trunk Assets'!U56 -> 0 | AA58: ='[1]Existing Trunk Assets'!V56 -> 0 | AB58: ='[1]Existing Trunk Assets'!W56 -> 0 | BB58: 52900 | CF58: 52900 | CH58: 79297
D59: ='[1]Existing Trunk Assets'!D57 -> Passive | E59: ='[1]Existing Trunk Assets'!E57 -> Water Mains | F59: ='[1]Existing Trunk Assets'!F57 -> 0 | G59: ='[1]Existing Trunk Assets'!G57 -> Watermain - 54 m of 225dia. Asset No - 100000132 | K59: 0 | L59: ='[1]Existing Trunk Assets'!M57 -> 23922 | N59: =IF(M59="",1,VLOOKUP(M59,'Unit Rates - Water'!$H$12:$I$23,2,FALSE)) -> 1 | O59: 23922 | R59: =IF(P59="",'Unit Rates - Land'!landcst,IF($E$8="Landuse",VLOOKUP(P59,LAndcost3,2,FALSE),IF($E$8="Location",VLOOKUP(P59,Landcost2,2,FALSE),"Error"))) -> 0 | S59: 0 | U59: =IFERROR(('General Input Sheet'!$G$38/(VLOOKUP('Existing Trunk Assets - Water'!T59,Histindex,3,FALSE))),1) -> 1 | V59: 23922 | W59: ='[1]Existing Trunk Assets'!R57 -> y | X59: ='[1]Existing Trunk Assets'!S57 -> 0 | Y59: ='[1]Existing Trunk Assets'!T57 -> 0 | Z59: ='[1]Existing Trunk Assets'!U57 -> 0 | AA59: ='[1]Existing Trunk Assets'!V57 -> 0 | AB59: ='[1]Existing Trunk Assets'!W57 -> 0 | BB59: 52900 | CF59: 52900 | CH59: 23922
D60: ='[1]Existing Trunk Assets'!D58 -> Passive | E60: ='[1]Existing Trunk Assets'!E58 -> Water Mains | F60: ='[1]Existing Trunk Assets'!F58 -> 0 | G60: ='[1]Existing Trunk Assets'!G58 -> Watermain - 133 m of 225dia. Asset No - 100000133 | K60: 0 | L60: ='[1]Existing Trunk Assets'!M58 -> 58919 | N60: =IF(M60="",1,VLOOKUP(M60,'Unit Rates - Water'!$H$12:$I$23,2,FALSE)) -> 1 | O60: 58919 | R60: =IF(P60="",'Unit Rates - Land'!landcst,IF($E$8="Landuse",VLOOKUP(P60,LAndcost3,2,FALSE),IF($E$8="Location",VLOOKUP(P60,Landcost2,2,FALSE),"Error"))) -> 0 | S60: 0 | U60: =IFERROR(('General Input Sheet'!$G$38/(VLOOKUP('Existing Trunk Assets - Water'!T60,Histindex,3,FALSE))),1) -> 1 | V60: 58919 | W60: ='[1]Existing Trunk Assets'!R58 -> y | X60: ='[1]Existing Trunk Assets'!S58 -> 0 | Y60: ='[1]Existing Trunk Assets'!T58 -> 0 | Z60: ='[1]Existing Trunk Assets'!U58 -> 0 | AA60: ='[1]Existing Trunk Assets'!V58 -> 0 | AB60: ='[1]Existing Trunk Assets'!W58 -> 0 | BB60: 52900 | CF60: 52900 | CH60: 58919
D61: ='[1]Existing Trunk Assets'!D59 -> Passive | E61: ='[1]Existing Trunk Assets'!E59 -> Water Mains | F61: ='[1]Existing Trunk Assets'!F59 -> 0 | G61: ='[1]Existing Trunk Assets'!G59 -> Watermain - 271 m of 225dia. Asset No - 100000134 | K61: 0 | L61: ='[1]Existing Trunk Assets'!M59 -> 120053 | N61: =IF(M61="",1,VLOOKUP(M61,'Unit Rates - Water'!$H$12:$I$23,2,FALSE)) -> 1 | O61: 120053 | R61: =IF(P61="",'Unit Rates - Land'!landcst,IF($E$8="Landuse",VLOOKUP(P61,LAndcost3,2,FALSE),IF($E$8="Location",VLOOKUP(P61,Landcost2,2,FALSE),"Error"))) -> 0 | S61: 0 | U61: =IFERROR(('General Input Sheet'!$G$38/(VLOOKUP('Existing Trunk Assets - Water'!T61,Histindex,3,FALSE))),1) -> 1 | V61: 120053 | W61: ='[1]Existing Trunk Assets'!R59 -> y | X61: ='[1]Existing Trunk Assets'!S59 -> 0 | Y61: ='[1]Existing Trunk Assets'!T59 -> 0 | Z61: ='[1]Existing Trunk Assets'!U59 -> 0 | AA61: ='[1]Existing Trunk Assets'!V59 -> 0 | AB61: ='[1]Existing Trunk Assets'!W59 -> 0 | BB61: 52900 | CF61: 52900 | CH61: 120053
D62: ='[1]Existing Trunk Assets'!D60 -> Passive | E62: ='[1]Existing Trunk Assets'!E60 -> Water Mains | F62: ='[1]Existing Trunk Assets'!F60 -> 0 | G62: ='[1]Existing Trunk Assets'!G60 -> Watermain - 19 m of 200dia. Asset No - 100000135 | K62: 0 | L62: ='[1]Existing Trunk Assets'!M60 -> 8151 | N62: =IF(M62="",1,VLOOKUP(M62,'Unit Rates - Water'!$H$12:$I$23,2,FALSE)) -> 1 | O62: 8151 | R62: =IF(P62="",'Unit Rates - Land'!landcst,IF($E$8="Landuse",VLOOKUP(P62,LAndcost3,2,FALSE),IF($E$8="Location",VLOOKUP(P62,Landcost2,2,FALSE),"Error"))) -> 0 | S62: 0 | U62: =IFERROR(('General Input Sheet'!$G$38/(VLOOKUP('Existing Trunk Assets - Water'!T62,Histindex,3,FALSE))),1) -> 1 | V62: 8151 | W62: ='[1]Existing Trunk Assets'!R60 -> y | X62: ='[1]Existing Trunk Assets'!S60 -> 0 | Y62: ='[1]Existing Trunk Assets'!T60 -> 0 | Z62: ='[1]Existing Trunk Assets'!U60 -> 0 | AA62: ='[1]Existing Trunk Assets'!V60 -> 0 | AB62: ='[1]Existing Trunk Assets'!W60 -> 0 | BB62: 52900 | CF62: 52900 | CH62: 8151
D63: ='[1]Existing Trunk Assets'!D61 -> Passive | E63: ='[1]Existing Trunk Assets'!E61 -> Water Mains | F63: ='[1]Existing Trunk Assets'!F61 -> 0 | G63: ='[1]Existing Trunk Assets'!G61 -> Watermain - 31 m of 300dia. Asset No - 100000137 | K63: 0 | L63: ='[1]Existing Trunk Assets'!M61 -> 17701 | N63: =IF(M63="",1,VLOOKUP(M63,'Unit Rates - Water'!$H$12:$I$23,2,FALSE)) -> 1 | O63: 17701 | R63: =IF(P63="",'Unit Rates - Land'!landcst,IF($E$8="Landuse",VLOOKUP(P63,LAndcost3,2,FALSE),IF($E$8="Location",VLOOKUP(P63,Landcost2,2,FALSE),"Error"))) -> 0 | S63: 0 | U63: =IFERROR(('General Input Sheet'!$G$38/(VLOOKUP('Existing Trunk Assets - Water'!T63,Histindex,3,FALSE))),1) -> 1 | V63: 17701 | W63: ='[1]Existing Trunk Assets'!R61 -> y | X63: ='[1]Existing Trunk Assets'!S61 -> 0 | Y63: ='[1]Existing Trunk Assets'!T61 -> 0 | Z63: ='[1]Existing Trunk Assets'!U61 -> 0 | AA63: ='[1]Existing Trunk Assets'!V61 -> 0 | AB63: ='[1]Existing Trunk Assets'!W61 -> 0 | BB63: 52900 | CF63: 52900 | CH63: 17701 | CW63: =IF(BQ63="","",(BQ63/$CF63)*$V63) -> 
D64: ='[1]Existing Trunk Assets'!D62 -> Passive | E64: ='[1]Existing Trunk Assets'!E62 -> Water Mains | F64: ='[1]Existing Trunk Assets'!F62 -> 0 | G64: ='[1]Existing Trunk Assets'!G62 -> Watermain - 273 m of 225dia. Asset No - 1000002 | K64: 0 | L64: ='[1]Existing Trunk Assets'!M62 -> 120939 | N64: =IF(M64="",1,VLOOKUP(M64,'Unit Rates - Water'!$H$12:$I$23,2,FALSE)) -> 1 | O64: 120939 | R64: =IF(P64="",'Unit Rates - Land'!landcst,IF($E$8="Landuse",VLOOKUP(P64,LAndcost3,2,FALSE),IF($E$8="Location",VLOOKUP(P64,Landcost2,2,FALSE),"Error"))) -> 0 | S64: 0 | U64: =IFERROR(('General Input Sheet'!$G$38/(VLOOKUP('Existing Trunk Assets - Water'!T64,Histindex,3,FALSE))),1) -> 1 | V64: 120939 | W64: ='[1]Existing Trunk Assets'!R62 -> y | X64: ='[1]Existing Trunk Assets'!S62 -> 0 | Y64: ='[1]Existing Trunk Assets'!T62 -> 0 | Z64: ='[1]Existing Trunk Assets'!U62 -> 0 | AA64: ='[1]Existing Trunk Assets'!V62 -> 0 | AB64: ='[1]Existing Trunk Assets'!W62 -> 0 | BB64: 52900 | CF64: 52900 | CH64: =IF(BB64="","",(BB64/$CF64)*$V64) -> 120939
D65: ='[1]Existing Trunk Assets'!D63 -> Passive | E65: ='[1]Existing Trunk Assets'!E63 -> Water Mains | F65: ='[1]Existing Trunk Assets'!F63 -> 0 | G65: ='[1]Existing Trunk Assets'!G63 -> Watermain - 761 m of 375dia. Asset No - 10000029 | K65: 0 | L65: ='[1]Existing Trunk Assets'!M63 -> 548681 | N65: =IF(M65="",1,VLOOKUP(M65,'Unit Rates - Water'!$H$12:$I$23,2,FALSE)) -> 1 | O65: 548681 | R65: =IF(P65="",'Unit Rates - Land'!landcst,IF($E$8="Landuse",VLOOKUP(P65,LAndcost3,2,FALSE),IF($E$8="Location",VLOOKUP(P65,Landcost2,2,FALSE),"Error"))) -> 0 | S65: 0 | U65: =IFERROR(('General Input Sheet'!$G$38/(VLOOKUP('Existing Trunk Assets - Water'!T65,Histindex,3,FALSE))),1) -> 1 | V65: 548681 | W65: ='[1]Existing Trunk Assets'!R63 -> y | X65: ='[1]Existing Trunk Assets'!S63 -> 0 | Y65: ='[1]Existing Trunk Assets'!T63 -> 0 | Z65: ='[1]Existing Trunk Assets'!U63 -> 0 | AA65: ='[1]Existing Trunk Assets'!V63 -> 0 | AB65: ='[1]Existing Trunk Assets'!W63 -> 0 | BB65: 52900 | CF65: 52900 | CH65: 548681
D66: ='[1]Existing Trunk Assets'!D64 -> Passive | E66: ='[1]Existing Trunk Assets'!E64 -> Water Mains | F66: ='[1]Existing Trunk Assets'!F64 -> 0 | G66: ='[1]Existing Trunk Assets'!G64 -> Watermain - 331 m of 225dia. Asset No - 1000003 | K66: 0 | L66: ='[1]Existing Trunk Assets'!M64 -> 146633 | N66: =IF(M66="",1,VLOOKUP(M66,'Unit Rates - Water'!$H$12:$I$23,2,FALSE)) -> 1 | O66: 146633 | R66: =IF(P66="",'Unit Rates - Land'!landcst,IF($E$8="Landuse",VLOOKUP(P66,LAndcost3,2,FALSE),IF($E$8="Location",VLOOKUP(P66,Landcost2,2,FALSE),"Error"))) -> 0 | S66: 0 | U66: =IFERROR(('General Input Sheet'!$G$38/(VLOOKUP('Existing Trunk Assets - Water'!T66,Histindex,3,FALSE))),1) -> 1 | V66: 146633 | W66: ='[1]Existing Trunk Assets'!R64 -> y | X66: ='[1]Existing Trunk Assets'!S64 -> 0 | Y66: ='[1]Existing Trunk Assets'!T64 -> 0 | Z66: ='[1]Existing Trunk Assets'!U64 -> 0 | AA66: ='[1]Existing Trunk Assets'!V64 -> 0 | AB66: ='[1]Existing Trunk Assets'!W64 -> 0 | BB66: 52900 | CF66: 52900 | CH66: 146633
D67: ='[1]Existing Trunk Assets'!D65 -> Passive | E67: ='[1]Existing Trunk Assets'!E65 -> Water Mains | F67: ='[1]Existing Trunk Assets'!F65 -> 0 | G67: ='[1]Existing Trunk Assets'!G65 -> Watermain - 347 m of 375dia. Asset No - 10000030 | K67: 0 | L67: ='[1]Existing Trunk Assets'!M65 -> 250187 | N67: =IF(M67="",1,VLOOKUP(M67,'Unit Rates - Water'!$H$12:$I$23,2,FALSE)) -> 1 | O67: 250187 | R67: =IF(P67="",'Unit Rates - Land'!landcst,IF($E$8="Landuse",VLOOKUP(P67,LAndcost3,2,FALSE),IF($E$8="Location",VLOOKUP(P67,Landcost2,2,FALSE),"Error"))) -> 0 | S67: 0 | U67: =IFERROR(('General Input Sheet'!$G$38/(VLOOKUP('Existing Trunk Assets - Water'!T67,Histindex,3,FALSE))),1) -> 1 | V67: 250187 | W67: ='[1]Existing Trunk Assets'!R65 -> y | X67: ='[1]Existing Trunk Assets'!S65 -> 0 | Y67: ='[1]Existing Trunk Assets'!T65 -> 0 | Z67: ='[1]Existing Trunk Assets'!U65 -> 0 | AA67: ='[1]Existing Trunk Assets'!V65 -> 0 | AB67: ='[1]Existing Trunk Assets'!W65 -> 0 | BB67: 52900 | CF67: 52900 | CH67: 250187 | DF67: =IF(BZ67="","",(BZ67/$CF67)*$V67) -> 
D68: ='[1]Existing Trunk Assets'!D66 -> Passive | E68: ='[1]Existing Trunk Assets'!E66 -> Water Mains | F68: ='[1]Existing Trunk Assets'!F66 -> 0 | G68: ='[1]Existing Trunk Assets'!G66 -> Watermain - 680 m of 200dia. Asset No - 10000031 | K68: 0 | L68: ='[1]Existing Trunk Assets'!M66 -> 291720 | N68: =IF(M68="",1,VLOOKUP(M68,'Unit Rates - Water'!$H$12:$I$23,2,FALSE)) -> 1 | O68: 291720 | R68: =IF(P68="",'Unit Rates - Land'!landcst,IF($E$8="Landuse",VLOOKUP(P68,LAndcost3,2,FALSE),IF($E$8="Location",VLOOKUP(P68,Landcost2,2,FALSE),"Error"))) -> 0 | S68: 0 | U68: =IFERROR(('General Input Sheet'!$G$38/(VLOOKUP('Existing Trunk Assets - Water'!T68,Histindex,3,FALSE))),1) -> 1 | V68: 291720 | W68: ='[1]Existing Trunk Assets'!R66 -> y | X68: ='[1]Existing Trunk Assets'!S66 -> 0 | Y68: ='[1]Existing Trunk Assets'!T66 -> 0 | Z68: ='[1]Existing Trunk Assets'!U66 -> 0 | AA68: ='[1]Existing Trunk Assets'!V66 -> 0 | AB68: ='[1]Existing Trunk Assets'!W66 -> 0 | BB68: 52900 | CF68: 52900 | CH68: 291720
D69: ='[1]Existing Trunk Assets'!D67 -> Passive | E69: ='[1]Existing Trunk Assets'!E67 -> Water Mains | F69: ='[1]Existing Trunk Assets'!F67 -> 0 | G69: ='[1]Existing Trunk Assets'!G67 -> Watermain - 704 m of 200dia. Asset No - 10000032 | K69: 0 | L69: ='[1]Existing Trunk Assets'!M67 -> 302016 | N69: =IF(M69="",1,VLOOKUP(M69,'Unit Rates - Water'!$H$12:$I$23,2,FALSE)) -> 1 | O69: 302016 | R69: =IF(P69="",'Unit Rates - Land'!landcst,IF($E$8="Landuse",VLOOKUP(P69,LAndcost3,2,FALSE),IF($E$8="Location",VLOOKUP(P69,Landcost2,2,FALSE),"Error"))) -> 0 | S69: 0 | U69: =IFERROR(('General Input Sheet'!$G$38/(VLOOKUP('Existing Trunk Assets - Water'!T69,Histindex,3,FALSE))),1) -> 1 | V69: 302016 | W69: ='[1]Existing Trunk Assets'!R67 -> y | X69: ='[1]Existing Trunk Assets'!S67 -> 0 | Y69: ='[1]Existing Trunk Assets'!T67 -> 0 | Z69: ='[1]Existing Trunk Assets'!U67 -> 0 | AA69: ='[1]Existing Trunk Assets'!V67 -> 0 | AB69: ='[1]Existing Trunk Assets'!W67 -> 0 | BB69: 52900 | CF69: 52900 | CH69: 302016
D70: ='[1]Existing Trunk Assets'!D68 -> Passive | E70: ='[1]Existing Trunk Assets'!E68 -> Water Mains | F70: ='[1]Existing Trunk Assets'!F68 -> 0 | G70: ='[1]Existing Trunk Assets'!G68 -> Watermain - 321 m of 200dia. Asset No - 10000034 | K70: 0 | L70: ='[1]Existing Trunk Assets'!M68 -> 137709 | N70: =IF(M70="",1,VLOOKUP(M70,'Unit Rates - Water'!$H$12:$I$23,2,FALSE)) -> 1 | O70: 137709 | R70: =IF(P70="",'Unit Rates - Land'!landcst,IF($E$8="Landuse",VLOOKUP(P70,LAndcost3,2,FALSE),IF($E$8="Location",VLOOKUP(P70,Landcost2,2,FALSE),"Error"))) -> 0 | S70: 0 | U70: =IFERROR(('General Input Sheet'!$G$38/(VLOOKUP('Existing Trunk Assets - Water'!T70,Histindex,3,FALSE))),1) -> 1 | V70: 137709 | W70: ='[1]Existing Trunk Assets'!R68 -> y | X70: ='[1]Existing Trunk Assets'!S68 -> 0 | Y70: ='[1]Existing Trunk Assets'!T68 -> 0 | Z70: ='[1]Existing Trunk Assets'!U68 -> 0 | AA70: ='[1]Existing Trunk Assets'!V68 -> 0 | AB70: ='[1]Existing Trunk Assets'!W68 -> 0 | BB70: 52900 | CF70: 52900 | CH70: 137709
D71: ='[1]Existing Trunk Assets'!D69 -> Passive | E71: ='[1]Existing Trunk Assets'!E69 -> Water Mains | F71: ='[1]Existing Trunk Assets'!F69 -> 0 | G71: ='[1]Existing Trunk Assets'!G69 -> Watermain - 539 m of 375dia. Asset No - 10000035 | K71: 0 | L71: ='[1]Existing Trunk Assets'!M69 -> 388619 | N71: =IF(M71="",1,VLOOKUP(M71,'Unit Rates - Water'!$H$12:$I$23,2,FALSE)) -> 1 | O71: 388619 | R71: =IF(P71="",'Unit Rates - Land'!landcst,IF($E$8="Landuse",VLOOKUP(P71,LAndcost3,2,FALSE),IF($E$8="Location",VLOOKUP(P71,Landcost2,2,FALSE),"Error"))) -> 0 | S71: 0 | U71: =IFERROR(('General Input Sheet'!$G$38/(VLOOKUP('Existing Trunk Assets - Water'!T71,Histindex,3,FALSE))),1) -> 1 | V71: 388619 | W71: ='[1]Existing Trunk Assets'!R69 -> y | X71: ='[1]Existing Trunk Assets'!S69 -> 0 | Y71: ='[1]Existing Trunk Assets'!T69 -> 0 | Z71: ='[1]Existing Trunk Assets'!U69 -> 0 | AA71: ='[1]Existing Trunk Assets'!V69 -> 0 | AB71: ='[1]Existing Trunk Assets'!W69 -> 0 | BB71: 52900 | CF71: 52900 | CH71: 388619
D72: ='[1]Existing Trunk Assets'!D70 -> Passive | E72: ='[1]Existing Trunk Assets'!E70 -> Water Mains | F72: ='[1]Existing Trunk Assets'!F70 -> 0 | G72: ='[1]Existing Trunk Assets'!G70 -> Watermain - 631 m of 200dia. Asset No - 10000036 | K72: 0 | L72: ='[1]Existing Trunk Assets'!M70 -> 270699 | N72: =IF(M72="",1,VLOOKUP(M72,'Unit Rates - Water'!$H$12:$I$23,2,FALSE)) -> 1 | O72: 270699 | R72: =IF(P72="",'Unit Rates - Land'!landcst,IF($E$8="Landuse",VLOOKUP(P72,LAndcost3,2,FALSE),IF($E$8="Location",VLOOKUP(P72,Landcost2,2,FALSE),"Error"))) -> 0 | S72: 0 | U72: =IFERROR(('General Input Sheet'!$G$38/(VLOOKUP('Existing Trunk Assets - Water'!T72,Histindex,3,FALSE))),1) -> 1 | V72: 270699 | W72: ='[1]Existing Trunk Assets'!R70 -> y | X72: ='[1]Existing Trunk Assets'!S70 -> 0 | Y72: ='[1]Existing Trunk Assets'!T70 -> 0 | Z72: ='[1]Existing Trunk Assets'!U70 -> 0 | AA72: ='[1]Existing Trunk Assets'!V70 -> 0 | AB72: ='[1]Existing Trunk Assets'!W70 -> 0 | BB72: 52900 | CF72: 52900 | CH72: 270699
D73: ='[1]Existing Trunk Assets'!D71 -> Passive | E73: ='[1]Existing Trunk Assets'!E71 -> Water Mains | F73: ='[1]Existing Trunk Assets'!F71 -> 0 | G73: ='[1]Existing Trunk Assets'!G71 -> Watermain - 326 m of 300dia. Asset No - 10000037 | K73: 0 | L73: ='[1]Existing Trunk Assets'!M71 -> 186146 | N73: =IF(M73="",1,VLOOKUP(M73,'Unit Rates - Water'!$H$12:$I$23,2,FALSE)) -> 1 | O73: 186146 | R73: =IF(P73="",'Unit Rates - Land'!landcst,IF($E$8="Landuse",VLOOKUP(P73,LAndcost3,2,FALSE),IF($E$8="Location",VLOOKUP(P73,Landcost2,2,FALSE),"Error"))) -> 0 | S73: 0 | U73: =IFERROR(('General Input Sheet'!$G$38/(VLOOKUP('Existing Trunk Assets - Water'!T73,Histindex,3,FALSE))),1) -> 1 | V73: 186146 | W73: ='[1]Existing Trunk Assets'!R71 -> y | X73: ='[1]Existing Trunk Assets'!S71 -> 0 | Y73: ='[1]Existing Trunk Assets'!T71 -> 0 | Z73: ='[1]Existing Trunk Assets'!U71 -> 0 | AA73: ='[1]Existing Trunk Assets'!V71 -> 0 | AB73: ='[1]Existing Trunk Assets'!W71 -> 0 | BB73: 52900 | CF73: 52900 | CH73: 186146
D74: ='[1]Existing Trunk Assets'!D72 -> Passive | E74: ='[1]Existing Trunk Assets'!E72 -> Water Mains | F74: ='[1]Existing Trunk Assets'!F72 -> 0 | G74: ='[1]Existing Trunk Assets'!G72 -> Watermain - 290 m of 300dia. Asset No - 10000038 | K74: 0 | L74: ='[1]Existing Trunk Assets'!M72 -> 165590 | N74: =IF(M74="",1,VLOOKUP(M74,'Unit Rates - Water'!$H$12:$I$23,2,FALSE)) -> 1 | O74: 165590 | R74: =IF(P74="",'Unit Rates - Land'!landcst,IF($E$8="Landuse",VLOOKUP(P74,LAndcost3,2,FALSE),IF($E$8="Location",VLOOKUP(P74,Landcost2,2,FALSE),"Error"))) -> 0 | S74: 0 | U74: =IFERROR(('General Input Sheet'!$G$38/(VLOOKUP('Existing Trunk Assets - Water'!T74,Histindex,3,FALSE))),1) -> 1 | V74: 165590 | W74: ='[1]Existing Trunk Assets'!R72 -> y | X74: ='[1]Existing Trunk Assets'!S72 -> 0 | Y74: ='[1]Existing Trunk Assets'!T72 -> 0 | Z74: ='[1]Existing Trunk Assets'!U72 -> 0 | AA74: ='[1]Existing Trunk Assets'!V72 -> 0 | AB74: ='[1]Existing Trunk Assets'!W72 -> 0 | BB74: 52900 | CF74: 52900 | CH74: 165590
D75: ='[1]Existing Trunk Assets'!D73 -> Passive | E75: ='[1]Existing Trunk Assets'!E73 -> Water Mains | F75: ='[1]Existing Trunk Assets'!F73 -> 0 | G75: ='[1]Existing Trunk Assets'!G73 -> Watermain - 114 m of 200dia. Asset No - 10000039 | K75: 0 | L75: ='[1]Existing Trunk Assets'!M73 -> 48906 | N75: =IF(M75="",1,VLOOKUP(M75,'Unit Rates - Water'!$H$12:$I$23,2,FALSE)) -> 1 | O75: 48906 | R75: =IF(P75="",'Unit Rates - Land'!landcst,IF($E$8="Landuse",VLOOKUP(P75,LAndcost3,2,FALSE),IF($E$8="Location",VLOOKUP(P75,Landcost2,2,FALSE),"Error"))) -> 0 | S75: 0 | U75: =IFERROR(('General Input Sheet'!$G$38/(VLOOKUP('Existing Trunk Assets - Water'!T75,Histindex,3,FALSE))),1) -> 1 | V75: 48906 | W75: ='[1]Existing Trunk Assets'!R73 -> y | X75: ='[1]Existing Trunk Assets'!S73 -> 0 | Y75: ='[1]Existing Trunk Assets'!T73 -> 0 | Z75: ='[1]Existing Trunk Assets'!U73 -> 0 | AA75: ='[1]Existing Trunk Assets'!V73 -> 0 | AB75: ='[1]Existing Trunk Assets'!W73 -> 0 | BB75: 52900 | CF75: 52900 | CH75: 48906
D76: ='[1]Existing Trunk Assets'!D74 -> Passive | E76: ='[1]Existing Trunk Assets'!E74 -> Water Mains | F76: ='[1]Existing Trunk Assets'!F74 -> 0 | G76: ='[1]Existing Trunk Assets'!G74 -> Watermain - 59 m of 225dia. Asset No - 1000004 | K76: 0 | L76: ='[1]Existing Trunk Assets'!M74 -> 26137 | N76: =IF(M76="",1,VLOOKUP(M76,'Unit Rates - Water'!$H$12:$I$23,2,FALSE)) -> 1 | O76: 26137 | R76: =IF(P76="",'Unit Rates - Land'!landcst,IF($E$8="Landuse",VLOOKUP(P76,LAndcost3,2,FALSE),IF($E$8="Location",VLOOKUP(P76,Landcost2,2,FALSE),"Error"))) -> 0 | S76: 0 | U76: =IFERROR(('General Input Sheet'!$G$38/(VLOOKUP('Existing Trunk Assets - Water'!T76,Histindex,3,FALSE))),1) -> 1 | V76: 26137 | W76: ='[1]Existing Trunk Assets'!R74 -> y | X76: ='[1]Existing Trunk Assets'!S74 -> 0 | Y76: ='[1]Existing Trunk Assets'!T74 -> 0 | Z76: ='[1]Existing Trunk Assets'!U74 -> 0 | AA76: ='[1]Existing Trunk Assets'!V74 -> 0 | AB76: ='[1]Existing Trunk Assets'!W74 -> 0 | BB76: 52900 | CF76: 52900 | CH76: 26137
D77: ='[1]Existing Trunk Assets'!D75 -> Passive | E77: ='[1]Existing Trunk Assets'!E75 -> Water Mains | F77: ='[1]Existing Trunk Assets'!F75 -> 0 | G77: ='[1]Existing Trunk Assets'!G75 -> Watermain - 443 m of 300dia. Asset No - 10000043 | K77: 0 | L77: ='[1]Existing Trunk Assets'!M75 -> 252953 | N77: =IF(M77="",1,VLOOKUP(M77,'Unit Rates - Water'!$H$12:$I$23,2,FALSE)) -> 1 | O77: 252953 | R77: =IF(P77="",'Unit Rates - Land'!landcst,IF($E$8="Landuse",VLOOKUP(P77,LAndcost3,2,FALSE),IF($E$8="Location",VLOOKUP(P77,Landcost2,2,FALSE),"Error"))) -> 0 | S77: 0 | U77: =IFERROR(('General Input Sheet'!$G$38/(VLOOKUP('Existing Trunk Assets - Water'!T77,Histindex,3,FALSE))),1) -> 1 | V77: 252953 | W77: ='[1]Existing Trunk Assets'!R75 -> y | X77: ='[1]Existing Trunk Assets'!S75 -> 0 | Y77: ='[1]Existing Trunk Assets'!T75 -> 0 | Z77: ='[1]Existing Trunk Assets'!U75 -> 0 | AA77: ='[1]Existing Trunk Assets'!V75 -> 0 | AB77: ='[1]Existing Trunk Assets'!W75 -> 0 | BB77: 52900 | CF77: 52900 | CH77: 252953
D78: ='[1]Existing Trunk Assets'!D76 -> Passive | E78: ='[1]Existing Trunk Assets'!E76 -> Water Mains | F78: ='[1]Existing Trunk Assets'!F76 -> 0 | G78: ='[1]Existing Trunk Assets'!G76 -> Watermain - 119 m of 200dia. Asset No - 10000045 | K78: 0 | L78: ='[1]Existing Trunk Assets'!M76 -> 51051 | N78: =IF(M78="",1,VLOOKUP(M78,'Unit Rates - Water'!$H$12:$I$23,2,FALSE)) -> 1 | O78: 51051 | R78: =IF(P78="",'Unit Rates - Land'!landcst,IF($E$8="Landuse",VLOOKUP(P78,LAndcost3,2,FALSE),IF($E$8="Location",VLOOKUP(P78,Landcost2,2,FALSE),"Error"))) -> 0 | S78: 0 | U78: =IFERROR(('General Input Sheet'!$G$38/(VLOOKUP('Existing Trunk Assets - Water'!T78,Histindex,3,FALSE))),1) -> 1 | V78: 51051 | W78: ='[1]Existing Trunk Assets'!R76 -> y | X78: ='[1]Existing Trunk Assets'!S76 -> 0 | Y78: ='[1]Existing Trunk Assets'!T76 -> 0 | Z78: ='[1]Existing Trunk Assets'!U76 -> 0 | AA78: ='[1]Existing Trunk Assets'!V76 -> 0 | AB78: ='[1]Existing Trunk Assets'!W76 -> 0 | BB78: 52900 | CF78: 52900 | CH78: 51051
D79: ='[1]Existing Trunk Assets'!D77 -> Passive | E79: ='[1]Existing Trunk Assets'!E77 -> Water Mains | F79: ='[1]Existing Trunk Assets'!F77 -> 0 | G79: ='[1]Existing Trunk Assets'!G77 -> Watermain - 935 m of 250dia. Asset No - 10000047 | K79: 0 | L79: ='[1]Existing Trunk Assets'!M77 -> 457215 | N79: =IF(M79="",1,VLOOKUP(M79,'Unit Rates - Water'!$H$12:$I$23,2,FALSE)) -> 1 | O79: 457215 | R79: =IF(P79="",'Unit Rates - Land'!landcst,IF($E$8="Landuse",VLOOKUP(P79,LAndcost3,2,FALSE),IF($E$8="Location",VLOOKUP(P79,Landcost2,2,FALSE),"Error"))) -> 0 | S79: 0 | U79: =IFERROR(('General Input Sheet'!$G$38/(VLOOKUP('Existing Trunk Assets - Water'!T79,Histindex,3,FALSE))),1) -> 1 | V79: 457215 | W79: ='[1]Existing Trunk Assets'!R77 -> y | X79: ='[1]Existing Trunk Assets'!S77 -> 0 | Y79: ='[1]Existing Trunk Assets'!T77 -> 0 | Z79: ='[1]Existing Trunk Assets'!U77 -> 0 | AA79: ='[1]Existing Trunk Assets'!V77 -> 0 | AB79: ='[1]Existing Trunk Assets'!W77 -> 0 | BB79: 52900 | CF79: 52900 | CH79: 457215
D80: ='[1]Existing Trunk Assets'!D78 -> Passive | E80: ='[1]Existing Trunk Assets'!E78 -> Water Mains | F80: ='[1]Existing Trunk Assets'!F78 -> 0 | G80: ='[1]Existing Trunk Assets'!G78 -> Watermain - 526 m of 200dia. Asset No - 10000048 | K80: =IF(H80=TYPE1,VLOOKUP(J80,WaterUnitrates1,2,FALSE),IF(H80=TYPE2,VLOOKUP(J80,Unitrates2,2,FALSE),0)) -> 0 | L80: ='[1]Existing Trunk Assets'!M78 -> 225654 | N80: =IF(M80="",1,VLOOKUP(M80,'Unit Rates - Water'!$H$12:$I$23,2,FALSE)) -> 1 | O80: =L80*N80 -> 225654 | R80: =IF(P80="",'Unit Rates - Land'!landcst,IF($E$8="Landuse",VLOOKUP(P80,LAndcost3,2,FALSE),IF($E$8="Location",VLOOKUP(P80,Landcost2,2,FALSE),"Error"))) -> 0 | S80: =IF(R80="",0,R80*10000*Q80) -> 0 | U80: =IFERROR(('General Input Sheet'!$G$38/(VLOOKUP('Existing Trunk Assets - Water'!T80,Histindex,3,FALSE))),1) -> 1 | V80: =IFERROR((O80+S80)*U80,0) -> 225654 | W80: ='[1]Existing Trunk Assets'!R78 -> y | X80: ='[1]Existing Trunk Assets'!S78 -> 0 | Y80: ='[1]Existing Trunk Assets'!T78 -> 0 | Z80: ='[1]Existing Trunk Assets'!U78 -> 0 | AA80: ='[1]Existing Trunk Assets'!V78 -> 0 | AB80: ='[1]Existing Trunk Assets'!W78 -> 0 | BB80: 52900 | CF80: 52900 | CH80: 225654
D81: ='[1]Existing Trunk Assets'!D79 -> Passive | E81: ='[1]Existing Trunk Assets'!E79 -> Water Mains | F81: ='[1]Existing Trunk Assets'!F79 -> 0 | G81: ='[1]Existing Trunk Assets'!G79 -> Watermain - 265 m of 200dia. Asset No - 10000049 | K81: 0 | L81: ='[1]Existing Trunk Assets'!M79 -> 113685 | N81: =IF(M81="",1,VLOOKUP(M81,'Unit Rates - Water'!$H$12:$I$23,2,FALSE)) -> 1 | O81: 113685 | R81: =IF(P81="",'Unit Rates - Land'!landcst,IF($E$8="Landuse",VLOOKUP(P81,LAndcost3,2,FALSE),IF($E$8="Location",VLOOKUP(P81,Landcost2,2,FALSE),"Error"))) -> 0 | S81: 0 | U81: =IFERROR(('General Input Sheet'!$G$38/(VLOOKUP('Existing Trunk Assets - Water'!T81,Histindex,3,FALSE))),1) -> 1 | V81: 113685 | W81: ='[1]Existing Trunk Assets'!R79 -> y | X81: ='[1]Existing Trunk Assets'!S79 -> 0 | Y81: ='[1]Existing Trunk Assets'!T79 -> 0 | Z81: ='[1]Existing Trunk Assets'!U79 -> 0 | AA81: ='[1]Existing Trunk Assets'!V79 -> 0 | AB81: ='[1]Existing Trunk Assets'!W79 -> 0 | BB81: 52900 | CF81: 52900 | CH81: =IF(BB81="","",(BB81/$CF81)*$V81) -> 113685
D82: ='[1]Existing Trunk Assets'!D80 -> Passive | E82: ='[1]Existing Trunk Assets'!E80 -> Water Mains | F82: ='[1]Existing Trunk Assets'!F80 -> 0 | G82: ='[1]Existing Trunk Assets'!G80 -> Watermain - 274 m of 225dia. Asset No - 1000005 | K82: 0 | L82: ='[1]Existing Trunk Assets'!M80 -> 121382 | N82: =IF(M82="",1,VLOOKUP(M82,'Unit Rates - Water'!$H$12:$I$23,2,FALSE)) -> 1 | O82: 121382 | R82: =IF(P82="",'Unit Rates - Land'!landcst,IF($E$8="Landuse",VLOOKUP(P82,LAndcost3,2,FALSE),IF($E$8="Location",VLOOKUP(P82,Landcost2,2,FALSE),"Error"))) -> 0 | S82: 0 | U82: =IFERROR(('General Input Sheet'!$G$38/(VLOOKUP('Existing Trunk Assets - Water'!T82,Histindex,3,FALSE))),1) -> 1 | V82: 121382 | W82: ='[1]Existing Trunk Assets'!R80 -> y | X82: ='[1]Existing Trunk Assets'!S80 -> 0 | Y82: ='[1]Existing Trunk Assets'!T80 -> 0 | Z82: ='[1]Existing Trunk Assets'!U80 -> 0 | AA82: ='[1]Existing Trunk Assets'!V80 -> 0 | AB82: ='[1]Existing Trunk Assets'!W80 -> 0 | BB82: 52900 | CF82: =SUM(BB82:CE82) -> 52900 | CH82: 121382 | DL82: =IF(SUM(CH82:DK82)=V82,"","ERROR") -> 
D83: ='[1]Existing Trunk Assets'!D81 -> Passive | E83: ='[1]Existing Trunk Assets'!E81 -> Water Mains | F83: ='[1]Existing Trunk Assets'!F81 -> 0 | G83: ='[1]Existing Trunk Assets'!G81 -> Watermain - 351 m of 200dia. Asset No - 10000054 | K83: 0 | L83: ='[1]Existing Trunk Assets'!M81 -> 150579 | N83: =IF(M83="",1,VLOOKUP(M83,'Unit Rates - Water'!$H$12:$I$23,2,FALSE)) -> 1 | O83: 150579 | R83: =IF(P83="",'Unit Rates - Land'!landcst,IF($E$8="Landuse",VLOOKUP(P83,LAndcost3,2,FALSE),IF($E$8="Location",VLOOKUP(P83,Landcost2,2,FALSE),"Error"))) -> 0 | S83: 0 | U83: =IFERROR(('General Input Sheet'!$G$38/(VLOOKUP('Existing Trunk Assets - Water'!T83,Histindex,3,FALSE))),1) -> 1 | V83: 150579 | W83: ='[1]Existing Trunk Assets'!R81 -> y | X83: ='[1]Existing Trunk Assets'!S81 -> 0 | Y83: ='[1]Existing Trunk Assets'!T81 -> 0 | Z83: ='[1]Existing Trunk Assets'!U81 -> 0 | AA83: ='[1]Existing Trunk Assets'!V81 -> 0 | AB83: ='[1]Existing Trunk Assets'!W81 -> 0 | BB83: 52900 | CF83: 52900 | CH83: 150579
D84: ='[1]Existing Trunk Assets'!D82 -> Passive | E84: ='[1]Existing Trunk Assets'!E82 -> Water Mains | F84: ='[1]Existing Trunk Assets'!F82 -> 0 | G84: ='[1]Existing Trunk Assets'!G82 -> Watermain - 497 m of 200dia. Asset No - 10000059 | K84: 0 | L84: ='[1]Existing Trunk Assets'!M82 -> 213213 | N84: =IF(M84="",1,VLOOKUP(M84,'Unit Rates - Water'!$H$12:$I$23,2,FALSE)) -> 1 | O84: 213213 | R84: =IF(P84="",'Unit Rates - Land'!landcst,IF($E$8="Landuse",VLOOKUP(P84,LAndcost3,2,FALSE),IF($E$8="Location",VLOOKUP(P84,Landcost2,2,FALSE),"Error"))) -> 0 | S84: 0 | U84: =IFERROR(('General Input Sheet'!$G$38/(VLOOKUP('Existing Trunk Assets - Water'!T84,Histindex,3,FALSE))),1) -> 1 | V84: 213213 | W84: ='[1]Existing Trunk Assets'!R82 -> y | X84: ='[1]Existing Trunk Assets'!S82 -> 0 | Y84: ='[1]Existing Trunk Assets'!T82 -> 0 | Z84: ='[1]Existing Trunk Assets'!U82 -> 0 | AA84: ='[1]Existing Trunk Assets'!V82 -> 0 | AB84: ='[1]Existing Trunk Assets'!W82 -> 0 | BB84: =IF(W84="y",BB$14,IF(AND(W84>0,W84<=1),W84*BB$14,"")) -> 52900 | BC84: =IF(X84="y",BC$14,IF(AND(X84>0,X84<=1),X84*BC$14,"")) ->  | BD84: =IF(Y84="y",BD$14,IF(AND(Y84>0,Y84<=1),Y84*BD$14,"")) ->  | BE84: =IF(Z84="y",BE$14,IF(AND(Z84>0,Z84<=1),Z84*BE$14,"")) ->  | BF84: =IF(AA84="y",BF$14,IF(AND(AA84>0,AA84<=1),AA84*BF$14,"")) ->  | BG84: =IF(AB84="y",BG$14,IF(AND(AB84>0,AB84<=1),AB84*BG$14,"")) ->  | BH84: =IF(AC84="y",BH$14,IF(AND(AC84>0,AC84<=1),AC84*BH$14,"")) ->  | BI84: =IF(AD84="y",BI$14,IF(AND(AD84>0,AD84<=1),AD84*BI$14,"")) ->  | BJ84: =IF(AE84="y",BJ$14,IF(AND(AE84>0,AE84<=1),AE84*BJ$14,"")) ->  | BK84: =IF(AF84="y",BK$14,IF(AND(AF84>0,AF84<=1),AF84*BK$14,"")) ->  | BL84: =IF(AG84="y",BL$14,IF(AND(AG84>0,AG84<=1),AG84*BL$14,"")) ->  | BM84: =IF(AH84="y",BM$14,IF(AND(AH84>0,AH84<=1),AH84*BM$14,"")) ->  | BN84: =IF(AI84="y",BN$14,IF(AND(AI84>0,AI84<=1),AI84*BN$14,"")) ->  | BO84: =IF(AJ84="y",BO$14,IF(AND(AJ84>0,AJ84<=1),AJ84*BO$14,"")) ->  | BP84: =IF(AK84="y",BP$14,IF(AND(AK84>0,AK84<=1),AK84*BP$14,"")) ->  | BQ84: =IF(AL84="y",BQ$14,IF(AND(AL84>0,AL84<=1),AL84*BQ$14,"")) ->  | BR84: =IF(AM84="y",BR$14,IF(AND(AM84>0,AM84<=1),AM84*BR$14,"")) ->  | BS84: =IF(AN84="y",BS$14,IF(AND(AN84>0,AN84<=1),AN84*BS$14,"")) ->  | BT84: =IF(AO84="y",BT$14,IF(AND(AO84>0,AO84<=1),AO84*BT$14,"")) ->  | BU84: =IF(AP84="y",BU$14,IF(AND(AP84>0,AP84<=1),AP84*BU$14,"")) ->  | BV84: =IF(AQ84="y",BV$14,IF(AND(AQ84>0,AQ84<=1),AQ84*BV$14,"")) ->  | BW84: =IF(AR84="y",BW$14,IF(AND(AR84>0,AR84<=1),AR84*BW$14,"")) ->  | BX84: =IF(AS84="y",BX$14,IF(AND(AS84>0,AS84<=1),AS84*BX$14,"")) ->  | BY84: =IF(AT84="y",BY$14,IF(AND(AT84>0,AT84<=1),AT84*BY$14,"")) ->  | BZ84: =IF(AU84="y",BZ$14,IF(AND(AU84>0,AU84<=1),AU84*BZ$14,"")) ->  | CA84: =IF(AV84="y",CA$14,IF(AND(AV84>0,AV84<=1),AV84*CA$14,"")) ->  | CB84: =IF(AW84="y",CB$14,IF(AND(AW84>0,AW84<=1),AW84*CB$14,"")) ->  | CC84: =IF(AX84="y",CC$14,IF(AND(AX84>0,AX84<=1),AX84*CC$14,"")) ->  | CD84: =IF(AY84="y",CD$14,IF(AND(AY84>0,AY84<=1),AY84*CD$14,"")) ->  | CE84: =IF(AZ84="y",CE$14,IF(AND(AZ84>0,AZ84<=1),AZ84*CE$14,"")) ->  | CF84: 52900 | CH84: 213213
D85: ='[1]Existing Trunk Assets'!D83 -> Passive | E85: ='[1]Existing Trunk Assets'!E83 -> Water Mains | F85: ='[1]Existing Trunk Assets'!F83 -> 0 | G85: ='[1]Existing Trunk Assets'!G83 -> Watermain - 687 m of 200dia. Asset No - 10000060 | K85: 0 | L85: ='[1]Existing Trunk Assets'!M83 -> 294723 | N85: =IF(M85="",1,VLOOKUP(M85,'Unit Rates - Water'!$H$12:$I$23,2,FALSE)) -> 1 | O85: 294723 | R85: =IF(P85="",'Unit Rates - Land'!landcst,IF($E$8="Landuse",VLOOKUP(P85,LAndcost3,2,FALSE),IF($E$8="Location",VLOOKUP(P85,Landcost2,2,FALSE),"Error"))) -> 0 | S85: 0 | U85: =IFERROR(('General Input Sheet'!$G$38/(VLOOKUP('Existing Trunk Assets - Water'!T85,Histindex,3,FALSE))),1) -> 1 | V85: 294723 | W85: ='[1]Existing Trunk Assets'!R83 -> y | X85: ='[1]Existing Trunk Assets'!S83 -> 0 | Y85: ='[1]Existing Trunk Assets'!T83 -> 0 | Z85: ='[1]Existing Trunk Assets'!U83 -> 0 | AA85: ='[1]Existing Trunk Assets'!V83 -> 0 | AB85: ='[1]Existing Trunk Assets'!W83 -> 0 | BB85: 52900 | CF85: 52900 | CH85: 294723
D86: ='[1]Existing Trunk Assets'!D84 -> Passive | E86: ='[1]Existing Trunk Assets'!E84 -> Water Mains | F86: ='[1]Existing Trunk Assets'!F84 -> 0 | G86: ='[1]Existing Trunk Assets'!G84 -> Watermain - 612 m of 200dia. Asset No - 10000061 | K86: 0 | L86: ='[1]Existing Trunk Assets'!M84 -> 262548 | N86: =IF(M86="",1,VLOOKUP(M86,'Unit Rates - Water'!$H$12:$I$23,2,FALSE)) -> 1 | O86: 262548 | R86: =IF(P86="",'Unit Rates - Land'!landcst,IF($E$8="Landuse",VLOOKUP(P86,LAndcost3,2,FALSE),IF($E$8="Location",VLOOKUP(P86,Landcost2,2,FALSE),"Error"))) -> 0 | S86: 0 | U86: =IFERROR(('General Input Sheet'!$G$38/(VLOOKUP('Existing Trunk Assets - Water'!T86,Histindex,3,FALSE))),1) -> 1 | V86: 262548 | W86: ='[1]Existing Trunk Assets'!R84 -> y | X86: ='[1]Existing Trunk Assets'!S84 -> 0 | Y86: ='[1]Existing Trunk Assets'!T84 -> 0 | Z86: ='[1]Existing Trunk Assets'!U84 -> 0 | AA86: ='[1]Existing Trunk Assets'!V84 -> 0 | AB86: ='[1]Existing Trunk Assets'!W84 -> 0 | BB86: 52900 | CF86: 52900 | CH86: 262548
D87: ='[1]Existing Trunk Assets'!D85 -> Passive | E87: ='[1]Existing Trunk Assets'!E85 -> Water Mains | F87: ='[1]Existing Trunk Assets'!F85 -> 0 | G87: ='[1]Existing Trunk Assets'!G85 -> Watermain - 857 m of 200dia. Asset No - 10000062 | K87: 0 | L87: ='[1]Existing Trunk Assets'!M85 -> 367653 | N87: =IF(M87="",1,VLOOKUP(M87,'Unit Rates - Water'!$H$12:$I$23,2,FALSE)) -> 1 | O87: 367653 | R87: =IF(P87="",'Unit Rates - Land'!landcst,IF($E$8="Landuse",VLOOKUP(P87,LAndcost3,2,FALSE),IF($E$8="Location",VLOOKUP(P87,Landcost2,2,FALSE),"Error"))) -> 0 | S87: 0 | U87: =IFERROR(('General Input Sheet'!$G$38/(VLOOKUP('Existing Trunk Assets - Water'!T87,Histindex,3,FALSE))),1) -> 1 | V87: 367653 | W87: ='[1]Existing Trunk Assets'!R85 -> y | X87: ='[1]Existing Trunk Assets'!S85 -> 0 | Y87: ='[1]Existing Trunk Assets'!T85 -> 0 | Z87: ='[1]Existing Trunk Assets'!U85 -> 0 | AA87: ='[1]Existing Trunk Assets'!V85 -> 0 | AB87: ='[1]Existing Trunk Assets'!W85 -> 0 | BB87: 52900 | CF87: 52900 | CH87: 367653
D88: ='[1]Existing Trunk Assets'!D86 -> Passive | E88: ='[1]Existing Trunk Assets'!E86 -> Water Mains | F88: ='[1]Existing Trunk Assets'!F86 -> 0 | G88: ='[1]Existing Trunk Assets'!G86 -> Watermain - 633 m of 200dia. Asset No - 10000063 | K88: 0 | L88: ='[1]Existing Trunk Assets'!M86 -> 271557 | N88: =IF(M88="",1,VLOOKUP(M88,'Unit Rates - Water'!$H$12:$I$23,2,FALSE)) -> 1 | O88: 271557 | R88: =IF(P88="",'Unit Rates - Land'!landcst,IF($E$8="Landuse",VLOOKUP(P88,LAndcost3,2,FALSE),IF($E$8="Location",VLOOKUP(P88,Landcost2,2,FALSE),"Error"))) -> 0 | S88: 0 | U88: =IFERROR(('General Input Sheet'!$G$38/(VLOOKUP('Existing Trunk Assets - Water'!T88,Histindex,3,FALSE))),1) -> 1 | V88: 271557 | W88: ='[1]Existing Trunk Assets'!R86 -> y | X88: ='[1]Existing Trunk Assets'!S86 -> 0 | Y88: ='[1]Existing Trunk Assets'!T86 -> 0 | Z88: ='[1]Existing Trunk Assets'!U86 -> 0 | AA88: ='[1]Existing Trunk Assets'!V86 -> 0 | AB88: ='[1]Existing Trunk Assets'!W86 -> 0 | BB88: 52900 | CF88: 52900 | CH88: 271557
D89: ='[1]Existing Trunk Assets'!D87 -> Passive | E89: ='[1]Existing Trunk Assets'!E87 -> Water Mains | F89: ='[1]Existing Trunk Assets'!F87 -> 0 | G89: ='[1]Existing Trunk Assets'!G87 -> Watermain - 573 m of 200dia. Asset No - 10000064 | K89: 0 | L89: ='[1]Existing Trunk Assets'!M87 -> 245817 | N89: =IF(M89="",1,VLOOKUP(M89,'Unit Rates - Water'!$H$12:$I$23,2,FALSE)) -> 1 | O89: 245817 | R89: =IF(P89="",'Unit Rates - Land'!landcst,IF($E$8="Landuse",VLOOKUP(P89,LAndcost3,2,FALSE),IF($E$8="Location",VLOOKUP(P89,Landcost2,2,FALSE),"Error"))) -> 0 | S89: 0 | U89: =IFERROR(('General Input Sheet'!$G$38/(VLOOKUP('Existing Trunk Assets - Water'!T89,Histindex,3,FALSE))),1) -> 1 | V89: 245817 | W89: ='[1]Existing Trunk Assets'!R87 -> y | X89: ='[1]Existing Trunk Assets'!S87 -> 0 | Y89: ='[1]Existing Trunk Assets'!T87 -> 0 | Z89: ='[1]Existing Trunk Assets'!U87 -> 0 | AA89: ='[1]Existing Trunk Assets'!V87 -> 0 | AB89: ='[1]Existing Trunk Assets'!W87 -> 0 | BB89: 52900 | CF89: 52900 | CH89: 245817
D90: ='[1]Existing Trunk Assets'!D88 -> Passive | E90: ='[1]Existing Trunk Assets'!E88 -> Water Mains | F90: ='[1]Existing Trunk Assets'!F88 -> 0 | G90: ='[1]Existing Trunk Assets'!G88 -> Watermain - 585 m of 200dia. Asset No - 10000069 | K90: 0 | L90: ='[1]Existing Trunk Assets'!M88 -> 250965 | N90: =IF(M90="",1,VLOOKUP(M90,'Unit Rates - Water'!$H$12:$I$23,2,FALSE)) -> 1 | O90: 250965 | R90: =IF(P90="",'Unit Rates - Land'!landcst,IF($E$8="Landuse",VLOOKUP(P90,LAndcost3,2,FALSE),IF($E$8="Location",VLOOKUP(P90,Landcost2,2,FALSE),"Error"))) -> 0 | S90: 0 | U90: =IFERROR(('General Input Sheet'!$G$38/(VLOOKUP('Existing Trunk Assets - Water'!T90,Histindex,3,FALSE))),1) -> 1 | V90: 250965 | W90: ='[1]Existing Trunk Assets'!R88 -> y | X90: ='[1]Existing Trunk Assets'!S88 -> 0 | Y90: ='[1]Existing Trunk Assets'!T88 -> 0 | Z90: ='[1]Existing Trunk Assets'!U88 -> 0 | AA90: ='[1]Existing Trunk Assets'!V88 -> 0 | AB90: ='[1]Existing Trunk Assets'!W88 -> 0 | BB90: 52900 | CF90: 52900 | CH90: 250965
D91: ='[1]Existing Trunk Assets'!D89 -> Passive | E91: ='[1]Existing Trunk Assets'!E89 -> Water Mains | F91: ='[1]Existing Trunk Assets'!F89 -> 0 | G91: ='[1]Existing Trunk Assets'!G89 -> Watermain - 392 m of 200dia. Asset No - 10000077 | K91: 0 | L91: ='[1]Existing Trunk Assets'!M89 -> 168168 | N91: =IF(M91="",1,VLOOKUP(M91,'Unit Rates - Water'!$H$12:$I$23,2,FALSE)) -> 1 | O91: 168168 | R91: =IF(P91="",'Unit Rates - Land'!landcst,IF($E$8="Landuse",VLOOKUP(P91,LAndcost3,2,FALSE),IF($E$8="Location",VLOOKUP(P91,Landcost2,2,FALSE),"Error"))) -> 0 | S91: 0 | U91: =IFERROR(('General Input Sheet'!$G$38/(VLOOKUP('Existing Trunk Assets - Water'!T91,Histindex,3,FALSE))),1) -> 1 | V91: 168168 | W91: ='[1]Existing Trunk Assets'!R89 -> y | X91: ='[1]Existing Trunk Assets'!S89 -> 0 | Y91: ='[1]Existing Trunk Assets'!T89 -> 0 | Z91: ='[1]Existing Trunk Assets'!U89 -> 0 | AA91: ='[1]Existing Trunk Assets'!V89 -> 0 | AB91: ='[1]Existing Trunk Assets'!W89 -> 0 | BB91: 52900 | CF91: 52900 | CH91: 168168
D92: ='[1]Existing Trunk Assets'!D90 -> Passive | E92: ='[1]Existing Trunk Assets'!E90 -> Water Mains | F92: ='[1]Existing Trunk Assets'!F90 -> 0 | G92: ='[1]Existing Trunk Assets'!G90 -> Watermain - 629 m of 200dia. Asset No - 10000079 | K92: 0 | L92: ='[1]Existing Trunk Assets'!M90 -> 269841 | N92: =IF(M92="",1,VLOOKUP(M92,'Unit Rates - Water'!$H$12:$I$23,2,FALSE)) -> 1 | O92: 269841 | R92: =IF(P92="",'Unit Rates - Land'!landcst,IF($E$8="Landuse",VLOOKUP(P92,LAndcost3,2,FALSE),IF($E$8="Location",VLOOKUP(P92,Landcost2,2,FALSE),"Error"))) -> 0 | S92: 0 | U92: =IFERROR(('General Input Sheet'!$G$38/(VLOOKUP('Existing Trunk Assets - Water'!T92,Histindex,3,FALSE))),1) -> 1 | V92: 269841 | W92: ='[1]Existing Trunk Assets'!R90 -> y | X92: ='[1]Existing Trunk Assets'!S90 -> 0 | Y92: ='[1]Existing Trunk Assets'!T90 -> 0 | Z92: ='[1]Existing Trunk Assets'!U90 -> 0 | AA92: ='[1]Existing Trunk Assets'!V90 -> 0 | AB92: ='[1]Existing Trunk Assets'!W90 -> 0 | BB92: 52900 | CF92: 52900 | CH92: 269841
D93: ='[1]Existing Trunk Assets'!D91 -> Passive | E93: ='[1]Existing Trunk Assets'!E91 -> Water Mains | F93: ='[1]Existing Trunk Assets'!F91 -> 0 | G93: ='[1]Existing Trunk Assets'!G91 -> Watermain - 154 m of 225dia. Asset No - 1000008 | K93: 0 | L93: ='[1]Existing Trunk Assets'!M91 -> 68222 | N93: =IF(M93="",1,VLOOKUP(M93,'Unit Rates - Water'!$H$12:$I$23,2,FALSE)) -> 1 | O93: 68222 | R93: =IF(P93="",'Unit Rates - Land'!landcst,IF($E$8="Landuse",VLOOKUP(P93,LAndcost3,2,FALSE),IF($E$8="Location",VLOOKUP(P93,Landcost2,2,FALSE),"Error"))) -> 0 | S93: 0 | U93: =IFERROR(('General Input Sheet'!$G$38/(VLOOKUP('Existing Trunk Assets - Water'!T93,Histindex,3,FALSE))),1) -> 1 | V93: 68222 | W93: ='[1]Existing Trunk Assets'!R91 -> y | X93: ='[1]Existing Trunk Assets'!S91 -> 0 | Y93: ='[1]Existing Trunk Assets'!T91 -> 0 | Z93: ='[1]Existing Trunk Assets'!U91 -> 0 | AA93: ='[1]Existing Trunk Assets'!V91 -> 0 | AB93: ='[1]Existing Trunk Assets'!W91 -> 0 | BB93: 52900 | CF93: 52900 | CH93: 68222
D94: ='[1]Existing Trunk Assets'!D92 -> Passive | E94: ='[1]Existing Trunk Assets'!E92 -> Water Mains | F94: ='[1]Existing Trunk Assets'!F92 -> 0 | G94: ='[1]Existing Trunk Assets'!G92 -> Watermain - 688 m of 200dia. Asset No - 10000080 | K94: 0 | L94: ='[1]Existing Trunk Assets'!M92 -> 295152 | N94: =IF(M94="",1,VLOOKUP(M94,'Unit Rates - Water'!$H$12:$I$23,2,FALSE)) -> 1 | O94: 295152 | R94: =IF(P94="",'Unit Rates - Land'!landcst,IF($E$8="Landuse",VLOOKUP(P94,LAndcost3,2,FALSE),IF($E$8="Location",VLOOKUP(P94,Landcost2,2,FALSE),"Error"))) -> 0 | S94: 0 | U94: =IFERROR(('General Input Sheet'!$G$38/(VLOOKUP('Existing Trunk Assets - Water'!T94,Histindex,3,FALSE))),1) -> 1 | V94: 295152 | W94: ='[1]Existing Trunk Assets'!R92 -> y | X94: ='[1]Existing Trunk Assets'!S92 -> 0 | Y94: ='[1]Existing Trunk Assets'!T92 -> 0 | Z94: ='[1]Existing Trunk Assets'!U92 -> 0 | AA94: ='[1]Existing Trunk Assets'!V92 -> 0 | AB94: ='[1]Existing Trunk Assets'!W92 -> 0 | BB94: 52900 | CF94: 52900 | CH94: 295152
D95: ='[1]Existing Trunk Assets'!D93 -> Passive | E95: ='[1]Existing Trunk Assets'!E93 -> Water Mains | F95: ='[1]Existing Trunk Assets'!F93 -> 0 | G95: ='[1]Existing Trunk Assets'!G93 -> Watermain - 935 m of 200dia. Asset No - 10000081 | K95: 0 | L95: ='[1]Existing Trunk Assets'!M93 -> 401115 | N95: =IF(M95="",1,VLOOKUP(M95,'Unit Rates - Water'!$H$12:$I$23,2,FALSE)) -> 1 | O95: 401115 | R95: =IF(P95="",'Unit Rates - Land'!landcst,IF($E$8="Landuse",VLOOKUP(P95,LAndcost3,2,FALSE),IF($E$8="Location",VLOOKUP(P95,Landcost2,2,FALSE),"Error"))) -> 0 | S95: 0 | U95: =IFERROR(('General Input Sheet'!$G$38/(VLOOKUP('Existing Trunk Assets - Water'!T95,Histindex,3,FALSE))),1) -> 1 | V95: 401115 | W95: ='[1]Existing Trunk Assets'!R93 -> y | X95: ='[1]Existing Trunk Assets'!S93 -> 0 | Y95: ='[1]Existing Trunk Assets'!T93 -> 0 | Z95: ='[1]Existing Trunk Assets'!U93 -> 0 | AA95: ='[1]Existing Trunk Assets'!V93 -> 0 | AB95: ='[1]Existing Trunk Assets'!W93 -> 0 | BB95: 52900 | CF95: 52900 | CH95: 401115 | DD95: =IF(BX95="","",(BX95/$CF95)*$V95) -> 
D96: ='[1]Existing Trunk Assets'!D94 -> Passive | E96: ='[1]Existing Trunk Assets'!E94 -> Water Mains | F96: ='[1]Existing Trunk Assets'!F94 -> 0 | G96: ='[1]Existing Trunk Assets'!G94 -> Watermain - 168 m of 375dia. Asset No - 1000009 | K96: 0 | L96: ='[1]Existing Trunk Assets'!M94 -> 121128 | N96: =IF(M96="",1,VLOOKUP(M96,'Unit Rates - Water'!$H$12:$I$23,2,FALSE)) -> 1 | O96: 121128 | R96: =IF(P96="",'Unit Rates - Land'!landcst,IF($E$8="Landuse",VLOOKUP(P96,LAndcost3,2,FALSE),IF($E$8="Location",VLOOKUP(P96,Landcost2,2,FALSE),"Error"))) -> 0 | S96: 0 | U96: =IFERROR(('General Input Sheet'!$G$38/(VLOOKUP('Existing Trunk Assets - Water'!T96,Histindex,3,FALSE))),1) -> 1 | V96: 121128 | W96: ='[1]Existing Trunk Assets'!R94 -> y | X96: ='[1]Existing Trunk Assets'!S94 -> 0 | Y96: ='[1]Existing Trunk Assets'!T94 -> 0 | Z96: ='[1]Existing Trunk Assets'!U94 -> 0 | AA96: ='[1]Existing Trunk Assets'!V94 -> 0 | AB96: ='[1]Existing Trunk Assets'!W94 -> 0 | BB96: 52900 | CF96: 52900 | CH96: 121128 | CX96: =IF(BR96="","",(BR96/$CF96)*$V96) -> 
D97: ='[1]Existing Trunk Assets'!D95 -> Passive | E97: ='[1]Existing Trunk Assets'!E95 -> Water Mains | F97: ='[1]Existing Trunk Assets'!F95 -> 0 | G97: ='[1]Existing Trunk Assets'!G95 -> Watermain - 4 m of 200dia. Asset No - 10000090 | K97: 0 | L97: ='[1]Existing Trunk Assets'!M95 -> 1716 | N97: =IF(M97="",1,VLOOKUP(M97,'Unit Rates - Water'!$H$12:$I$23,2,FALSE)) -> 1 | O97: 1716 | R97: =IF(P97="",'Unit Rates - Land'!landcst,IF($E$8="Landuse",VLOOKUP(P97,LAndcost3,2,FALSE),IF($E$8="Location",VLOOKUP(P97,Landcost2,2,FALSE),"Error"))) -> 0 | S97: 0 | U97: =IFERROR(('General Input Sheet'!$G$38/(VLOOKUP('Existing Trunk Assets - Water'!T97,Histindex,3,FALSE))),1) -> 1 | V97: 1716 | W97: ='[1]Existing Trunk Assets'!R95 -> y | X97: ='[1]Existing Trunk Assets'!S95 -> 0 | Y97: ='[1]Existing Trunk Assets'!T95 -> 0 | Z97: ='[1]Existing Trunk Assets'!U95 -> 0 | AA97: ='[1]Existing Trunk Assets'!V95 -> 0 | AB97: ='[1]Existing Trunk Assets'!W95 -> 0 | BB97: 52900 | CF97: 52900 | CH97: 1716 | CV97: =IF(BP97="","",(BP97/$CF97)*$V97) -> 
D98: ='[1]Existing Trunk Assets'!D96 -> Passive | E98: ='[1]Existing Trunk Assets'!E96 -> Water Mains | F98: ='[1]Existing Trunk Assets'!F96 -> 0 | G98: ='[1]Existing Trunk Assets'!G96 -> Watermain - 648 m of 375dia. Asset No - 10000091 | K98: 0 | L98: ='[1]Existing Trunk Assets'!M96 -> 467208 | N98: =IF(M98="",1,VLOOKUP(M98,'Unit Rates - Water'!$H$12:$I$23,2,FALSE)) -> 1 | O98: 467208 | R98: =IF(P98="",'Unit Rates - Land'!landcst,IF($E$8="Landuse",VLOOKUP(P98,LAndcost3,2,FALSE),IF($E$8="Location",VLOOKUP(P98,Landcost2,2,FALSE),"Error"))) -> 0 | S98: 0 | U98: =IFERROR(('General Input Sheet'!$G$38/(VLOOKUP('Existing Trunk Assets - Water'!T98,Histindex,3,FALSE))),1) -> 1 | V98: 467208 | W98: ='[1]Existing Trunk Assets'!R96 -> y | X98: ='[1]Existing Trunk Assets'!S96 -> 0 | Y98: ='[1]Existing Trunk Assets'!T96 -> 0 | Z98: ='[1]Existing Trunk Assets'!U96 -> 0 | AA98: ='[1]Existing Trunk Assets'!V96 -> 0 | AB98: ='[1]Existing Trunk Assets'!W96 -> 0 | BB98: 52900 | CF98: 52900 | CH98: =IF(BB98="","",(BB98/$CF98)*$V98) -> 467208
D99: ='[1]Existing Trunk Assets'!D97 -> Passive | E99: ='[1]Existing Trunk Assets'!E97 -> Water Mains | F99: ='[1]Existing Trunk Assets'!F97 -> 0 | G99: ='[1]Existing Trunk Assets'!G97 -> Watermain - 4 m of 200dia. Asset No - 10000093 | K99: 0 | L99: ='[1]Existing Trunk Assets'!M97 -> 1716 | N99: =IF(M99="",1,VLOOKUP(M99,'Unit Rates - Water'!$H$12:$I$23,2,FALSE)) -> 1 | O99: 1716 | R99: =IF(P99="",'Unit Rates - Land'!landcst,IF($E$8="Landuse",VLOOKUP(P99,LAndcost3,2,FALSE),IF($E$8="Location",VLOOKUP(P99,Landcost2,2,FALSE),"Error"))) -> 0 | S99: 0 | U99: =IFERROR(('General Input Sheet'!$G$38/(VLOOKUP('Existing Trunk Assets - Water'!T99,Histindex,3,FALSE))),1) -> 1 | V99: 1716 | W99: ='[1]Existing Trunk Assets'!R97 -> y | X99: ='[1]Existing Trunk Assets'!S97 -> 0 | Y99: ='[1]Existing Trunk Assets'!T97 -> 0 | Z99: ='[1]Existing Trunk Assets'!U97 -> 0 | AA99: ='[1]Existing Trunk Assets'!V97 -> 0 | AB99: ='[1]Existing Trunk Assets'!W97 -> 0 | BB99: 52900 | CF99: 52900 | CH99: 1716
D100: ='[1]Existing Trunk Assets'!D98 -> Passive | E100: ='[1]Existing Trunk Assets'!E98 -> Water Mains | F100: ='[1]Existing Trunk Assets'!F98 -> 0 | G100: ='[1]Existing Trunk Assets'!G98 -> Watermain - 4 m of 200dia. Asset No - 10000094 | K100: 0 | L100: ='[1]Existing Trunk Assets'!M98 -> 1716 | N100: =IF(M100="",1,VLOOKUP(M100,'Unit Rates - Water'!$H$12:$I$23,2,FALSE)) -> 1 | O100: 1716 | R100: =IF(P100="",'Unit Rates - Land'!landcst,IF($E$8="Landuse",VLOOKUP(P100,LAndcost3,2,FALSE),IF($E$8="Location",VLOOKUP(P100,Landcost2,2,FALSE),"Error"))) -> 0 | S100: 0 | U100: =IFERROR(('General Input Sheet'!$G$38/(VLOOKUP('Existing Trunk Assets - Water'!T100,Histindex,3,FALSE))),1) -> 1 | V100: 1716 | W100: ='[1]Existing Trunk Assets'!R98 -> y | X100: ='[1]Existing Trunk Assets'!S98 -> 0 | Y100: ='[1]Existing Trunk Assets'!T98 -> 0 | Z100: ='[1]Existing Trunk Assets'!U98 -> 0 | AA100: ='[1]Existing Trunk Assets'!V98 -> 0 | AB100: ='[1]Existing Trunk Assets'!W98 -> 0 | BB100: 52900 | CF100: 52900 | CH100: 1716
D101: ='[1]Existing Trunk Assets'!D99 -> Passive | E101: ='[1]Existing Trunk Assets'!E99 -> Water Mains | F101: ='[1]Existing Trunk Assets'!F99 -> 0 | G101: ='[1]Existing Trunk Assets'!G99 -> Watermain - 143 m of 300dia. Asset No - 10000095 | K101: 0 | L101: ='[1]Existing Trunk Assets'!M99 -> 81653 | N101: =IF(M101="",1,VLOOKUP(M101,'Unit Rates - Water'!$H$12:$I$23,2,FALSE)) -> 1 | O101: 81653 | R101: =IF(P101="",'Unit Rates - Land'!landcst,IF($E$8="Landuse",VLOOKUP(P101,LAndcost3,2,FALSE),IF($E$8="Location",VLOOKUP(P101,Landcost2,2,FALSE),"Error"))) -> 0 | S101: 0 | U101: =IFERROR(('General Input Sheet'!$G$38/(VLOOKUP('Existing Trunk Assets - Water'!T101,Histindex,3,FALSE))),1) -> 1 | V101: 81653 | W101: ='[1]Existing Trunk Assets'!R99 -> y | X101: ='[1]Existing Trunk Assets'!S99 -> 0 | Y101: ='[1]Existing Trunk Assets'!T99 -> 0 | Z101: ='[1]Existing Trunk Assets'!U99 -> 0 | AA101: ='[1]Existing Trunk Assets'!V99 -> 0 | AB101: ='[1]Existing Trunk Assets'!W99 -> 0 | BB101: 52900 | CF101: 52900 | CH101: 81653
D102: ='[1]Existing Trunk Assets'!D100 -> Passive | E102: ='[1]Existing Trunk Assets'!E100 -> Water Mains | F102: ='[1]Existing Trunk Assets'!F100 -> 0 | G102: ='[1]Existing Trunk Assets'!G100 -> Watermain - 327 m of 300dia. Asset No - 10000097 | K102: 0 | L102: ='[1]Existing Trunk Assets'!M100 -> 186717 | N102: =IF(M102="",1,VLOOKUP(M102,'Unit Rates - Water'!$H$12:$I$23,2,FALSE)) -> 1 | O102: 186717 | R102: =IF(P102="",'Unit Rates - Land'!landcst,IF($E$8="Landuse",VLOOKUP(P102,LAndcost3,2,FALSE),IF($E$8="Location",VLOOKUP(P102,Landcost2,2,FALSE),"Error"))) -> 0 | S102: 0 | U102: =IFERROR(('General Input Sheet'!$G$38/(VLOOKUP('Existing Trunk Assets - Water'!T102,Histindex,3,FALSE))),1) -> 1 | V102: 186717 | W102: ='[1]Existing Trunk Assets'!R100 -> y | X102: ='[1]Existing Trunk Assets'!S100 -> 0 | Y102: ='[1]Existing Trunk Assets'!T100 -> 0 | Z102: ='[1]Existing Trunk Assets'!U100 -> 0 | AA102: ='[1]Existing Trunk Assets'!V100 -> 0 | AB102: ='[1]Existing Trunk Assets'!W100 -> 0 | BB102: 52900 | CF102: 52900 | CH102: 186717
D103: ='[1]Existing Trunk Assets'!D101 -> Passive | E103: ='[1]Existing Trunk Assets'!E101 -> Water Mains | F103: ='[1]Existing Trunk Assets'!F101 -> 0 | G103: ='[1]Existing Trunk Assets'!G101 -> Watermain - 83 m of 375dia. Asset No - 10000098 | K103: 0 | L103: ='[1]Existing Trunk Assets'!M101 -> 59843 | N103: =IF(M103="",1,VLOOKUP(M103,'Unit Rates - Water'!$H$12:$I$23,2,FALSE)) -> 1 | O103: 59843 | R103: =IF(P103="",'Unit Rates - Land'!landcst,IF($E$8="Landuse",VLOOKUP(P103,LAndcost3,2,FALSE),IF($E$8="Location",VLOOKUP(P103,Landcost2,2,FALSE),"Error"))) -> 0 | S103: 0 | U103: =IFERROR(('General Input Sheet'!$G$38/(VLOOKUP('Existing Trunk Assets - Water'!T103,Histindex,3,FALSE))),1) -> 1 | V103: 59843 | W103: ='[1]Existing Trunk Assets'!R101 -> y | X103: ='[1]Existing Trunk Assets'!S101 -> 0 | Y103: ='[1]Existing Trunk Assets'!T101 -> 0 | Z103: ='[1]Existing Trunk Assets'!U101 -> 0 | AA103: ='[1]Existing Trunk Assets'!V101 -> 0 | AB103: ='[1]Existing Trunk Assets'!W101 -> 0 | BB103: 52900 | CF103: 52900 | CH103: 59843
D104: ='[1]Existing Trunk Assets'!D102 -> Passive | E104: ='[1]Existing Trunk Assets'!E102 -> Water Mains | F104: ='[1]Existing Trunk Assets'!F102 -> 0 | G104: ='[1]Existing Trunk Assets'!G102 -> Watermain - 20 m of 250dia. Asset No - 10001 | K104: 0 | L104: ='[1]Existing Trunk Assets'!M102 -> 9780 | N104: =IF(M104="",1,VLOOKUP(M104,'Unit Rates - Water'!$H$12:$I$23,2,FALSE)) -> 1 | O104: 9780 | R104: =IF(P104="",'Unit Rates - Land'!landcst,IF($E$8="Landuse",VLOOKUP(P104,LAndcost3,2,FALSE),IF($E$8="Location",VLOOKUP(P104,Landcost2,2,FALSE),"Error"))) -> 0 | S104: 0 | U104: =IFERROR(('General Input Sheet'!$G$38/(VLOOKUP('Existing Trunk Assets - Water'!T104,Histindex,3,FALSE))),1) -> 1 | V104: 9780 | W104: ='[1]Existing Trunk Assets'!R102 -> y | X104: ='[1]Existing Trunk Assets'!S102 -> 0 | Y104: ='[1]Existing Trunk Assets'!T102 -> 0 | Z104: ='[1]Existing Trunk Assets'!U102 -> 0 | AA104: ='[1]Existing Trunk Assets'!V102 -> 0 | AB104: ='[1]Existing Trunk Assets'!W102 -> 0 | BB104: 52900 | CF104: 52900 | CH104: 9780
D105: ='[1]Existing Trunk Assets'!D103 -> Passive | E105: ='[1]Existing Trunk Assets'!E103 -> Water Mains | F105: ='[1]Existing Trunk Assets'!F103 -> 0 | G105: ='[1]Existing Trunk Assets'!G103 -> Watermain - 8 m of 375dia. Asset No - 10003 | K105: 0 | L105: ='[1]Existing Trunk Assets'!M103 -> 5768 | N105: =IF(M105="",1,VLOOKUP(M105,'Unit Rates - Water'!$H$12:$I$23,2,FALSE)) -> 1 | O105: 5768 | R105: =IF(P105="",'Unit Rates - Land'!landcst,IF($E$8="Landuse",VLOOKUP(P105,LAndcost3,2,FALSE),IF($E$8="Location",VLOOKUP(P105,Landcost2,2,FALSE),"Error"))) -> 0 | S105: 0 | U105: =IFERROR(('General Input Sheet'!$G$38/(VLOOKUP('Existing Trunk Assets - Water'!T105,Histindex,3,FALSE))),1) -> 1 | V105: 5768 | W105: ='[1]Existing Trunk Assets'!R103 -> y | X105: ='[1]Existing Trunk Assets'!S103 -> 0 | Y105: ='[1]Existing Trunk Assets'!T103 -> 0 | Z105: ='[1]Existing Trunk Assets'!U103 -> 0 | AA105: ='[1]Existing Trunk Assets'!V103 -> 0 | AB105: ='[1]Existing Trunk Assets'!W103 -> 0 | BB105: 52900 | CF105: 52900 | CH105: 5768
D106: ='[1]Existing Trunk Assets'!D104 -> Passive | E106: ='[1]Existing Trunk Assets'!E104 -> Water Mains | F106: ='[1]Existing Trunk Assets'!F104 -> 0 | G106: ='[1]Existing Trunk Assets'!G104 -> Watermain - 22 m of 200dia. Asset No - 10005 | K106: 0 | L106: ='[1]Existing Trunk Assets'!M104 -> 9438 | N106: =IF(M106="",1,VLOOKUP(M106,'Unit Rates - Water'!$H$12:$I$23,2,FALSE)) -> 1 | O106: 9438 | R106: =IF(P106="",'Unit Rates - Land'!landcst,IF($E$8="Landuse",VLOOKUP(P106,LAndcost3,2,FALSE),IF($E$8="Location",VLOOKUP(P106,Landcost2,2,FALSE),"Error"))) -> 0 | S106: 0 | U106: =IFERROR(('General Input Sheet'!$G$38/(VLOOKUP('Existing Trunk Assets - Water'!T106,Histindex,3,FALSE))),1) -> 1 | V106: 9438 | W106: ='[1]Existing Trunk Assets'!R104 -> y | X106: ='[1]Existing Trunk Assets'!S104 -> 0 | Y106: ='[1]Existing Trunk Assets'!T104 -> 0 | Z106: ='[1]Existing Trunk Assets'!U104 -> 0 | AA106: ='[1]Existing Trunk Assets'!V104 -> 0 | AB106: ='[1]Existing Trunk Assets'!W104 -> 0 | BB106: 52900 | CF106: 52900 | CH106: 9438
D107: ='[1]Existing Trunk Assets'!D105 -> Passive | E107: ='[1]Existing Trunk Assets'!E105 -> Water Mains | F107: ='[1]Existing Trunk Assets'!F105 -> 0 | G107: ='[1]Existing Trunk Assets'!G105 -> Watermain - 55 m of 200dia. Asset No - 10051 | K107: 0 | L107: ='[1]Existing Trunk Assets'!M105 -> 23595 | N107: =IF(M107="",1,VLOOKUP(M107,'Unit Rates - Water'!$H$12:$I$23,2,FALSE)) -> 1 | O107: 23595 | R107: =IF(P107="",'Unit Rates - Land'!landcst,IF($E$8="Landuse",VLOOKUP(P107,LAndcost3,2,FALSE),IF($E$8="Location",VLOOKUP(P107,Landcost2,2,FALSE),"Error"))) -> 0 | S107: 0 | U107: =IFERROR(('General Input Sheet'!$G$38/(VLOOKUP('Existing Trunk Assets - Water'!T107,Histindex,3,FALSE))),1) -> 1 | V107: 23595 | W107: ='[1]Existing Trunk Assets'!R105 -> y | X107: ='[1]Existing Trunk Assets'!S105 -> 0 | Y107: ='[1]Existing Trunk Assets'!T105 -> 0 | Z107: ='[1]Existing Trunk Assets'!U105 -> 0 | AA107: ='[1]Existing Trunk Assets'!V105 -> 0 | AB107: ='[1]Existing Trunk Assets'!W105 -> 0 | BB107: 52900 | CF107: 52900 | CH107: 23595
D108: ='[1]Existing Trunk Assets'!D106 -> Passive | E108: ='[1]Existing Trunk Assets'!E106 -> Water Mains | F108: ='[1]Existing Trunk Assets'!F106 -> 0 | G108: ='[1]Existing Trunk Assets'!G106 -> Watermain - 74 m of 200dia. Asset No - 10059 | K108: 0 | L108: ='[1]Existing Trunk Assets'!M106 -> 31746 | N108: =IF(M108="",1,VLOOKUP(M108,'Unit Rates - Water'!$H$12:$I$23,2,FALSE)) -> 1 | O108: 31746 | R108: =IF(P108="",'Unit Rates - Land'!landcst,IF($E$8="Landuse",VLOOKUP(P108,LAndcost3,2,FALSE),IF($E$8="Location",VLOOKUP(P108,Landcost2,2,FALSE),"Error"))) -> 0 | S108: 0 | U108: =IFERROR(('General Input Sheet'!$G$38/(VLOOKUP('Existing Trunk Assets - Water'!T108,Histindex,3,FALSE))),1) -> 1 | V108: 31746 | W108: ='[1]Existing Trunk Assets'!R106 -> y | X108: ='[1]Existing Trunk Assets'!S106 -> 0 | Y108: ='[1]Existing Trunk Assets'!T106 -> 0 | Z108: ='[1]Existing Trunk Assets'!U106 -> 0 | AA108: ='[1]Existing Trunk Assets'!V106 -> 0 | AB108: ='[1]Existing Trunk Assets'!W106 -> 0 | BB108: 52900 | CF108: 52900 | CH108: 31746
D109: ='[1]Existing Trunk Assets'!D107 -> Passive | E109: ='[1]Existing Trunk Assets'!E107 -> Water Mains | F109: ='[1]Existing Trunk Assets'!F107 -> 0 | G109: ='[1]Existing Trunk Assets'!G107 -> Watermain - 28 m of 300dia. Asset No - 10065 | K109: 0 | L109: ='[1]Existing Trunk Assets'!M107 -> 15988 | N109: =IF(M109="",1,VLOOKUP(M109,'Unit Rates - Water'!$H$12:$I$23,2,FALSE)) -> 1 | O109: 15988 | R109: =IF(P109="",'Unit Rates - Land'!landcst,IF($E$8="Landuse",VLOOKUP(P109,LAndcost3,2,FALSE),IF($E$8="Location",VLOOKUP(P109,Landcost2,2,FALSE),"Error"))) -> 0 | S109: 0 | U109: =IFERROR(('General Input Sheet'!$G$38/(VLOOKUP('Existing Trunk Assets - Water'!T109,Histindex,3,FALSE))),1) -> 1 | V109: 15988 | W109: ='[1]Existing Trunk Assets'!R107 -> y | X109: ='[1]Existing Trunk Assets'!S107 -> 0 | Y109: ='[1]Existing Trunk Assets'!T107 -> 0 | Z109: ='[1]Existing Trunk Assets'!U107 -> 0 | AA109: ='[1]Existing Trunk Assets'!V107 -> 0 | AB109: ='[1]Existing Trunk Assets'!W107 -> 0 | BB109: 52900 | CF109: 52900 | CH109: 15988
D110: ='[1]Existing Trunk Assets'!D108 -> Passive | E110: ='[1]Existing Trunk Assets'!E108 -> Water Mains | F110: ='[1]Existing Trunk Assets'!F108 -> 0 | G110: ='[1]Existing Trunk Assets'!G108 -> Watermain - 50 m of 450dia. Asset No - 10066 | K110: 0 | L110: ='[1]Existing Trunk Assets'!M108 -> 43700 | N110: =IF(M110="",1,VLOOKUP(M110,'Unit Rates - Water'!$H$12:$I$23,2,FALSE)) -> 1 | O110: 43700 | R110: =IF(P110="",'Unit Rates - Land'!landcst,IF($E$8="Landuse",VLOOKUP(P110,LAndcost3,2,FALSE),IF($E$8="Location",VLOOKUP(P110,Landcost2,2,FALSE),"Error"))) -> 0 | S110: 0 | U110: =IFERROR(('General Input Sheet'!$G$38/(VLOOKUP('Existing Trunk Assets - Water'!T110,Histindex,3,FALSE))),1) -> 1 | V110: 43700 | W110: ='[1]Existing Trunk Assets'!R108 -> y | X110: ='[1]Existing Trunk Assets'!S108 -> 0 | Y110: ='[1]Existing Trunk Assets'!T108 -> 0 | Z110: ='[1]Existing Trunk Assets'!U108 -> 0 | AA110: ='[1]Existing Trunk Assets'!V108 -> 0 | AB110: ='[1]Existing Trunk Assets'!W108 -> 0 | BB110: 52900 | CF110: 52900 | CH110: 43700
D111: ='[1]Existing Trunk Assets'!D109 -> Passive | E111: ='[1]Existing Trunk Assets'!E109 -> Water Mains | F111: ='[1]Existing Trunk Assets'!F109 -> 0 | G111: ='[1]Existing Trunk Assets'!G109 -> Watermain - 10 m of 375dia. Asset No - 10072 | K111: 0 | L111: ='[1]Existing Trunk Assets'!M109 -> 7210 | N111: =IF(M111="",1,VLOOKUP(M111,'Unit Rates - Water'!$H$12:$I$23,2,FALSE)) -> 1 | O111: 7210 | R111: =IF(P111="",'Unit Rates - Land'!landcst,IF($E$8="Landuse",VLOOKUP(P111,LAndcost3,2,FALSE),IF($E$8="Location",VLOOKUP(P111,Landcost2,2,FALSE),"Error"))) -> 0 | S111: 0 | U111: =IFERROR(('General Input Sheet'!$G$38/(VLOOKUP('Existing Trunk Assets - Water'!T111,Histindex,3,FALSE))),1) -> 1 | V111: 7210 | W111: ='[1]Existing Trunk Assets'!R109 -> y | X111: ='[1]Existing Trunk Assets'!S109 -> 0 | Y111: ='[1]Existing Trunk Assets'!T109 -> 0 | Z111: ='[1]Existing Trunk Assets'!U109 -> 0 | AA111: ='[1]Existing Trunk Assets'!V109 -> 0 | AB111: ='[1]Existing Trunk Assets'!W109 -> 0 | BB111: 52900 | CF111: 52900 | CH111: 7210
D112: ='[1]Existing Trunk Assets'!D110 -> Passive | E112: ='[1]Existing Trunk Assets'!E110 -> Water Mains | F112: ='[1]Existing Trunk Assets'!F110 -> 0 | G112: ='[1]Existing Trunk Assets'!G110 -> Watermain - 248 m of 600dia. Asset No - 10077 | K112: 0 | L112: ='[1]Existing Trunk Assets'!M110 -> 310744 | N112: =IF(M112="",1,VLOOKUP(M112,'Unit Rates - Water'!$H$12:$I$23,2,FALSE)) -> 1 | O112: 310744 | R112: =IF(P112="",'Unit Rates - Land'!landcst,IF($E$8="Landuse",VLOOKUP(P112,LAndcost3,2,FALSE),IF($E$8="Location",VLOOKUP(P112,Landcost2,2,FALSE),"Error"))) -> 0 | S112: 0 | U112: =IFERROR(('General Input Sheet'!$G$38/(VLOOKUP('Existing Trunk Assets - Water'!T112,Histindex,3,FALSE))),1) -> 1 | V112: 310744 | W112: ='[1]Existing Trunk Assets'!R110 -> y | X112: ='[1]Existing Trunk Assets'!S110 -> 0 | Y112: ='[1]Existing Trunk Assets'!T110 -> 0 | Z112: ='[1]Existing Trunk Assets'!U110 -> 0 | AA112: ='[1]Existing Trunk Assets'!V110 -> 0 | AB112: ='[1]Existing Trunk Assets'!W110 -> 0 | BB112: 52900 | CF112: 52900 | CH112: 310744
D113: ='[1]Existing Trunk Assets'!D111 -> Passive | E113: ='[1]Existing Trunk Assets'!E111 -> Water Mains | F113: ='[1]Existing Trunk Assets'!F111 -> 0 | G113: ='[1]Existing Trunk Assets'!G111 -> Watermain - 7 m of 100dia. Asset No - 10079 | K113: 0 | L113: ='[1]Existing Trunk Assets'!M111 -> 1330 | N113: =IF(M113="",1,VLOOKUP(M113,'Unit Rates - Water'!$H$12:$I$23,2,FALSE)) -> 1 | O113: 1330 | R113: =IF(P113="",'Unit Rates - Land'!landcst,IF($E$8="Landuse",VLOOKUP(P113,LAndcost3,2,FALSE),IF($E$8="Location",VLOOKUP(P113,Landcost2,2,FALSE),"Error"))) -> 0 | S113: 0 | U113: =IFERROR(('General Input Sheet'!$G$38/(VLOOKUP('Existing Trunk Assets - Water'!T113,Histindex,3,FALSE))),1) -> 1 | V113: 1330 | W113: ='[1]Existing Trunk Assets'!R111 -> y | X113: ='[1]Existing Trunk Assets'!S111 -> 0 | Y113: ='[1]Existing Trunk Assets'!T111 -> 0 | Z113: ='[1]Existing Trunk Assets'!U111 -> 0 | AA113: ='[1]Existing Trunk Assets'!V111 -> 0 | AB113: ='[1]Existing Trunk Assets'!W111 -> 0 | BB113: 52900 | CF113: 52900 | CH113: 1330
D114: ='[1]Existing Trunk Assets'!D112 -> Passive | E114: ='[1]Existing Trunk Assets'!E112 -> Water Mains | F114: ='[1]Existing Trunk Assets'!F112 -> 0 | G114: ='[1]Existing Trunk Assets'!G112 -> Watermain - 69 m of 450dia. Asset No - 10082 | K114: 0 | L114: ='[1]Existing Trunk Assets'!M112 -> 60306 | N114: =IF(M114="",1,VLOOKUP(M114,'Unit Rates - Water'!$H$12:$I$23,2,FALSE)) -> 1 | O114: 60306 | R114: =IF(P114="",'Unit Rates - Land'!landcst,IF($E$8="Landuse",VLOOKUP(P114,LAndcost3,2,FALSE),IF($E$8="Location",VLOOKUP(P114,Landcost2,2,FALSE),"Error"))) -> 0 | S114: 0 | U114: =IFERROR(('General Input Sheet'!$G$38/(VLOOKUP('Existing Trunk Assets - Water'!T114,Histindex,3,FALSE))),1) -> 1 | V114: 60306 | W114: ='[1]Existing Trunk Assets'!R112 -> y | X114: ='[1]Existing Trunk Assets'!S112 -> 0 | Y114: ='[1]Existing Trunk Assets'!T112 -> 0 | Z114: ='[1]Existing Trunk Assets'!U112 -> 0 | AA114: ='[1]Existing Trunk Assets'!V112 -> 0 | AB114: ='[1]Existing Trunk Assets'!W112 -> 0 | BB114: 52900 | CF114: 52900 | CH114: 60306
D115: ='[1]Existing Trunk Assets'!D113 -> Passive | E115: ='[1]Existing Trunk Assets'!E113 -> Water Mains | F115: ='[1]Existing Trunk Assets'!F113 -> 0 | G115: ='[1]Existing Trunk Assets'!G113 -> Watermain - 17 m of 375dia. Asset No - 10083 | K115: 0 | L115: ='[1]Existing Trunk Assets'!M113 -> 12257 | N115: =IF(M115="",1,VLOOKUP(M115,'Unit Rates - Water'!$H$12:$I$23,2,FALSE)) -> 1 | O115: 12257 | R115: =IF(P115="",'Unit Rates - Land'!landcst,IF($E$8="Landuse",VLOOKUP(P115,LAndcost3,2,FALSE),IF($E$8="Location",VLOOKUP(P115,Landcost2,2,FALSE),"Error"))) -> 0 | S115: 0 | U115: =IFERROR(('General Input Sheet'!$G$38/(VLOOKUP('Existing Trunk Assets - Water'!T115,Histindex,3,FALSE))),1) -> 1 | V115: 12257 | W115: ='[1]Existing Trunk Assets'!R113 -> y | X115: ='[1]Existing Trunk Assets'!S113 -> 0 | Y115: ='[1]Existing Trunk Assets'!T113 -> 0 | Z115: ='[1]Existing Trunk Assets'!U113 -> 0 | AA115: ='[1]Existing Trunk Assets'!V113 -> 0 | AB115: ='[1]Existing Trunk Assets'!W113 -> 0 | BB115: 52900 | CF115: 52900 | CH115: 12257
D116: ='[1]Existing Trunk Assets'!D114 -> Passive | E116: ='[1]Existing Trunk Assets'!E114 -> Water Mains | F116: ='[1]Existing Trunk Assets'!F114 -> 0 | G116: ='[1]Existing Trunk Assets'!G114 -> Watermain - 185 m of 200dia. Asset No - 1016 | K116: 0 | L116: ='[1]Existing Trunk Assets'!M114 -> 79365 | N116: =IF(M116="",1,VLOOKUP(M116,'Unit Rates - Water'!$H$12:$I$23,2,FALSE)) -> 1 | O116: 79365 | R116: =IF(P116="",'Unit Rates - Land'!landcst,IF($E$8="Landuse",VLOOKUP(P116,LAndcost3,2,FALSE),IF($E$8="Location",VLOOKUP(P116,Landcost2,2,FALSE),"Error"))) -> 0 | S116: 0 | U116: =IFERROR(('General Input Sheet'!$G$38/(VLOOKUP('Existing Trunk Assets - Water'!T116,Histindex,3,FALSE))),1) -> 1 | V116: 79365 | W116: ='[1]Existing Trunk Assets'!R114 -> y | X116: ='[1]Existing Trunk Assets'!S114 -> 0 | Y116: ='[1]Existing Trunk Assets'!T114 -> 0 | Z116: ='[1]Existing Trunk Assets'!U114 -> 0 | AA116: ='[1]Existing Trunk Assets'!V114 -> 0 | AB116: ='[1]Existing Trunk Assets'!W114 -> 0 | BB116: 52900 | CF116: 52900 | CH116: 79365 | CK116: =IF(BE116="","",(BE116/$CF116)*$V116) ->  | DK116: =IF(CE116="","",(CE116/$CF116)*$V116) -> 
D117: ='[1]Existing Trunk Assets'!D115 -> Passive | E117: ='[1]Existing Trunk Assets'!E115 -> Water Mains | F117: ='[1]Existing Trunk Assets'!F115 -> 0 | G117: ='[1]Existing Trunk Assets'!G115 -> Watermain - 364 m of 200dia. Asset No - 1017 | K117: 0 | L117: ='[1]Existing Trunk Assets'!M115 -> 156156 | N117: =IF(M117="",1,VLOOKUP(M117,'Unit Rates - Water'!$H$12:$I$23,2,FALSE)) -> 1 | O117: 156156 | R117: =IF(P117="",'Unit Rates - Land'!landcst,IF($E$8="Landuse",VLOOKUP(P117,LAndcost3,2,FALSE),IF($E$8="Location",VLOOKUP(P117,Landcost2,2,FALSE),"Error"))) -> 0 | S117: 0 | U117: =IFERROR(('General Input Sheet'!$G$38/(VLOOKUP('Existing Trunk Assets - Water'!T117,Histindex,3,FALSE))),1) -> 1 | V117: 156156 | W117: ='[1]Existing Trunk Assets'!R115 -> y | X117: ='[1]Existing Trunk Assets'!S115 -> 0 | Y117: ='[1]Existing Trunk Assets'!T115 -> 0 | Z117: ='[1]Existing Trunk Assets'!U115 -> 0 | AA117: ='[1]Existing Trunk Assets'!V115 -> 0 | AB117: ='[1]Existing Trunk Assets'!W115 -> 0 | BB117: 52900 | CF117: 52900 | CH117: =IF(BB117="","",(BB117/$CF117)*$V117) -> 156156
D118: ='[1]Existing Trunk Assets'!D116 -> Passive | E118: ='[1]Existing Trunk Assets'!E116 -> Water Mains | F118: ='[1]Existing Trunk Assets'!F116 -> 0 | G118: ='[1]Existing Trunk Assets'!G116 -> Watermain - 75 m of 200dia. Asset No - 1019 | K118: 0 | L118: ='[1]Existing Trunk Assets'!M116 -> 32175 | N118: =IF(M118="",1,VLOOKUP(M118,'Unit Rates - Water'!$H$12:$I$23,2,FALSE)) -> 1 | O118: 32175 | R118: =IF(P118="",'Unit Rates - Land'!landcst,IF($E$8="Landuse",VLOOKUP(P118,LAndcost3,2,FALSE),IF($E$8="Location",VLOOKUP(P118,Landcost2,2,FALSE),"Error"))) -> 0 | S118: 0 | U118: =IFERROR(('General Input Sheet'!$G$38/(VLOOKUP('Existing Trunk Assets - Water'!T118,Histindex,3,FALSE))),1) -> 1 | V118: 32175 | W118: ='[1]Existing Trunk Assets'!R116 -> y | X118: ='[1]Existing Trunk Assets'!S116 -> 0 | Y118: ='[1]Existing Trunk Assets'!T116 -> 0 | Z118: ='[1]Existing Trunk Assets'!U116 -> 0 | AA118: ='[1]Existing Trunk Assets'!V116 -> 0 | AB118: ='[1]Existing Trunk Assets'!W116 -> 0 | BB118: 52900 | CF118: 52900 | CH118: 32175
D119: ='[1]Existing Trunk Assets'!D117 -> Passive | E119: ='[1]Existing Trunk Assets'!E117 -> Water Mains | F119: ='[1]Existing Trunk Assets'!F117 -> 0 | G119: ='[1]Existing Trunk Assets'!G117 -> Watermain - 138 m of 200dia. Asset No - 1023 | K119: 0 | L119: ='[1]Existing Trunk Assets'!M117 -> 59202 | N119: =IF(M119="",1,VLOOKUP(M119,'Unit Rates - Water'!$H$12:$I$23,2,FALSE)) -> 1 | O119: 59202 | R119: =IF(P119="",'Unit Rates - Land'!landcst,IF($E$8="Landuse",VLOOKUP(P119,LAndcost3,2,FALSE),IF($E$8="Location",VLOOKUP(P119,Landcost2,2,FALSE),"Error"))) -> 0 | S119: 0 | U119: =IFERROR(('General Input Sheet'!$G$38/(VLOOKUP('Existing Trunk Assets - Water'!T119,Histindex,3,FALSE))),1) -> 1 | V119: 59202 | W119: ='[1]Existing Trunk Assets'!R117 -> y | X119: ='[1]Existing Trunk Assets'!S117 -> 0 | Y119: ='[1]Existing Trunk Assets'!T117 -> 0 | Z119: ='[1]Existing Trunk Assets'!U117 -> 0 | AA119: ='[1]Existing Trunk Assets'!V117 -> 0 | AB119: ='[1]Existing Trunk Assets'!W117 -> 0 | BB119: 52900 | CF119: 52900 | CH119: 59202
D120: ='[1]Existing Trunk Assets'!D118 -> Passive | E120: ='[1]Existing Trunk Assets'!E118 -> Water Mains | F120: ='[1]Existing Trunk Assets'!F118 -> 0 | G120: ='[1]Existing Trunk Assets'!G118 -> Watermain - 99 m of 200dia. Asset No - 10234 | K120: 0 | L120: ='[1]Existing Trunk Assets'!M118 -> 42471 | N120: =IF(M120="",1,VLOOKUP(M120,'Unit Rates - Water'!$H$12:$I$23,2,FALSE)) -> 1 | O120: 42471 | R120: =IF(P120="",'Unit Rates - Land'!landcst,IF($E$8="Landuse",VLOOKUP(P120,LAndcost3,2,FALSE),IF($E$8="Location",VLOOKUP(P120,Landcost2,2,FALSE),"Error"))) -> 0 | S120: 0 | U120: =IFERROR(('General Input Sheet'!$G$38/(VLOOKUP('Existing Trunk Assets - Water'!T120,Histindex,3,FALSE))),1) -> 1 | V120: 42471 | W120: ='[1]Existing Trunk Assets'!R118 -> y | X120: ='[1]Existing Trunk Assets'!S118 -> 0 | Y120: ='[1]Existing Trunk Assets'!T118 -> 0 | Z120: ='[1]Existing Trunk Assets'!U118 -> 0 | AA120: ='[1]Existing Trunk Assets'!V118 -> 0 | AB120: ='[1]Existing Trunk Assets'!W118 -> 0 | BB120: 52900 | CF120: 52900 | CH120: 42471
D121: ='[1]Existing Trunk Assets'!D119 -> Passive | E121: ='[1]Existing Trunk Assets'!E119 -> Water Mains | F121: ='[1]Existing Trunk Assets'!F119 -> 0 | G121: ='[1]Existing Trunk Assets'!G119 -> Watermain - 230 m of 200dia. Asset No - 1024 | K121: 0 | L121: ='[1]Existing Trunk Assets'!M119 -> 98670 | N121: =IF(M121="",1,VLOOKUP(M121,'Unit Rates - Water'!$H$12:$I$23,2,FALSE)) -> 1 | O121: 98670 | R121: =IF(P121="",'Unit Rates - Land'!landcst,IF($E$8="Landuse",VLOOKUP(P121,LAndcost3,2,FALSE),IF($E$8="Location",VLOOKUP(P121,Landcost2,2,FALSE),"Error"))) -> 0 | S121: 0 | U121: =IFERROR(('General Input Sheet'!$G$38/(VLOOKUP('Existing Trunk Assets - Water'!T121,Histindex,3,FALSE))),1) -> 1 | V121: 98670 | W121: ='[1]Existing Trunk Assets'!R119 -> y | X121: ='[1]Existing Trunk Assets'!S119 -> 0 | Y121: ='[1]Existing Trunk Assets'!T119 -> 0 | Z121: ='[1]Existing Trunk Assets'!U119 -> 0 | AA121: ='[1]Existing Trunk Assets'!V119 -> 0 | AB121: ='[1]Existing Trunk Assets'!W119 -> 0 | BB121: 52900 | CF121: 52900 | CH121: 98670
D122: ='[1]Existing Trunk Assets'!D120 -> Passive | E122: ='[1]Existing Trunk Assets'!E120 -> Water Mains | F122: ='[1]Existing Trunk Assets'!F120 -> 0 | G122: ='[1]Existing Trunk Assets'!G120 -> Watermain - 367 m of 200dia. Asset No - 1026 | K122: 0 | L122: ='[1]Existing Trunk Assets'!M120 -> 157443 | N122: =IF(M122="",1,VLOOKUP(M122,'Unit Rates - Water'!$H$12:$I$23,2,FALSE)) -> 1 | O122: 157443 | R122: =IF(P122="",'Unit Rates - Land'!landcst,IF($E$8="Landuse",VLOOKUP(P122,LAndcost3,2,FALSE),IF($E$8="Location",VLOOKUP(P122,Landcost2,2,FALSE),"Error"))) -> 0 | S122: 0 | U122: =IFERROR(('General Input Sheet'!$G$38/(VLOOKUP('Existing Trunk Assets - Water'!T122,Histindex,3,FALSE))),1) -> 1 | V122: 157443 | W122: ='[1]Existing Trunk Assets'!R120 -> y | X122: ='[1]Existing Trunk Assets'!S120 -> 0 | Y122: ='[1]Existing Trunk Assets'!T120 -> 0 | Z122: ='[1]Existing Trunk Assets'!U120 -> 0 | AA122: ='[1]Existing Trunk Assets'!V120 -> 0 | AB122: ='[1]Existing Trunk Assets'!W120 -> 0 | BB122: 52900 | CF122: 52900 | CH122: 157443
D123: ='[1]Existing Trunk Assets'!D121 -> Passive | E123: ='[1]Existing Trunk Assets'!E121 -> Water Mains | F123: ='[1]Existing Trunk Assets'!F121 -> 0 | G123: ='[1]Existing Trunk Assets'!G121 -> Watermain - 85 m of 200dia. Asset No - 1030 | K123: 0 | L123: ='[1]Existing Trunk Assets'!M121 -> 36465 | N123: =IF(M123="",1,VLOOKUP(M123,'Unit Rates - Water'!$H$12:$I$23,2,FALSE)) -> 1 | O123: 36465 | R123: =IF(P123="",'Unit Rates - Land'!landcst,IF($E$8="Landuse",VLOOKUP(P123,LAndcost3,2,FALSE),IF($E$8="Location",VLOOKUP(P123,Landcost2,2,FALSE),"Error"))) -> 0 | S123: 0 | U123: =IFERROR(('General Input Sheet'!$G$38/(VLOOKUP('Existing Trunk Assets - Water'!T123,Histindex,3,FALSE))),1) -> 1 | V123: 36465 | W123: ='[1]Existing Trunk Assets'!R121 -> y | X123: ='[1]Existing Trunk Assets'!S121 -> 0 | Y123: ='[1]Existing Trunk Assets'!T121 -> 0 | Z123: ='[1]Existing Trunk Assets'!U121 -> 0 | AA123: ='[1]Existing Trunk Assets'!V121 -> 0 | AB123: ='[1]Existing Trunk Assets'!W121 -> 0 | BB123: 52900 | CF123: 52900 | CH123: 36465
D124: ='[1]Existing Trunk Assets'!D122 -> Passive | E124: ='[1]Existing Trunk Assets'!E122 -> Water Mains | F124: ='[1]Existing Trunk Assets'!F122 -> 0 | G124: ='[1]Existing Trunk Assets'!G122 -> Watermain - 166 m of 200dia. Asset No - 1034 | K124: 0 | L124: ='[1]Existing Trunk Assets'!M122 -> 71214 | N124: =IF(M124="",1,VLOOKUP(M124,'Unit Rates - Water'!$H$12:$I$23,2,FALSE)) -> 1 | O124: 71214 | R124: =IF(P124="",'Unit Rates - Land'!landcst,IF($E$8="Landuse",VLOOKUP(P124,LAndcost3,2,FALSE),IF($E$8="Location",VLOOKUP(P124,Landcost2,2,FALSE),"Error"))) -> 0 | S124: 0 | U124: =IFERROR(('General Input Sheet'!$G$38/(VLOOKUP('Existing Trunk Assets - Water'!T124,Histindex,3,FALSE))),1) -> 1 | V124: 71214 | W124: ='[1]Existing Trunk Assets'!R122 -> y | X124: ='[1]Existing Trunk Assets'!S122 -> 0 | Y124: ='[1]Existing Trunk Assets'!T122 -> 0 | Z124: ='[1]Existing Trunk Assets'!U122 -> 0 | AA124: ='[1]Existing Trunk Assets'!V122 -> 0 | AB124: ='[1]Existing Trunk Assets'!W122 -> 0 | BB124: 52900 | CF124: 52900 | CH124: 71214
D125: ='[1]Existing Trunk Assets'!D123 -> Passive | E125: ='[1]Existing Trunk Assets'!E123 -> Water Mains | F125: ='[1]Existing Trunk Assets'!F123 -> 0 | G125: ='[1]Existing Trunk Assets'!G123 -> Watermain - 69 m of 200dia. Asset No - 1035 | K125: 0 | L125: ='[1]Existing Trunk Assets'!M123 -> 29601 | N125: =IF(M125="",1,VLOOKUP(M125,'Unit Rates - Water'!$H$12:$I$23,2,FALSE)) -> 1 | O125: 29601 | R125: =IF(P125="",'Unit Rates - Land'!landcst,IF($E$8="Landuse",VLOOKUP(P125,LAndcost3,2,FALSE),IF($E$8="Location",VLOOKUP(P125,Landcost2,2,FALSE),"Error"))) -> 0 | S125: 0 | U125: =IFERROR(('General Input Sheet'!$G$38/(VLOOKUP('Existing Trunk Assets - Water'!T125,Histindex,3,FALSE))),1) -> 1 | V125: 29601 | W125: ='[1]Existing Trunk Assets'!R123 -> y | X125: ='[1]Existing Trunk Assets'!S123 -> 0 | Y125: ='[1]Existing Trunk Assets'!T123 -> 0 | Z125: ='[1]Existing Trunk Assets'!U123 -> 0 | AA125: ='[1]Existing Trunk Assets'!V123 -> 0 | AB125: ='[1]Existing Trunk Assets'!W123 -> 0 | BB125: 52900 | CF125: 52900 | CH125: 29601
D126: ='[1]Existing Trunk Assets'!D124 -> Passive | E126: ='[1]Existing Trunk Assets'!E124 -> Water Mains | F126: ='[1]Existing Trunk Assets'!F124 -> 0 | G126: ='[1]Existing Trunk Assets'!G124 -> Watermain - 43 m of 200dia. Asset No - 1040 | K126: 0 | L126: ='[1]Existing Trunk Assets'!M124 -> 18447 | N126: =IF(M126="",1,VLOOKUP(M126,'Unit Rates - Water'!$H$12:$I$23,2,FALSE)) -> 1 | O126: 18447 | R126: =IF(P126="",'Unit Rates - Land'!landcst,IF($E$8="Landuse",VLOOKUP(P126,LAndcost3,2,FALSE),IF($E$8="Location",VLOOKUP(P126,Landcost2,2,FALSE),"Error"))) -> 0 | S126: 0 | U126: =IFERROR(('General Input Sheet'!$G$38/(VLOOKUP('Existing Trunk Assets - Water'!T126,Histindex,3,FALSE))),1) -> 1 | V126: 18447 | W126: ='[1]Existing Trunk Assets'!R124 -> y | X126: ='[1]Existing Trunk Assets'!S124 -> 0 | Y126: ='[1]Existing Trunk Assets'!T124 -> 0 | Z126: ='[1]Existing Trunk Assets'!U124 -> 0 | AA126: ='[1]Existing Trunk Assets'!V124 -> 0 | AB126: ='[1]Existing Trunk Assets'!W124 -> 0 | BB126: 52900 | CF126: 52900 | CH126: 18447
D127: ='[1]Existing Trunk Assets'!D125 -> Passive | E127: ='[1]Existing Trunk Assets'!E125 -> Water Mains | F127: ='[1]Existing Trunk Assets'!F125 -> 0 | G127: ='[1]Existing Trunk Assets'!G125 -> Watermain - 59 m of 200dia. Asset No - 1041 | K127: 0 | L127: ='[1]Existing Trunk Assets'!M125 -> 25311 | N127: =IF(M127="",1,VLOOKUP(M127,'Unit Rates - Water'!$H$12:$I$23,2,FALSE)) -> 1 | O127: 25311 | R127: =IF(P127="",'Unit Rates - Land'!landcst,IF($E$8="Landuse",VLOOKUP(P127,LAndcost3,2,FALSE),IF($E$8="Location",VLOOKUP(P127,Landcost2,2,FALSE),"Error"))) -> 0 | S127: 0 | U127: =IFERROR(('General Input Sheet'!$G$38/(VLOOKUP('Existing Trunk Assets - Water'!T127,Histindex,3,FALSE))),1) -> 1 | V127: 25311 | W127: ='[1]Existing Trunk Assets'!R125 -> y | X127: ='[1]Existing Trunk Assets'!S125 -> 0 | Y127: ='[1]Existing Trunk Assets'!T125 -> 0 | Z127: ='[1]Existing Trunk Assets'!U125 -> 0 | AA127: ='[1]Existing Trunk Assets'!V125 -> 0 | AB127: ='[1]Existing Trunk Assets'!W125 -> 0 | BB127: 52900 | CF127: 52900 | CH127: 25311
D128: ='[1]Existing Trunk Assets'!D126 -> Passive | E128: ='[1]Existing Trunk Assets'!E126 -> Water Mains | F128: ='[1]Existing Trunk Assets'!F126 -> 0 | G128: ='[1]Existing Trunk Assets'!G126 -> Watermain - 139 m of 200dia. Asset No - 1042 | K128: 0 | L128: ='[1]Existing Trunk Assets'!M126 -> 59631 | N128: =IF(M128="",1,VLOOKUP(M128,'Unit Rates - Water'!$H$12:$I$23,2,FALSE)) -> 1 | O128: 59631 | R128: =IF(P128="",'Unit Rates - Land'!landcst,IF($E$8="Landuse",VLOOKUP(P128,LAndcost3,2,FALSE),IF($E$8="Location",VLOOKUP(P128,Landcost2,2,FALSE),"Error"))) -> 0 | S128: 0 | U128: =IFERROR(('General Input Sheet'!$G$38/(VLOOKUP('Existing Trunk Assets - Water'!T128,Histindex,3,FALSE))),1) -> 1 | V128: 59631 | W128: ='[1]Existing Trunk Assets'!R126 -> y | X128: ='[1]Existing Trunk Assets'!S126 -> 0 | Y128: ='[1]Existing Trunk Assets'!T126 -> 0 | Z128: ='[1]Existing Trunk Assets'!U126 -> 0 | AA128: ='[1]Existing Trunk Assets'!V126 -> 0 | AB128: ='[1]Existing Trunk Assets'!W126 -> 0 | BB128: 52900 | CF128: 52900 | CH128: 59631
D129: ='[1]Existing Trunk Assets'!D127 -> Passive | E129: ='[1]Existing Trunk Assets'!E127 -> Water Mains | F129: ='[1]Existing Trunk Assets'!F127 -> 0 | G129: ='[1]Existing Trunk Assets'!G127 -> Watermain - 7 m of 300dia. Asset No - 10420 | K129: 0 | L129: ='[1]Existing Trunk Assets'!M127 -> 3997 | N129: =IF(M129="",1,VLOOKUP(M129,'Unit Rates - Water'!$H$12:$I$23,2,FALSE)) -> 1 | O129: 3997 | R129: =IF(P129="",'Unit Rates - Land'!landcst,IF($E$8="Landuse",VLOOKUP(P129,LAndcost3,2,FALSE),IF($E$8="Location",VLOOKUP(P129,Landcost2,2,FALSE),"Error"))) -> 0 | S129: 0 | U129: =IFERROR(('General Input Sheet'!$G$38/(VLOOKUP('Existing Trunk Assets - Water'!T129,Histindex,3,FALSE))),1) -> 1 | V129: 3997 | W129: ='[1]Existing Trunk Assets'!R127 -> y | X129: ='[1]Existing Trunk Assets'!S127 -> 0 | Y129: ='[1]Existing Trunk Assets'!T127 -> 0 | Z129: ='[1]Existing Trunk Assets'!U127 -> 0 | AA129: ='[1]Existing Trunk Assets'!V127 -> 0 | AB129: ='[1]Existing Trunk Assets'!W127 -> 0 | BB129: 52900 | CF129: 52900 | CH129: 3997
D130: ='[1]Existing Trunk Assets'!D128 -> Passive | E130: ='[1]Existing Trunk Assets'!E128 -> Water Mains | F130: ='[1]Existing Trunk Assets'!F128 -> 0 | G130: ='[1]Existing Trunk Assets'!G128 -> Watermain - 4 m of 375dia. Asset No - 10445 | K130: 0 | L130: ='[1]Existing Trunk Assets'!M128 -> 2884 | N130: =IF(M130="",1,VLOOKUP(M130,'Unit Rates - Water'!$H$12:$I$23,2,FALSE)) -> 1 | O130: 2884 | R130: =IF(P130="",'Unit Rates - Land'!landcst,IF($E$8="Landuse",VLOOKUP(P130,LAndcost3,2,FALSE),IF($E$8="Location",VLOOKUP(P130,Landcost2,2,FALSE),"Error"))) -> 0 | S130: 0 | U130: =IFERROR(('General Input Sheet'!$G$38/(VLOOKUP('Existing Trunk Assets - Water'!T130,Histindex,3,FALSE))),1) -> 1 | V130: 2884 | W130: ='[1]Existing Trunk Assets'!R128 -> y | X130: ='[1]Existing Trunk Assets'!S128 -> 0 | Y130: ='[1]Existing Trunk Assets'!T128 -> 0 | Z130: ='[1]Existing Trunk Assets'!U128 -> 0 | AA130: ='[1]Existing Trunk Assets'!V128 -> 0 | AB130: ='[1]Existing Trunk Assets'!W128 -> 0 | BB130: 52900 | CF130: 52900 | CH130: 2884
D131: ='[1]Existing Trunk Assets'!D129 -> Passive | E131: ='[1]Existing Trunk Assets'!E129 -> Water Mains | F131: ='[1]Existing Trunk Assets'!F129 -> 0 | G131: ='[1]Existing Trunk Assets'!G129 -> Watermain - 60 m of 200dia. Asset No - 1050 | K131: 0 | L131: ='[1]Existing Trunk Assets'!M129 -> 25740 | N131: =IF(M131="",1,VLOOKUP(M131,'Unit Rates - Water'!$H$12:$I$23,2,FALSE)) -> 1 | O131: 25740 | R131: =IF(P131="",'Unit Rates - Land'!landcst,IF($E$8="Landuse",VLOOKUP(P131,LAndcost3,2,FALSE),IF($E$8="Location",VLOOKUP(P131,Landcost2,2,FALSE),"Error"))) -> 0 | S131: 0 | U131: =IFERROR(('General Input Sheet'!$G$38/(VLOOKUP('Existing Trunk Assets - Water'!T131,Histindex,3,FALSE))),1) -> 1 | V131: 25740 | W131: ='[1]Existing Trunk Assets'!R129 -> y | X131: ='[1]Existing Trunk Assets'!S129 -> 0 | Y131: ='[1]Existing Trunk Assets'!T129 -> 0 | Z131: ='[1]Existing Trunk Assets'!U129 -> 0 | AA131: ='[1]Existing Trunk Assets'!V129 -> 0 | AB131: ='[1]Existing Trunk Assets'!W129 -> 0 | BB131: 52900 | CF131: 52900 | CH131: 25740
D132: ='[1]Existing Trunk Assets'!D130 -> Passive | E132: ='[1]Existing Trunk Assets'!E130 -> Water Mains | F132: ='[1]Existing Trunk Assets'!F130 -> 0 | G132: ='[1]Existing Trunk Assets'!G130 -> Watermain - 79 m of 200dia. Asset No - 1052 | K132: 0 | L132: ='[1]Existing Trunk Assets'!M130 -> 33891 | N132: =IF(M132="",1,VLOOKUP(M132,'Unit Rates - Water'!$H$12:$I$23,2,FALSE)) -> 1 | O132: 33891 | R132: =IF(P132="",'Unit Rates - Land'!landcst,IF($E$8="Landuse",VLOOKUP(P132,LAndcost3,2,FALSE),IF($E$8="Location",VLOOKUP(P132,Landcost2,2,FALSE),"Error"))) -> 0 | S132: 0 | U132: =IFERROR(('General Input Sheet'!$G$38/(VLOOKUP('Existing Trunk Assets - Water'!T132,Histindex,3,FALSE))),1) -> 1 | V132: 33891 | W132: ='[1]Existing Trunk Assets'!R130 -> y | X132: ='[1]Existing Trunk Assets'!S130 -> 0 | Y132: ='[1]Existing Trunk Assets'!T130 -> 0 | Z132: ='[1]Existing Trunk Assets'!U130 -> 0 | AA132: ='[1]Existing Trunk Assets'!V130 -> 0 | AB132: ='[1]Existing Trunk Assets'!W130 -> 0 | BB132: 52900 | CF132: 52900 | CH132: 33891
D133: ='[1]Existing Trunk Assets'!D131 -> Passive | E133: ='[1]Existing Trunk Assets'!E131 -> Water Mains | F133: ='[1]Existing Trunk Assets'!F131 -> 0 | G133: ='[1]Existing Trunk Assets'!G131 -> Watermain - 221 m of 200dia. Asset No - 1053 | K133: 0 | L133: ='[1]Existing Trunk Assets'!M131 -> 94809 | N133: =IF(M133="",1,VLOOKUP(M133,'Unit Rates - Water'!$H$12:$I$23,2,FALSE)) -> 1 | O133: 94809 | R133: =IF(P133="",'Unit Rates - Land'!landcst,IF($E$8="Landuse",VLOOKUP(P133,LAndcost3,2,FALSE),IF($E$8="Location",VLOOKUP(P133,Landcost2,2,FALSE),"Error"))) -> 0 | S133: 0 | U133: =IFERROR(('General Input Sheet'!$G$38/(VLOOKUP('Existing Trunk Assets - Water'!T133,Histindex,3,FALSE))),1) -> 1 | V133: 94809 | W133: ='[1]Existing Trunk Assets'!R131 -> y | X133: ='[1]Existing Trunk Assets'!S131 -> 0 | Y133: ='[1]Existing Trunk Assets'!T131 -> 0 | Z133: ='[1]Existing Trunk Assets'!U131 -> 0 | AA133: ='[1]Existing Trunk Assets'!V131 -> 0 | AB133: ='[1]Existing Trunk Assets'!W131 -> 0 | BB133: 52900 | CF133: 52900 | CH133: 94809
D134: ='[1]Existing Trunk Assets'!D132 -> Passive | E134: ='[1]Existing Trunk Assets'!E132 -> Water Mains | F134: ='[1]Existing Trunk Assets'!F132 -> 0 | G134: ='[1]Existing Trunk Assets'!G132 -> Watermain - 196 m of 300dia. Asset No - 10563 | K134: 0 | L134: ='[1]Existing Trunk Assets'!M132 -> 111916 | N134: =IF(M134="",1,VLOOKUP(M134,'Unit Rates - Water'!$H$12:$I$23,2,FALSE)) -> 1 | O134: 111916 | R134: =IF(P134="",'Unit Rates - Land'!landcst,IF($E$8="Landuse",VLOOKUP(P134,LAndcost3,2,FALSE),IF($E$8="Location",VLOOKUP(P134,Landcost2,2,FALSE),"Error"))) -> 0 | S134: 0 | U134: =IFERROR(('General Input Sheet'!$G$38/(VLOOKUP('Existing Trunk Assets - Water'!T134,Histindex,3,FALSE))),1) -> 1 | V134: 111916 | W134: ='[1]Existing Trunk Assets'!R132 -> y | X134: ='[1]Existing Trunk Assets'!S132 -> 0 | Y134: ='[1]Existing Trunk Assets'!T132 -> 0 | Z134: ='[1]Existing Trunk Assets'!U132 -> 0 | AA134: ='[1]Existing Trunk Assets'!V132 -> 0 | AB134: ='[1]Existing Trunk Assets'!W132 -> 0 | BB134: 52900 | CF134: 52900 | CH134: 111916
D135: ='[1]Existing Trunk Assets'!D133 -> Passive | E135: ='[1]Existing Trunk Assets'!E133 -> Water Mains | F135: ='[1]Existing Trunk Assets'!F133 -> 0 | G135: ='[1]Existing Trunk Assets'!G133 -> Watermain - 16 m of 300dia. Asset No - 10658 | K135: 0 | L135: ='[1]Existing Trunk Assets'!M133 -> 9136 | N135: =IF(M135="",1,VLOOKUP(M135,'Unit Rates - Water'!$H$12:$I$23,2,FALSE)) -> 1 | O135: 9136 | R135: =IF(P135="",'Unit Rates - Land'!landcst,IF($E$8="Landuse",VLOOKUP(P135,LAndcost3,2,FALSE),IF($E$8="Location",VLOOKUP(P135,Landcost2,2,FALSE),"Error"))) -> 0 | S135: 0 | U135: =IFERROR(('General Input Sheet'!$G$38/(VLOOKUP('Existing Trunk Assets - Water'!T135,Histindex,3,FALSE))),1) -> 1 | V135: 9136 | W135: ='[1]Existing Trunk Assets'!R133 -> y | X135: ='[1]Existing Trunk Assets'!S133 -> 0 | Y135: ='[1]Existing Trunk Assets'!T133 -> 0 | Z135: ='[1]Existing Trunk Assets'!U133 -> 0 | AA135: ='[1]Existing Trunk Assets'!V133 -> 0 | AB135: ='[1]Existing Trunk Assets'!W133 -> 0 | BB135: 52900 | CF135: 52900 | CH135: 9136
D136: ='[1]Existing Trunk Assets'!D134 -> Passive | E136: ='[1]Existing Trunk Assets'!E134 -> Water Mains | F136: ='[1]Existing Trunk Assets'!F134 -> 0 | G136: ='[1]Existing Trunk Assets'!G134 -> Watermain - 108 m of 200dia. Asset No - 1067 | K136: 0 | L136: ='[1]Existing Trunk Assets'!M134 -> 46332 | N136: =IF(M136="",1,VLOOKUP(M136,'Unit Rates - Water'!$H$12:$I$23,2,FALSE)) -> 1 | O136: 46332 | R136: =IF(P136="",'Unit Rates - Land'!landcst,IF($E$8="Landuse",VLOOKUP(P136,LAndcost3,2,FALSE),IF($E$8="Location",VLOOKUP(P136,Landcost2,2,FALSE),"Error"))) -> 0 | S136: 0 | U136: =IFERROR(('General Input Sheet'!$G$38/(VLOOKUP('Existing Trunk Assets - Water'!T136,Histindex,3,FALSE))),1) -> 1 | V136: 46332 | W136: ='[1]Existing Trunk Assets'!R134 -> y | X136: ='[1]Existing Trunk Assets'!S134 -> 0 | Y136: ='[1]Existing Trunk Assets'!T134 -> 0 | Z136: ='[1]Existing Trunk Assets'!U134 -> 0 | AA136: ='[1]Existing Trunk Assets'!V134 -> 0 | AB136: ='[1]Existing Trunk Assets'!W134 -> 0 | BB136: 52900 | CF136: 52900 | CH136: 46332
D137: ='[1]Existing Trunk Assets'!D135 -> Passive | E137: ='[1]Existing Trunk Assets'!E135 -> Water Mains | F137: ='[1]Existing Trunk Assets'!F135 -> 0 | G137: ='[1]Existing Trunk Assets'!G135 -> Watermain - 120 m of 200dia. Asset No - 1068 | K137: 0 | L137: ='[1]Existing Trunk Assets'!M135 -> 51480 | N137: =IF(M137="",1,VLOOKUP(M137,'Unit Rates - Water'!$H$12:$I$23,2,FALSE)) -> 1 | O137: 51480 | R137: =IF(P137="",'Unit Rates - Land'!landcst,IF($E$8="Landuse",VLOOKUP(P137,LAndcost3,2,FALSE),IF($E$8="Location",VLOOKUP(P137,Landcost2,2,FALSE),"Error"))) -> 0 | S137: 0 | U137: =IFERROR(('General Input Sheet'!$G$38/(VLOOKUP('Existing Trunk Assets - Water'!T137,Histindex,3,FALSE))),1) -> 1 | V137: 51480 | W137: ='[1]Existing Trunk Assets'!R135 -> y | X137: ='[1]Existing Trunk Assets'!S135 -> 0 | Y137: ='[1]Existing Trunk Assets'!T135 -> 0 | Z137: ='[1]Existing Trunk Assets'!U135 -> 0 | AA137: ='[1]Existing Trunk Assets'!V135 -> 0 | AB137: ='[1]Existing Trunk Assets'!W135 -> 0 | BB137: 52900 | CF137: 52900 | CH137: 51480
D138: ='[1]Existing Trunk Assets'!D136 -> Passive | E138: ='[1]Existing Trunk Assets'!E136 -> Water Mains | F138: ='[1]Existing Trunk Assets'!F136 -> 0 | G138: ='[1]Existing Trunk Assets'!G136 -> Watermain - 109 m of 200dia. Asset No - 1069 | K138: 0 | L138: ='[1]Existing Trunk Assets'!M136 -> 46761 | N138: =IF(M138="",1,VLOOKUP(M138,'Unit Rates - Water'!$H$12:$I$23,2,FALSE)) -> 1 | O138: 46761 | R138: =IF(P138="",'Unit Rates - Land'!landcst,IF($E$8="Landuse",VLOOKUP(P138,LAndcost3,2,FALSE),IF($E$8="Location",VLOOKUP(P138,Landcost2,2,FALSE),"Error"))) -> 0 | S138: 0 | U138: =IFERROR(('General Input Sheet'!$G$38/(VLOOKUP('Existing Trunk Assets - Water'!T138,Histindex,3,FALSE))),1) -> 1 | V138: 46761 | W138: ='[1]Existing Trunk Assets'!R136 -> y | X138: ='[1]Existing Trunk Assets'!S136 -> 0 | Y138: ='[1]Existing Trunk Assets'!T136 -> 0 | Z138: ='[1]Existing Trunk Assets'!U136 -> 0 | AA138: ='[1]Existing Trunk Assets'!V136 -> 0 | AB138: ='[1]Existing Trunk Assets'!W136 -> 0 | BB138: 52900 | CF138: 52900 | CH138: 46761 | CX138: =IF(BR138="","",(BR138/$CF138)*$V138) -> 
D139: ='[1]Existing Trunk Assets'!D137 -> Passive | E139: ='[1]Existing Trunk Assets'!E137 -> Water Mains | F139: ='[1]Existing Trunk Assets'!F137 -> 0 | G139: ='[1]Existing Trunk Assets'!G137 -> Watermain - 155 m of 200dia. Asset No - 1072 | K139: 0 | L139: ='[1]Existing Trunk Assets'!M137 -> 66495 | N139: =IF(M139="",1,VLOOKUP(M139,'Unit Rates - Water'!$H$12:$I$23,2,FALSE)) -> 1 | O139: 66495 | R139: =IF(P139="",'Unit Rates - Land'!landcst,IF($E$8="Landuse",VLOOKUP(P139,LAndcost3,2,FALSE),IF($E$8="Location",VLOOKUP(P139,Landcost2,2,FALSE),"Error"))) -> 0 | S139: 0 | U139: =IFERROR(('General Input Sheet'!$G$38/(VLOOKUP('Existing Trunk Assets - Water'!T139,Histindex,3,FALSE))),1) -> 1 | V139: 66495 | W139: ='[1]Existing Trunk Assets'!R137 -> y | X139: ='[1]Existing Trunk Assets'!S137 -> 0 | Y139: ='[1]Existing Trunk Assets'!T137 -> 0 | Z139: ='[1]Existing Trunk Assets'!U137 -> 0 | AA139: ='[1]Existing Trunk Assets'!V137 -> 0 | AB139: ='[1]Existing Trunk Assets'!W137 -> 0 | BB139: 52900 | CF139: 52900 | CH139: 66495
D140: ='[1]Existing Trunk Assets'!D138 -> Passive | E140: ='[1]Existing Trunk Assets'!E138 -> Water Mains | F140: ='[1]Existing Trunk Assets'!F138 -> 0 | G140: ='[1]Existing Trunk Assets'!G138 -> Watermain - 98 m of 200dia. Asset No - 1077 | K140: 0 | L140: ='[1]Existing Trunk Assets'!M138 -> 42042 | N140: =IF(M140="",1,VLOOKUP(M140,'Unit Rates - Water'!$H$12:$I$23,2,FALSE)) -> 1 | O140: 42042 | R140: =IF(P140="",'Unit Rates - Land'!landcst,IF($E$8="Landuse",VLOOKUP(P140,LAndcost3,2,FALSE),IF($E$8="Location",VLOOKUP(P140,Landcost2,2,FALSE),"Error"))) -> 0 | S140: 0 | U140: =IFERROR(('General Input Sheet'!$G$38/(VLOOKUP('Existing Trunk Assets - Water'!T140,Histindex,3,FALSE))),1) -> 1 | V140: 42042 | W140: ='[1]Existing Trunk Assets'!R138 -> y | X140: ='[1]Existing Trunk Assets'!S138 -> 0 | Y140: ='[1]Existing Trunk Assets'!T138 -> 0 | Z140: ='[1]Existing Trunk Assets'!U138 -> 0 | AA140: ='[1]Existing Trunk Assets'!V138 -> 0 | AB140: ='[1]Existing Trunk Assets'!W138 -> 0 | BB140: 52900 | CF140: 52900 | CH140: 42042
D141: ='[1]Existing Trunk Assets'!D139 -> Passive | E141: ='[1]Existing Trunk Assets'!E139 -> Water Mains | F141: ='[1]Existing Trunk Assets'!F139 -> 0 | G141: ='[1]Existing Trunk Assets'!G139 -> Watermain - 26 m of 200dia. Asset No - 1078 | K141: 0 | L141: ='[1]Existing Trunk Assets'!M139 -> 11154 | N141: =IF(M141="",1,VLOOKUP(M141,'Unit Rates - Water'!$H$12:$I$23,2,FALSE)) -> 1 | O141: 11154 | R141: =IF(P141="",'Unit Rates - Land'!landcst,IF($E$8="Landuse",VLOOKUP(P141,LAndcost3,2,FALSE),IF($E$8="Location",VLOOKUP(P141,Landcost2,2,FALSE),"Error"))) -> 0 | S141: 0 | U141: =IFERROR(('General Input Sheet'!$G$38/(VLOOKUP('Existing Trunk Assets - Water'!T141,Histindex,3,FALSE))),1) -> 1 | V141: 11154 | W141: ='[1]Existing Trunk Assets'!R139 -> y | X141: ='[1]Existing Trunk Assets'!S139 -> 0 | Y141: ='[1]Existing Trunk Assets'!T139 -> 0 | Z141: ='[1]Existing Trunk Assets'!U139 -> 0 | AA141: ='[1]Existing Trunk Assets'!V139 -> 0 | AB141: ='[1]Existing Trunk Assets'!W139 -> 0 | BB141: 52900 | CF141: 52900 | CH141: 11154
D142: ='[1]Existing Trunk Assets'!D140 -> Passive | E142: ='[1]Existing Trunk Assets'!E140 -> Water Mains | F142: ='[1]Existing Trunk Assets'!F140 -> 0 | G142: ='[1]Existing Trunk Assets'!G140 -> Watermain - 22 m of 200dia. Asset No - 1080 | K142: 0 | L142: ='[1]Existing Trunk Assets'!M140 -> 9438 | N142: =IF(M142="",1,VLOOKUP(M142,'Unit Rates - Water'!$H$12:$I$23,2,FALSE)) -> 1 | O142: 9438 | R142: =IF(P142="",'Unit Rates - Land'!landcst,IF($E$8="Landuse",VLOOKUP(P142,LAndcost3,2,FALSE),IF($E$8="Location",VLOOKUP(P142,Landcost2,2,FALSE),"Error"))) -> 0 | S142: 0 | U142: =IFERROR(('General Input Sheet'!$G$38/(VLOOKUP('Existing Trunk Assets - Water'!T142,Histindex,3,FALSE))),1) -> 1 | V142: 9438 | W142: ='[1]Existing Trunk Assets'!R140 -> y | X142: ='[1]Existing Trunk Assets'!S140 -> 0 | Y142: ='[1]Existing Trunk Assets'!T140 -> 0 | Z142: ='[1]Existing Trunk Assets'!U140 -> 0 | AA142: ='[1]Existing Trunk Assets'!V140 -> 0 | AB142: ='[1]Existing Trunk Assets'!W140 -> 0 | BB142: 52900 | CF142: 52900 | CH142: 9438
D143: ='[1]Existing Trunk Assets'!D141 -> Passive | E143: ='[1]Existing Trunk Assets'!E141 -> Water Mains | F143: ='[1]Existing Trunk Assets'!F141 -> 0 | G143: ='[1]Existing Trunk Assets'!G141 -> Watermain - 27 m of 200dia. Asset No - 1081 | K143: 0 | L143: ='[1]Existing Trunk Assets'!M141 -> 11583 | N143: =IF(M143="",1,VLOOKUP(M143,'Unit Rates - Water'!$H$12:$I$23,2,FALSE)) -> 1 | O143: 11583 | R143: =IF(P143="",'Unit Rates - Land'!landcst,IF($E$8="Landuse",VLOOKUP(P143,LAndcost3,2,FALSE),IF($E$8="Location",VLOOKUP(P143,Landcost2,2,FALSE),"Error"))) -> 0 | S143: 0 | U143: =IFERROR(('General Input Sheet'!$G$38/(VLOOKUP('Existing Trunk Assets - Water'!T143,Histindex,3,FALSE))),1) -> 1 | V143: 11583 | W143: ='[1]Existing Trunk Assets'!R141 -> y | X143: ='[1]Existing Trunk Assets'!S141 -> 0 | Y143: ='[1]Existing Trunk Assets'!T141 -> 0 | Z143: ='[1]Existing Trunk Assets'!U141 -> 0 | AA143: ='[1]Existing Trunk Assets'!V141 -> 0 | AB143: ='[1]Existing Trunk Assets'!W141 -> 0 | BB143: 52900 | CF143: 52900 | CH143: 11583
D144: ='[1]Existing Trunk Assets'!D142 -> Passive | E144: ='[1]Existing Trunk Assets'!E142 -> Water Mains | F144: ='[1]Existing Trunk Assets'!F142 -> 0 | G144: ='[1]Existing Trunk Assets'!G142 -> Watermain - 41 m of 200dia. Asset No - 1089 | K144: =IF(H144=TYPE1,VLOOKUP(J144,WaterUnitrates1,2,FALSE),IF(H144=TYPE2,VLOOKUP(J144,Unitrates2,2,FALSE),0)) -> 0 | L144: ='[1]Existing Trunk Assets'!M142 -> 17589 | N144: =IF(M144="",1,VLOOKUP(M144,'Unit Rates - Water'!$H$12:$I$23,2,FALSE)) -> 1 | O144: =L144*N144 -> 17589 | R144: =IF(P144="",'Unit Rates - Land'!landcst,IF($E$8="Landuse",VLOOKUP(P144,LAndcost3,2,FALSE),IF($E$8="Location",VLOOKUP(P144,Landcost2,2,FALSE),"Error"))) -> 0 | S144: =IF(R144="",0,R144*10000*Q144) -> 0 | U144: =IFERROR(('General Input Sheet'!$G$38/(VLOOKUP('Existing Trunk Assets - Water'!T144,Histindex,3,FALSE))),1) -> 1 | V144: =IFERROR((O144+S144)*U144,0) -> 17589 | W144: ='[1]Existing Trunk Assets'!R142 -> y | X144: ='[1]Existing Trunk Assets'!S142 -> 0 | Y144: ='[1]Existing Trunk Assets'!T142 -> 0 | Z144: ='[1]Existing Trunk Assets'!U142 -> 0 | AA144: ='[1]Existing Trunk Assets'!V142 -> 0 | AB144: ='[1]Existing Trunk Assets'!W142 -> 0 | BB144: 52900 | CF144: 52900 | CH144: 17589
D145: ='[1]Existing Trunk Assets'!D143 -> Passive | E145: ='[1]Existing Trunk Assets'!E143 -> Water Mains | F145: ='[1]Existing Trunk Assets'!F143 -> 0 | G145: ='[1]Existing Trunk Assets'!G143 -> Watermain - 33 m of 250dia. Asset No - 1090 | K145: 0 | L145: ='[1]Existing Trunk Assets'!M143 -> 16137 | N145: =IF(M145="",1,VLOOKUP(M145,'Unit Rates - Water'!$H$12:$I$23,2,FALSE)) -> 1 | O145: 16137 | R145: =IF(P145="",'Unit Rates - Land'!landcst,IF($E$8="Landuse",VLOOKUP(P145,LAndcost3,2,FALSE),IF($E$8="Location",VLOOKUP(P145,Landcost2,2,FALSE),"Error"))) -> 0 | S145: 0 | U145: =IFERROR(('General Input Sheet'!$G$38/(VLOOKUP('Existing Trunk Assets - Water'!T145,Histindex,3,FALSE))),1) -> 1 | V145: 16137 | W145: ='[1]Existing Trunk Assets'!R143 -> y | X145: ='[1]Existing Trunk Assets'!S143 -> 0 | Y145: ='[1]Existing Trunk Assets'!T143 -> 0 | Z145: ='[1]Existing Trunk Assets'!U143 -> 0 | AA145: ='[1]Existing Trunk Assets'!V143 -> 0 | AB145: ='[1]Existing Trunk Assets'!W143 -> 0 | BB145: 52900 | CF145: 52900 | CH145: 16137
D146: ='[1]Existing Trunk Assets'!D144 -> Passive | E146: ='[1]Existing Trunk Assets'!E144 -> Water Mains | F146: ='[1]Existing Trunk Assets'!F144 -> 0 | G146: ='[1]Existing Trunk Assets'!G144 -> Watermain - 111 m of 450dia. Asset No - 1091 | K146: 0 | L146: ='[1]Existing Trunk Assets'!M144 -> 97014 | N146: =IF(M146="",1,VLOOKUP(M146,'Unit Rates - Water'!$H$12:$I$23,2,FALSE)) -> 1 | O146: 97014 | R146: =IF(P146="",'Unit Rates - Land'!landcst,IF($E$8="Landuse",VLOOKUP(P146,LAndcost3,2,FALSE),IF($E$8="Location",VLOOKUP(P146,Landcost2,2,FALSE),"Error"))) -> 0 | S146: 0 | U146: =IFERROR(('General Input Sheet'!$G$38/(VLOOKUP('Existing Trunk Assets - Water'!T146,Histindex,3,FALSE))),1) -> 1 | V146: 97014 | W146: ='[1]Existing Trunk Assets'!R144 -> y | X146: ='[1]Existing Trunk Assets'!S144 -> 0 | Y146: ='[1]Existing Trunk Assets'!T144 -> 0 | Z146: ='[1]Existing Trunk Assets'!U144 -> 0 | AA146: ='[1]Existing Trunk Assets'!V144 -> 0 | AB146: ='[1]Existing Trunk Assets'!W144 -> 0 | BB146: 52900 | CF146: =SUM(BB146:CE146) -> 52900 | CH146: 97014 | DL146: =IF(SUM(CH146:DK146)=V146,"","ERROR") -> 
D147: ='[1]Existing Trunk Assets'!D145 -> Passive | E147: ='[1]Existing Trunk Assets'!E145 -> Water Mains | F147: ='[1]Existing Trunk Assets'!F145 -> 0 | G147: ='[1]Existing Trunk Assets'!G145 -> Watermain - 60 m of 250dia. Asset No - 1093 | K147: 0 | L147: ='[1]Existing Trunk Assets'!M145 -> 29340 | N147: =IF(M147="",1,VLOOKUP(M147,'Unit Rates - Water'!$H$12:$I$23,2,FALSE)) -> 1 | O147: 29340 | R147: =IF(P147="",'Unit Rates - Land'!landcst,IF($E$8="Landuse",VLOOKUP(P147,LAndcost3,2,FALSE),IF($E$8="Location",VLOOKUP(P147,Landcost2,2,FALSE),"Error"))) -> 0 | S147: 0 | U147: =IFERROR(('General Input Sheet'!$G$38/(VLOOKUP('Existing Trunk Assets - Water'!T147,Histindex,3,FALSE))),1) -> 1 | V147: 29340 | W147: ='[1]Existing Trunk Assets'!R145 -> y | X147: ='[1]Existing Trunk Assets'!S145 -> 0 | Y147: ='[1]Existing Trunk Assets'!T145 -> 0 | Z147: ='[1]Existing Trunk Assets'!U145 -> 0 | AA147: ='[1]Existing Trunk Assets'!V145 -> 0 | AB147: ='[1]Existing Trunk Assets'!W145 -> 0 | BB147: 52900 | CF147: 52900 | CH147: 29340
D148: ='[1]Existing Trunk Assets'!D146 -> Passive | E148: ='[1]Existing Trunk Assets'!E146 -> Water Mains | F148: ='[1]Existing Trunk Assets'!F146 -> 0 | G148: ='[1]Existing Trunk Assets'!G146 -> Watermain - 381 m of 200dia. Asset No - 1094 | K148: 0 | L148: ='[1]Existing Trunk Assets'!M146 -> 163449 | N148: =IF(M148="",1,VLOOKUP(M148,'Unit Rates - Water'!$H$12:$I$23,2,FALSE)) -> 1 | O148: 163449 | R148: =IF(P148="",'Unit Rates - Land'!landcst,IF($E$8="Landuse",VLOOKUP(P148,LAndcost3,2,FALSE),IF($E$8="Location",VLOOKUP(P148,Landcost2,2,FALSE),"Error"))) -> 0 | S148: 0 | U148: =IFERROR(('General Input Sheet'!$G$38/(VLOOKUP('Existing Trunk Assets - Water'!T148,Histindex,3,FALSE))),1) -> 1 | V148: 163449 | W148: ='[1]Existing Trunk Assets'!R146 -> y | X148: ='[1]Existing Trunk Assets'!S146 -> 0 | Y148: ='[1]Existing Trunk Assets'!T146 -> 0 | Z148: ='[1]Existing Trunk Assets'!U146 -> 0 | AA148: ='[1]Existing Trunk Assets'!V146 -> 0 | AB148: ='[1]Existing Trunk Assets'!W146 -> 0 | BB148: =IF(W148="y",BB$14,IF(AND(W148>0,W148<=1),W148*BB$14,"")) -> 52900 | BC148: =IF(X148="y",BC$14,IF(AND(X148>0,X148<=1),X148*BC$14,"")) ->  | BD148: =IF(Y148="y",BD$14,IF(AND(Y148>0,Y148<=1),Y148*BD$14,"")) ->  | BE148: =IF(Z148="y",BE$14,IF(AND(Z148>0,Z148<=1),Z148*BE$14,"")) ->  | BF148: =IF(AA148="y",BF$14,IF(AND(AA148>0,AA148<=1),AA148*BF$14,"")) ->  | BG148: =IF(AB148="y",BG$14,IF(AND(AB148>0,AB148<=1),AB148*BG$14,"")) ->  | BH148: =IF(AC148="y",BH$14,IF(AND(AC148>0,AC148<=1),AC148*BH$14,"")) ->  | BI148: =IF(AD148="y",BI$14,IF(AND(AD148>0,AD148<=1),AD148*BI$14,"")) ->  | BJ148: =IF(AE148="y",BJ$14,IF(AND(AE148>0,AE148<=1),AE148*BJ$14,"")) ->  | BK148: =IF(AF148="y",BK$14,IF(AND(AF148>0,AF148<=1),AF148*BK$14,"")) ->  | BL148: =IF(AG148="y",BL$14,IF(AND(AG148>0,AG148<=1),AG148*BL$14,"")) ->  | BM148: =IF(AH148="y",BM$14,IF(AND(AH148>0,AH148<=1),AH148*BM$14,"")) ->  | BN148: =IF(AI148="y",BN$14,IF(AND(AI148>0,AI148<=1),AI148*BN$14,"")) ->  | BO148: =IF(AJ148="y",BO$14,IF(AND(AJ148>0,AJ148<=1),AJ148*BO$14,"")) ->  | BP148: =IF(AK148="y",BP$14,IF(AND(AK148>0,AK148<=1),AK148*BP$14,"")) ->  | BQ148: =IF(AL148="y",BQ$14,IF(AND(AL148>0,AL148<=1),AL148*BQ$14,"")) ->  | BR148: =IF(AM148="y",BR$14,IF(AND(AM148>0,AM148<=1),AM148*BR$14,"")) ->  | BS148: =IF(AN148="y",BS$14,IF(AND(AN148>0,AN148<=1),AN148*BS$14,"")) ->  | BT148: =IF(AO148="y",BT$14,IF(AND(AO148>0,AO148<=1),AO148*BT$14,"")) ->  | BU148: =IF(AP148="y",BU$14,IF(AND(AP148>0,AP148<=1),AP148*BU$14,"")) ->  | BV148: =IF(AQ148="y",BV$14,IF(AND(AQ148>0,AQ148<=1),AQ148*BV$14,"")) ->  | BW148: =IF(AR148="y",BW$14,IF(AND(AR148>0,AR148<=1),AR148*BW$14,"")) ->  | BX148: =IF(AS148="y",BX$14,IF(AND(AS148>0,AS148<=1),AS148*BX$14,"")) ->  | BY148: =IF(AT148="y",BY$14,IF(AND(AT148>0,AT148<=1),AT148*BY$14,"")) ->  | BZ148: =IF(AU148="y",BZ$14,IF(AND(AU148>0,AU148<=1),AU148*BZ$14,"")) ->  | CA148: =IF(AV148="y",CA$14,IF(AND(AV148>0,AV148<=1),AV148*CA$14,"")) ->  | CB148: =IF(AW148="y",CB$14,IF(AND(AW148>0,AW148<=1),AW148*CB$14,"")) ->  | CC148: =IF(AX148="y",CC$14,IF(AND(AX148>0,AX148<=1),AX148*CC$14,"")) ->  | CD148: =IF(AY148="y",CD$14,IF(AND(AY148>0,AY148<=1),AY148*CD$14,"")) ->  | CE148: =IF(AZ148="y",CE$14,IF(AND(AZ148>0,AZ148<=1),AZ148*CE$14,"")) ->  | CF148: 52900 | CH148: 163449
D149: ='[1]Existing Trunk Assets'!D147 -> Passive | E149: ='[1]Existing Trunk Assets'!E147 -> Water Mains | F149: ='[1]Existing Trunk Assets'!F147 -> 0 | G149: ='[1]Existing Trunk Assets'!G147 -> Watermain - 404 m of 600dia. Asset No - 11 | K149: 0 | L149: ='[1]Existing Trunk Assets'!M147 -> 506212 | N149: =IF(M149="",1,VLOOKUP(M149,'Unit Rates - Water'!$H$12:$I$23,2,FALSE)) -> 1 | O149: 506212 | R149: =IF(P149="",'Unit Rates - Land'!landcst,IF($E$8="Landuse",VLOOKUP(P149,LAndcost3,2,FALSE),IF($E$8="Location",VLOOKUP(P149,Landcost2,2,FALSE),"Error"))) -> 0 | S149: 0 | U149: =IFERROR(('General Input Sheet'!$G$38/(VLOOKUP('Existing Trunk Assets - Water'!T149,Histindex,3,FALSE))),1) -> 1 | V149: 506212 | W149: ='[1]Existing Trunk Assets'!R147 -> y | X149: ='[1]Existing Trunk Assets'!S147 -> 0 | Y149: ='[1]Existing Trunk Assets'!T147 -> 0 | Z149: ='[1]Existing Trunk Assets'!U147 -> 0 | AA149: ='[1]Existing Trunk Assets'!V147 -> 0 | AB149: ='[1]Existing Trunk Assets'!W147 -> 0 | BB149: 52900 | CF149: 52900 | CH149: 506212
D150: ='[1]Existing Trunk Assets'!D148 -> Passive | E150: ='[1]Existing Trunk Assets'!E148 -> Water Mains | F150: ='[1]Existing Trunk Assets'!F148 -> 0 | G150: ='[1]Existing Trunk Assets'!G148 -> Watermain - 1560 m of 300dia. Asset No - 1108 | K150: 0 | L150: ='[1]Existing Trunk Assets'!M148 -> 890760 | N150: =IF(M150="",1,VLOOKUP(M150,'Unit Rates - Water'!$H$12:$I$23,2,FALSE)) -> 1 | O150: 890760 | R150: =IF(P150="",'Unit Rates - Land'!landcst,IF($E$8="Landuse",VLOOKUP(P150,LAndcost3,2,FALSE),IF($E$8="Location",VLOOKUP(P150,Landcost2,2,FALSE),"Error"))) -> 0 | S150: 0 | U150: =IFERROR(('General Input Sheet'!$G$38/(VLOOKUP('Existing Trunk Assets - Water'!T150,Histindex,3,FALSE))),1) -> 1 | V150: 890760 | W150: ='[1]Existing Trunk Assets'!R148 -> y | X150: ='[1]Existing Trunk Assets'!S148 -> 0 | Y150: ='[1]Existing Trunk Assets'!T148 -> 0 | Z150: ='[1]Existing Trunk Assets'!U148 -> 0 | AA150: ='[1]Existing Trunk Assets'!V148 -> 0 | AB150: ='[1]Existing Trunk Assets'!W148 -> 0 | BB150: 52900 | CF150: 52900 | CH150: 890760 | CU150: =IF(BO150="","",(BO150/$CF150)*$V150) -> 
D151: ='[1]Existing Trunk Assets'!D149 -> Passive | E151: ='[1]Existing Trunk Assets'!E149 -> Water Mains | F151: ='[1]Existing Trunk Assets'!F149 -> 0 | G151: ='[1]Existing Trunk Assets'!G149 -> Watermain - 799 m of 300dia. Asset No - 11101 | K151: 0 | L151: ='[1]Existing Trunk Assets'!M149 -> 456229 | N151: =IF(M151="",1,VLOOKUP(M151,'Unit Rates - Water'!$H$12:$I$23,2,FALSE)) -> 1 | O151: 456229 | R151: =IF(P151="",'Unit Rates - Land'!landcst,IF($E$8="Landuse",VLOOKUP(P151,LAndcost3,2,FALSE),IF($E$8="Location",VLOOKUP(P151,Landcost2,2,FALSE),"Error"))) -> 0 | S151: 0 | U151: =IFERROR(('General Input Sheet'!$G$38/(VLOOKUP('Existing Trunk Assets - Water'!T151,Histindex,3,FALSE))),1) -> 1 | V151: 456229 | W151: ='[1]Existing Trunk Assets'!R149 -> y | X151: ='[1]Existing Trunk Assets'!S149 -> 0 | Y151: ='[1]Existing Trunk Assets'!T149 -> 0 | Z151: ='[1]Existing Trunk Assets'!U149 -> 0 | AA151: ='[1]Existing Trunk Assets'!V149 -> 0 | AB151: ='[1]Existing Trunk Assets'!W149 -> 0 | BB151: 52900 | CF151: 52900 | CH151: =IF(BB151="","",(BB151/$CF151)*$V151) -> 456229
D152: ='[1]Existing Trunk Assets'!D150 -> Passive | E152: ='[1]Existing Trunk Assets'!E150 -> Water Mains | F152: ='[1]Existing Trunk Assets'!F150 -> 0 | G152: ='[1]Existing Trunk Assets'!G150 -> Watermain - 47 m of 300dia. Asset No - 11108 | K152: 0 | L152: ='[1]Existing Trunk Assets'!M150 -> 26837 | N152: =IF(M152="",1,VLOOKUP(M152,'Unit Rates - Water'!$H$12:$I$23,2,FALSE)) -> 1 | O152: 26837 | R152: =IF(P152="",'Unit Rates - Land'!landcst,IF($E$8="Landuse",VLOOKUP(P152,LAndcost3,2,FALSE),IF($E$8="Location",VLOOKUP(P152,Landcost2,2,FALSE),"Error"))) -> 0 | S152: 0 | U152: =IFERROR(('General Input Sheet'!$G$38/(VLOOKUP('Existing Trunk Assets - Water'!T152,Histindex,3,FALSE))),1) -> 1 | V152: 26837 | W152: ='[1]Existing Trunk Assets'!R150 -> y | X152: ='[1]Existing Trunk Assets'!S150 -> 0 | Y152: ='[1]Existing Trunk Assets'!T150 -> 0 | Z152: ='[1]Existing Trunk Assets'!U150 -> 0 | AA152: ='[1]Existing Trunk Assets'!V150 -> 0 | AB152: ='[1]Existing Trunk Assets'!W150 -> 0 | BB152: 52900 | CF152: 52900 | CH152: 26837
D153: ='[1]Existing Trunk Assets'!D151 -> Passive | E153: ='[1]Existing Trunk Assets'!E151 -> Water Mains | F153: ='[1]Existing Trunk Assets'!F151 -> 0 | G153: ='[1]Existing Trunk Assets'!G151 -> Watermain - 90 m of 600dia. Asset No - 11127 | K153: 0 | L153: ='[1]Existing Trunk Assets'!M151 -> 112770 | N153: =IF(M153="",1,VLOOKUP(M153,'Unit Rates - Water'!$H$12:$I$23,2,FALSE)) -> 1 | O153: 112770 | R153: =IF(P153="",'Unit Rates - Land'!landcst,IF($E$8="Landuse",VLOOKUP(P153,LAndcost3,2,FALSE),IF($E$8="Location",VLOOKUP(P153,Landcost2,2,FALSE),"Error"))) -> 0 | S153: 0 | U153: =IFERROR(('General Input Sheet'!$G$38/(VLOOKUP('Existing Trunk Assets - Water'!T153,Histindex,3,FALSE))),1) -> 1 | V153: 112770 | W153: ='[1]Existing Trunk Assets'!R151 -> y | X153: ='[1]Existing Trunk Assets'!S151 -> 0 | Y153: ='[1]Existing Trunk Assets'!T151 -> 0 | Z153: ='[1]Existing Trunk Assets'!U151 -> 0 | AA153: ='[1]Existing Trunk Assets'!V151 -> 0 | AB153: ='[1]Existing Trunk Assets'!W151 -> 0 | BB153: 52900 | CF153: 52900 | CH153: 112770
D154: ='[1]Existing Trunk Assets'!D152 -> Passive | E154: ='[1]Existing Trunk Assets'!E152 -> Water Mains | F154: ='[1]Existing Trunk Assets'!F152 -> 0 | G154: ='[1]Existing Trunk Assets'!G152 -> Watermain - 64 m of 200dia. Asset No - 1113 | K154: 0 | L154: ='[1]Existing Trunk Assets'!M152 -> 27456 | N154: =IF(M154="",1,VLOOKUP(M154,'Unit Rates - Water'!$H$12:$I$23,2,FALSE)) -> 1 | O154: 27456 | R154: =IF(P154="",'Unit Rates - Land'!landcst,IF($E$8="Landuse",VLOOKUP(P154,LAndcost3,2,FALSE),IF($E$8="Location",VLOOKUP(P154,Landcost2,2,FALSE),"Error"))) -> 0 | S154: 0 | U154: =IFERROR(('General Input Sheet'!$G$38/(VLOOKUP('Existing Trunk Assets - Water'!T154,Histindex,3,FALSE))),1) -> 1 | V154: 27456 | W154: ='[1]Existing Trunk Assets'!R152 -> y | X154: ='[1]Existing Trunk Assets'!S152 -> 0 | Y154: ='[1]Existing Trunk Assets'!T152 -> 0 | Z154: ='[1]Existing Trunk Assets'!U152 -> 0 | AA154: ='[1]Existing Trunk Assets'!V152 -> 0 | AB154: ='[1]Existing Trunk Assets'!W152 -> 0 | BB154: 52900 | CF154: 52900 | CH154: 27456
D155: ='[1]Existing Trunk Assets'!D153 -> Passive | E155: ='[1]Existing Trunk Assets'!E153 -> Water Mains | F155: ='[1]Existing Trunk Assets'!F153 -> 0 | G155: ='[1]Existing Trunk Assets'!G153 -> Watermain - 34 m of 300dia. Asset No - 11134 | K155: 0 | L155: ='[1]Existing Trunk Assets'!M153 -> 19414 | N155: =IF(M155="",1,VLOOKUP(M155,'Unit Rates - Water'!$H$12:$I$23,2,FALSE)) -> 1 | O155: 19414 | R155: =IF(P155="",'Unit Rates - Land'!landcst,IF($E$8="Landuse",VLOOKUP(P155,LAndcost3,2,FALSE),IF($E$8="Location",VLOOKUP(P155,Landcost2,2,FALSE),"Error"))) -> 0 | S155: 0 | U155: =IFERROR(('General Input Sheet'!$G$38/(VLOOKUP('Existing Trunk Assets - Water'!T155,Histindex,3,FALSE))),1) -> 1 | V155: 19414 | W155: ='[1]Existing Trunk Assets'!R153 -> y | X155: ='[1]Existing Trunk Assets'!S153 -> 0 | Y155: ='[1]Existing Trunk Assets'!T153 -> 0 | Z155: ='[1]Existing Trunk Assets'!U153 -> 0 | AA155: ='[1]Existing Trunk Assets'!V153 -> 0 | AB155: ='[1]Existing Trunk Assets'!W153 -> 0 | BB155: 52900 | CF155: 52900 | CH155: 19414
D156: ='[1]Existing Trunk Assets'!D154 -> Passive | E156: ='[1]Existing Trunk Assets'!E154 -> Water Mains | F156: ='[1]Existing Trunk Assets'!F154 -> 0 | G156: ='[1]Existing Trunk Assets'!G154 -> Watermain - 115 m of 375dia. Asset No - 1114 | K156: 0 | L156: ='[1]Existing Trunk Assets'!M154 -> 82915 | N156: =IF(M156="",1,VLOOKUP(M156,'Unit Rates - Water'!$H$12:$I$23,2,FALSE)) -> 1 | O156: 82915 | R156: =IF(P156="",'Unit Rates - Land'!landcst,IF($E$8="Landuse",VLOOKUP(P156,LAndcost3,2,FALSE),IF($E$8="Location",VLOOKUP(P156,Landcost2,2,FALSE),"Error"))) -> 0 | S156: 0 | U156: =IFERROR(('General Input Sheet'!$G$38/(VLOOKUP('Existing Trunk Assets - Water'!T156,Histindex,3,FALSE))),1) -> 1 | V156: 82915 | W156: ='[1]Existing Trunk Assets'!R154 -> y | X156: ='[1]Existing Trunk Assets'!S154 -> 0 | Y156: ='[1]Existing Trunk Assets'!T154 -> 0 | Z156: ='[1]Existing Trunk Assets'!U154 -> 0 | AA156: ='[1]Existing Trunk Assets'!V154 -> 0 | AB156: ='[1]Existing Trunk Assets'!W154 -> 0 | BB156: 52900 | CF156: 52900 | CH156: 82915
D157: ='[1]Existing Trunk Assets'!D155 -> Passive | E157: ='[1]Existing Trunk Assets'!E155 -> Water Mains | F157: ='[1]Existing Trunk Assets'!F155 -> 0 | G157: ='[1]Existing Trunk Assets'!G155 -> Watermain - 124 m of 375dia. Asset No - 11140 | K157: 0 | L157: ='[1]Existing Trunk Assets'!M155 -> 89404 | N157: =IF(M157="",1,VLOOKUP(M157,'Unit Rates - Water'!$H$12:$I$23,2,FALSE)) -> 1 | O157: 89404 | R157: =IF(P157="",'Unit Rates - Land'!landcst,IF($E$8="Landuse",VLOOKUP(P157,LAndcost3,2,FALSE),IF($E$8="Location",VLOOKUP(P157,Landcost2,2,FALSE),"Error"))) -> 0 | S157: 0 | U157: =IFERROR(('General Input Sheet'!$G$38/(VLOOKUP('Existing Trunk Assets - Water'!T157,Histindex,3,FALSE))),1) -> 1 | V157: 89404 | W157: ='[1]Existing Trunk Assets'!R155 -> y | X157: ='[1]Existing Trunk Assets'!S155 -> 0 | Y157: ='[1]Existing Trunk Assets'!T155 -> 0 | Z157: ='[1]Existing Trunk Assets'!U155 -> 0 | AA157: ='[1]Existing Trunk Assets'!V155 -> 0 | AB157: ='[1]Existing Trunk Assets'!W155 -> 0 | BB157: 52900 | CF157: 52900 | CH157: 89404 | DF157: =IF(BZ157="","",(BZ157/$CF157)*$V157) -> 
D158: ='[1]Existing Trunk Assets'!D156 -> Passive | E158: ='[1]Existing Trunk Assets'!E156 -> Water Mains | F158: ='[1]Existing Trunk Assets'!F156 -> 0 | G158: ='[1]Existing Trunk Assets'!G156 -> Watermain - 9 m of 200dia. Asset No - 1115 | K158: 0 | L158: ='[1]Existing Trunk Assets'!M156 -> 3861 | N158: =IF(M158="",1,VLOOKUP(M158,'Unit Rates - Water'!$H$12:$I$23,2,FALSE)) -> 1 | O158: 3861 | R158: =IF(P158="",'Unit Rates - Land'!landcst,IF($E$8="Landuse",VLOOKUP(P158,LAndcost3,2,FALSE),IF($E$8="Location",VLOOKUP(P158,Landcost2,2,FALSE),"Error"))) -> 0 | S158: 0 | U158: =IFERROR(('General Input Sheet'!$G$38/(VLOOKUP('Existing Trunk Assets - Water'!T158,Histindex,3,FALSE))),1) -> 1 | V158: 3861 | W158: ='[1]Existing Trunk Assets'!R156 -> y | X158: ='[1]Existing Trunk Assets'!S156 -> 0 | Y158: ='[1]Existing Trunk Assets'!T156 -> 0 | Z158: ='[1]Existing Trunk Assets'!U156 -> 0 | AA158: ='[1]Existing Trunk Assets'!V156 -> 0 | AB158: ='[1]Existing Trunk Assets'!W156 -> 0 | BB158: 52900 | CF158: 52900 | CH158: 3861
D159: ='[1]Existing Trunk Assets'!D157 -> Passive | E159: ='[1]Existing Trunk Assets'!E157 -> Water Mains | F159: ='[1]Existing Trunk Assets'!F157 -> 0 | G159: ='[1]Existing Trunk Assets'!G157 -> Watermain - 177 m of 200dia. Asset No - 1138 | K159: 0 | L159: ='[1]Existing Trunk Assets'!M157 -> 75933 | N159: =IF(M159="",1,VLOOKUP(M159,'Unit Rates - Water'!$H$12:$I$23,2,FALSE)) -> 1 | O159: 75933 | R159: =IF(P159="",'Unit Rates - Land'!landcst,IF($E$8="Landuse",VLOOKUP(P159,LAndcost3,2,FALSE),IF($E$8="Location",VLOOKUP(P159,Landcost2,2,FALSE),"Error"))) -> 0 | S159: 0 | U159: =IFERROR(('General Input Sheet'!$G$38/(VLOOKUP('Existing Trunk Assets - Water'!T159,Histindex,3,FALSE))),1) -> 1 | V159: 75933 | W159: ='[1]Existing Trunk Assets'!R157 -> y | X159: ='[1]Existing Trunk Assets'!S157 -> 0 | Y159: ='[1]Existing Trunk Assets'!T157 -> 0 | Z159: ='[1]Existing Trunk Assets'!U157 -> 0 | AA159: ='[1]Existing Trunk Assets'!V157 -> 0 | AB159: ='[1]Existing Trunk Assets'!W157 -> 0 | BB159: 52900 | CF159: 52900 | CH159: 75933
D160: ='[1]Existing Trunk Assets'!D158 -> Passive | E160: ='[1]Existing Trunk Assets'!E158 -> Water Mains | F160: ='[1]Existing Trunk Assets'!F158 -> 0 | G160: ='[1]Existing Trunk Assets'!G158 -> Watermain - 154 m of 200dia. Asset No - 1138A | K160: 0 | L160: ='[1]Existing Trunk Assets'!M158 -> 66066 | N160: =IF(M160="",1,VLOOKUP(M160,'Unit Rates - Water'!$H$12:$I$23,2,FALSE)) -> 1 | O160: 66066 | R160: =IF(P160="",'Unit Rates - Land'!landcst,IF($E$8="Landuse",VLOOKUP(P160,LAndcost3,2,FALSE),IF($E$8="Location",VLOOKUP(P160,Landcost2,2,FALSE),"Error"))) -> 0 | S160: 0 | U160: =IFERROR(('General Input Sheet'!$G$38/(VLOOKUP('Existing Trunk Assets - Water'!T160,Histindex,3,FALSE))),1) -> 1 | V160: 66066 | W160: ='[1]Existing Trunk Assets'!R158 -> y | X160: ='[1]Existing Trunk Assets'!S158 -> 0 | Y160: ='[1]Existing Trunk Assets'!T158 -> 0 | Z160: ='[1]Existing Trunk Assets'!U158 -> 0 | AA160: ='[1]Existing Trunk Assets'!V158 -> 0 | AB160: ='[1]Existing Trunk Assets'!W158 -> 0 | BB160: 52900 | CF160: 52900 | CH160: 66066
D161: ='[1]Existing Trunk Assets'!D159 -> Passive | E161: ='[1]Existing Trunk Assets'!E159 -> Water Mains | F161: ='[1]Existing Trunk Assets'!F159 -> 0 | G161: ='[1]Existing Trunk Assets'!G159 -> Watermain - 13 m of 200dia. Asset No - 1139 | K161: 0 | L161: ='[1]Existing Trunk Assets'!M159 -> 5577 | N161: =IF(M161="",1,VLOOKUP(M161,'Unit Rates - Water'!$H$12:$I$23,2,FALSE)) -> 1 | O161: 5577 | R161: =IF(P161="",'Unit Rates - Land'!landcst,IF($E$8="Landuse",VLOOKUP(P161,LAndcost3,2,FALSE),IF($E$8="Location",VLOOKUP(P161,Landcost2,2,FALSE),"Error"))) -> 0 | S161: 0 | U161: =IFERROR(('General Input Sheet'!$G$38/(VLOOKUP('Existing Trunk Assets - Water'!T161,Histindex,3,FALSE))),1) -> 1 | V161: 5577 | W161: ='[1]Existing Trunk Assets'!R159 -> y | X161: ='[1]Existing Trunk Assets'!S159 -> 0 | Y161: ='[1]Existing Trunk Assets'!T159 -> 0 | Z161: ='[1]Existing Trunk Assets'!U159 -> 0 | AA161: ='[1]Existing Trunk Assets'!V159 -> 0 | AB161: ='[1]Existing Trunk Assets'!W159 -> 0 | BB161: 52900 | CF161: 52900 | CH161: 5577
D162: ='[1]Existing Trunk Assets'!D160 -> Passive | E162: ='[1]Existing Trunk Assets'!E160 -> Water Mains | F162: ='[1]Existing Trunk Assets'!F160 -> 0 | G162: ='[1]Existing Trunk Assets'!G160 -> Watermain - 65 m of 200dia. Asset No - 1143 | K162: 0 | L162: ='[1]Existing Trunk Assets'!M160 -> 27885 | N162: =IF(M162="",1,VLOOKUP(M162,'Unit Rates - Water'!$H$12:$I$23,2,FALSE)) -> 1 | O162: 27885 | R162: =IF(P162="",'Unit Rates - Land'!landcst,IF($E$8="Landuse",VLOOKUP(P162,LAndcost3,2,FALSE),IF($E$8="Location",VLOOKUP(P162,Landcost2,2,FALSE),"Error"))) -> 0 | S162: 0 | U162: =IFERROR(('General Input Sheet'!$G$38/(VLOOKUP('Existing Trunk Assets - Water'!T162,Histindex,3,FALSE))),1) -> 1 | V162: 27885 | W162: ='[1]Existing Trunk Assets'!R160 -> y | X162: ='[1]Existing Trunk Assets'!S160 -> 0 | Y162: ='[1]Existing Trunk Assets'!T160 -> 0 | Z162: ='[1]Existing Trunk Assets'!U160 -> 0 | AA162: ='[1]Existing Trunk Assets'!V160 -> 0 | AB162: ='[1]Existing Trunk Assets'!W160 -> 0 | BB162: 52900 | CF162: 52900 | CH162: 27885
D163: ='[1]Existing Trunk Assets'!D161 -> Passive | E163: ='[1]Existing Trunk Assets'!E161 -> Water Mains | F163: ='[1]Existing Trunk Assets'!F161 -> 0 | G163: ='[1]Existing Trunk Assets'!G161 -> Watermain - 70 m of 600dia. Asset No - 1146 | K163: 0 | L163: ='[1]Existing Trunk Assets'!M161 -> 87710 | N163: =IF(M163="",1,VLOOKUP(M163,'Unit Rates - Water'!$H$12:$I$23,2,FALSE)) -> 1 | O163: 87710 | R163: =IF(P163="",'Unit Rates - Land'!landcst,IF($E$8="Landuse",VLOOKUP(P163,LAndcost3,2,FALSE),IF($E$8="Location",VLOOKUP(P163,Landcost2,2,FALSE),"Error"))) -> 0 | S163: 0 | U163: =IFERROR(('General Input Sheet'!$G$38/(VLOOKUP('Existing Trunk Assets - Water'!T163,Histindex,3,FALSE))),1) -> 1 | V163: 87710 | W163: ='[1]Existing Trunk Assets'!R161 -> y | X163: ='[1]Existing Trunk Assets'!S161 -> 0 | Y163: ='[1]Existing Trunk Assets'!T161 -> 0 | Z163: ='[1]Existing Trunk Assets'!U161 -> 0 | AA163: ='[1]Existing Trunk Assets'!V161 -> 0 | AB163: ='[1]Existing Trunk Assets'!W161 -> 0 | BB163: 52900 | CF163: 52900 | CH163: 87710
D164: ='[1]Existing Trunk Assets'!D162 -> Passive | E164: ='[1]Existing Trunk Assets'!E162 -> Water Mains | F164: ='[1]Existing Trunk Assets'!F162 -> 0 | G164: ='[1]Existing Trunk Assets'!G162 -> Watermain - 165 m of 450dia. Asset No - 1148 | K164: 0 | L164: ='[1]Existing Trunk Assets'!M162 -> 144210 | N164: =IF(M164="",1,VLOOKUP(M164,'Unit Rates - Water'!$H$12:$I$23,2,FALSE)) -> 1 | O164: 144210 | R164: =IF(P164="",'Unit Rates - Land'!landcst,IF($E$8="Landuse",VLOOKUP(P164,LAndcost3,2,FALSE),IF($E$8="Location",VLOOKUP(P164,Landcost2,2,FALSE),"Error"))) -> 0 | S164: 0 | U164: =IFERROR(('General Input Sheet'!$G$38/(VLOOKUP('Existing Trunk Assets - Water'!T164,Histindex,3,FALSE))),1) -> 1 | V164: 144210 | W164: ='[1]Existing Trunk Assets'!R162 -> y | X164: ='[1]Existing Trunk Assets'!S162 -> 0 | Y164: ='[1]Existing Trunk Assets'!T162 -> 0 | Z164: ='[1]Existing Trunk Assets'!U162 -> 0 | AA164: ='[1]Existing Trunk Assets'!V162 -> 0 | AB164: ='[1]Existing Trunk Assets'!W162 -> 0 | BB164: 52900 | CF164: 52900 | CH164: 144210
D165: ='[1]Existing Trunk Assets'!D163 -> Passive | E165: ='[1]Existing Trunk Assets'!E163 -> Water Mains | F165: ='[1]Existing Trunk Assets'!F163 -> 0 | G165: ='[1]Existing Trunk Assets'!G163 -> Watermain - 28 m of 300dia. Asset No - 1149 | K165: 0 | L165: ='[1]Existing Trunk Assets'!M163 -> 15988 | N165: =IF(M165="",1,VLOOKUP(M165,'Unit Rates - Water'!$H$12:$I$23,2,FALSE)) -> 1 | O165: 15988 | R165: =IF(P165="",'Unit Rates - Land'!landcst,IF($E$8="Landuse",VLOOKUP(P165,LAndcost3,2,FALSE),IF($E$8="Location",VLOOKUP(P165,Landcost2,2,FALSE),"Error"))) -> 0 | S165: 0 | U165: =IFERROR(('General Input Sheet'!$G$38/(VLOOKUP('Existing Trunk Assets - Water'!T165,Histindex,3,FALSE))),1) -> 1 | V165: 15988 | W165: ='[1]Existing Trunk Assets'!R163 -> y | X165: ='[1]Existing Trunk Assets'!S163 -> 0 | Y165: ='[1]Existing Trunk Assets'!T163 -> 0 | Z165: ='[1]Existing Trunk Assets'!U163 -> 0 | AA165: ='[1]Existing Trunk Assets'!V163 -> 0 | AB165: ='[1]Existing Trunk Assets'!W163 -> 0 | BB165: 52900 | CF165: 52900 | CH165: 15988
D166: ='[1]Existing Trunk Assets'!D164 -> Passive | E166: ='[1]Existing Trunk Assets'!E164 -> Water Mains | F166: ='[1]Existing Trunk Assets'!F164 -> 0 | G166: ='[1]Existing Trunk Assets'!G164 -> Watermain - 29 m of 300dia. Asset No - 1150 | K166: 0 | L166: ='[1]Existing Trunk Assets'!M164 -> 16559 | N166: =IF(M166="",1,VLOOKUP(M166,'Unit Rates - Water'!$H$12:$I$23,2,FALSE)) -> 1 | O166: 16559 | R166: =IF(P166="",'Unit Rates - Land'!landcst,IF($E$8="Landuse",VLOOKUP(P166,LAndcost3,2,FALSE),IF($E$8="Location",VLOOKUP(P166,Landcost2,2,FALSE),"Error"))) -> 0 | S166: 0 | U166: =IFERROR(('General Input Sheet'!$G$38/(VLOOKUP('Existing Trunk Assets - Water'!T166,Histindex,3,FALSE))),1) -> 1 | V166: 16559 | W166: ='[1]Existing Trunk Assets'!R164 -> y | X166: ='[1]Existing Trunk Assets'!S164 -> 0 | Y166: ='[1]Existing Trunk Assets'!T164 -> 0 | Z166: ='[1]Existing Trunk Assets'!U164 -> 0 | AA166: ='[1]Existing Trunk Assets'!V164 -> 0 | AB166: ='[1]Existing Trunk Assets'!W164 -> 0 | BB166: 52900 | CF166: 52900 | CH166: 16559
D167: ='[1]Existing Trunk Assets'!D165 -> Passive | E167: ='[1]Existing Trunk Assets'!E165 -> Water Mains | F167: ='[1]Existing Trunk Assets'!F165 -> 0 | G167: ='[1]Existing Trunk Assets'!G165 -> Watermain - 49 m of 450dia. Asset No - 1151 | K167: 0 | L167: ='[1]Existing Trunk Assets'!M165 -> 42826 | N167: =IF(M167="",1,VLOOKUP(M167,'Unit Rates - Water'!$H$12:$I$23,2,FALSE)) -> 1 | O167: 42826 | R167: =IF(P167="",'Unit Rates - Land'!landcst,IF($E$8="Landuse",VLOOKUP(P167,LAndcost3,2,FALSE),IF($E$8="Location",VLOOKUP(P167,Landcost2,2,FALSE),"Error"))) -> 0 | S167: 0 | U167: =IFERROR(('General Input Sheet'!$G$38/(VLOOKUP('Existing Trunk Assets - Water'!T167,Histindex,3,FALSE))),1) -> 1 | V167: 42826 | W167: ='[1]Existing Trunk Assets'!R165 -> y | X167: ='[1]Existing Trunk Assets'!S165 -> 0 | Y167: ='[1]Existing Trunk Assets'!T165 -> 0 | Z167: ='[1]Existing Trunk Assets'!U165 -> 0 | AA167: ='[1]Existing Trunk Assets'!V165 -> 0 | AB167: ='[1]Existing Trunk Assets'!W165 -> 0 | BB167: 52900 | CF167: 52900 | CH167: 42826
D168: ='[1]Existing Trunk Assets'!D166 -> Passive | E168: ='[1]Existing Trunk Assets'!E166 -> Water Mains | F168: ='[1]Existing Trunk Assets'!F166 -> 0 | G168: ='[1]Existing Trunk Assets'!G166 -> Watermain - 285 m of 600dia. Asset No - 1152 | K168: 0 | L168: ='[1]Existing Trunk Assets'!M166 -> 357105 | N168: =IF(M168="",1,VLOOKUP(M168,'Unit Rates - Water'!$H$12:$I$23,2,FALSE)) -> 1 | O168: 357105 | R168: =IF(P168="",'Unit Rates - Land'!landcst,IF($E$8="Landuse",VLOOKUP(P168,LAndcost3,2,FALSE),IF($E$8="Location",VLOOKUP(P168,Landcost2,2,FALSE),"Error"))) -> 0 | S168: 0 | U168: =IFERROR(('General Input Sheet'!$G$38/(VLOOKUP('Existing Trunk Assets - Water'!T168,Histindex,3,FALSE))),1) -> 1 | V168: 357105 | W168: ='[1]Existing Trunk Assets'!R166 -> y | X168: ='[1]Existing Trunk Assets'!S166 -> 0 | Y168: ='[1]Existing Trunk Assets'!T166 -> 0 | Z168: ='[1]Existing Trunk Assets'!U166 -> 0 | AA168: ='[1]Existing Trunk Assets'!V166 -> 0 | AB168: ='[1]Existing Trunk Assets'!W166 -> 0 | BB168: 52900 | CF168: 52900 | CH168: 357105
D169: ='[1]Existing Trunk Assets'!D167 -> Passive | E169: ='[1]Existing Trunk Assets'!E167 -> Water Mains | F169: ='[1]Existing Trunk Assets'!F167 -> 0 | G169: ='[1]Existing Trunk Assets'!G167 -> Watermain - 63 m of 300dia. Asset No - 1153 | K169: 0 | L169: ='[1]Existing Trunk Assets'!M167 -> 35973 | N169: =IF(M169="",1,VLOOKUP(M169,'Unit Rates - Water'!$H$12:$I$23,2,FALSE)) -> 1 | O169: 35973 | R169: =IF(P169="",'Unit Rates - Land'!landcst,IF($E$8="Landuse",VLOOKUP(P169,LAndcost3,2,FALSE),IF($E$8="Location",VLOOKUP(P169,Landcost2,2,FALSE),"Error"))) -> 0 | S169: 0 | U169: =IFERROR(('General Input Sheet'!$G$38/(VLOOKUP('Existing Trunk Assets - Water'!T169,Histindex,3,FALSE))),1) -> 1 | V169: 35973 | W169: ='[1]Existing Trunk Assets'!R167 -> y | X169: ='[1]Existing Trunk Assets'!S167 -> 0 | Y169: ='[1]Existing Trunk Assets'!T167 -> 0 | Z169: ='[1]Existing Trunk Assets'!U167 -> 0 | AA169: ='[1]Existing Trunk Assets'!V167 -> 0 | AB169: ='[1]Existing Trunk Assets'!W167 -> 0 | BB169: 52900 | CF169: 52900 | CH169: 35973
D170: ='[1]Existing Trunk Assets'!D168 -> Passive | E170: ='[1]Existing Trunk Assets'!E168 -> Water Mains | F170: ='[1]Existing Trunk Assets'!F168 -> 0 | G170: ='[1]Existing Trunk Assets'!G168 -> Watermain - 32 m of 300dia. Asset No - 1154 | K170: 0 | L170: ='[1]Existing Trunk Assets'!M168 -> 18272 | N170: =IF(M170="",1,VLOOKUP(M170,'Unit Rates - Water'!$H$12:$I$23,2,FALSE)) -> 1 | O170: 18272 | R170: =IF(P170="",'Unit Rates - Land'!landcst,IF($E$8="Landuse",VLOOKUP(P170,LAndcost3,2,FALSE),IF($E$8="Location",VLOOKUP(P170,Landcost2,2,FALSE),"Error"))) -> 0 | S170: 0 | U170: =IFERROR(('General Input Sheet'!$G$38/(VLOOKUP('Existing Trunk Assets - Water'!T170,Histindex,3,FALSE))),1) -> 1 | V170: 18272 | W170: ='[1]Existing Trunk Assets'!R168 -> y | X170: ='[1]Existing Trunk Assets'!S168 -> 0 | Y170: ='[1]Existing Trunk Assets'!T168 -> 0 | Z170: ='[1]Existing Trunk Assets'!U168 -> 0 | AA170: ='[1]Existing Trunk Assets'!V168 -> 0 | AB170: ='[1]Existing Trunk Assets'!W168 -> 0 | BB170: 52900 | CF170: 52900 | CH170: 18272 | CP170: =IF(BJ170="","",(BJ170/$CF170)*$V170) -> 
D171: ='[1]Existing Trunk Assets'!D169 -> Passive | E171: ='[1]Existing Trunk Assets'!E169 -> Water Mains | F171: ='[1]Existing Trunk Assets'!F169 -> 0 | G171: ='[1]Existing Trunk Assets'!G169 -> Watermain - 15 m of 450dia. Asset No - 1155 | K171: 0 | L171: ='[1]Existing Trunk Assets'!M169 -> 13110 | N171: =IF(M171="",1,VLOOKUP(M171,'Unit Rates - Water'!$H$12:$I$23,2,FALSE)) -> 1 | O171: 13110 | R171: =IF(P171="",'Unit Rates - Land'!landcst,IF($E$8="Landuse",VLOOKUP(P171,LAndcost3,2,FALSE),IF($E$8="Location",VLOOKUP(P171,Landcost2,2,FALSE),"Error"))) -> 0 | S171: 0 | U171: =IFERROR(('General Input Sheet'!$G$38/(VLOOKUP('Existing Trunk Assets - Water'!T171,Histindex,3,FALSE))),1) -> 1 | V171: 13110 | W171: ='[1]Existing Trunk Assets'!R169 -> y | X171: ='[1]Existing Trunk Assets'!S169 -> 0 | Y171: ='[1]Existing Trunk Assets'!T169 -> 0 | Z171: ='[1]Existing Trunk Assets'!U169 -> 0 | AA171: ='[1]Existing Trunk Assets'!V169 -> 0 | AB171: ='[1]Existing Trunk Assets'!W169 -> 0 | BB171: 52900 | CF171: 52900 | CH171: =IF(BB171="","",(BB171/$CF171)*$V171) -> 13110
D172: ='[1]Existing Trunk Assets'!D170 -> Passive | E172: ='[1]Existing Trunk Assets'!E170 -> Water Mains | F172: ='[1]Existing Trunk Assets'!F170 -> 0 | G172: ='[1]Existing Trunk Assets'!G170 -> Watermain - 529 m of 375dia. Asset No - 1156 | K172: 0 | L172: ='[1]Existing Trunk Assets'!M170 -> 381409 | N172: =IF(M172="",1,VLOOKUP(M172,'Unit Rates - Water'!$H$12:$I$23,2,FALSE)) -> 1 | O172: 381409 | R172: =IF(P172="",'Unit Rates - Land'!landcst,IF($E$8="Landuse",VLOOKUP(P172,LAndcost3,2,FALSE),IF($E$8="Location",VLOOKUP(P172,Landcost2,2,FALSE),"Error"))) -> 0 | S172: 0 | U172: =IFERROR(('General Input Sheet'!$G$38/(VLOOKUP('Existing Trunk Assets - Water'!T172,Histindex,3,FALSE))),1) -> 1 | V172: 381409 | W172: ='[1]Existing Trunk Assets'!R170 -> y | X172: ='[1]Existing Trunk Assets'!S170 -> 0 | Y172: ='[1]Existing Trunk Assets'!T170 -> 0 | Z172: ='[1]Existing Trunk Assets'!U170 -> 0 | AA172: ='[1]Existing Trunk Assets'!V170 -> 0 | AB172: ='[1]Existing Trunk Assets'!W170 -> 0 | BB172: 52900 | CF172: 52900 | CH172: 381409
D173: ='[1]Existing Trunk Assets'!D171 -> Passive | E173: ='[1]Existing Trunk Assets'!E171 -> Water Mains | F173: ='[1]Existing Trunk Assets'!F171 -> 0 | G173: ='[1]Existing Trunk Assets'!G171 -> Watermain - 829 m of 375dia. Asset No - 1156A | K173: 0 | L173: ='[1]Existing Trunk Assets'!M171 -> 597709 | N173: =IF(M173="",1,VLOOKUP(M173,'Unit Rates - Water'!$H$12:$I$23,2,FALSE)) -> 1 | O173: 597709 | R173: =IF(P173="",'Unit Rates - Land'!landcst,IF($E$8="Landuse",VLOOKUP(P173,LAndcost3,2,FALSE),IF($E$8="Location",VLOOKUP(P173,Landcost2,2,FALSE),"Error"))) -> 0 | S173: 0 | U173: =IFERROR(('General Input Sheet'!$G$38/(VLOOKUP('Existing Trunk Assets - Water'!T173,Histindex,3,FALSE))),1) -> 1 | V173: 597709 | W173: ='[1]Existing Trunk Assets'!R171 -> y | X173: ='[1]Existing Trunk Assets'!S171 -> 0 | Y173: ='[1]Existing Trunk Assets'!T171 -> 0 | Z173: ='[1]Existing Trunk Assets'!U171 -> 0 | AA173: ='[1]Existing Trunk Assets'!V171 -> 0 | AB173: ='[1]Existing Trunk Assets'!W171 -> 0 | BB173: 52900 | CF173: 52900 | CH173: 597709
D174: ='[1]Existing Trunk Assets'!D172 -> Passive | E174: ='[1]Existing Trunk Assets'!E172 -> Water Mains | F174: ='[1]Existing Trunk Assets'!F172 -> 0 | G174: ='[1]Existing Trunk Assets'!G172 -> Watermain - 223 m of 200dia. Asset No - 1173 | K174: 0 | L174: ='[1]Existing Trunk Assets'!M172 -> 95667 | N174: =IF(M174="",1,VLOOKUP(M174,'Unit Rates - Water'!$H$12:$I$23,2,FALSE)) -> 1 | O174: 95667 | R174: =IF(P174="",'Unit Rates - Land'!landcst,IF($E$8="Landuse",VLOOKUP(P174,LAndcost3,2,FALSE),IF($E$8="Location",VLOOKUP(P174,Landcost2,2,FALSE),"Error"))) -> 0 | S174: 0 | U174: =IFERROR(('General Input Sheet'!$G$38/(VLOOKUP('Existing Trunk Assets - Water'!T174,Histindex,3,FALSE))),1) -> 1 | V174: 95667 | W174: ='[1]Existing Trunk Assets'!R172 -> y | X174: ='[1]Existing Trunk Assets'!S172 -> 0 | Y174: ='[1]Existing Trunk Assets'!T172 -> 0 | Z174: ='[1]Existing Trunk Assets'!U172 -> 0 | AA174: ='[1]Existing Trunk Assets'!V172 -> 0 | AB174: ='[1]Existing Trunk Assets'!W172 -> 0 | BB174: 52900 | CF174: 52900 | CH174: 95667
D175: ='[1]Existing Trunk Assets'!D173 -> Passive | E175: ='[1]Existing Trunk Assets'!E173 -> Water Mains | F175: ='[1]Existing Trunk Assets'!F173 -> 0 | G175: ='[1]Existing Trunk Assets'!G173 -> Watermain - 115 m of 200dia. Asset No - 1175 | K175: 0 | L175: ='[1]Existing Trunk Assets'!M173 -> 49335 | N175: =IF(M175="",1,VLOOKUP(M175,'Unit Rates - Water'!$H$12:$I$23,2,FALSE)) -> 1 | O175: 49335 | R175: =IF(P175="",'Unit Rates - Land'!landcst,IF($E$8="Landuse",VLOOKUP(P175,LAndcost3,2,FALSE),IF($E$8="Location",VLOOKUP(P175,Landcost2,2,FALSE),"Error"))) -> 0 | S175: 0 | U175: =IFERROR(('General Input Sheet'!$G$38/(VLOOKUP('Existing Trunk Assets - Water'!T175,Histindex,3,FALSE))),1) -> 1 | V175: 49335 | W175: ='[1]Existing Trunk Assets'!R173 -> y | X175: ='[1]Existing Trunk Assets'!S173 -> 0 | Y175: ='[1]Existing Trunk Assets'!T173 -> 0 | Z175: ='[1]Existing Trunk Assets'!U173 -> 0 | AA175: ='[1]Existing Trunk Assets'!V173 -> 0 | AB175: ='[1]Existing Trunk Assets'!W173 -> 0 | BB175: 52900 | CF175: 52900 | CH175: 49335
D176: ='[1]Existing Trunk Assets'!D174 -> Passive | E176: ='[1]Existing Trunk Assets'!E174 -> Water Mains | F176: ='[1]Existing Trunk Assets'!F174 -> 0 | G176: ='[1]Existing Trunk Assets'!G174 -> Watermain - 58 m of 200dia. Asset No - 1179 | K176: 0 | L176: ='[1]Existing Trunk Assets'!M174 -> 24882 | N176: =IF(M176="",1,VLOOKUP(M176,'Unit Rates - Water'!$H$12:$I$23,2,FALSE)) -> 1 | O176: 24882 | R176: =IF(P176="",'Unit Rates - Land'!landcst,IF($E$8="Landuse",VLOOKUP(P176,LAndcost3,2,FALSE),IF($E$8="Location",VLOOKUP(P176,Landcost2,2,FALSE),"Error"))) -> 0 | S176: 0 | U176: =IFERROR(('General Input Sheet'!$G$38/(VLOOKUP('Existing Trunk Assets - Water'!T176,Histindex,3,FALSE))),1) -> 1 | V176: 24882 | W176: ='[1]Existing Trunk Assets'!R174 -> y | X176: ='[1]Existing Trunk Assets'!S174 -> 0 | Y176: ='[1]Existing Trunk Assets'!T174 -> 0 | Z176: ='[1]Existing Trunk Assets'!U174 -> 0 | AA176: ='[1]Existing Trunk Assets'!V174 -> 0 | AB176: ='[1]Existing Trunk Assets'!W174 -> 0 | BB176: 52900 | CF176: 52900 | CH176: 24882
D177: ='[1]Existing Trunk Assets'!D175 -> Passive | E177: ='[1]Existing Trunk Assets'!E175 -> Water Mains | F177: ='[1]Existing Trunk Assets'!F175 -> 0 | G177: ='[1]Existing Trunk Assets'!G175 -> Watermain - 93 m of 200dia. Asset No - 1180 | K177: 0 | L177: ='[1]Existing Trunk Assets'!M175 -> 39897 | N177: =IF(M177="",1,VLOOKUP(M177,'Unit Rates - Water'!$H$12:$I$23,2,FALSE)) -> 1 | O177: 39897 | R177: =IF(P177="",'Unit Rates - Land'!landcst,IF($E$8="Landuse",VLOOKUP(P177,LAndcost3,2,FALSE),IF($E$8="Location",VLOOKUP(P177,Landcost2,2,FALSE),"Error"))) -> 0 | S177: 0 | U177: =IFERROR(('General Input Sheet'!$G$38/(VLOOKUP('Existing Trunk Assets - Water'!T177,Histindex,3,FALSE))),1) -> 1 | V177: 39897 | W177: ='[1]Existing Trunk Assets'!R175 -> y | X177: ='[1]Existing Trunk Assets'!S175 -> 0 | Y177: ='[1]Existing Trunk Assets'!T175 -> 0 | Z177: ='[1]Existing Trunk Assets'!U175 -> 0 | AA177: ='[1]Existing Trunk Assets'!V175 -> 0 | AB177: ='[1]Existing Trunk Assets'!W175 -> 0 | BB177: 52900 | CF177: 52900 | CH177: 39897
D178: ='[1]Existing Trunk Assets'!D176 -> Passive | E178: ='[1]Existing Trunk Assets'!E176 -> Water Mains | F178: ='[1]Existing Trunk Assets'!F176 -> 0 | G178: ='[1]Existing Trunk Assets'!G176 -> Watermain - 97 m of 200dia. Asset No - 1181 | K178: 0 | L178: ='[1]Existing Trunk Assets'!M176 -> 41613 | N178: =IF(M178="",1,VLOOKUP(M178,'Unit Rates - Water'!$H$12:$I$23,2,FALSE)) -> 1 | O178: 41613 | R178: =IF(P178="",'Unit Rates - Land'!landcst,IF($E$8="Landuse",VLOOKUP(P178,LAndcost3,2,FALSE),IF($E$8="Location",VLOOKUP(P178,Landcost2,2,FALSE),"Error"))) -> 0 | S178: 0 | U178: =IFERROR(('General Input Sheet'!$G$38/(VLOOKUP('Existing Trunk Assets - Water'!T178,Histindex,3,FALSE))),1) -> 1 | V178: 41613 | W178: ='[1]Existing Trunk Assets'!R176 -> y | X178: ='[1]Existing Trunk Assets'!S176 -> 0 | Y178: ='[1]Existing Trunk Assets'!T176 -> 0 | Z178: ='[1]Existing Trunk Assets'!U176 -> 0 | AA178: ='[1]Existing Trunk Assets'!V176 -> 0 | AB178: ='[1]Existing Trunk Assets'!W176 -> 0 | BB178: 52900 | CF178: 52900 | CH178: 41613
D179: ='[1]Existing Trunk Assets'!D177 -> Passive | E179: ='[1]Existing Trunk Assets'!E177 -> Water Mains | F179: ='[1]Existing Trunk Assets'!F177 -> 0 | G179: ='[1]Existing Trunk Assets'!G177 -> Watermain - 16 m of 200dia. Asset No - 1182 | K179: 0 | L179: ='[1]Existing Trunk Assets'!M177 -> 6864 | N179: =IF(M179="",1,VLOOKUP(M179,'Unit Rates - Water'!$H$12:$I$23,2,FALSE)) -> 1 | O179: 6864 | R179: =IF(P179="",'Unit Rates - Land'!landcst,IF($E$8="Landuse",VLOOKUP(P179,LAndcost3,2,FALSE),IF($E$8="Location",VLOOKUP(P179,Landcost2,2,FALSE),"Error"))) -> 0 | S179: 0 | U179: =IFERROR(('General Input Sheet'!$G$38/(VLOOKUP('Existing Trunk Assets - Water'!T179,Histindex,3,FALSE))),1) -> 1 | V179: 6864 | W179: ='[1]Existing Trunk Assets'!R177 -> y | X179: ='[1]Existing Trunk Assets'!S177 -> 0 | Y179: ='[1]Existing Trunk Assets'!T177 -> 0 | Z179: ='[1]Existing Trunk Assets'!U177 -> 0 | AA179: ='[1]Existing Trunk Assets'!V177 -> 0 | AB179: ='[1]Existing Trunk Assets'!W177 -> 0 | BB179: 52900 | CF179: 52900 | CH179: 6864
D180: ='[1]Existing Trunk Assets'!D178 -> Passive | E180: ='[1]Existing Trunk Assets'!E178 -> Water Mains | F180: ='[1]Existing Trunk Assets'!F178 -> 0 | G180: ='[1]Existing Trunk Assets'!G178 -> Watermain - 71 m of 450dia. Asset No - 1185 | K180: 0 | L180: ='[1]Existing Trunk Assets'!M178 -> 62054 | N180: =IF(M180="",1,VLOOKUP(M180,'Unit Rates - Water'!$H$12:$I$23,2,FALSE)) -> 1 | O180: 62054 | R180: =IF(P180="",'Unit Rates - Land'!landcst,IF($E$8="Landuse",VLOOKUP(P180,LAndcost3,2,FALSE),IF($E$8="Location",VLOOKUP(P180,Landcost2,2,FALSE),"Error"))) -> 0 | S180: 0 | U180: =IFERROR(('General Input Sheet'!$G$38/(VLOOKUP('Existing Trunk Assets - Water'!T180,Histindex,3,FALSE))),1) -> 1 | V180: 62054 | W180: ='[1]Existing Trunk Assets'!R178 -> y | X180: ='[1]Existing Trunk Assets'!S178 -> 0 | Y180: ='[1]Existing Trunk Assets'!T178 -> 0 | Z180: ='[1]Existing Trunk Assets'!U178 -> 0 | AA180: ='[1]Existing Trunk Assets'!V178 -> 0 | AB180: ='[1]Existing Trunk Assets'!W178 -> 0 | BB180: 52900 | CF180: 52900 | CH180: 62054
D181: ='[1]Existing Trunk Assets'!D179 -> Passive | E181: ='[1]Existing Trunk Assets'!E179 -> Water Mains | F181: ='[1]Existing Trunk Assets'!F179 -> 0 | G181: ='[1]Existing Trunk Assets'!G179 -> Watermain - 99 m of 200dia. Asset No - 1187 | K181: 0 | L181: ='[1]Existing Trunk Assets'!M179 -> 42471 | N181: =IF(M181="",1,VLOOKUP(M181,'Unit Rates - Water'!$H$12:$I$23,2,FALSE)) -> 1 | O181: 42471 | R181: =IF(P181="",'Unit Rates - Land'!landcst,IF($E$8="Landuse",VLOOKUP(P181,LAndcost3,2,FALSE),IF($E$8="Location",VLOOKUP(P181,Landcost2,2,FALSE),"Error"))) -> 0 | S181: 0 | U181: =IFERROR(('General Input Sheet'!$G$38/(VLOOKUP('Existing Trunk Assets - Water'!T181,Histindex,3,FALSE))),1) -> 1 | V181: 42471 | W181: ='[1]Existing Trunk Assets'!R179 -> y | X181: ='[1]Existing Trunk Assets'!S179 -> 0 | Y181: ='[1]Existing Trunk Assets'!T179 -> 0 | Z181: ='[1]Existing Trunk Assets'!U179 -> 0 | AA181: ='[1]Existing Trunk Assets'!V179 -> 0 | AB181: ='[1]Existing Trunk Assets'!W179 -> 0 | BB181: 52900 | CF181: 52900 | CH181: 42471
D182: ='[1]Existing Trunk Assets'!D180 -> Passive | E182: ='[1]Existing Trunk Assets'!E180 -> Water Mains | F182: ='[1]Existing Trunk Assets'!F180 -> 0 | G182: ='[1]Existing Trunk Assets'!G180 -> Watermain - 8 m of 450dia. Asset No - 12 | K182: 0 | L182: ='[1]Existing Trunk Assets'!M180 -> 6992 | N182: =IF(M182="",1,VLOOKUP(M182,'Unit Rates - Water'!$H$12:$I$23,2,FALSE)) -> 1 | O182: 6992 | R182: =IF(P182="",'Unit Rates - Land'!landcst,IF($E$8="Landuse",VLOOKUP(P182,LAndcost3,2,FALSE),IF($E$8="Location",VLOOKUP(P182,Landcost2,2,FALSE),"Error"))) -> 0 | S182: 0 | U182: =IFERROR(('General Input Sheet'!$G$38/(VLOOKUP('Existing Trunk Assets - Water'!T182,Histindex,3,FALSE))),1) -> 1 | V182: 6992 | W182: ='[1]Existing Trunk Assets'!R180 -> y | X182: ='[1]Existing Trunk Assets'!S180 -> 0 | Y182: ='[1]Existing Trunk Assets'!T180 -> 0 | Z182: ='[1]Existing Trunk Assets'!U180 -> 0 | AA182: ='[1]Existing Trunk Assets'!V180 -> 0 | AB182: ='[1]Existing Trunk Assets'!W180 -> 0 | BB182: 52900 | CF182: 52900 | CH182: 6992
D183: ='[1]Existing Trunk Assets'!D181 -> Passive | E183: ='[1]Existing Trunk Assets'!E181 -> Water Mains | F183: ='[1]Existing Trunk Assets'!F181 -> 0 | G183: ='[1]Existing Trunk Assets'!G181 -> Watermain - 176 m of 250dia. Asset No - 1202 | K183: 0 | L183: ='[1]Existing Trunk Assets'!M181 -> 86064 | N183: =IF(M183="",1,VLOOKUP(M183,'Unit Rates - Water'!$H$12:$I$23,2,FALSE)) -> 1 | O183: 86064 | R183: =IF(P183="",'Unit Rates - Land'!landcst,IF($E$8="Landuse",VLOOKUP(P183,LAndcost3,2,FALSE),IF($E$8="Location",VLOOKUP(P183,Landcost2,2,FALSE),"Error"))) -> 0 | S183: 0 | U183: =IFERROR(('General Input Sheet'!$G$38/(VLOOKUP('Existing Trunk Assets - Water'!T183,Histindex,3,FALSE))),1) -> 1 | V183: 86064 | W183: ='[1]Existing Trunk Assets'!R181 -> y | X183: ='[1]Existing Trunk Assets'!S181 -> 0 | Y183: ='[1]Existing Trunk Assets'!T181 -> 0 | Z183: ='[1]Existing Trunk Assets'!U181 -> 0 | AA183: ='[1]Existing Trunk Assets'!V181 -> 0 | AB183: ='[1]Existing Trunk Assets'!W181 -> 0 | BB183: 52900 | CF183: 52900 | CH183: 86064
D184: ='[1]Existing Trunk Assets'!D182 -> Passive | E184: ='[1]Existing Trunk Assets'!E182 -> Water Mains | F184: ='[1]Existing Trunk Assets'!F182 -> 0 | G184: ='[1]Existing Trunk Assets'!G182 -> Watermain - 156 m of 375dia. Asset No - 1203 | K184: 0 | L184: ='[1]Existing Trunk Assets'!M182 -> 112476 | N184: =IF(M184="",1,VLOOKUP(M184,'Unit Rates - Water'!$H$12:$I$23,2,FALSE)) -> 1 | O184: 112476 | R184: =IF(P184="",'Unit Rates - Land'!landcst,IF($E$8="Landuse",VLOOKUP(P184,LAndcost3,2,FALSE),IF($E$8="Location",VLOOKUP(P184,Landcost2,2,FALSE),"Error"))) -> 0 | S184: 0 | U184: =IFERROR(('General Input Sheet'!$G$38/(VLOOKUP('Existing Trunk Assets - Water'!T184,Histindex,3,FALSE))),1) -> 1 | V184: 112476 | W184: ='[1]Existing Trunk Assets'!R182 -> y | X184: ='[1]Existing Trunk Assets'!S182 -> 0 | Y184: ='[1]Existing Trunk Assets'!T182 -> 0 | Z184: ='[1]Existing Trunk Assets'!U182 -> 0 | AA184: ='[1]Existing Trunk Assets'!V182 -> 0 | AB184: ='[1]Existing Trunk Assets'!W182 -> 0 | BB184: 52900 | CF184: 52900 | CH184: 112476
D185: ='[1]Existing Trunk Assets'!D183 -> Passive | E185: ='[1]Existing Trunk Assets'!E183 -> Water Mains | F185: ='[1]Existing Trunk Assets'!F183 -> 0 | G185: ='[1]Existing Trunk Assets'!G183 -> Watermain - 162 m of 300dia. Asset No - 1204 | K185: 0 | L185: ='[1]Existing Trunk Assets'!M183 -> 92502 | N185: =IF(M185="",1,VLOOKUP(M185,'Unit Rates - Water'!$H$12:$I$23,2,FALSE)) -> 1 | O185: 92502 | R185: =IF(P185="",'Unit Rates - Land'!landcst,IF($E$8="Landuse",VLOOKUP(P185,LAndcost3,2,FALSE),IF($E$8="Location",VLOOKUP(P185,Landcost2,2,FALSE),"Error"))) -> 0 | S185: 0 | U185: =IFERROR(('General Input Sheet'!$G$38/(VLOOKUP('Existing Trunk Assets - Water'!T185,Histindex,3,FALSE))),1) -> 1 | V185: 92502 | W185: ='[1]Existing Trunk Assets'!R183 -> y | X185: ='[1]Existing Trunk Assets'!S183 -> 0 | Y185: ='[1]Existing Trunk Assets'!T183 -> 0 | Z185: ='[1]Existing Trunk Assets'!U183 -> 0 | AA185: ='[1]Existing Trunk Assets'!V183 -> 0 | AB185: ='[1]Existing Trunk Assets'!W183 -> 0 | BB185: 52900 | CF185: 52900 | CH185: 92502
D186: ='[1]Existing Trunk Assets'!D184 -> Passive | E186: ='[1]Existing Trunk Assets'!E184 -> Water Mains | F186: ='[1]Existing Trunk Assets'!F184 -> 0 | G186: ='[1]Existing Trunk Assets'!G184 -> Watermain - 287 m of 300dia. Asset No - 1205 | K186: 0 | L186: ='[1]Existing Trunk Assets'!M184 -> 163877 | N186: =IF(M186="",1,VLOOKUP(M186,'Unit Rates - Water'!$H$12:$I$23,2,FALSE)) -> 1 | O186: 163877 | R186: =IF(P186="",'Unit Rates - Land'!landcst,IF($E$8="Landuse",VLOOKUP(P186,LAndcost3,2,FALSE),IF($E$8="Location",VLOOKUP(P186,Landcost2,2,FALSE),"Error"))) -> 0 | S186: 0 | U186: =IFERROR(('General Input Sheet'!$G$38/(VLOOKUP('Existing Trunk Assets - Water'!T186,Histindex,3,FALSE))),1) -> 1 | V186: 163877 | W186: ='[1]Existing Trunk Assets'!R184 -> y | X186: ='[1]Existing Trunk Assets'!S184 -> 0 | Y186: ='[1]Existing Trunk Assets'!T184 -> 0 | Z186: ='[1]Existing Trunk Assets'!U184 -> 0 | AA186: ='[1]Existing Trunk Assets'!V184 -> 0 | AB186: ='[1]Existing Trunk Assets'!W184 -> 0 | BB186: 52900 | CF186: 52900 | CH186: 163877
D187: ='[1]Existing Trunk Assets'!D185 -> Passive | E187: ='[1]Existing Trunk Assets'!E185 -> Water Mains | F187: ='[1]Existing Trunk Assets'!F185 -> 0 | G187: ='[1]Existing Trunk Assets'!G185 -> Watermain - 192 m of 300dia. Asset No - 1206 | K187: 0 | L187: ='[1]Existing Trunk Assets'!M185 -> 109632 | N187: =IF(M187="",1,VLOOKUP(M187,'Unit Rates - Water'!$H$12:$I$23,2,FALSE)) -> 1 | O187: 109632 | R187: =IF(P187="",'Unit Rates - Land'!landcst,IF($E$8="Landuse",VLOOKUP(P187,LAndcost3,2,FALSE),IF($E$8="Location",VLOOKUP(P187,Landcost2,2,FALSE),"Error"))) -> 0 | S187: 0 | U187: =IFERROR(('General Input Sheet'!$G$38/(VLOOKUP('Existing Trunk Assets - Water'!T187,Histindex,3,FALSE))),1) -> 1 | V187: 109632 | W187: ='[1]Existing Trunk Assets'!R185 -> y | X187: ='[1]Existing Trunk Assets'!S185 -> 0 | Y187: ='[1]Existing Trunk Assets'!T185 -> 0 | Z187: ='[1]Existing Trunk Assets'!U185 -> 0 | AA187: ='[1]Existing Trunk Assets'!V185 -> 0 | AB187: ='[1]Existing Trunk Assets'!W185 -> 0 | BB187: 52900 | CF187: 52900 | CH187: 109632
D188: ='[1]Existing Trunk Assets'!D186 -> Passive | E188: ='[1]Existing Trunk Assets'!E186 -> Water Mains | F188: ='[1]Existing Trunk Assets'!F186 -> 0 | G188: ='[1]Existing Trunk Assets'!G186 -> Watermain - 88 m of 250dia. Asset No - 1207 | K188: 0 | L188: ='[1]Existing Trunk Assets'!M186 -> 43032 | N188: =IF(M188="",1,VLOOKUP(M188,'Unit Rates - Water'!$H$12:$I$23,2,FALSE)) -> 1 | O188: 43032 | R188: =IF(P188="",'Unit Rates - Land'!landcst,IF($E$8="Landuse",VLOOKUP(P188,LAndcost3,2,FALSE),IF($E$8="Location",VLOOKUP(P188,Landcost2,2,FALSE),"Error"))) -> 0 | S188: 0 | U188: =IFERROR(('General Input Sheet'!$G$38/(VLOOKUP('Existing Trunk Assets - Water'!T188,Histindex,3,FALSE))),1) -> 1 | V188: 43032 | W188: ='[1]Existing Trunk Assets'!R186 -> y | X188: ='[1]Existing Trunk Assets'!S186 -> 0 | Y188: ='[1]Existing Trunk Assets'!T186 -> 0 | Z188: ='[1]Existing Trunk Assets'!U186 -> 0 | AA188: ='[1]Existing Trunk Assets'!V186 -> 0 | AB188: ='[1]Existing Trunk Assets'!W186 -> 0 | BB188: 52900 | CF188: 52900 | CH188: 43032
D189: ='[1]Existing Trunk Assets'!D187 -> Passive | E189: ='[1]Existing Trunk Assets'!E187 -> Water Mains | F189: ='[1]Existing Trunk Assets'!F187 -> 0 | G189: ='[1]Existing Trunk Assets'!G187 -> Watermain - 187 m of 250dia. Asset No - 1208 | K189: 0 | L189: ='[1]Existing Trunk Assets'!M187 -> 91443 | N189: =IF(M189="",1,VLOOKUP(M189,'Unit Rates - Water'!$H$12:$I$23,2,FALSE)) -> 1 | O189: 91443 | R189: =IF(P189="",'Unit Rates - Land'!landcst,IF($E$8="Landuse",VLOOKUP(P189,LAndcost3,2,FALSE),IF($E$8="Location",VLOOKUP(P189,Landcost2,2,FALSE),"Error"))) -> 0 | S189: 0 | U189: =IFERROR(('General Input Sheet'!$G$38/(VLOOKUP('Existing Trunk Assets - Water'!T189,Histindex,3,FALSE))),1) -> 1 | V189: 91443 | W189: ='[1]Existing Trunk Assets'!R187 -> y | X189: ='[1]Existing Trunk Assets'!S187 -> 0 | Y189: ='[1]Existing Trunk Assets'!T187 -> 0 | Z189: ='[1]Existing Trunk Assets'!U187 -> 0 | AA189: ='[1]Existing Trunk Assets'!V187 -> 0 | AB189: ='[1]Existing Trunk Assets'!W187 -> 0 | BB189: 52900 | CF189: 52900 | CH189: 91443
D190: ='[1]Existing Trunk Assets'!D188 -> Passive | E190: ='[1]Existing Trunk Assets'!E188 -> Water Mains | F190: ='[1]Existing Trunk Assets'!F188 -> 0 | G190: ='[1]Existing Trunk Assets'!G188 -> Watermain - 303 m of 525dia. Asset No - 1209 | K190: 0 | L190: ='[1]Existing Trunk Assets'!M188 -> 318150 | N190: =IF(M190="",1,VLOOKUP(M190,'Unit Rates - Water'!$H$12:$I$23,2,FALSE)) -> 1 | O190: 318150 | R190: =IF(P190="",'Unit Rates - Land'!landcst,IF($E$8="Landuse",VLOOKUP(P190,LAndcost3,2,FALSE),IF($E$8="Location",VLOOKUP(P190,Landcost2,2,FALSE),"Error"))) -> 0 | S190: 0 | U190: =IFERROR(('General Input Sheet'!$G$38/(VLOOKUP('Existing Trunk Assets - Water'!T190,Histindex,3,FALSE))),1) -> 1 | V190: 318150 | W190: ='[1]Existing Trunk Assets'!R188 -> y | X190: ='[1]Existing Trunk Assets'!S188 -> 0 | Y190: ='[1]Existing Trunk Assets'!T188 -> 0 | Z190: ='[1]Existing Trunk Assets'!U188 -> 0 | AA190: ='[1]Existing Trunk Assets'!V188 -> 0 | AB190: ='[1]Existing Trunk Assets'!W188 -> 0 | BB190: 52900 | CF190: 52900 | CH190: 318150
D191: ='[1]Existing Trunk Assets'!D189 -> Passive | E191: ='[1]Existing Trunk Assets'!E189 -> Water Mains | F191: ='[1]Existing Trunk Assets'!F189 -> 0 | G191: ='[1]Existing Trunk Assets'!G189 -> Watermain - 112 m of 525dia. Asset No - 1210 | K191: 0 | L191: ='[1]Existing Trunk Assets'!M189 -> 117600 | N191: =IF(M191="",1,VLOOKUP(M191,'Unit Rates - Water'!$H$12:$I$23,2,FALSE)) -> 1 | O191: 117600 | R191: =IF(P191="",'Unit Rates - Land'!landcst,IF($E$8="Landuse",VLOOKUP(P191,LAndcost3,2,FALSE),IF($E$8="Location",VLOOKUP(P191,Landcost2,2,FALSE),"Error"))) -> 0 | S191: 0 | U191: =IFERROR(('General Input Sheet'!$G$38/(VLOOKUP('Existing Trunk Assets - Water'!T191,Histindex,3,FALSE))),1) -> 1 | V191: 117600 | W191: ='[1]Existing Trunk Assets'!R189 -> y | X191: ='[1]Existing Trunk Assets'!S189 -> 0 | Y191: ='[1]Existing Trunk Assets'!T189 -> 0 | Z191: ='[1]Existing Trunk Assets'!U189 -> 0 | AA191: ='[1]Existing Trunk Assets'!V189 -> 0 | AB191: ='[1]Existing Trunk Assets'!W189 -> 0 | BB191: 52900 | CF191: 52900 | CH191: 117600
D192: ='[1]Existing Trunk Assets'!D190 -> Passive | E192: ='[1]Existing Trunk Assets'!E190 -> Water Mains | F192: ='[1]Existing Trunk Assets'!F190 -> 0 | G192: ='[1]Existing Trunk Assets'!G190 -> Watermain - 137 m of 375dia. Asset No - 1221 | K192: 0 | L192: ='[1]Existing Trunk Assets'!M190 -> 98777 | N192: =IF(M192="",1,VLOOKUP(M192,'Unit Rates - Water'!$H$12:$I$23,2,FALSE)) -> 1 | O192: 98777 | R192: =IF(P192="",'Unit Rates - Land'!landcst,IF($E$8="Landuse",VLOOKUP(P192,LAndcost3,2,FALSE),IF($E$8="Location",VLOOKUP(P192,Landcost2,2,FALSE),"Error"))) -> 0 | S192: 0 | U192: =IFERROR(('General Input Sheet'!$G$38/(VLOOKUP('Existing Trunk Assets - Water'!T192,Histindex,3,FALSE))),1) -> 1 | V192: 98777 | W192: ='[1]Existing Trunk Assets'!R190 -> y | X192: ='[1]Existing Trunk Assets'!S190 -> 0 | Y192: ='[1]Existing Trunk Assets'!T190 -> 0 | Z192: ='[1]Existing Trunk Assets'!U190 -> 0 | AA192: ='[1]Existing Trunk Assets'!V190 -> 0 | AB192: ='[1]Existing Trunk Assets'!W190 -> 0 | BB192: 52900 | CF192: 52900 | CH192: 98777 | CR192: =IF(BL192="","",(BL192/$CF192)*$V192) -> 
D193: ='[1]Existing Trunk Assets'!D191 -> Passive | E193: ='[1]Existing Trunk Assets'!E191 -> Water Mains | F193: ='[1]Existing Trunk Assets'!F191 -> 0 | G193: ='[1]Existing Trunk Assets'!G191 -> Watermain - 108 m of 200dia. Asset No - 1222 | K193: 0 | L193: ='[1]Existing Trunk Assets'!M191 -> 46332 | N193: =IF(M193="",1,VLOOKUP(M193,'Unit Rates - Water'!$H$12:$I$23,2,FALSE)) -> 1 | O193: 46332 | R193: =IF(P193="",'Unit Rates - Land'!landcst,IF($E$8="Landuse",VLOOKUP(P193,LAndcost3,2,FALSE),IF($E$8="Location",VLOOKUP(P193,Landcost2,2,FALSE),"Error"))) -> 0 | S193: 0 | U193: =IFERROR(('General Input Sheet'!$G$38/(VLOOKUP('Existing Trunk Assets - Water'!T193,Histindex,3,FALSE))),1) -> 1 | V193: 46332 | W193: ='[1]Existing Trunk Assets'!R191 -> y | X193: ='[1]Existing Trunk Assets'!S191 -> 0 | Y193: ='[1]Existing Trunk Assets'!T191 -> 0 | Z193: ='[1]Existing Trunk Assets'!U191 -> 0 | AA193: ='[1]Existing Trunk Assets'!V191 -> 0 | AB193: ='[1]Existing Trunk Assets'!W191 -> 0 | BB193: 52900 | CF193: 52900 | CH193: 46332
D194: ='[1]Existing Trunk Assets'!D192 -> Passive | E194: ='[1]Existing Trunk Assets'!E192 -> Water Mains | F194: ='[1]Existing Trunk Assets'!F192 -> 0 | G194: ='[1]Existing Trunk Assets'!G192 -> Watermain - 60 m of 200dia. Asset No - 1223 | K194: 0 | L194: ='[1]Existing Trunk Assets'!M192 -> 25740 | N194: =IF(M194="",1,VLOOKUP(M194,'Unit Rates - Water'!$H$12:$I$23,2,FALSE)) -> 1 | O194: 25740 | R194: =IF(P194="",'Unit Rates - Land'!landcst,IF($E$8="Landuse",VLOOKUP(P194,LAndcost3,2,FALSE),IF($E$8="Location",VLOOKUP(P194,Landcost2,2,FALSE),"Error"))) -> 0 | S194: 0 | U194: =IFERROR(('General Input Sheet'!$G$38/(VLOOKUP('Existing Trunk Assets - Water'!T194,Histindex,3,FALSE))),1) -> 1 | V194: 25740 | W194: ='[1]Existing Trunk Assets'!R192 -> y | X194: ='[1]Existing Trunk Assets'!S192 -> 0 | Y194: ='[1]Existing Trunk Assets'!T192 -> 0 | Z194: ='[1]Existing Trunk Assets'!U192 -> 0 | AA194: ='[1]Existing Trunk Assets'!V192 -> 0 | AB194: ='[1]Existing Trunk Assets'!W192 -> 0 | BB194: 52900 | CF194: 52900 | CH194: 25740
D195: ='[1]Existing Trunk Assets'!D193 -> Passive | E195: ='[1]Existing Trunk Assets'!E193 -> Water Mains | F195: ='[1]Existing Trunk Assets'!F193 -> 0 | G195: ='[1]Existing Trunk Assets'!G193 -> Watermain - 459 m of 375dia. Asset No - 1226 | K195: 0 | L195: ='[1]Existing Trunk Assets'!M193 -> 330939 | N195: =IF(M195="",1,VLOOKUP(M195,'Unit Rates - Water'!$H$12:$I$23,2,FALSE)) -> 1 | O195: 330939 | R195: =IF(P195="",'Unit Rates - Land'!landcst,IF($E$8="Landuse",VLOOKUP(P195,LAndcost3,2,FALSE),IF($E$8="Location",VLOOKUP(P195,Landcost2,2,FALSE),"Error"))) -> 0 | S195: 0 | U195: =IFERROR(('General Input Sheet'!$G$38/(VLOOKUP('Existing Trunk Assets - Water'!T195,Histindex,3,FALSE))),1) -> 1 | V195: 330939 | W195: ='[1]Existing Trunk Assets'!R193 -> y | X195: ='[1]Existing Trunk Assets'!S193 -> 0 | Y195: ='[1]Existing Trunk Assets'!T193 -> 0 | Z195: ='[1]Existing Trunk Assets'!U193 -> 0 | AA195: ='[1]Existing Trunk Assets'!V193 -> 0 | AB195: ='[1]Existing Trunk Assets'!W193 -> 0 | BB195: 52900 | CF195: 52900 | CH195: 330939
D196: ='[1]Existing Trunk Assets'!D194 -> Passive | E196: ='[1]Existing Trunk Assets'!E194 -> Water Mains | F196: ='[1]Existing Trunk Assets'!F194 -> 0 | G196: ='[1]Existing Trunk Assets'!G194 -> Watermain - 111 m of 200dia. Asset No - 1243 | K196: 0 | L196: ='[1]Existing Trunk Assets'!M194 -> 47619 | N196: =IF(M196="",1,VLOOKUP(M196,'Unit Rates - Water'!$H$12:$I$23,2,FALSE)) -> 1 | O196: 47619 | R196: =IF(P196="",'Unit Rates - Land'!landcst,IF($E$8="Landuse",VLOOKUP(P196,LAndcost3,2,FALSE),IF($E$8="Location",VLOOKUP(P196,Landcost2,2,FALSE),"Error"))) -> 0 | S196: 0 | U196: =IFERROR(('General Input Sheet'!$G$38/(VLOOKUP('Existing Trunk Assets - Water'!T196,Histindex,3,FALSE))),1) -> 1 | V196: 47619 | W196: ='[1]Existing Trunk Assets'!R194 -> y | X196: ='[1]Existing Trunk Assets'!S194 -> 0 | Y196: ='[1]Existing Trunk Assets'!T194 -> 0 | Z196: ='[1]Existing Trunk Assets'!U194 -> 0 | AA196: ='[1]Existing Trunk Assets'!V194 -> 0 | AB196: ='[1]Existing Trunk Assets'!W194 -> 0 | BB196: 52900 | CF196: 52900 | CH196: 47619
D197: ='[1]Existing Trunk Assets'!D195 -> Passive | E197: ='[1]Existing Trunk Assets'!E195 -> Water Mains | F197: ='[1]Existing Trunk Assets'!F195 -> 0 | G197: ='[1]Existing Trunk Assets'!G195 -> Watermain - 84 m of 200dia. Asset No - 1244 | K197: 0 | L197: ='[1]Existing Trunk Assets'!M195 -> 36036 | N197: =IF(M197="",1,VLOOKUP(M197,'Unit Rates - Water'!$H$12:$I$23,2,FALSE)) -> 1 | O197: 36036 | R197: =IF(P197="",'Unit Rates - Land'!landcst,IF($E$8="Landuse",VLOOKUP(P197,LAndcost3,2,FALSE),IF($E$8="Location",VLOOKUP(P197,Landcost2,2,FALSE),"Error"))) -> 0 | S197: 0 | U197: =IFERROR(('General Input Sheet'!$G$38/(VLOOKUP('Existing Trunk Assets - Water'!T197,Histindex,3,FALSE))),1) -> 1 | V197: 36036 | W197: ='[1]Existing Trunk Assets'!R195 -> y | X197: ='[1]Existing Trunk Assets'!S195 -> 0 | Y197: ='[1]Existing Trunk Assets'!T195 -> 0 | Z197: ='[1]Existing Trunk Assets'!U195 -> 0 | AA197: ='[1]Existing Trunk Assets'!V195 -> 0 | AB197: ='[1]Existing Trunk Assets'!W195 -> 0 | BB197: 52900 | CF197: 52900 | CH197: 36036
D198: ='[1]Existing Trunk Assets'!D196 -> Passive | E198: ='[1]Existing Trunk Assets'!E196 -> Water Mains | F198: ='[1]Existing Trunk Assets'!F196 -> 0 | G198: ='[1]Existing Trunk Assets'!G196 -> Watermain - 89 m of 200dia. Asset No - 1247 | K198: 0 | L198: ='[1]Existing Trunk Assets'!M196 -> 38181 | N198: =IF(M198="",1,VLOOKUP(M198,'Unit Rates - Water'!$H$12:$I$23,2,FALSE)) -> 1 | O198: 38181 | R198: =IF(P198="",'Unit Rates - Land'!landcst,IF($E$8="Landuse",VLOOKUP(P198,LAndcost3,2,FALSE),IF($E$8="Location",VLOOKUP(P198,Landcost2,2,FALSE),"Error"))) -> 0 | S198: 0 | U198: =IFERROR(('General Input Sheet'!$G$38/(VLOOKUP('Existing Trunk Assets - Water'!T198,Histindex,3,FALSE))),1) -> 1 | V198: 38181 | W198: ='[1]Existing Trunk Assets'!R196 -> y | X198: ='[1]Existing Trunk Assets'!S196 -> 0 | Y198: ='[1]Existing Trunk Assets'!T196 -> 0 | Z198: ='[1]Existing Trunk Assets'!U196 -> 0 | AA198: ='[1]Existing Trunk Assets'!V196 -> 0 | AB198: ='[1]Existing Trunk Assets'!W196 -> 0 | BB198: 52900 | CF198: 52900 | CH198: 38181
D199: ='[1]Existing Trunk Assets'!D197 -> Passive | E199: ='[1]Existing Trunk Assets'!E197 -> Water Mains | F199: ='[1]Existing Trunk Assets'!F197 -> 0 | G199: ='[1]Existing Trunk Assets'!G197 -> Watermain - 108 m of 200dia. Asset No - 1248 | K199: 0 | L199: ='[1]Existing Trunk Assets'!M197 -> 46332 | N199: =IF(M199="",1,VLOOKUP(M199,'Unit Rates - Water'!$H$12:$I$23,2,FALSE)) -> 1 | O199: 46332 | R199: =IF(P199="",'Unit Rates - Land'!landcst,IF($E$8="Landuse",VLOOKUP(P199,LAndcost3,2,FALSE),IF($E$8="Location",VLOOKUP(P199,Landcost2,2,FALSE),"Error"))) -> 0 | S199: 0 | U199: =IFERROR(('General Input Sheet'!$G$38/(VLOOKUP('Existing Trunk Assets - Water'!T199,Histindex,3,FALSE))),1) -> 1 | V199: 46332 | W199: ='[1]Existing Trunk Assets'!R197 -> y | X199: ='[1]Existing Trunk Assets'!S197 -> 0 | Y199: ='[1]Existing Trunk Assets'!T197 -> 0 | Z199: ='[1]Existing Trunk Assets'!U197 -> 0 | AA199: ='[1]Existing Trunk Assets'!V197 -> 0 | AB199: ='[1]Existing Trunk Assets'!W197 -> 0 | BB199: 52900 | CF199: 52900 | CH199: 46332
D200: ='[1]Existing Trunk Assets'!D198 -> Passive | E200: ='[1]Existing Trunk Assets'!E198 -> Water Mains | F200: ='[1]Existing Trunk Assets'!F198 -> 0 | G200: ='[1]Existing Trunk Assets'!G198 -> Watermain - 471 m of 300dia. Asset No - 13 | K200: 0 | L200: ='[1]Existing Trunk Assets'!M198 -> 268941 | N200: =IF(M200="",1,VLOOKUP(M200,'Unit Rates - Water'!$H$12:$I$23,2,FALSE)) -> 1 | O200: 268941 | R200: =IF(P200="",'Unit Rates - Land'!landcst,IF($E$8="Landuse",VLOOKUP(P200,LAndcost3,2,FALSE),IF($E$8="Location",VLOOKUP(P200,Landcost2,2,FALSE),"Error"))) -> 0 | S200: 0 | U200: =IFERROR(('General Input Sheet'!$G$38/(VLOOKUP('Existing Trunk Assets - Water'!T200,Histindex,3,FALSE))),1) -> 1 | V200: 268941 | W200: ='[1]Existing Trunk Assets'!R198 -> y | X200: ='[1]Existing Trunk Assets'!S198 -> 0 | Y200: ='[1]Existing Trunk Assets'!T198 -> 0 | Z200: ='[1]Existing Trunk Assets'!U198 -> 0 | AA200: ='[1]Existing Trunk Assets'!V198 -> 0 | AB200: ='[1]Existing Trunk Assets'!W198 -> 0 | BB200: 52900 | CF200: 52900 | CH200: 268941 | CQ200: =IF(BK200="","",(BK200/$CF200)*$V200) -> 
D201: ='[1]Existing Trunk Assets'!D199 -> Passive | E201: ='[1]Existing Trunk Assets'!E199 -> Water Mains | F201: ='[1]Existing Trunk Assets'!F199 -> 0 | G201: ='[1]Existing Trunk Assets'!G199 -> Watermain - 241 m of 450dia. Asset No - 1325 | K201: 0 | L201: ='[1]Existing Trunk Assets'!M199 -> 210634 | N201: =IF(M201="",1,VLOOKUP(M201,'Unit Rates - Water'!$H$12:$I$23,2,FALSE)) -> 1 | O201: 210634 | R201: =IF(P201="",'Unit Rates - Land'!landcst,IF($E$8="Landuse",VLOOKUP(P201,LAndcost3,2,FALSE),IF($E$8="Location",VLOOKUP(P201,Landcost2,2,FALSE),"Error"))) -> 0 | S201: 0 | U201: =IFERROR(('General Input Sheet'!$G$38/(VLOOKUP('Existing Trunk Assets - Water'!T201,Histindex,3,FALSE))),1) -> 1 | V201: 210634 | W201: ='[1]Existing Trunk Assets'!R199 -> y | X201: ='[1]Existing Trunk Assets'!S199 -> 0 | Y201: ='[1]Existing Trunk Assets'!T199 -> 0 | Z201: ='[1]Existing Trunk Assets'!U199 -> 0 | AA201: ='[1]Existing Trunk Assets'!V199 -> 0 | AB201: ='[1]Existing Trunk Assets'!W199 -> 0 | BB201: 52900 | CF201: 52900 | CH201: =IF(BB201="","",(BB201/$CF201)*$V201) -> 210634
D202: ='[1]Existing Trunk Assets'!D200 -> Passive | E202: ='[1]Existing Trunk Assets'!E200 -> Water Mains | F202: ='[1]Existing Trunk Assets'!F200 -> 0 | G202: ='[1]Existing Trunk Assets'!G200 -> Watermain - 7 m of 250dia. Asset No - 1334 | K202: 0 | L202: ='[1]Existing Trunk Assets'!M200 -> 3423 | N202: =IF(M202="",1,VLOOKUP(M202,'Unit Rates - Water'!$H$12:$I$23,2,FALSE)) -> 1 | O202: 3423 | R202: =IF(P202="",'Unit Rates - Land'!landcst,IF($E$8="Landuse",VLOOKUP(P202,LAndcost3,2,FALSE),IF($E$8="Location",VLOOKUP(P202,Landcost2,2,FALSE),"Error"))) -> 0 | S202: 0 | U202: =IFERROR(('General Input Sheet'!$G$38/(VLOOKUP('Existing Trunk Assets - Water'!T202,Histindex,3,FALSE))),1) -> 1 | V202: 3423 | W202: ='[1]Existing Trunk Assets'!R200 -> y | X202: ='[1]Existing Trunk Assets'!S200 -> 0 | Y202: ='[1]Existing Trunk Assets'!T200 -> 0 | Z202: ='[1]Existing Trunk Assets'!U200 -> 0 | AA202: ='[1]Existing Trunk Assets'!V200 -> 0 | AB202: ='[1]Existing Trunk Assets'!W200 -> 0 | BB202: 52900 | CF202: 52900 | CH202: 3423
D203: ='[1]Existing Trunk Assets'!D201 -> Passive | E203: ='[1]Existing Trunk Assets'!E201 -> Water Mains | F203: ='[1]Existing Trunk Assets'!F201 -> 0 | G203: ='[1]Existing Trunk Assets'!G201 -> Watermain - 167 m of 250dia. Asset No - 1348 | K203: 0 | L203: ='[1]Existing Trunk Assets'!M201 -> 81663 | N203: =IF(M203="",1,VLOOKUP(M203,'Unit Rates - Water'!$H$12:$I$23,2,FALSE)) -> 1 | O203: 81663 | R203: =IF(P203="",'Unit Rates - Land'!landcst,IF($E$8="Landuse",VLOOKUP(P203,LAndcost3,2,FALSE),IF($E$8="Location",VLOOKUP(P203,Landcost2,2,FALSE),"Error"))) -> 0 | S203: 0 | U203: =IFERROR(('General Input Sheet'!$G$38/(VLOOKUP('Existing Trunk Assets - Water'!T203,Histindex,3,FALSE))),1) -> 1 | V203: 81663 | W203: ='[1]Existing Trunk Assets'!R201 -> y | X203: ='[1]Existing Trunk Assets'!S201 -> 0 | Y203: ='[1]Existing Trunk Assets'!T201 -> 0 | Z203: ='[1]Existing Trunk Assets'!U201 -> 0 | AA203: ='[1]Existing Trunk Assets'!V201 -> 0 | AB203: ='[1]Existing Trunk Assets'!W201 -> 0 | BB203: 52900 | CF203: 52900 | CH203: 81663 | DH203: =IF(CB203="","",(CB203/$CF203)*$V203) -> 
D204: ='[1]Existing Trunk Assets'!D202 -> Passive | E204: ='[1]Existing Trunk Assets'!E202 -> Water Mains | F204: ='[1]Existing Trunk Assets'!F202 -> 0 | G204: ='[1]Existing Trunk Assets'!G202 -> Watermain - 194 m of 250dia. Asset No - 1349 | K204: 0 | L204: ='[1]Existing Trunk Assets'!M202 -> 94866 | N204: =IF(M204="",1,VLOOKUP(M204,'Unit Rates - Water'!$H$12:$I$23,2,FALSE)) -> 1 | O204: 94866 | R204: =IF(P204="",'Unit Rates - Land'!landcst,IF($E$8="Landuse",VLOOKUP(P204,LAndcost3,2,FALSE),IF($E$8="Location",VLOOKUP(P204,Landcost2,2,FALSE),"Error"))) -> 0 | S204: 0 | U204: =IFERROR(('General Input Sheet'!$G$38/(VLOOKUP('Existing Trunk Assets - Water'!T204,Histindex,3,FALSE))),1) -> 1 | V204: 94866 | W204: ='[1]Existing Trunk Assets'!R202 -> y | X204: ='[1]Existing Trunk Assets'!S202 -> 0 | Y204: ='[1]Existing Trunk Assets'!T202 -> 0 | Z204: ='[1]Existing Trunk Assets'!U202 -> 0 | AA204: ='[1]Existing Trunk Assets'!V202 -> 0 | AB204: ='[1]Existing Trunk Assets'!W202 -> 0 | BB204: 52900 | CF204: 52900 | CH204: 94866
... 339 more rows

Sheet Existing Trunk Assets - Sewer (hidden)
B2: ='Navigation Pane'!C2 -> Gladstone Regional Council
B3: Wastewater
A4: Return to "Existing Trunk Assets"
B5: EXISTING TRUNK ASSETS
B8: Land Valuation Type | E8: Location | R8: =IF(H15=TYPE2,VLOOKUP((J15&"_"&K15),Sewerrates2,2,FALSE),"") -> 
I10: Asset Data | X10: Catchment Asset Allocation | BQ10: Asset Usage | CW10: Cost Allocation
B11: Basic Asset Data | H11: Asset Attributes | L11: Basic Asset Valuation | Q11: Land Attributes | U11: Refined Asset Value | X11: ='Catchment Demand- Sewer'!C8 -> A1 | Y11: ='Catchment Demand- Sewer'!$C9 -> A2 | Z11: ='Catchment Demand- Sewer'!$C10 -> A5 | AA11: ='Catchment Demand- Sewer'!$C11 -> A6 | AB11: ='Catchment Demand- Sewer'!$C12 -> A7 | AC11: ='Catchment Demand- Sewer'!$C13 -> A10 | AD11: ='Catchment Demand- Sewer'!$C14 -> C1 | AE11: ='Catchment Demand- Sewer'!$C15 -> C2 | AF11: ='Catchment Demand- Sewer'!$C16 -> C3 | AG11: ='Catchment Demand- Sewer'!$C17 -> D1 | AH11: ='Catchment Demand- Sewer'!$C18 -> P1 | AI11: ='Catchment Demand- Sewer'!$C19 -> 0 | AJ11: ='Catchment Demand- Sewer'!$C20 -> S1 | AK11: ='Catchment Demand- Sewer'!$C21 -> S4 | AL11: ='Catchment Demand- Sewer'!$C22 -> T1 | AM11: ='Catchment Demand- Sewer'!$C23 -> T2 | AN11: ='Catchment Demand- Sewer'!$C24 -> T5 | AO11: ='Catchment Demand- Sewer'!$C25 -> 0 | AP11: ='Catchment Demand- Sewer'!$C26 -> 0 | AQ11: ='Catchment Demand- Sewer'!$C27 -> 0 | AR11: ='Catchment Demand- Sewer'!$C28 -> 0 | AS11: ='Catchment Demand- Sewer'!$C29 -> 0 | AT11: ='Catchment Demand- Sewer'!$C30 -> Boyne/Tannum | AU11: ='Catchment Demand- Sewer'!$C31 -> Calliope | AV11: ='Catchment Demand- Sewer'!$C32 -> 0 | AW11: ='Catchment Demand- Sewer'!$C33 -> Agnes & 1770 | AX11: ='Catchment Demand- Sewer'!$C34 -> 0 | AY11: ='Catchment Demand- Sewer'!$C35 -> 0 | AZ11: ='Catchment Demand- Sewer'!$C36 -> 0 | BA11: ='Catchment Demand- Sewer'!$C37 -> 0 | BC11: =X11 -> A1 | BD11: =Y11 -> A2 | BE11: A5 | BF11: A6 | BG11: A7 | BH11: A10 | BI11: C1 | BJ11: C2 | BK11: C3 | BL11: D1 | BM11: P1 | BN11: 0 | BO11: S1 | BP11: S4 | BQ11: T1 | BR11: T2 | BS11: T5 | BT11: 0 | BU11: 0 | BV11: 0 | BW11: 0 | BX11: 0 | BY11: Boyne/Tannum | BZ11: Calliope | CA11: 0 | CB11: Agnes & 1770 | CC11: 0 | CD11: 0 | CE11: 0 | CF11: 0 | CG11: TOTALS | CI11: =BC11 -> A1 | CJ11: =BD11 -> A2 | CK11: A5 | CL11: A6 | CM11: A7 | CN11: A10 | CO11: C1 | CP11: C2 | CQ11: C3 | CR11: D1 | CS11: P1 | CT11: 0 | CU11: S1 | CV11: S4 | CW11: T1 | CX11: T2 | CY11: T5 | CZ11: 0 | DA11: 0 | DB11: 0 | DC11: 0 | DD11: 0 | DE11: Boyne/Tannum | DF11: Calliope | DG11: 0 | DH11: Agnes & 1770 | DI11: 0 | DJ11: 0 | DK11: 0 | DL11: 0 | DM11: Checksum 2
B12: Asset ID | C12: LGIP ID | D12: Asset Type (*) | E12: Asset Class | F12: Asset Name | G12: Description | H12: Unit Rate Type (*) | I12: Length/unit (*) | J12: Diameter (*) | K12: Depth (*) | L12: Unit Rate | M12: Baseline Valuation | N12: Site/Condition | O12: Multiplier | P12: Gross Value | Q12: Land Location/Type | R12: Size of land (ha) (*) | S12: Unit Cost | T12: Land Value | U12: Valuation Year | V12: Escalation | W12: Current Replaceement Costs
X13: 1 | Y13: =X13+1 -> 2 | Z13: =Y13+1 -> 3 | AA13: 4 | AB13: 5 | AC13: 6 | AD13: 7 | AE13: 8 | AF13: 9 | AG13: 10 | AH13: 11 | AI13: 12 | AJ13: 13 | AK13: 14 | AL13: 15 | AM13: 16 | AN13: 17 | AO13: 18 | AP13: 19 | AQ13: 20 | AR13: 21 | AS13: 22 | AT13: 23 | AU13: 24 | AV13: 25 | AW13: 26 | AX13: 27 | AY13: 28 | AZ13: 29 | BA13: 30
B14: Councils ID (from GIS, FAR, AMA etc.) | C14: ID from the LGIP drawings | E14: Pump Station, Gravity Main, Rising Main etc | M14: =SUM(M15:M1465) -> 162352521.7 | W14: =SUM(W15:W2000) -> 166383905.2 | X14: =IFERROR(VLOOKUP(X11,Sewcatch,6,FALSE),"") -> 6719 | Y14: 1387 | Z14: 1693 | AA14: 1669 | AB14: 129 | AC14: 2150 | AD14: 874 | AE14: 927 | AF14: 337 | AG14: 2860 | AH14: 2265 | AJ14: 11612 | AK14: 1173 | AL14: 147 | AM14: 1277 | AN14: 271 | AT14: 9466 | AU14: 7937 | AW14: 3000 | BC14: =X14 -> 6719 | BD14: =Y14 -> 1387 | BE14: 1693 | BF14: 1669 | BG14: 129 | BH14: 2150 | BI14: 874 | BJ14: 927 | BK14: 337 | BL14: 2860 | BM14: 2265 | BO14: 11612 | BP14: 1173 | BQ14: 147 | BR14: 1277 | BS14: 271 | BY14: 9466 | BZ14: 7937 | CB14: 3000 | CI14: =SUM(CI15:CI1523) -> 11645245.3 | CJ14: 2388281.301 | CK14: 5286107.701 | CL14: 3746653.886 | CM14: 556582.6332 | CN14: 4583005.005 | CO14: 2361878.323 | CP14: 2418106.727 | CQ14: 563375.1332 | CR14: 5160007.859 | CS14: 1876608.966 | CT14: 0 | CU14: 24437048.55 | CV14: 2388151.274 | CW14: 1193499.465 | CX14: 9337735.021 | CY14: 1657854.874 | CZ14: 0 | DA14: 0 | DB14: 0 | DC14: 0 | DD14: 0 | DE14: 60567848.44 | DF14: 8833381.63 | DG14: 0 | DH14: 5912656.847 | DI14: 0 | DJ14: 0 | DK14: 0 | DL14: 0 | DM14: 0
A15: =IF(W15='[2]Existing Trunk Assets'!$R12,"","Error") ->  | B15: ='[2]Existing Trunk Assets'!B12 -> 0 | C15: ='[2]Existing Trunk Assets'!C12 -> 0 | E15: ='[2]Existing Trunk Assets'!E12 -> Wastewater Treatment plants | F15: ='[2]Existing Trunk Assets'!F12 -> 0 | G15: ='[2]Existing Trunk Assets'!G12 -> WWTP - South Trees | I15: ='[2]Existing Trunk Assets'!J12 -> 0 | J15: ='[2]Existing Trunk Assets'!K12 -> 0 | L15: ='[2]Existing Trunk Assets'!$M$12 ->  | M15: ='[2]Existing Trunk Assets'!N12 -> 9600000 | O15: =IF(N15="",1,VLOOKUP(N15,Sewersitecond,2,FALSE)) -> 1 | P15: =IF(M15="","",M15*O15) -> 9600000 | S15: =IF(Q15="",'Unit Rates - Land'!landcst,IF($E$8="Landuse",VLOOKUP(Q15,LAndcost3,2,FALSE),IF($E$8="Location",VLOOKUP(Q15,Landcost2,2,FALSE),"Error"))) -> 0 | T15: =IF(S15="",0,S15*10000*R15) -> 0 | U15: ='[2]Existing Trunk Assets'!O12 -> 0 | V15: =IFERROR(('General Input Sheet'!$G$38/(VLOOKUP(U15,'General Input Sheet'!$E$38:$G$44,3,FALSE))),1) -> 1 | W15: =IFERROR((P15+T15)*V15,0) -> 9600000 | X15: ='[2]Existing Trunk Assets'!S12 -> 0 | Y15: ='[2]Existing Trunk Assets'!T12 -> 0 | Z15: ='[2]Existing Trunk Assets'!U12 -> 0 | AA15: ='[2]Existing Trunk Assets'!V12 -> 0 | AB15: ='[2]Existing Trunk Assets'!W12 -> 0 | AC15: ='[2]Existing Trunk Assets'!X12 -> 0 | AD15: ='[2]Existing Trunk Assets'!Y12 -> 0 | AE15: ='[2]Existing Trunk Assets'!Z12 -> 0 | AF15: ='[2]Existing Trunk Assets'!AA12 -> 0 | AG15: ='[2]Existing Trunk Assets'!AB12 -> 0 | AH15: ='[2]Existing Trunk Assets'!AC12 -> 0 | AI15: ='[2]Existing Trunk Assets'!AD12 -> 0 | AJ15: ='[2]Existing Trunk Assets'!AE12 -> 0 | AK15: ='[2]Existing Trunk Assets'!AF12 -> 0 | AL15: ='[2]Existing Trunk Assets'!AG12 -> y | AM15: ='[2]Existing Trunk Assets'!AH12 -> y | AN15: ='[2]Existing Trunk Assets'!AI12 -> y | AR15: ='[2]Existing Trunk Assets'!AM12 -> y | AS15: ='[2]Existing Trunk Assets'!AN12 -> 0 | AT15: ='[2]Existing Trunk Assets'!AO12 -> 0 | AU15: ='[2]Existing Trunk Assets'!AP12 -> 0 | AV15: ='[2]Existing Trunk Assets'!AQ12 -> 0 | AW15: ='[2]Existing Trunk Assets'!AR12 -> 0 | BC15: =IF(X15="y",BC$14,IF(AND(X15>0,X15<=1),X15*BC$14,"")) ->  | BD15: =IF(Y15="y",BD$14,IF(AND(Y15>0,Y15<=1),Y15*BD$14,"")) ->  | BQ15: 147 | BR15: 1277 | BS15: 271 | CG15: =SUM(BC15:CF15) -> 1695 | CI15: =IF(BC15="","",(BC15/$CG15)*$W15) ->  | CW15: 832566.3717 | CX15: 7232566.372 | CY15: =IF(BS15="","",(BS15/$CG15)*$W15) -> 1534867.257 | DM15: =IF(SUM(CI15:DL15)=W15,"","ERROR") -> 
A16: =IF(W16='[2]Existing Trunk Assets'!$R13,"","Error") ->  | B16: ='[2]Existing Trunk Assets'!B13 -> 0 | C16: ='[2]Existing Trunk Assets'!C13 -> 0 | E16: ='[2]Existing Trunk Assets'!E13 -> Wastewater Treatment plants | F16: ='[2]Existing Trunk Assets'!F13 -> 0 | G16: ='[2]Existing Trunk Assets'!G13 -> WWTP - Caliope River | I16: ='[2]Existing Trunk Assets'!J13 -> 0 | J16: ='[2]Existing Trunk Assets'!K13 -> 0 | L16: ='[2]Existing Trunk Assets'!$M$12 ->  | M16: ='[2]Existing Trunk Assets'!N13 -> 28000000 | O16: =IF(N16="",1,VLOOKUP(N16,Sewersitecond,2,FALSE)) -> 1 | P16: =IF(M16="","",M16*O16) -> 28000000 | S16: =IF(Q16="",'Unit Rates - Land'!landcst,IF($E$8="Landuse",VLOOKUP(Q16,LAndcost3,2,FALSE),IF($E$8="Location",VLOOKUP(Q16,Landcost2,2,FALSE),"Error"))) -> 0 | T16: =IF(S16="",0,S16*10000*R16) -> 0 | U16: ='[2]Existing Trunk Assets'!O13 -> 0 | V16: =IFERROR(('General Input Sheet'!$G$38/(VLOOKUP(U16,'General Input Sheet'!$E$38:$G$44,3,FALSE))),1) -> 1 | W16: =IFERROR((P16+T16)*V16,0) -> 28000000 | X16: ='[2]Existing Trunk Assets'!S13 -> y | Y16: ='[2]Existing Trunk Assets'!T13 -> y | Z16: ='[2]Existing Trunk Assets'!U13 -> y | AA16: ='[2]Existing Trunk Assets'!V13 -> y | AB16: ='[2]Existing Trunk Assets'!W13 -> y | AC16: ='[2]Existing Trunk Assets'!X13 -> y | AD16: ='[2]Existing Trunk Assets'!Y13 -> y | AE16: ='[2]Existing Trunk Assets'!Z13 -> y | AF16: ='[2]Existing Trunk Assets'!AA13 -> y | AG16: ='[2]Existing Trunk Assets'!AB13 -> y | AH16: ='[2]Existing Trunk Assets'!AC13 -> y | AI16: ='[2]Existing Trunk Assets'!AD13 -> y | AJ16: ='[2]Existing Trunk Assets'!AE13 -> y | AK16: ='[2]Existing Trunk Assets'!AF13 -> y | AL16: ='[2]Existing Trunk Assets'!AG13 -> 0 | AM16: ='[2]Existing Trunk Assets'!AH13 -> 0 | AN16: ='[2]Existing Trunk Assets'!AI13 -> 0 | AR16: ='[2]Existing Trunk Assets'!AM13 -> 0 | AS16: ='[2]Existing Trunk Assets'!AN13 -> 0 | AT16: ='[2]Existing Trunk Assets'!AO13 -> 0 | AU16: ='[2]Existing Trunk Assets'!AP13 -> 0 | AV16: ='[2]Existing Trunk Assets'!AQ13 -> 0 | AW16: ='[2]Existing Trunk Assets'!AR13 -> 0 | BC16: =IF(X16="y",BC$14,IF(AND(X16>0,X16<=1),X16*BC$14,"")) -> 6719 | BD16: 1387 | BE16: 1693 | BF16: 1669 | BG16: 129 | BH16: 2150 | BI16: 874 | BJ16: 927 | BK16: 337 | BL16: 2860 | BM16: 2265 | BO16: 11612 | BP16: 1173 | CG16: =SUM(BC16:CF16) -> 33795 | CI16: 5566859.003 | CJ16: 1149164.078 | CK16: 1402692.706 | CL16: 1382808.108 | CM16: 106879.7159 | CN16: 1781328.599 | CO16: 724130.7886 | CP16: 768042.6099 | CQ16: 279212.9013 | CR16: 2369581.299 | CS16: 1876608.966 | CU16: 9620831.484 | CV16: 971859.7426 | DM16: =IF(SUM(CI16:DL16)=W16,"","ERROR") -> 
A17: =IF(W17='[2]Existing Trunk Assets'!$R14,"","Error") ->  | B17: ='[2]Existing Trunk Assets'!B14 -> 0 | C17: ='[2]Existing Trunk Assets'!C14 -> 0 | E17: ='[2]Existing Trunk Assets'!E14 -> Wastewater Pump Stations | F17: ='[2]Existing Trunk Assets'!F14 -> SPS No C3 | G17: ='[2]Existing Trunk Assets'!G14 -> Neil Street | I17: ='[2]Existing Trunk Assets'!J14 -> 0 | J17: ='[2]Existing Trunk Assets'!K14 -> 0 | L17: ='[2]Existing Trunk Assets'!$M$12 ->  | M17: ='[2]Existing Trunk Assets'!N14 -> 92000 | O17: 1 | P17: 92000 | S17: =IF(Q17="",'Unit Rates - Land'!landcst,IF($E$8="Landuse",VLOOKUP(Q17,LAndcost3,2,FALSE),IF($E$8="Location",VLOOKUP(Q17,Landcost2,2,FALSE),"Error"))) -> 0 | T17: 0 | U17: ='[2]Existing Trunk Assets'!O14 -> 0 | V17: =IFERROR(('General Input Sheet'!$G$38/(VLOOKUP(U17,'General Input Sheet'!$E$38:$G$44,3,FALSE))),1) -> 1 | W17: 92000 | X17: ='[2]Existing Trunk Assets'!S14 ->  | Y17: ='[2]Existing Trunk Assets'!T14 -> 0 | Z17: ='[2]Existing Trunk Assets'!U14 -> 0 | AA17: ='[2]Existing Trunk Assets'!V14 -> 0 | AB17: ='[2]Existing Trunk Assets'!W14 -> 0 | AC17: ='[2]Existing Trunk Assets'!X14 -> 0 | AD17: ='[2]Existing Trunk Assets'!Y14 -> 0 | AE17: ='[2]Existing Trunk Assets'!Z14 -> 0 | AF17: ='[2]Existing Trunk Assets'!AA14 -> y | AG17: ='[2]Existing Trunk Assets'!AB14 -> 0 | AH17: ='[2]Existing Trunk Assets'!AC14 -> 0 | AI17: ='[2]Existing Trunk Assets'!AD14 -> 0 | AJ17: ='[2]Existing Trunk Assets'!AE14 -> 0 | AK17: ='[2]Existing Trunk Assets'!AF14 -> 0 | AL17: ='[2]Existing Trunk Assets'!AG14 -> 0 | AM17: ='[2]Existing Trunk Assets'!AH14 -> 0 | AN17: ='[2]Existing Trunk Assets'!AI14 -> 0 | AR17: ='[2]Existing Trunk Assets'!AM14 -> 0 | AS17: ='[2]Existing Trunk Assets'!AN14 -> 0 | AT17: ='[2]Existing Trunk Assets'!AO14 -> 0 | AU17: ='[2]Existing Trunk Assets'!AP14 -> 0 | AV17: ='[2]Existing Trunk Assets'!AQ14 -> 0 | AW17: ='[2]Existing Trunk Assets'!AR14 -> 0 | BK17: 337 | CG17: =SUM(BC17:CF17) -> 337 | CQ17: 92000 | DM17: =IF(SUM(CI17:DL17)=W17,"","ERROR") -> 
A18: =IF(W18='[2]Existing Trunk Assets'!$R15,"","Error") ->  | B18: ='[2]Existing Trunk Assets'!B15 -> 0 | C18: ='[2]Existing Trunk Assets'!C15 -> 0 | E18: ='[2]Existing Trunk Assets'!E15 -> Wastewater Pump Stations | F18: ='[2]Existing Trunk Assets'!F15 -> SPS No C2 | G18: ='[2]Existing Trunk Assets'!G15 -> Aerodrome Road | I18: ='[2]Existing Trunk Assets'!J15 -> 0 | J18: ='[2]Existing Trunk Assets'!K15 -> 0 | L18: ='[2]Existing Trunk Assets'!$M$12 ->  | M18: ='[2]Existing Trunk Assets'!N15 -> 214600 | O18: 1 | P18: 214600 | S18: =IF(Q18="",'Unit Rates - Land'!landcst,IF($E$8="Landuse",VLOOKUP(Q18,LAndcost3,2,FALSE),IF($E$8="Location",VLOOKUP(Q18,Landcost2,2,FALSE),"Error"))) -> 0 | T18: 0 | U18: ='[2]Existing Trunk Assets'!O15 -> 0 | V18: =IFERROR(('General Input Sheet'!$G$38/(VLOOKUP(U18,'General Input Sheet'!$E$38:$G$44,3,FALSE))),1) -> 1 | W18: 214600 | X18: ='[2]Existing Trunk Assets'!S15 ->  | Y18: ='[2]Existing Trunk Assets'!T15 -> 0 | Z18: ='[2]Existing Trunk Assets'!U15 -> 0 | AA18: ='[2]Existing Trunk Assets'!V15 -> 0 | AB18: ='[2]Existing Trunk Assets'!W15 -> 0 | AC18: ='[2]Existing Trunk Assets'!X15 -> 0 | AD18: ='[2]Existing Trunk Assets'!Y15 -> 0 | AE18: ='[2]Existing Trunk Assets'!Z15 -> y | AF18: ='[2]Existing Trunk Assets'!AA15 -> 0 | AG18: ='[2]Existing Trunk Assets'!AB15 -> 0 | AH18: ='[2]Existing Trunk Assets'!AC15 -> 0 | AI18: ='[2]Existing Trunk Assets'!AD15 -> 0 | AJ18: ='[2]Existing Trunk Assets'!AE15 -> 0 | AK18: ='[2]Existing Trunk Assets'!AF15 -> 0 | AL18: ='[2]Existing Trunk Assets'!AG15 -> 0 | AM18: ='[2]Existing Trunk Assets'!AH15 -> 0 | AN18: ='[2]Existing Trunk Assets'!AI15 -> 0 | AR18: ='[2]Existing Trunk Assets'!AM15 -> 0 | AS18: ='[2]Existing Trunk Assets'!AN15 -> 0 | AT18: ='[2]Existing Trunk Assets'!AO15 -> 0 | AU18: ='[2]Existing Trunk Assets'!AP15 -> 0 | AV18: ='[2]Existing Trunk Assets'!AQ15 -> 0 | AW18: ='[2]Existing Trunk Assets'!AR15 -> 0 | BJ18: 927 | CG18: =SUM(BC18:CF18) -> 927 | CP18: 214600 | DM18: =IF(SUM(CI18:DL18)=W18,"","ERROR") -> 
A19: =IF(W19='[2]Existing Trunk Assets'!$R16,"","Error") ->  | B19: ='[2]Existing Trunk Assets'!B16 -> 0 | C19: ='[2]Existing Trunk Assets'!C16 -> 0 | E19: ='[2]Existing Trunk Assets'!E16 -> Wastewater Pump Stations | F19: ='[2]Existing Trunk Assets'!F16 -> SPS No C1 | G19: ='[2]Existing Trunk Assets'!G16 -> Aerodrome Road - Airport | I19: ='[2]Existing Trunk Assets'!J16 -> 0 | J19: ='[2]Existing Trunk Assets'!K16 -> 0 | L19: ='[2]Existing Trunk Assets'!$M$12 ->  | M19: ='[2]Existing Trunk Assets'!N16 -> 142200 | O19: 1 | P19: 142200 | S19: =IF(Q19="",'Unit Rates - Land'!landcst,IF($E$8="Landuse",VLOOKUP(Q19,LAndcost3,2,FALSE),IF($E$8="Location",VLOOKUP(Q19,Landcost2,2,FALSE),"Error"))) -> 0 | T19: 0 | U19: ='[2]Existing Trunk Assets'!O16 -> 0 | V19: =IFERROR(('General Input Sheet'!$G$38/(VLOOKUP(U19,'General Input Sheet'!$E$38:$G$44,3,FALSE))),1) -> 1 | W19: 142200 | X19: ='[2]Existing Trunk Assets'!S16 ->  | Y19: ='[2]Existing Trunk Assets'!T16 -> 0 | Z19: ='[2]Existing Trunk Assets'!U16 -> 0 | AA19: ='[2]Existing Trunk Assets'!V16 -> 0 | AB19: ='[2]Existing Trunk Assets'!W16 -> 0 | AC19: ='[2]Existing Trunk Assets'!X16 -> 0 | AD19: ='[2]Existing Trunk Assets'!Y16 -> y | AE19: ='[2]Existing Trunk Assets'!Z16 -> 0 | AF19: ='[2]Existing Trunk Assets'!AA16 -> 0 | AG19: ='[2]Existing Trunk Assets'!AB16 -> 0 | AH19: ='[2]Existing Trunk Assets'!AC16 -> 0 | AI19: ='[2]Existing Trunk Assets'!AD16 -> 0 | AJ19: ='[2]Existing Trunk Assets'!AE16 -> 0 | AK19: ='[2]Existing Trunk Assets'!AF16 -> 0 | AL19: ='[2]Existing Trunk Assets'!AG16 -> 0 | AM19: ='[2]Existing Trunk Assets'!AH16 -> 0 | AN19: ='[2]Existing Trunk Assets'!AI16 -> 0 | AR19: ='[2]Existing Trunk Assets'!AM16 -> 0 | AS19: ='[2]Existing Trunk Assets'!AN16 -> 0 | AT19: ='[2]Existing Trunk Assets'!AO16 -> 0 | AU19: ='[2]Existing Trunk Assets'!AP16 -> 0 | AV19: ='[2]Existing Trunk Assets'!AQ16 -> 0 | AW19: ='[2]Existing Trunk Assets'!AR16 -> 0 | BI19: 874 | CG19: 874 | CO19: 142200
A20: =IF(W20='[2]Existing Trunk Assets'!$R17,"","Error") ->  | B20: ='[2]Existing Trunk Assets'!B17 -> 0 | C20: ='[2]Existing Trunk Assets'!C17 -> 0 | E20: ='[2]Existing Trunk Assets'!E17 -> Wastewater Pump Stations | F20: ='[2]Existing Trunk Assets'!F17 -> SPS No S1 | G20: ='[2]Existing Trunk Assets'!G17 -> Cemetery Road | I20: ='[2]Existing Trunk Assets'!J17 -> 0 | J20: ='[2]Existing Trunk Assets'!K17 -> 0 | L20: ='[2]Existing Trunk Assets'!$M$12 ->  | M20: ='[2]Existing Trunk Assets'!N17 -> 231000 | O20: 1 | P20: 231000 | S20: =IF(Q20="",'Unit Rates - Land'!landcst,IF($E$8="Landuse",VLOOKUP(Q20,LAndcost3,2,FALSE),IF($E$8="Location",VLOOKUP(Q20,Landcost2,2,FALSE),"Error"))) -> 0 | T20: 0 | U20: ='[2]Existing Trunk Assets'!O17 -> 0 | V20: =IFERROR(('General Input Sheet'!$G$38/(VLOOKUP(U20,'General Input Sheet'!$E$38:$G$44,3,FALSE))),1) -> 1 | W20: 231000 | X20: ='[2]Existing Trunk Assets'!S17 ->  | Y20: ='[2]Existing Trunk Assets'!T17 -> 0 | Z20: ='[2]Existing Trunk Assets'!U17 -> 0 | AA20: ='[2]Existing Trunk Assets'!V17 -> 0 | AB20: ='[2]Existing Trunk Assets'!W17 -> 0 | AC20: ='[2]Existing Trunk Assets'!X17 -> 0 | AD20: ='[2]Existing Trunk Assets'!Y17 -> y | AE20: ='[2]Existing Trunk Assets'!Z17 -> y | AF20: ='[2]Existing Trunk Assets'!AA17 -> y | AG20: ='[2]Existing Trunk Assets'!AB17 -> 0 | AH20: ='[2]Existing Trunk Assets'!AC17 -> 0 | AI20: ='[2]Existing Trunk Assets'!AD17 -> 0 | AJ20: ='[2]Existing Trunk Assets'!AE17 -> y | AK20: ='[2]Existing Trunk Assets'!AF17 -> y | AL20: ='[2]Existing Trunk Assets'!AG17 -> 0 | AM20: ='[2]Existing Trunk Assets'!AH17 -> 0 | AN20: ='[2]Existing Trunk Assets'!AI17 -> 0 | AR20: ='[2]Existing Trunk Assets'!AM17 -> 0 | AS20: ='[2]Existing Trunk Assets'!AN17 -> 0 | AT20: ='[2]Existing Trunk Assets'!AO17 -> 0 | AU20: ='[2]Existing Trunk Assets'!AP17 -> 0 | AV20: ='[2]Existing Trunk Assets'!AQ17 -> 0 | AW20: ='[2]Existing Trunk Assets'!AR17 -> 0 | BI20: 874 | BJ20: 927 | BK20: 337 | BO20: 11612 | BP20: 1173 | CG20: 14923 | CO20: 13529.04912 | CP20: 14349.46056 | CQ20: 5216.578436 | CU20: 179747.5039 | CV20: 18157.40803
A21: =IF(W21='[2]Existing Trunk Assets'!$R18,"","Error") ->  | B21: ='[2]Existing Trunk Assets'!B18 -> 0 | C21: ='[2]Existing Trunk Assets'!C18 -> 0 | E21: ='[2]Existing Trunk Assets'!E18 -> Wastewater Pump Stations | F21: ='[2]Existing Trunk Assets'!F18 -> SPS No D1 | G21: ='[2]Existing Trunk Assets'!G18 -> Garfield Street | I21: ='[2]Existing Trunk Assets'!J18 -> 0 | J21: ='[2]Existing Trunk Assets'!K18 -> 0 | L21: ='[2]Existing Trunk Assets'!$M$12 ->  | M21: ='[2]Existing Trunk Assets'!N18 -> 186000 | O21: 1 | P21: 186000 | S21: =IF(Q21="",'Unit Rates - Land'!landcst,IF($E$8="Landuse",VLOOKUP(Q21,LAndcost3,2,FALSE),IF($E$8="Location",VLOOKUP(Q21,Landcost2,2,FALSE),"Error"))) -> 0 | T21: 0 | U21: ='[2]Existing Trunk Assets'!O18 -> 0 | V21: =IFERROR(('General Input Sheet'!$G$38/(VLOOKUP(U21,'General Input Sheet'!$E$38:$G$44,3,FALSE))),1) -> 1 | W21: 186000 | X21: ='[2]Existing Trunk Assets'!S18 ->  | Y21: ='[2]Existing Trunk Assets'!T18 -> 0 | Z21: ='[2]Existing Trunk Assets'!U18 -> 0 | AA21: ='[2]Existing Trunk Assets'!V18 -> 0 | AB21: ='[2]Existing Trunk Assets'!W18 -> 0 | AC21: ='[2]Existing Trunk Assets'!X18 -> 0 | AD21: ='[2]Existing Trunk Assets'!Y18 -> 0 | AE21: ='[2]Existing Trunk Assets'!Z18 -> 0 | AF21: ='[2]Existing Trunk Assets'!AA18 -> 0 | AG21: ='[2]Existing Trunk Assets'!AB18 -> y | AH21: ='[2]Existing Trunk Assets'!AC18 -> 0 | AI21: ='[2]Existing Trunk Assets'!AD18 -> 0 | AJ21: ='[2]Existing Trunk Assets'!AE18 -> 0 | AK21: ='[2]Existing Trunk Assets'!AF18 -> 0 | AL21: ='[2]Existing Trunk Assets'!AG18 -> 0 | AM21: ='[2]Existing Trunk Assets'!AH18 -> 0 | AN21: ='[2]Existing Trunk Assets'!AI18 -> 0 | AR21: ='[2]Existing Trunk Assets'!AM18 -> 0 | AS21: ='[2]Existing Trunk Assets'!AN18 -> 0 | AT21: ='[2]Existing Trunk Assets'!AO18 -> 0 | AU21: ='[2]Existing Trunk Assets'!AP18 -> 0 | AV21: ='[2]Existing Trunk Assets'!AQ18 -> 0 | AW21: ='[2]Existing Trunk Assets'!AR18 -> 0 | BL21: 2860 | CG21: 2860 | CR21: 186000
A22: =IF(W22='[2]Existing Trunk Assets'!$R19,"","Error") ->  | B22: ='[2]Existing Trunk Assets'!B19 -> 0 | C22: ='[2]Existing Trunk Assets'!C19 -> 0 | E22: ='[2]Existing Trunk Assets'!E19 -> Wastewater Pump Stations | F22: ='[2]Existing Trunk Assets'!F19 -> SPS No A2 | G22: ='[2]Existing Trunk Assets'!G19 -> Strokarch Street | I22: ='[2]Existing Trunk Assets'!J19 -> 0 | J22: ='[2]Existing Trunk Assets'!K19 -> 0 | L22: ='[2]Existing Trunk Assets'!$M$12 ->  | M22: ='[2]Existing Trunk Assets'!N19 -> 300000 | O22: 1 | P22: 300000 | S22: =IF(Q22="",'Unit Rates - Land'!landcst,IF($E$8="Landuse",VLOOKUP(Q22,LAndcost3,2,FALSE),IF($E$8="Location",VLOOKUP(Q22,Landcost2,2,FALSE),"Error"))) -> 0 | T22: 0 | U22: ='[2]Existing Trunk Assets'!O19 -> 0 | V22: =IFERROR(('General Input Sheet'!$G$38/(VLOOKUP(U22,'General Input Sheet'!$E$38:$G$44,3,FALSE))),1) -> 1 | W22: 300000 | X22: ='[2]Existing Trunk Assets'!S19 ->  | Y22: ='[2]Existing Trunk Assets'!T19 -> y | Z22: ='[2]Existing Trunk Assets'!U19 -> y | AA22: ='[2]Existing Trunk Assets'!V19 -> y | AB22: ='[2]Existing Trunk Assets'!W19 -> y | AC22: ='[2]Existing Trunk Assets'!X19 -> 0 | AD22: ='[2]Existing Trunk Assets'!Y19 -> 0 | AE22: ='[2]Existing Trunk Assets'!Z19 -> 0 | AF22: ='[2]Existing Trunk Assets'!AA19 -> 0 | AG22: ='[2]Existing Trunk Assets'!AB19 -> 0 | AH22: ='[2]Existing Trunk Assets'!AC19 -> 0 | AI22: ='[2]Existing Trunk Assets'!AD19 -> 0 | AJ22: ='[2]Existing Trunk Assets'!AE19 -> 0 | AK22: ='[2]Existing Trunk Assets'!AF19 -> 0 | AL22: ='[2]Existing Trunk Assets'!AG19 -> 0 | AM22: ='[2]Existing Trunk Assets'!AH19 -> 0 | AN22: ='[2]Existing Trunk Assets'!AI19 -> 0 | AR22: ='[2]Existing Trunk Assets'!AM19 -> 0 | AS22: ='[2]Existing Trunk Assets'!AN19 -> 0 | AT22: ='[2]Existing Trunk Assets'!AO19 -> 0 | AU22: ='[2]Existing Trunk Assets'!AP19 -> 0 | AV22: ='[2]Existing Trunk Assets'!AQ19 -> 0 | AW22: ='[2]Existing Trunk Assets'!AR19 -> 0 | BD22: 1387 | BE22: 1693 | BF22: 1669 | BG22: 129 | CG22: 4878 | CJ22: 85301.35301 | CK22: 104120.5412 | CL22: 102644.5264 | CM22: 7933.579336
A23: =IF(W23='[2]Existing Trunk Assets'!$R20,"","Error") ->  | B23: ='[2]Existing Trunk Assets'!B20 -> 0 | C23: ='[2]Existing Trunk Assets'!C20 -> 0 | E23: ='[2]Existing Trunk Assets'!E20 -> Wastewater Pump Stations | F23: ='[2]Existing Trunk Assets'!F20 -> SPS No A6 | G23: ='[2]Existing Trunk Assets'!G20 -> Friend Street | I23: ='[2]Existing Trunk Assets'!J20 -> 0 | J23: ='[2]Existing Trunk Assets'!K20 -> 0 | L23: ='[2]Existing Trunk Assets'!$M$12 ->  | M23: ='[2]Existing Trunk Assets'!N20 -> 270000 | O23: 1 | P23: 270000 | S23: =IF(Q23="",'Unit Rates - Land'!landcst,IF($E$8="Landuse",VLOOKUP(Q23,LAndcost3,2,FALSE),IF($E$8="Location",VLOOKUP(Q23,Landcost2,2,FALSE),"Error"))) -> 0 | T23: 0 | U23: ='[2]Existing Trunk Assets'!O20 -> 0 | V23: =IFERROR(('General Input Sheet'!$G$38/(VLOOKUP(U23,'General Input Sheet'!$E$38:$G$44,3,FALSE))),1) -> 1 | W23: 270000 | X23: ='[2]Existing Trunk Assets'!S20 -> 0 | Y23: ='[2]Existing Trunk Assets'!T20 -> 0 | Z23: ='[2]Existing Trunk Assets'!U20 -> y | AA23: ='[2]Existing Trunk Assets'!V20 -> y | AB23: ='[2]Existing Trunk Assets'!W20 -> y | AC23: ='[2]Existing Trunk Assets'!X20 -> 0 | AD23: ='[2]Existing Trunk Assets'!Y20 -> 0 | AE23: ='[2]Existing Trunk Assets'!Z20 -> 0 | AF23: ='[2]Existing Trunk Assets'!AA20 -> 0 | AG23: ='[2]Existing Trunk Assets'!AB20 -> 0 | AH23: ='[2]Existing Trunk Assets'!AC20 -> 0 | AI23: ='[2]Existing Trunk Assets'!AD20 -> 0 | AJ23: ='[2]Existing Trunk Assets'!AE20 -> 0 | AK23: ='[2]Existing Trunk Assets'!AF20 -> 0 | AL23: ='[2]Existing Trunk Assets'!AG20 -> 0 | AM23: ='[2]Existing Trunk Assets'!AH20 -> 0 | AN23: ='[2]Existing Trunk Assets'!AI20 -> 0 | AR23: ='[2]Existing Trunk Assets'!AM20 -> 0 | AS23: ='[2]Existing Trunk Assets'!AN20 -> 0 | AT23: ='[2]Existing Trunk Assets'!AO20 -> 0 | AU23: ='[2]Existing Trunk Assets'!AP20 -> 0 | AV23: ='[2]Existing Trunk Assets'!AQ20 -> 0 | AW23: ='[2]Existing Trunk Assets'!AR20 -> 0 | BE23: 1693 | BF23: 1669 | BG23: 129 | CA23: =IF(AV23="y",CA$14,IF(AND(AV23>0,AV23<=1),AV23*CA$14,"")) ->  | CG23: 3491 | CK23: 130939.5589 | CL23: 129083.3572 | CM23: 9977.08393
A24: =IF(W24='[2]Existing Trunk Assets'!$R21,"","Error") ->  | B24: ='[2]Existing Trunk Assets'!B21 -> 0 | C24: ='[2]Existing Trunk Assets'!C21 -> 0 | E24: ='[2]Existing Trunk Assets'!E21 -> Wastewater Pump Stations | F24: ='[2]Existing Trunk Assets'!F21 -> SPS No A5 | G24: ='[2]Existing Trunk Assets'!G21 -> Agnes Street | I24: ='[2]Existing Trunk Assets'!J21 -> 0 | J24: ='[2]Existing Trunk Assets'!K21 -> 0 | L24: ='[2]Existing Trunk Assets'!$M$12 ->  | M24: ='[2]Existing Trunk Assets'!N21 -> 260000 | O24: 1 | P24: 260000 | S24: =IF(Q24="",'Unit Rates - Land'!landcst,IF($E$8="Landuse",VLOOKUP(Q24,LAndcost3,2,FALSE),IF($E$8="Location",VLOOKUP(Q24,Landcost2,2,FALSE),"Error"))) -> 0 | T24: 0 | U24: ='[2]Existing Trunk Assets'!O21 -> 0 | V24: =IFERROR(('General Input Sheet'!$G$38/(VLOOKUP(U24,'General Input Sheet'!$E$38:$G$44,3,FALSE))),1) -> 1 | W24: 260000 | X24: ='[2]Existing Trunk Assets'!S21 ->  | Y24: ='[2]Existing Trunk Assets'!T21 -> 0 | Z24: ='[2]Existing Trunk Assets'!U21 -> y | AA24: ='[2]Existing Trunk Assets'!V21 -> 0 | AB24: ='[2]Existing Trunk Assets'!W21 -> 0 | AC24: ='[2]Existing Trunk Assets'!X21 -> 0 | AD24: ='[2]Existing Trunk Assets'!Y21 -> 0 | AE24: ='[2]Existing Trunk Assets'!Z21 -> 0 | AF24: ='[2]Existing Trunk Assets'!AA21 -> 0 | AG24: ='[2]Existing Trunk Assets'!AB21 -> 0 | AH24: ='[2]Existing Trunk Assets'!AC21 -> 0 | AI24: ='[2]Existing Trunk Assets'!AD21 -> 0 | AJ24: ='[2]Existing Trunk Assets'!AE21 -> 0 | AK24: ='[2]Existing Trunk Assets'!AF21 -> 0 | AL24: ='[2]Existing Trunk Assets'!AG21 -> 0 | AM24: ='[2]Existing Trunk Assets'!AH21 -> 0 | AN24: ='[2]Existing Trunk Assets'!AI21 -> 0 | AR24: ='[2]Existing Trunk Assets'!AM21 -> 0 | AS24: ='[2]Existing Trunk Assets'!AN21 -> 0 | AT24: ='[2]Existing Trunk Assets'!AO21 -> 0 | AU24: ='[2]Existing Trunk Assets'!AP21 -> 0 | AV24: ='[2]Existing Trunk Assets'!AQ21 -> 0 | AW24: ='[2]Existing Trunk Assets'!AR21 -> 0 | BE24: 1693 | BS24: =IF(AN24="y",BS$14,IF(AND(AN24>0,AN24<=1),AN24*BS$14,"")) ->  | CG24: 1693 | CK24: 260000
A25: =IF(W25='[2]Existing Trunk Assets'!$R22,"","Error") ->  | B25: ='[2]Existing Trunk Assets'!B22 -> 0 | C25: ='[2]Existing Trunk Assets'!C22 -> 0 | E25: ='[2]Existing Trunk Assets'!E22 -> Wastewater Pump Stations | F25: ='[2]Existing Trunk Assets'!F22 -> SPS No A1 | G25: ='[2]Existing Trunk Assets'!G22 -> Lord Street | I25: ='[2]Existing Trunk Assets'!J22 -> 0 | J25: ='[2]Existing Trunk Assets'!K22 -> 0 | L25: ='[2]Existing Trunk Assets'!$M$12 ->  | M25: ='[2]Existing Trunk Assets'!N22 -> 356955 | O25: 1 | P25: 356955 | S25: =IF(Q25="",'Unit Rates - Land'!landcst,IF($E$8="Landuse",VLOOKUP(Q25,LAndcost3,2,FALSE),IF($E$8="Location",VLOOKUP(Q25,Landcost2,2,FALSE),"Error"))) -> 0 | T25: 0 | U25: ='[2]Existing Trunk Assets'!O22 -> 0 | V25: =IFERROR(('General Input Sheet'!$G$38/(VLOOKUP(U25,'General Input Sheet'!$E$38:$G$44,3,FALSE))),1) -> 1 | W25: 356955 | X25: ='[2]Existing Trunk Assets'!S22 -> y | Y25: ='[2]Existing Trunk Assets'!T22 -> y | Z25: ='[2]Existing Trunk Assets'!U22 -> y | AA25: ='[2]Existing Trunk Assets'!V22 -> y | AB25: ='[2]Existing Trunk Assets'!W22 -> y | AC25: ='[2]Existing Trunk Assets'!X22 -> y | AD25: ='[2]Existing Trunk Assets'!Y22 -> 0 | AE25: ='[2]Existing Trunk Assets'!Z22 -> 0 | AF25: ='[2]Existing Trunk Assets'!AA22 -> 0 | AG25: ='[2]Existing Trunk Assets'!AB22 -> y | AH25: ='[2]Existing Trunk Assets'!AC22 -> 0 | AI25: ='[2]Existing Trunk Assets'!AD22 -> 0 | AJ25: ='[2]Existing Trunk Assets'!AE22 -> 0 | AK25: ='[2]Existing Trunk Assets'!AF22 -> 0 | AL25: ='[2]Existing Trunk Assets'!AG22 -> 0 | AM25: ='[2]Existing Trunk Assets'!AH22 -> 0 | AN25: ='[2]Existing Trunk Assets'!AI22 -> 0 | AR25: ='[2]Existing Trunk Assets'!AM22 -> 0 | AS25: ='[2]Existing Trunk Assets'!AN22 -> 0 | AT25: ='[2]Existing Trunk Assets'!AO22 -> 0 | AU25: ='[2]Existing Trunk Assets'!AP22 -> 0 | AV25: ='[2]Existing Trunk Assets'!AQ22 -> 0 | AW25: ='[2]Existing Trunk Assets'!AR22 -> 0 | BC25: 6719 | BD25: 1387 | BE25: 1693 | BF25: 1669 | BG25: 129 | BH25: 2150 | BL25: 2860 | CG25: 16607 | CI25: 144419.8618 | CJ25: 29812.52394 | CK25: 36389.76426 | CL25: 35873.90227 | CM25: 2772.758174 | CN25: 46212.63624 | CR25: 61473.55332
A26: =IF(W26='[2]Existing Trunk Assets'!$R23,"","Error") ->  | B26: ='[2]Existing Trunk Assets'!B23 -> 0 | C26: ='[2]Existing Trunk Assets'!C23 -> 0 | E26: ='[2]Existing Trunk Assets'!E23 -> Wastewater Pump Stations | F26: ='[2]Existing Trunk Assets'!F23 -> SPS No A10 | G26: ='[2]Existing Trunk Assets'!G23 -> Palm Drive | I26: ='[2]Existing Trunk Assets'!J23 -> 0 | J26: ='[2]Existing Trunk Assets'!K23 -> 0 | L26: ='[2]Existing Trunk Assets'!$M$12 ->  | M26: ='[2]Existing Trunk Assets'!N23 -> 171600 | O26: 1 | P26: 171600 | S26: =IF(Q26="",'Unit Rates - Land'!landcst,IF($E$8="Landuse",VLOOKUP(Q26,LAndcost3,2,FALSE),IF($E$8="Location",VLOOKUP(Q26,Landcost2,2,FALSE),"Error"))) -> 0 | T26: 0 | U26: ='[2]Existing Trunk Assets'!O23 -> 0 | V26: =IFERROR(('General Input Sheet'!$G$38/(VLOOKUP(U26,'General Input Sheet'!$E$38:$G$44,3,FALSE))),1) -> 1 | W26: 171600 | X26: ='[2]Existing Trunk Assets'!S23 -> 0 | Y26: ='[2]Existing Trunk Assets'!T23 -> 0 | Z26: ='[2]Existing Trunk Assets'!U23 -> 0 | AA26: ='[2]Existing Trunk Assets'!V23 -> 0 | AB26: ='[2]Existing Trunk Assets'!W23 -> 0 | AC26: ='[2]Existing Trunk Assets'!X23 -> y | AD26: ='[2]Existing Trunk Assets'!Y23 -> 0 | AE26: ='[2]Existing Trunk Assets'!Z23 -> 0 | AF26: ='[2]Existing Trunk Assets'!AA23 -> 0 | AG26: ='[2]Existing Trunk Assets'!AB23 -> 0 | AH26: ='[2]Existing Trunk Assets'!AC23 -> 0 | AI26: ='[2]Existing Trunk Assets'!AD23 -> 0 | AJ26: ='[2]Existing Trunk Assets'!AE23 -> 0 | AK26: ='[2]Existing Trunk Assets'!AF23 -> 0 | AL26: ='[2]Existing Trunk Assets'!AG23 -> 0 | AM26: ='[2]Existing Trunk Assets'!AH23 -> 0 | AN26: ='[2]Existing Trunk Assets'!AI23 -> 0 | AR26: ='[2]Existing Trunk Assets'!AM23 -> 0 | AS26: ='[2]Existing Trunk Assets'!AN23 -> 0 | AT26: ='[2]Existing Trunk Assets'!AO23 -> 0 | AU26: ='[2]Existing Trunk Assets'!AP23 -> 0 | AV26: ='[2]Existing Trunk Assets'!AQ23 -> 0 | AW26: ='[2]Existing Trunk Assets'!AR23 -> 0 | BH26: 2150 | CG26: 2150 | CN26: 171600
A27: =IF(W27='[2]Existing Trunk Assets'!$R24,"","Error") ->  | B27: ='[2]Existing Trunk Assets'!B24 -> 0 | C27: ='[2]Existing Trunk Assets'!C24 -> 0 | E27: ='[2]Existing Trunk Assets'!E24 -> Wastewater Pump Stations | F27: ='[2]Existing Trunk Assets'!F24 -> SPS No S4 | G27: ='[2]Existing Trunk Assets'!G24 -> Clarence Drive | I27: ='[2]Existing Trunk Assets'!J24 -> 0 | J27: ='[2]Existing Trunk Assets'!K24 -> 0 | L27: ='[2]Existing Trunk Assets'!$M$12 ->  | M27: ='[2]Existing Trunk Assets'!N24 -> 126000 | O27: 1 | P27: 126000 | S27: =IF(Q27="",'Unit Rates - Land'!landcst,IF($E$8="Landuse",VLOOKUP(Q27,LAndcost3,2,FALSE),IF($E$8="Location",VLOOKUP(Q27,Landcost2,2,FALSE),"Error"))) -> 0 | T27: 0 | U27: ='[2]Existing Trunk Assets'!O24 -> 0 | V27: =IFERROR(('General Input Sheet'!$G$38/(VLOOKUP(U27,'General Input Sheet'!$E$38:$G$44,3,FALSE))),1) -> 1 | W27: 126000 | X27: ='[2]Existing Trunk Assets'!S24 ->  | Y27: ='[2]Existing Trunk Assets'!T24 -> 0 | Z27: ='[2]Existing Trunk Assets'!U24 -> 0 | AA27: ='[2]Existing Trunk Assets'!V24 -> 0 | AB27: ='[2]Existing Trunk Assets'!W24 -> 0 | AC27: ='[2]Existing Trunk Assets'!X24 -> 0 | AD27: ='[2]Existing Trunk Assets'!Y24 -> 0 | AE27: ='[2]Existing Trunk Assets'!Z24 -> 0 | AF27: ='[2]Existing Trunk Assets'!AA24 -> 0 | AG27: ='[2]Existing Trunk Assets'!AB24 -> 0 | AH27: ='[2]Existing Trunk Assets'!AC24 -> 0 | AI27: ='[2]Existing Trunk Assets'!AD24 -> 0 | AJ27: ='[2]Existing Trunk Assets'!AE24 -> 0 | AK27: ='[2]Existing Trunk Assets'!AF24 -> y | AL27: ='[2]Existing Trunk Assets'!AG24 -> 0 | AM27: ='[2]Existing Trunk Assets'!AH24 -> 0 | AN27: ='[2]Existing Trunk Assets'!AI24 -> 0 | AR27: ='[2]Existing Trunk Assets'!AM24 -> 0 | AS27: ='[2]Existing Trunk Assets'!AN24 -> 0 | AT27: ='[2]Existing Trunk Assets'!AO24 -> 0 | AU27: ='[2]Existing Trunk Assets'!AP24 -> 0 | AV27: ='[2]Existing Trunk Assets'!AQ24 -> 0 | AW27: ='[2]Existing Trunk Assets'!AR24 -> 0 | BP27: 1173 | CG27: 1173 | CV27: 126000
A28: =IF(W28='[2]Existing Trunk Assets'!$R25,"","Error") ->  | B28: ='[2]Existing Trunk Assets'!B25 -> 0 | C28: ='[2]Existing Trunk Assets'!C25 -> 0 | E28: ='[2]Existing Trunk Assets'!E25 -> Wastewater Pump Stations | F28: ='[2]Existing Trunk Assets'!F25 -> SPS No A7 | G28: ='[2]Existing Trunk Assets'!G25 -> Yaralla Street | I28: ='[2]Existing Trunk Assets'!J25 -> 0 | J28: ='[2]Existing Trunk Assets'!K25 -> 0 | L28: ='[2]Existing Trunk Assets'!$M$12 ->  | M28: ='[2]Existing Trunk Assets'!N25 -> 180000 | O28: 1 | P28: 180000 | S28: =IF(Q28="",'Unit Rates - Land'!landcst,IF($E$8="Landuse",VLOOKUP(Q28,LAndcost3,2,FALSE),IF($E$8="Location",VLOOKUP(Q28,Landcost2,2,FALSE),"Error"))) -> 0 | T28: 0 | U28: ='[2]Existing Trunk Assets'!O25 -> 0 | V28: =IFERROR(('General Input Sheet'!$G$38/(VLOOKUP(U28,'General Input Sheet'!$E$38:$G$44,3,FALSE))),1) -> 1 | W28: 180000 | X28: ='[2]Existing Trunk Assets'!S25 ->  | Y28: ='[2]Existing Trunk Assets'!T25 -> 0 | Z28: ='[2]Existing Trunk Assets'!U25 -> 0 | AA28: ='[2]Existing Trunk Assets'!V25 -> 0 | AB28: ='[2]Existing Trunk Assets'!W25 -> y | AC28: ='[2]Existing Trunk Assets'!X25 -> 0 | AD28: ='[2]Existing Trunk Assets'!Y25 -> 0 | AE28: ='[2]Existing Trunk Assets'!Z25 -> 0 | AF28: ='[2]Existing Trunk Assets'!AA25 -> 0 | AG28: ='[2]Existing Trunk Assets'!AB25 -> 0 | AH28: ='[2]Existing Trunk Assets'!AC25 -> 0 | AI28: ='[2]Existing Trunk Assets'!AD25 -> 0 | AJ28: ='[2]Existing Trunk Assets'!AE25 -> 0 | AK28: ='[2]Existing Trunk Assets'!AF25 -> 0 | AL28: ='[2]Existing Trunk Assets'!AG25 -> 0 | AM28: ='[2]Existing Trunk Assets'!AH25 -> 0 | AN28: ='[2]Existing Trunk Assets'!AI25 -> 0 | AR28: ='[2]Existing Trunk Assets'!AM25 -> 0 | AS28: ='[2]Existing Trunk Assets'!AN25 -> 0 | AT28: ='[2]Existing Trunk Assets'!AO25 -> 0 | AU28: ='[2]Existing Trunk Assets'!AP25 -> 0 | AV28: ='[2]Existing Trunk Assets'!AQ25 -> 0 | AW28: ='[2]Existing Trunk Assets'!AR25 -> 0 | BG28: 129 | CG28: 129 | CM28: 180000
A29: =IF(W29='[2]Existing Trunk Assets'!$R26,"","Error") -> Error | B29: ='[2]Existing Trunk Assets'!B26 -> 0 | C29: ='[2]Existing Trunk Assets'!C26 -> 0 | E29: ='[2]Existing Trunk Assets'!E26 -> Wastewater Treatment plants | F29: ='[2]Existing Trunk Assets'!F26 -> Tannum Sands STP | G29: ='[2]Existing Trunk Assets'!G26 -> 0 | I29: ='[2]Existing Trunk Assets'!J26 -> 0 | J29: ='[2]Existing Trunk Assets'!K26 -> 0 | L29: ='[2]Existing Trunk Assets'!$M$12 ->  | M29: ='[2]Existing Trunk Assets'!N26 -> 20000000 | O29: 1 | P29: 20000000 | S29: =IF(Q29="",'Unit Rates - Land'!landcst,IF($E$8="Landuse",VLOOKUP(Q29,LAndcost3,2,FALSE),IF($E$8="Location",VLOOKUP(Q29,Landcost2,2,FALSE),"Error"))) -> 0 | T29: 0 | U29: ='[2]Existing Trunk Assets'!O26 -> 2009 | V29: =IFERROR(('General Input Sheet'!$G$38/(VLOOKUP(U29,'General Input Sheet'!$E$38:$G$44,3,FALSE))),1) -> 1.061076605 | W29: 21221532.09 | X29: ='[2]Existing Trunk Assets'!S26 -> 0 | Y29: ='[2]Existing Trunk Assets'!T26 -> 0 | Z29: ='[2]Existing Trunk Assets'!U26 -> 0 | AA29: ='[2]Existing Trunk Assets'!V26 -> 0 | AB29: ='[2]Existing Trunk Assets'!W26 -> 0 | AC29: ='[2]Existing Trunk Assets'!X26 -> 0 | AD29: ='[2]Existing Trunk Assets'!Y26 -> 0 | AE29: ='[2]Existing Trunk Assets'!Z26 -> 0 | AF29: ='[2]Existing Trunk Assets'!AA26 -> 0 | AG29: ='[2]Existing Trunk Assets'!AB26 -> 0 | AH29: ='[2]Existing Trunk Assets'!AC26 -> 0 | AI29: ='[2]Existing Trunk Assets'!AD26 -> 0 | AJ29: ='[2]Existing Trunk Assets'!AE26 -> 0 | AK29: ='[2]Existing Trunk Assets'!AF26 -> 0 | AL29: ='[2]Existing Trunk Assets'!AG26 -> 0 | AM29: ='[2]Existing Trunk Assets'!AH26 -> 0 | AN29: ='[2]Existing Trunk Assets'!AI26 -> 0 | AR29: ='[2]Existing Trunk Assets'!AM26 -> 0 | AS29: ='[2]Existing Trunk Assets'!AN26 -> 0 | AT29: ='[2]Existing Trunk Assets'!AO26 -> y | AU29: ='[2]Existing Trunk Assets'!AP26 -> 0 | AV29: ='[2]Existing Trunk Assets'!AQ26 -> 0 | AW29: ='[2]Existing Trunk Assets'!AR26 -> 0 | BY29: 9466 | CG29: 9466 | DE29: 21221532.09
A30: =IF(W30='[2]Existing Trunk Assets'!$R27,"","Error") -> Error | B30: ='[2]Existing Trunk Assets'!B27 -> 0 | C30: ='[2]Existing Trunk Assets'!C27 -> 0 | E30: ='[2]Existing Trunk Assets'!E27 -> Wastewater Treatment plants | F30: ='[2]Existing Trunk Assets'!F27 -> Boyne STP | G30: ='[2]Existing Trunk Assets'!G27 -> 12000 EP Capacity | I30: ='[2]Existing Trunk Assets'!J27 -> 0 | J30: ='[2]Existing Trunk Assets'!K27 -> 0 | L30: ='[2]Existing Trunk Assets'!$M$12 ->  | M30: ='[2]Existing Trunk Assets'!N27 -> 19200000 | O30: 1 | P30: 19200000 | S30: =IF(Q30="",'Unit Rates - Land'!landcst,IF($E$8="Landuse",VLOOKUP(Q30,LAndcost3,2,FALSE),IF($E$8="Location",VLOOKUP(Q30,Landcost2,2,FALSE),"Error"))) -> 0 | T30: 0 | U30: ='[2]Existing Trunk Assets'!O27 -> 2009 | V30: =IFERROR(('General Input Sheet'!$G$38/(VLOOKUP(U30,'General Input Sheet'!$E$38:$G$44,3,FALSE))),1) -> 1.061076605 | W30: 20372670.81 | X30: ='[2]Existing Trunk Assets'!S27 -> 0 | Y30: ='[2]Existing Trunk Assets'!T27 -> 0 | Z30: ='[2]Existing Trunk Assets'!U27 -> 0 | AA30: ='[2]Existing Trunk Assets'!V27 -> 0 | AB30: ='[2]Existing Trunk Assets'!W27 -> 0 | AC30: ='[2]Existing Trunk Assets'!X27 -> 0 | AD30: ='[2]Existing Trunk Assets'!Y27 -> 0 | AE30: ='[2]Existing Trunk Assets'!Z27 -> 0 | AF30: ='[2]Existing Trunk Assets'!AA27 -> 0 | AG30: ='[2]Existing Trunk Assets'!AB27 -> 0 | AH30: ='[2]Existing Trunk Assets'!AC27 -> 0 | AI30: ='[2]Existing Trunk Assets'!AD27 -> 0 | AJ30: ='[2]Existing Trunk Assets'!AE27 -> 0 | AK30: ='[2]Existing Trunk Assets'!AF27 -> 0 | AL30: ='[2]Existing Trunk Assets'!AG27 -> 0 | AM30: ='[2]Existing Trunk Assets'!AH27 -> 0 | AN30: ='[2]Existing Trunk Assets'!AI27 -> 0 | AR30: ='[2]Existing Trunk Assets'!AM27 -> 0 | AS30: ='[2]Existing Trunk Assets'!AN27 -> 0 | AT30: ='[2]Existing Trunk Assets'!AO27 -> y | AU30: ='[2]Existing Trunk Assets'!AP27 -> 0 | AV30: ='[2]Existing Trunk Assets'!AQ27 -> 0 | AW30: ='[2]Existing Trunk Assets'!AR27 -> 0 | BY30: 9466 | CG30: 9466 | CX30: =IF(BR30="","",(BR30/$CG30)*$W30) ->  | DE30: 20372670.81
A31: =IF(W31='[2]Existing Trunk Assets'!$R28,"","Error") -> Error | B31: ='[2]Existing Trunk Assets'!B28 -> 0 | C31: ='[2]Existing Trunk Assets'!C28 -> 0 | E31: ='[2]Existing Trunk Assets'!E28 -> Wastewater Treatment plants | F31: ='[2]Existing Trunk Assets'!F28 -> Calliope Village STP | G31: ='[2]Existing Trunk Assets'!G28 -> 0 | I31: ='[2]Existing Trunk Assets'!J28 -> 0 | J31: ='[2]Existing Trunk Assets'!K28 -> 0 | L31: ='[2]Existing Trunk Assets'!$M$12 ->  | M31: ='[2]Existing Trunk Assets'!N28 -> 3200000 | O31: 1 | P31: 3200000 | S31: =IF(Q31="",'Unit Rates - Land'!landcst,IF($E$8="Landuse",VLOOKUP(Q31,LAndcost3,2,FALSE),IF($E$8="Location",VLOOKUP(Q31,Landcost2,2,FALSE),"Error"))) -> 0 | T31: 0 | U31: ='[2]Existing Trunk Assets'!O28 -> 2009 | V31: =IFERROR(('General Input Sheet'!$G$38/(VLOOKUP(U31,'General Input Sheet'!$E$38:$G$44,3,FALSE))),1) -> 1.061076605 | W31: 3395445.135 | X31: ='[2]Existing Trunk Assets'!S28 -> 0 | Y31: ='[2]Existing Trunk Assets'!T28 -> 0 | Z31: ='[2]Existing Trunk Assets'!U28 -> 0 | AA31: ='[2]Existing Trunk Assets'!V28 -> 0 | AB31: ='[2]Existing Trunk Assets'!W28 -> 0 | AC31: ='[2]Existing Trunk Assets'!X28 -> 0 | AD31: ='[2]Existing Trunk Assets'!Y28 -> 0 | AE31: ='[2]Existing Trunk Assets'!Z28 -> 0 | AF31: ='[2]Existing Trunk Assets'!AA28 -> 0 | AG31: ='[2]Existing Trunk Assets'!AB28 -> 0 | AH31: ='[2]Existing Trunk Assets'!AC28 -> 0 | AI31: ='[2]Existing Trunk Assets'!AD28 -> 0 | AJ31: ='[2]Existing Trunk Assets'!AE28 -> 0 | AK31: ='[2]Existing Trunk Assets'!AF28 -> 0 | AL31: ='[2]Existing Trunk Assets'!AG28 -> 0 | AM31: ='[2]Existing Trunk Assets'!AH28 -> 0 | AN31: ='[2]Existing Trunk Assets'!AI28 -> 0 | AR31: ='[2]Existing Trunk Assets'!AM28 -> 0 | AS31: ='[2]Existing Trunk Assets'!AN28 -> 0 | AT31: ='[2]Existing Trunk Assets'!AO28 -> 0 | AU31: ='[2]Existing Trunk Assets'!AP28 -> y | AV31: ='[2]Existing Trunk Assets'!AQ28 -> 0 | AW31: ='[2]Existing Trunk Assets'!AR28 -> 0 | BZ31: 7937 | CG31: 7937 | CI31: =IF(BC31="","",(BC31/$CG31)*$W31) ->  | DF31: 3395445.135
A32: =IF(W32='[2]Existing Trunk Assets'!$R29,"","Error") -> Error | B32: ='[2]Existing Trunk Assets'!B29 -> 0 | C32: ='[2]Existing Trunk Assets'!C29 -> 0 | E32: ='[2]Existing Trunk Assets'!E29 -> Wastewater Pump Stations | F32: ='[2]Existing Trunk Assets'!F29 -> SPS No B1 | G32: ='[2]Existing Trunk Assets'!G29 -> 0 | I32: ='[2]Existing Trunk Assets'!J29 -> 0 | J32: ='[2]Existing Trunk Assets'!K29 -> 0 | L32: ='[2]Existing Trunk Assets'!$M$12 ->  | M32: ='[2]Existing Trunk Assets'!N29 -> 1194400 | O32: 1 | P32: 1194400 | S32: =IF(Q32="",'Unit Rates - Land'!landcst,IF($E$8="Landuse",VLOOKUP(Q32,LAndcost3,2,FALSE),IF($E$8="Location",VLOOKUP(Q32,Landcost2,2,FALSE),"Error"))) -> 0 | T32: 0 | U32: ='[2]Existing Trunk Assets'!O29 -> 2009 | V32: =IFERROR(('General Input Sheet'!$G$38/(VLOOKUP(U32,'General Input Sheet'!$E$38:$G$44,3,FALSE))),1) -> 1.061076605 | W32: 1267349.896 | X32: ='[2]Existing Trunk Assets'!S29 -> 0 | Y32: ='[2]Existing Trunk Assets'!T29 -> 0 | Z32: ='[2]Existing Trunk Assets'!U29 -> 0 | AA32: ='[2]Existing Trunk Assets'!V29 -> 0 | AB32: ='[2]Existing Trunk Assets'!W29 -> 0 | AC32: ='[2]Existing Trunk Assets'!X29 -> 0 | AD32: ='[2]Existing Trunk Assets'!Y29 -> 0 | AE32: ='[2]Existing Trunk Assets'!Z29 -> 0 | AF32: ='[2]Existing Trunk Assets'!AA29 -> 0 | AG32: ='[2]Existing Trunk Assets'!AB29 -> 0 | AH32: ='[2]Existing Trunk Assets'!AC29 -> 0 | AI32: ='[2]Existing Trunk Assets'!AD29 -> 0 | AJ32: ='[2]Existing Trunk Assets'!AE29 -> 0 | AK32: ='[2]Existing Trunk Assets'!AF29 -> 0 | AL32: ='[2]Existing Trunk Assets'!AG29 -> 0 | AM32: ='[2]Existing Trunk Assets'!AH29 -> 0 | AN32: ='[2]Existing Trunk Assets'!AI29 -> 0 | AR32: ='[2]Existing Trunk Assets'!AM29 -> 0 | AS32: ='[2]Existing Trunk Assets'!AN29 -> 0 | AT32: ='[2]Existing Trunk Assets'!AO29 -> y | AU32: ='[2]Existing Trunk Assets'!AP29 -> 0 | AV32: ='[2]Existing Trunk Assets'!AQ29 -> 0 | AW32: ='[2]Existing Trunk Assets'!AR29 -> 0 | BC32: =IF(X32="y",BC$14,IF(AND(X32>0,X32<=1),X32*BC$14,"")) ->  | BY32: 9466 | CG32: 9466 | DE32: 1267349.896
A33: =IF(W33='[2]Existing Trunk Assets'!$R30,"","Error") -> Error | B33: ='[2]Existing Trunk Assets'!B30 -> 0 | C33: ='[2]Existing Trunk Assets'!C30 -> 0 | E33: ='[2]Existing Trunk Assets'!E30 -> Wastewater Pump Stations | F33: ='[2]Existing Trunk Assets'!F30 -> SPS No B2 | G33: ='[2]Existing Trunk Assets'!G30 -> 0 | I33: ='[2]Existing Trunk Assets'!J30 -> 0 | J33: ='[2]Existing Trunk Assets'!K30 -> 0 | L33: ='[2]Existing Trunk Assets'!$M$12 ->  | M33: ='[2]Existing Trunk Assets'!N30 -> 332700 | O33: 1 | P33: 332700 | S33: =IF(Q33="",'Unit Rates - Land'!landcst,IF($E$8="Landuse",VLOOKUP(Q33,LAndcost3,2,FALSE),IF($E$8="Location",VLOOKUP(Q33,Landcost2,2,FALSE),"Error"))) -> 0 | T33: 0 | U33: ='[2]Existing Trunk Assets'!O30 -> 2009 | V33: =IFERROR(('General Input Sheet'!$G$38/(VLOOKUP(U33,'General Input Sheet'!$E$38:$G$44,3,FALSE))),1) -> 1.061076605 | W33: 353020.1863 | X33: ='[2]Existing Trunk Assets'!S30 -> 0 | Y33: ='[2]Existing Trunk Assets'!T30 -> 0 | Z33: ='[2]Existing Trunk Assets'!U30 -> 0 | AA33: ='[2]Existing Trunk Assets'!V30 -> 0 | AB33: ='[2]Existing Trunk Assets'!W30 -> 0 | AC33: ='[2]Existing Trunk Assets'!X30 -> 0 | AD33: ='[2]Existing Trunk Assets'!Y30 -> 0 | AE33: ='[2]Existing Trunk Assets'!Z30 -> 0 | AF33: ='[2]Existing Trunk Assets'!AA30 -> 0 | AG33: ='[2]Existing Trunk Assets'!AB30 -> 0 | AH33: ='[2]Existing Trunk Assets'!AC30 -> 0 | AI33: ='[2]Existing Trunk Assets'!AD30 -> 0 | AJ33: ='[2]Existing Trunk Assets'!AE30 -> 0 | AK33: ='[2]Existing Trunk Assets'!AF30 -> 0 | AL33: ='[2]Existing Trunk Assets'!AG30 -> 0 | AM33: ='[2]Existing Trunk Assets'!AH30 -> 0 | AN33: ='[2]Existing Trunk Assets'!AI30 -> 0 | AR33: ='[2]Existing Trunk Assets'!AM30 -> 0 | AS33: ='[2]Existing Trunk Assets'!AN30 -> 0 | AT33: ='[2]Existing Trunk Assets'!AO30 -> y | AU33: ='[2]Existing Trunk Assets'!AP30 -> 0 | AV33: ='[2]Existing Trunk Assets'!AQ30 -> 0 | AW33: ='[2]Existing Trunk Assets'!AR30 -> 0 | BY33: 9466 | CG33: 9466 | DE33: 353020.1863
A34: =IF(W34='[2]Existing Trunk Assets'!$R31,"","Error") -> Error | B34: ='[2]Existing Trunk Assets'!B31 -> 0 | C34: ='[2]Existing Trunk Assets'!C31 -> 0 | E34: ='[2]Existing Trunk Assets'!E31 -> Wastewater Pump Stations | F34: ='[2]Existing Trunk Assets'!F31 -> SPS No B3 | G34: ='[2]Existing Trunk Assets'!G31 -> 0 | I34: ='[2]Existing Trunk Assets'!J31 -> 0 | J34: ='[2]Existing Trunk Assets'!K31 -> 0 | L34: ='[2]Existing Trunk Assets'!$M$12 ->  | M34: ='[2]Existing Trunk Assets'!N31 -> 252500 | O34: 1 | P34: 252500 | S34: =IF(Q34="",'Unit Rates - Land'!landcst,IF($E$8="Landuse",VLOOKUP(Q34,LAndcost3,2,FALSE),IF($E$8="Location",VLOOKUP(Q34,Landcost2,2,FALSE),"Error"))) -> 0 | T34: 0 | U34: ='[2]Existing Trunk Assets'!O31 -> 2009 | V34: =IFERROR(('General Input Sheet'!$G$38/(VLOOKUP(U34,'General Input Sheet'!$E$38:$G$44,3,FALSE))),1) -> 1.061076605 | W34: 267921.8427 | X34: ='[2]Existing Trunk Assets'!S31 -> 0 | Y34: ='[2]Existing Trunk Assets'!T31 -> 0 | Z34: ='[2]Existing Trunk Assets'!U31 -> 0 | AA34: ='[2]Existing Trunk Assets'!V31 -> 0 | AB34: ='[2]Existing Trunk Assets'!W31 -> 0 | AC34: ='[2]Existing Trunk Assets'!X31 -> 0 | AD34: ='[2]Existing Trunk Assets'!Y31 -> 0 | AE34: ='[2]Existing Trunk Assets'!Z31 -> 0 | AF34: ='[2]Existing Trunk Assets'!AA31 -> 0 | AG34: ='[2]Existing Trunk Assets'!AB31 -> 0 | AH34: ='[2]Existing Trunk Assets'!AC31 -> 0 | AI34: ='[2]Existing Trunk Assets'!AD31 -> 0 | AJ34: ='[2]Existing Trunk Assets'!AE31 -> 0 | AK34: ='[2]Existing Trunk Assets'!AF31 -> 0 | AL34: ='[2]Existing Trunk Assets'!AG31 -> 0 | AM34: ='[2]Existing Trunk Assets'!AH31 -> 0 | AN34: ='[2]Existing Trunk Assets'!AI31 -> 0 | AR34: ='[2]Existing Trunk Assets'!AM31 -> 0 | AS34: ='[2]Existing Trunk Assets'!AN31 -> 0 | AT34: ='[2]Existing Trunk Assets'!AO31 -> y | AU34: ='[2]Existing Trunk Assets'!AP31 -> 0 | AV34: ='[2]Existing Trunk Assets'!AQ31 -> 0 | AW34: ='[2]Existing Trunk Assets'!AR31 -> 0 | BY34: 9466 | CG34: 9466 | DE34: 267921.8427
A35: =IF(W35='[2]Existing Trunk Assets'!$R32,"","Error") -> Error | B35: ='[2]Existing Trunk Assets'!B32 -> 0 | C35: ='[2]Existing Trunk Assets'!C32 -> 0 | E35: ='[2]Existing Trunk Assets'!E32 -> Wastewater Pump Stations | F35: ='[2]Existing Trunk Assets'!F32 -> SPS No B4 | G35: ='[2]Existing Trunk Assets'!G32 -> 0 | I35: ='[2]Existing Trunk Assets'!J32 -> 0 | J35: ='[2]Existing Trunk Assets'!K32 -> 0 | L35: ='[2]Existing Trunk Assets'!$M$12 ->  | M35: ='[2]Existing Trunk Assets'!N32 -> 579600 | O35: 1 | P35: 579600 | S35: =IF(Q35="",'Unit Rates - Land'!landcst,IF($E$8="Landuse",VLOOKUP(Q35,LAndcost3,2,FALSE),IF($E$8="Location",VLOOKUP(Q35,Landcost2,2,FALSE),"Error"))) -> 0 | T35: 0 | U35: ='[2]Existing Trunk Assets'!O32 -> 2009 | V35: =IFERROR(('General Input Sheet'!$G$38/(VLOOKUP(U35,'General Input Sheet'!$E$38:$G$44,3,FALSE))),1) -> 1.061076605 | W35: 615000 | X35: ='[2]Existing Trunk Assets'!S32 -> 0 | Y35: ='[2]Existing Trunk Assets'!T32 -> 0 | Z35: ='[2]Existing Trunk Assets'!U32 -> 0 | AA35: ='[2]Existing Trunk Assets'!V32 -> 0 | AB35: ='[2]Existing Trunk Assets'!W32 -> 0 | AC35: ='[2]Existing Trunk Assets'!X32 -> 0 | AD35: ='[2]Existing Trunk Assets'!Y32 -> 0 | AE35: ='[2]Existing Trunk Assets'!Z32 -> 0 | AF35: ='[2]Existing Trunk Assets'!AA32 -> 0 | AG35: ='[2]Existing Trunk Assets'!AB32 -> 0 | AH35: ='[2]Existing Trunk Assets'!AC32 -> 0 | AI35: ='[2]Existing Trunk Assets'!AD32 -> 0 | AJ35: ='[2]Existing Trunk Assets'!AE32 -> 0 | AK35: ='[2]Existing Trunk Assets'!AF32 -> 0 | AL35: ='[2]Existing Trunk Assets'!AG32 -> 0 | AM35: ='[2]Existing Trunk Assets'!AH32 -> 0 | AN35: ='[2]Existing Trunk Assets'!AI32 -> 0 | AR35: ='[2]Existing Trunk Assets'!AM32 -> 0 | AS35: ='[2]Existing Trunk Assets'!AN32 -> 0 | AT35: ='[2]Existing Trunk Assets'!AO32 -> y | AU35: ='[2]Existing Trunk Assets'!AP32 -> 0 | AV35: ='[2]Existing Trunk Assets'!AQ32 -> 0 | AW35: ='[2]Existing Trunk Assets'!AR32 -> 0 | BY35: 9466 | CG35: 9466 | DE35: 615000
A36: =IF(W36='[2]Existing Trunk Assets'!$R33,"","Error") -> Error | B36: ='[2]Existing Trunk Assets'!B33 -> 0 | C36: ='[2]Existing Trunk Assets'!C33 -> 0 | E36: ='[2]Existing Trunk Assets'!E33 -> Wastewater Pump Stations | F36: ='[2]Existing Trunk Assets'!F33 -> SPS No B6 | G36: ='[2]Existing Trunk Assets'!G33 -> 0 | I36: ='[2]Existing Trunk Assets'!J33 -> 0 | J36: ='[2]Existing Trunk Assets'!K33 -> 0 | L36: ='[2]Existing Trunk Assets'!$M$12 ->  | M36: ='[2]Existing Trunk Assets'!N33 -> 282900 | O36: 1 | P36: 282900 | S36: =IF(Q36="",'Unit Rates - Land'!landcst,IF($E$8="Landuse",VLOOKUP(Q36,LAndcost3,2,FALSE),IF($E$8="Location",VLOOKUP(Q36,Landcost2,2,FALSE),"Error"))) -> 0 | T36: 0 | U36: ='[2]Existing Trunk Assets'!O33 -> 2009 | V36: =IFERROR(('General Input Sheet'!$G$38/(VLOOKUP(U36,'General Input Sheet'!$E$38:$G$44,3,FALSE))),1) -> 1.061076605 | W36: 300178.5714 | X36: ='[2]Existing Trunk Assets'!S33 -> 0 | Y36: ='[2]Existing Trunk Assets'!T33 -> 0 | Z36: ='[2]Existing Trunk Assets'!U33 -> 0 | AA36: ='[2]Existing Trunk Assets'!V33 -> 0 | AB36: ='[2]Existing Trunk Assets'!W33 -> 0 | AC36: ='[2]Existing Trunk Assets'!X33 -> 0 | AD36: ='[2]Existing Trunk Assets'!Y33 -> 0 | AE36: ='[2]Existing Trunk Assets'!Z33 -> 0 | AF36: ='[2]Existing Trunk Assets'!AA33 -> 0 | AG36: ='[2]Existing Trunk Assets'!AB33 -> 0 | AH36: ='[2]Existing Trunk Assets'!AC33 -> 0 | AI36: ='[2]Existing Trunk Assets'!AD33 -> 0 | AJ36: ='[2]Existing Trunk Assets'!AE33 -> 0 | AK36: ='[2]Existing Trunk Assets'!AF33 -> 0 | AL36: ='[2]Existing Trunk Assets'!AG33 -> 0 | AM36: ='[2]Existing Trunk Assets'!AH33 -> 0 | AN36: ='[2]Existing Trunk Assets'!AI33 -> 0 | AR36: ='[2]Existing Trunk Assets'!AM33 -> 0 | AS36: ='[2]Existing Trunk Assets'!AN33 -> 0 | AT36: ='[2]Existing Trunk Assets'!AO33 -> y | AU36: ='[2]Existing Trunk Assets'!AP33 -> 0 | AV36: ='[2]Existing Trunk Assets'!AQ33 -> 0 | AW36: ='[2]Existing Trunk Assets'!AR33 -> 0 | BY36: 9466 | CG36: 9466 | DE36: 300178.5714
A37: =IF(W37='[2]Existing Trunk Assets'!$R34,"","Error") -> Error | B37: ='[2]Existing Trunk Assets'!B34 -> 0 | C37: ='[2]Existing Trunk Assets'!C34 -> 0 | E37: ='[2]Existing Trunk Assets'!E34 -> Wastewater Pump Stations | F37: ='[2]Existing Trunk Assets'!F34 -> SPS No T1 | G37: ='[2]Existing Trunk Assets'!G34 -> 0 | I37: ='[2]Existing Trunk Assets'!J34 -> 0 | J37: ='[2]Existing Trunk Assets'!K34 -> 0 | L37: ='[2]Existing Trunk Assets'!$M$12 ->  | M37: ='[2]Existing Trunk Assets'!N34 -> 731700 | O37: 1 | P37: 731700 | S37: =IF(Q37="",'Unit Rates - Land'!landcst,IF($E$8="Landuse",VLOOKUP(Q37,LAndcost3,2,FALSE),IF($E$8="Location",VLOOKUP(Q37,Landcost2,2,FALSE),"Error"))) -> 0 | T37: 0 | U37: ='[2]Existing Trunk Assets'!O34 -> 2009 | V37: =IFERROR(('General Input Sheet'!$G$38/(VLOOKUP(U37,'General Input Sheet'!$E$38:$G$44,3,FALSE))),1) -> 1.061076605 | W37: 776389.7516 | X37: ='[2]Existing Trunk Assets'!S34 -> 0 | Y37: ='[2]Existing Trunk Assets'!T34 -> 0 | Z37: ='[2]Existing Trunk Assets'!U34 -> 0 | AA37: ='[2]Existing Trunk Assets'!V34 -> 0 | AB37: ='[2]Existing Trunk Assets'!W34 -> 0 | AC37: ='[2]Existing Trunk Assets'!X34 -> 0 | AD37: ='[2]Existing Trunk Assets'!Y34 -> 0 | AE37: ='[2]Existing Trunk Assets'!Z34 -> 0 | AF37: ='[2]Existing Trunk Assets'!AA34 -> 0 | AG37: ='[2]Existing Trunk Assets'!AB34 -> 0 | AH37: ='[2]Existing Trunk Assets'!AC34 -> 0 | AI37: ='[2]Existing Trunk Assets'!AD34 -> 0 | AJ37: ='[2]Existing Trunk Assets'!AE34 -> 0 | AK37: ='[2]Existing Trunk Assets'!AF34 -> 0 | AL37: ='[2]Existing Trunk Assets'!AG34 -> 0 | AM37: ='[2]Existing Trunk Assets'!AH34 -> 0 | AN37: ='[2]Existing Trunk Assets'!AI34 -> 0 | AR37: ='[2]Existing Trunk Assets'!AM34 -> 0 | AS37: ='[2]Existing Trunk Assets'!AN34 -> 0 | AT37: ='[2]Existing Trunk Assets'!AO34 -> y | AU37: ='[2]Existing Trunk Assets'!AP34 -> 0 | AV37: ='[2]Existing Trunk Assets'!AQ34 -> 0 | AW37: ='[2]Existing Trunk Assets'!AR34 -> 0 | BY37: 9466 | CG37: 9466 | DE37: 776389.7516
A38: =IF(W38='[2]Existing Trunk Assets'!$R35,"","Error") -> Error | B38: ='[2]Existing Trunk Assets'!B35 -> 0 | C38: ='[2]Existing Trunk Assets'!C35 -> 0 | E38: ='[2]Existing Trunk Assets'!E35 -> Wastewater Pump Stations | F38: ='[2]Existing Trunk Assets'!F35 -> SPS No T2 | G38: ='[2]Existing Trunk Assets'!G35 -> 0 | I38: ='[2]Existing Trunk Assets'!J35 -> 0 | J38: ='[2]Existing Trunk Assets'!K35 -> 0 | L38: ='[2]Existing Trunk Assets'!$M$12 ->  | M38: ='[2]Existing Trunk Assets'!N35 -> 292500 | O38: 1 | P38: 292500 | S38: =IF(Q38="",'Unit Rates - Land'!landcst,IF($E$8="Landuse",VLOOKUP(Q38,LAndcost3,2,FALSE),IF($E$8="Location",VLOOKUP(Q38,Landcost2,2,FALSE),"Error"))) -> 0 | T38: 0 | U38: ='[2]Existing Trunk Assets'!O35 -> 2009 | V38: =IFERROR(('General Input Sheet'!$G$38/(VLOOKUP(U38,'General Input Sheet'!$E$38:$G$44,3,FALSE))),1) -> 1.061076605 | W38: 310364.9068 | X38: ='[2]Existing Trunk Assets'!S35 -> 0 | Y38: ='[2]Existing Trunk Assets'!T35 -> 0 | Z38: ='[2]Existing Trunk Assets'!U35 -> 0 | AA38: ='[2]Existing Trunk Assets'!V35 -> 0 | AB38: ='[2]Existing Trunk Assets'!W35 -> 0 | AC38: ='[2]Existing Trunk Assets'!X35 -> 0 | AD38: ='[2]Existing Trunk Assets'!Y35 -> 0 | AE38: ='[2]Existing Trunk Assets'!Z35 -> 0 | AF38: ='[2]Existing Trunk Assets'!AA35 -> 0 | AG38: ='[2]Existing Trunk Assets'!AB35 -> 0 | AH38: ='[2]Existing Trunk Assets'!AC35 -> 0 | AI38: ='[2]Existing Trunk Assets'!AD35 -> 0 | AJ38: ='[2]Existing Trunk Assets'!AE35 -> 0 | AK38: ='[2]Existing Trunk Assets'!AF35 -> 0 | AL38: ='[2]Existing Trunk Assets'!AG35 -> 0 | AM38: ='[2]Existing Trunk Assets'!AH35 -> 0 | AN38: ='[2]Existing Trunk Assets'!AI35 -> 0 | AR38: ='[2]Existing Trunk Assets'!AM35 -> 0 | AS38: ='[2]Existing Trunk Assets'!AN35 -> 0 | AT38: ='[2]Existing Trunk Assets'!AO35 -> y | AU38: ='[2]Existing Trunk Assets'!AP35 -> 0 | AV38: ='[2]Existing Trunk Assets'!AQ35 -> 0 | AW38: ='[2]Existing Trunk Assets'!AR35 -> 0 | BY38: 9466 | CG38: 9466 | DE38: 310364.9068
A39: =IF(W39='[2]Existing Trunk Assets'!$R36,"","Error") -> Error | B39: ='[2]Existing Trunk Assets'!B36 -> 0 | C39: ='[2]Existing Trunk Assets'!C36 -> 0 | E39: ='[2]Existing Trunk Assets'!E36 -> Wastewater Pump Stations | F39: ='[2]Existing Trunk Assets'!F36 -> SPS No T3 | G39: ='[2]Existing Trunk Assets'!G36 -> 0 | I39: ='[2]Existing Trunk Assets'!J36 -> 0 | J39: ='[2]Existing Trunk Assets'!K36 -> 0 | L39: ='[2]Existing Trunk Assets'!$M$12 ->  | M39: ='[2]Existing Trunk Assets'!N36 -> 1529800 | O39: 1 | P39: 1529800 | S39: =IF(Q39="",'Unit Rates - Land'!landcst,IF($E$8="Landuse",VLOOKUP(Q39,LAndcost3,2,FALSE),IF($E$8="Location",VLOOKUP(Q39,Landcost2,2,FALSE),"Error"))) -> 0 | T39: 0 | U39: ='[2]Existing Trunk Assets'!O36 -> 2009 | V39: =IFERROR(('General Input Sheet'!$G$38/(VLOOKUP(U39,'General Input Sheet'!$E$38:$G$44,3,FALSE))),1) -> 1.061076605 | W39: 1623234.99 | X39: ='[2]Existing Trunk Assets'!S36 -> 0 | Y39: ='[2]Existing Trunk Assets'!T36 -> 0 | Z39: ='[2]Existing Trunk Assets'!U36 -> 0 | AA39: ='[2]Existing Trunk Assets'!V36 -> 0 | AB39: ='[2]Existing Trunk Assets'!W36 -> 0 | AC39: ='[2]Existing Trunk Assets'!X36 -> 0 | AD39: ='[2]Existing Trunk Assets'!Y36 -> 0 | AE39: ='[2]Existing Trunk Assets'!Z36 -> 0 | AF39: ='[2]Existing Trunk Assets'!AA36 -> 0 | AG39: ='[2]Existing Trunk Assets'!AB36 -> 0 | AH39: ='[2]Existing Trunk Assets'!AC36 -> 0 | AI39: ='[2]Existing Trunk Assets'!AD36 -> 0 | AJ39: ='[2]Existing Trunk Assets'!AE36 -> 0 | AK39: ='[2]Existing Trunk Assets'!AF36 -> 0 | AL39: ='[2]Existing Trunk Assets'!AG36 -> 0 | AM39: ='[2]Existing Trunk Assets'!AH36 -> 0 | AN39: ='[2]Existing Trunk Assets'!AI36 -> 0 | AR39: ='[2]Existing Trunk Assets'!AM36 -> 0 | AS39: ='[2]Existing Trunk Assets'!AN36 -> 0 | AT39: ='[2]Existing Trunk Assets'!AO36 -> y | AU39: ='[2]Existing Trunk Assets'!AP36 -> 0 | AV39: ='[2]Existing Trunk Assets'!AQ36 -> 0 | AW39: ='[2]Existing Trunk Assets'!AR36 -> 0 | BY39: 9466 | CG39: 9466 | DE39: 1623234.99
A40: =IF(W40='[2]Existing Trunk Assets'!$R37,"","Error") -> Error | B40: ='[2]Existing Trunk Assets'!B37 -> 0 | C40: ='[2]Existing Trunk Assets'!C37 -> 0 | E40: ='[2]Existing Trunk Assets'!E37 -> Wastewater Pump Stations | F40: ='[2]Existing Trunk Assets'!F37 -> SPS No T4 | G40: ='[2]Existing Trunk Assets'!G37 -> 0 | I40: ='[2]Existing Trunk Assets'!J37 -> 0 | J40: ='[2]Existing Trunk Assets'!K37 -> 0 | L40: ='[2]Existing Trunk Assets'!$M$12 ->  | M40: ='[2]Existing Trunk Assets'!N37 -> 406400 | O40: 1 | P40: 406400 | S40: =IF(Q40="",'Unit Rates - Land'!landcst,IF($E$8="Landuse",VLOOKUP(Q40,LAndcost3,2,FALSE),IF($E$8="Location",VLOOKUP(Q40,Landcost2,2,FALSE),"Error"))) -> 0 | T40: 0 | U40: ='[2]Existing Trunk Assets'!O37 -> 2009 | V40: =IFERROR(('General Input Sheet'!$G$38/(VLOOKUP(U40,'General Input Sheet'!$E$38:$G$44,3,FALSE))),1) -> 1.061076605 | W40: 431221.5321 | X40: ='[2]Existing Trunk Assets'!S37 -> 0 | Y40: ='[2]Existing Trunk Assets'!T37 -> 0 | Z40: ='[2]Existing Trunk Assets'!U37 -> 0 | AA40: ='[2]Existing Trunk Assets'!V37 -> 0 | AB40: ='[2]Existing Trunk Assets'!W37 -> 0 | AC40: ='[2]Existing Trunk Assets'!X37 -> 0 | AD40: ='[2]Existing Trunk Assets'!Y37 -> 0 | AE40: ='[2]Existing Trunk Assets'!Z37 -> 0 | AF40: ='[2]Existing Trunk Assets'!AA37 -> 0 | AG40: ='[2]Existing Trunk Assets'!AB37 -> 0 | AH40: ='[2]Existing Trunk Assets'!AC37 -> 0 | AI40: ='[2]Existing Trunk Assets'!AD37 -> 0 | AJ40: ='[2]Existing Trunk Assets'!AE37 -> 0 | AK40: ='[2]Existing Trunk Assets'!AF37 -> 0 | AL40: ='[2]Existing Trunk Assets'!AG37 -> 0 | AM40: ='[2]Existing Trunk Assets'!AH37 -> 0 | AN40: ='[2]Existing Trunk Assets'!AI37 -> 0 | AR40: ='[2]Existing Trunk Assets'!AM37 -> 0 | AS40: ='[2]Existing Trunk Assets'!AN37 -> 0 | AT40: ='[2]Existing Trunk Assets'!AO37 -> y | AU40: ='[2]Existing Trunk Assets'!AP37 -> 0 | AV40: ='[2]Existing Trunk Assets'!AQ37 -> 0 | AW40: ='[2]Existing Trunk Assets'!AR37 -> 0 | BY40: 9466 | CG40: 9466 | DE40: 431221.5321
A41: =IF(W41='[2]Existing Trunk Assets'!$R38,"","Error") -> Error | B41: ='[2]Existing Trunk Assets'!B38 -> 0 | C41: ='[2]Existing Trunk Assets'!C38 -> 0 | E41: ='[2]Existing Trunk Assets'!E38 -> Wastewater Pump Stations | F41: ='[2]Existing Trunk Assets'!F38 -> SPS No T5 | G41: ='[2]Existing Trunk Assets'!G38 -> 0 | I41: ='[2]Existing Trunk Assets'!J38 -> 0 | J41: ='[2]Existing Trunk Assets'!K38 -> 0 | L41: ='[2]Existing Trunk Assets'!$M$12 ->  | M41: ='[2]Existing Trunk Assets'!N38 -> 262400 | O41: 1 | P41: 262400 | S41: =IF(Q41="",'Unit Rates - Land'!landcst,IF($E$8="Landuse",VLOOKUP(Q41,LAndcost3,2,FALSE),IF($E$8="Location",VLOOKUP(Q41,Landcost2,2,FALSE),"Error"))) -> 0 | T41: 0 | U41: ='[2]Existing Trunk Assets'!O38 -> 2009 | V41: =IFERROR(('General Input Sheet'!$G$38/(VLOOKUP(U41,'General Input Sheet'!$E$38:$G$44,3,FALSE))),1) -> 1.061076605 | W41: 278426.501 | X41: ='[2]Existing Trunk Assets'!S38 -> 0 | Y41: ='[2]Existing Trunk Assets'!T38 -> 0 | Z41: ='[2]Existing Trunk Assets'!U38 -> 0 | AA41: ='[2]Existing Trunk Assets'!V38 -> 0 | AB41: ='[2]Existing Trunk Assets'!W38 -> 0 | AC41: ='[2]Existing Trunk Assets'!X38 -> 0 | AD41: ='[2]Existing Trunk Assets'!Y38 -> 0 | AE41: ='[2]Existing Trunk Assets'!Z38 -> 0 | AF41: ='[2]Existing Trunk Assets'!AA38 -> 0 | AG41: ='[2]Existing Trunk Assets'!AB38 -> 0 | AH41: ='[2]Existing Trunk Assets'!AC38 -> 0 | AI41: ='[2]Existing Trunk Assets'!AD38 -> 0 | AJ41: ='[2]Existing Trunk Assets'!AE38 -> 0 | AK41: ='[2]Existing Trunk Assets'!AF38 -> 0 | AL41: ='[2]Existing Trunk Assets'!AG38 -> 0 | AM41: ='[2]Existing Trunk Assets'!AH38 -> 0 | AN41: ='[2]Existing Trunk Assets'!AI38 -> 0 | AR41: ='[2]Existing Trunk Assets'!AM38 -> 0 | AS41: ='[2]Existing Trunk Assets'!AN38 -> 0 | AT41: ='[2]Existing Trunk Assets'!AO38 -> y | AU41: ='[2]Existing Trunk Assets'!AP38 -> 0 | AV41: ='[2]Existing Trunk Assets'!AQ38 -> 0 | AW41: ='[2]Existing Trunk Assets'!AR38 -> 0 | BY41: 9466 | CG41: 9466 | DE41: 278426.501
A42: =IF(W42='[2]Existing Trunk Assets'!$R39,"","Error") -> Error | B42: ='[2]Existing Trunk Assets'!B39 -> 0 | C42: ='[2]Existing Trunk Assets'!C39 -> 0 | E42: ='[2]Existing Trunk Assets'!E39 -> Wastewater Pump Stations | F42: ='[2]Existing Trunk Assets'!F39 -> SPS No T6 | G42: ='[2]Existing Trunk Assets'!G39 -> 0 | I42: ='[2]Existing Trunk Assets'!J39 -> 0 | J42: ='[2]Existing Trunk Assets'!K39 -> 0 | L42: ='[2]Existing Trunk Assets'!$M$12 ->  | M42: ='[2]Existing Trunk Assets'!N39 -> 309900 | O42: 1 | P42: 309900 | S42: =IF(Q42="",'Unit Rates - Land'!landcst,IF($E$8="Landuse",VLOOKUP(Q42,LAndcost3,2,FALSE),IF($E$8="Location",VLOOKUP(Q42,Landcost2,2,FALSE),"Error"))) -> 0 | T42: 0 | U42: ='[2]Existing Trunk Assets'!O39 -> 2009 | V42: =IFERROR(('General Input Sheet'!$G$38/(VLOOKUP(U42,'General Input Sheet'!$E$38:$G$44,3,FALSE))),1) -> 1.061076605 | W42: 328827.6398 | X42: ='[2]Existing Trunk Assets'!S39 -> 0 | Y42: ='[2]Existing Trunk Assets'!T39 -> 0 | Z42: ='[2]Existing Trunk Assets'!U39 -> 0 | AA42: ='[2]Existing Trunk Assets'!V39 -> 0 | AB42: ='[2]Existing Trunk Assets'!W39 -> 0 | AC42: ='[2]Existing Trunk Assets'!X39 -> 0 | AD42: ='[2]Existing Trunk Assets'!Y39 -> 0 | AE42: ='[2]Existing Trunk Assets'!Z39 -> 0 | AF42: ='[2]Existing Trunk Assets'!AA39 -> 0 | AG42: ='[2]Existing Trunk Assets'!AB39 -> 0 | AH42: ='[2]Existing Trunk Assets'!AC39 -> 0 | AI42: ='[2]Existing Trunk Assets'!AD39 -> 0 | AJ42: ='[2]Existing Trunk Assets'!AE39 -> 0 | AK42: ='[2]Existing Trunk Assets'!AF39 -> 0 | AL42: ='[2]Existing Trunk Assets'!AG39 -> 0 | AM42: ='[2]Existing Trunk Assets'!AH39 -> 0 | AN42: ='[2]Existing Trunk Assets'!AI39 -> 0 | AR42: ='[2]Existing Trunk Assets'!AM39 -> 0 | AS42: ='[2]Existing Trunk Assets'!AN39 -> 0 | AT42: ='[2]Existing Trunk Assets'!AO39 -> y | AU42: ='[2]Existing Trunk Assets'!AP39 -> 0 | AV42: ='[2]Existing Trunk Assets'!AQ39 -> 0 | AW42: ='[2]Existing Trunk Assets'!AR39 -> 0 | BY42: 9466 | CG42: 9466 | DE42: 328827.6398
A43: =IF(W43='[2]Existing Trunk Assets'!$R40,"","Error") -> Error | B43: ='[2]Existing Trunk Assets'!B40 -> 0 | C43: ='[2]Existing Trunk Assets'!C40 -> 0 | E43: ='[2]Existing Trunk Assets'!E40 -> Wastewater Pump Stations | F43: ='[2]Existing Trunk Assets'!F40 -> SPS No C1 | G43: ='[2]Existing Trunk Assets'!G40 -> 0 | I43: ='[2]Existing Trunk Assets'!J40 -> 0 | J43: ='[2]Existing Trunk Assets'!K40 -> 0 | L43: ='[2]Existing Trunk Assets'!$M$12 ->  | M43: ='[2]Existing Trunk Assets'!N40 -> 312700 | O43: 1 | P43: 312700 | S43: =IF(Q43="",'Unit Rates - Land'!landcst,IF($E$8="Landuse",VLOOKUP(Q43,LAndcost3,2,FALSE),IF($E$8="Location",VLOOKUP(Q43,Landcost2,2,FALSE),"Error"))) -> 0 | T43: 0 | U43: ='[2]Existing Trunk Assets'!O40 -> 2009 | V43: =IFERROR(('General Input Sheet'!$G$38/(VLOOKUP(U43,'General Input Sheet'!$E$38:$G$44,3,FALSE))),1) -> 1.061076605 | W43: 331798.6542 | X43: ='[2]Existing Trunk Assets'!S40 -> 0 | Y43: ='[2]Existing Trunk Assets'!T40 -> 0 | Z43: ='[2]Existing Trunk Assets'!U40 -> 0 | AA43: ='[2]Existing Trunk Assets'!V40 -> 0 | AB43: ='[2]Existing Trunk Assets'!W40 -> 0 | AC43: ='[2]Existing Trunk Assets'!X40 -> 0 | AD43: ='[2]Existing Trunk Assets'!Y40 -> 0 | AE43: ='[2]Existing Trunk Assets'!Z40 -> 0 | AF43: ='[2]Existing Trunk Assets'!AA40 -> 0 | AG43: ='[2]Existing Trunk Assets'!AB40 -> 0 | AH43: ='[2]Existing Trunk Assets'!AC40 -> 0 | AI43: ='[2]Existing Trunk Assets'!AD40 -> 0 | AJ43: ='[2]Existing Trunk Assets'!AE40 -> 0 | AK43: ='[2]Existing Trunk Assets'!AF40 -> 0 | AL43: ='[2]Existing Trunk Assets'!AG40 -> 0 | AM43: ='[2]Existing Trunk Assets'!AH40 -> 0 | AN43: ='[2]Existing Trunk Assets'!AI40 -> 0 | AR43: ='[2]Existing Trunk Assets'!AM40 -> 0 | AS43: ='[2]Existing Trunk Assets'!AN40 -> 0 | AT43: ='[2]Existing Trunk Assets'!AO40 -> 0 | AU43: ='[2]Existing Trunk Assets'!AP40 -> y | AV43: ='[2]Existing Trunk Assets'!AQ40 -> 0 | AW43: ='[2]Existing Trunk Assets'!AR40 -> 0 | BZ43: 7937 | CG43: 7937 | DF43: 331798.6542
A44: =IF(W44='[2]Existing Trunk Assets'!$R41,"","Error") -> Error | B44: ='[2]Existing Trunk Assets'!B41 -> 0 | C44: ='[2]Existing Trunk Assets'!C41 -> 0 | E44: ='[2]Existing Trunk Assets'!E41 -> Wastewater Pump Stations | F44: ='[2]Existing Trunk Assets'!F41 -> SPS No C2 | G44: ='[2]Existing Trunk Assets'!G41 -> 0 | I44: ='[2]Existing Trunk Assets'!J41 -> 0 | J44: ='[2]Existing Trunk Assets'!K41 -> 0 | L44: ='[2]Existing Trunk Assets'!$M$12 ->  | M44: ='[2]Existing Trunk Assets'!N41 -> 492400 | O44: 1 | P44: 492400 | S44: =IF(Q44="",'Unit Rates - Land'!landcst,IF($E$8="Landuse",VLOOKUP(Q44,LAndcost3,2,FALSE),IF($E$8="Location",VLOOKUP(Q44,Landcost2,2,FALSE),"Error"))) -> 0 | T44: 0 | U44: ='[2]Existing Trunk Assets'!O41 -> 2009 | V44: =IFERROR(('General Input Sheet'!$G$38/(VLOOKUP(U44,'General Input Sheet'!$E$38:$G$44,3,FALSE))),1) -> 1.061076605 | W44: 522474.1201 | X44: ='[2]Existing Trunk Assets'!S41 -> 0 | Y44: ='[2]Existing Trunk Assets'!T41 -> 0 | Z44: ='[2]Existing Trunk Assets'!U41 -> 0 | AA44: ='[2]Existing Trunk Assets'!V41 -> 0 | AB44: ='[2]Existing Trunk Assets'!W41 -> 0 | AC44: ='[2]Existing Trunk Assets'!X41 -> 0 | AD44: ='[2]Existing Trunk Assets'!Y41 -> 0 | AE44: ='[2]Existing Trunk Assets'!Z41 -> 0 | AF44: ='[2]Existing Trunk Assets'!AA41 -> 0 | AG44: ='[2]Existing Trunk Assets'!AB41 -> 0 | AH44: ='[2]Existing Trunk Assets'!AC41 -> 0 | AI44: ='[2]Existing Trunk Assets'!AD41 -> 0 | AJ44: ='[2]Existing Trunk Assets'!AE41 -> 0 | AK44: ='[2]Existing Trunk Assets'!AF41 -> 0 | AL44: ='[2]Existing Trunk Assets'!AG41 -> 0 | AM44: ='[2]Existing Trunk Assets'!AH41 -> 0 | AN44: ='[2]Existing Trunk Assets'!AI41 -> 0 | AR44: ='[2]Existing Trunk Assets'!AM41 -> 0 | AS44: ='[2]Existing Trunk Assets'!AN41 -> 0 | AT44: ='[2]Existing Trunk Assets'!AO41 -> 0 | AU44: ='[2]Existing Trunk Assets'!AP41 -> y | AV44: ='[2]Existing Trunk Assets'!AQ41 -> 0 | AW44: ='[2]Existing Trunk Assets'!AR41 -> 0 | BZ44: 7937 | CG44: 7937 | DF44: 522474.1201
A45: =IF(W45='[2]Existing Trunk Assets'!$R42,"","Error") -> Error | B45: ='[2]Existing Trunk Assets'!B42 -> 0 | C45: ='[2]Existing Trunk Assets'!C42 -> 0 | E45: ='[2]Existing Trunk Assets'!E42 -> Wastewater Pump Stations | F45: ='[2]Existing Trunk Assets'!F42 -> SPS No C3 | G45: ='[2]Existing Trunk Assets'!G42 -> 0 | I45: ='[2]Existing Trunk Assets'!J42 -> 0 | J45: ='[2]Existing Trunk Assets'!K42 -> 0 | L45: ='[2]Existing Trunk Assets'!$M$12 ->  | M45: ='[2]Existing Trunk Assets'!N42 -> 239800 | O45: 1 | P45: 239800 | S45: =IF(Q45="",'Unit Rates - Land'!landcst,IF($E$8="Landuse",VLOOKUP(Q45,LAndcost3,2,FALSE),IF($E$8="Location",VLOOKUP(Q45,Landcost2,2,FALSE),"Error"))) -> 0 | T45: 0 | U45: ='[2]Existing Trunk Assets'!O42 -> 2009 | V45: =IFERROR(('General Input Sheet'!$G$38/(VLOOKUP(U45,'General Input Sheet'!$E$38:$G$44,3,FALSE))),1) -> 1.061076605 | W45: 254446.1698 | X45: ='[2]Existing Trunk Assets'!S42 -> 0 | Y45: ='[2]Existing Trunk Assets'!T42 -> 0 | Z45: ='[2]Existing Trunk Assets'!U42 -> 0 | AA45: ='[2]Existing Trunk Assets'!V42 -> 0 | AB45: ='[2]Existing Trunk Assets'!W42 -> 0 | AC45: ='[2]Existing Trunk Assets'!X42 -> 0 | AD45: ='[2]Existing Trunk Assets'!Y42 -> 0 | AE45: ='[2]Existing Trunk Assets'!Z42 -> 0 | AF45: ='[2]Existing Trunk Assets'!AA42 -> 0 | AG45: ='[2]Existing Trunk Assets'!AB42 -> 0 | AH45: ='[2]Existing Trunk Assets'!AC42 -> 0 | AI45: ='[2]Existing Trunk Assets'!AD42 -> 0 | AJ45: ='[2]Existing Trunk Assets'!AE42 -> 0 | AK45: ='[2]Existing Trunk Assets'!AF42 -> 0 | AL45: ='[2]Existing Trunk Assets'!AG42 -> 0 | AM45: ='[2]Existing Trunk Assets'!AH42 -> 0 | AN45: ='[2]Existing Trunk Assets'!AI42 -> 0 | AR45: ='[2]Existing Trunk Assets'!AM42 -> 0 | AS45: ='[2]Existing Trunk Assets'!AN42 -> 0 | AT45: ='[2]Existing Trunk Assets'!AO42 -> 0 | AU45: ='[2]Existing Trunk Assets'!AP42 -> y | AV45: ='[2]Existing Trunk Assets'!AQ42 -> 0 | AW45: ='[2]Existing Trunk Assets'!AR42 -> 0 | BZ45: 7937 | CG45: 7937 | DF45: 254446.1698
A46: =IF(W46='[2]Existing Trunk Assets'!$R43,"","Error") -> Error | B46: ='[2]Existing Trunk Assets'!B43 -> 0 | C46: ='[2]Existing Trunk Assets'!C43 -> 0 | E46: ='[2]Existing Trunk Assets'!E43 -> Wastewater Pump Stations | F46: ='[2]Existing Trunk Assets'!F43 -> SPS No C4 | G46: ='[2]Existing Trunk Assets'!G43 -> 0 | I46: ='[2]Existing Trunk Assets'!J43 -> 0 | J46: ='[2]Existing Trunk Assets'!K43 -> 0 | L46: ='[2]Existing Trunk Assets'!$M$12 ->  | M46: ='[2]Existing Trunk Assets'!N43 -> 247500 | O46: 1 | P46: 247500 | S46: =IF(Q46="",'Unit Rates - Land'!landcst,IF($E$8="Landuse",VLOOKUP(Q46,LAndcost3,2,FALSE),IF($E$8="Location",VLOOKUP(Q46,Landcost2,2,FALSE),"Error"))) -> 0 | T46: 0 | U46: ='[2]Existing Trunk Assets'!O43 -> 2009 | V46: =IFERROR(('General Input Sheet'!$G$38/(VLOOKUP(U46,'General Input Sheet'!$E$38:$G$44,3,FALSE))),1) -> 1.061076605 | W46: 262616.4596 | X46: ='[2]Existing Trunk Assets'!S43 -> 0 | Y46: ='[2]Existing Trunk Assets'!T43 -> 0 | Z46: ='[2]Existing Trunk Assets'!U43 -> 0 | AA46: ='[2]Existing Trunk Assets'!V43 -> 0 | AB46: ='[2]Existing Trunk Assets'!W43 -> 0 | AC46: ='[2]Existing Trunk Assets'!X43 -> 0 | AD46: ='[2]Existing Trunk Assets'!Y43 -> 0 | AE46: ='[2]Existing Trunk Assets'!Z43 -> 0 | AF46: ='[2]Existing Trunk Assets'!AA43 -> 0 | AG46: ='[2]Existing Trunk Assets'!AB43 -> 0 | AH46: ='[2]Existing Trunk Assets'!AC43 -> 0 | AI46: ='[2]Existing Trunk Assets'!AD43 -> 0 | AJ46: ='[2]Existing Trunk Assets'!AE43 -> 0 | AK46: ='[2]Existing Trunk Assets'!AF43 -> 0 | AL46: ='[2]Existing Trunk Assets'!AG43 -> 0 | AM46: ='[2]Existing Trunk Assets'!AH43 -> 0 | AN46: ='[2]Existing Trunk Assets'!AI43 -> 0 | AR46: ='[2]Existing Trunk Assets'!AM43 -> 0 | AS46: ='[2]Existing Trunk Assets'!AN43 -> 0 | AT46: ='[2]Existing Trunk Assets'!AO43 -> 0 | AU46: ='[2]Existing Trunk Assets'!AP43 -> y | AV46: ='[2]Existing Trunk Assets'!AQ43 -> 0 | AW46: ='[2]Existing Trunk Assets'!AR43 -> 0 | BZ46: 7937 | CG46: 7937 | DF46: 262616.4596
A47: =IF(W47='[2]Existing Trunk Assets'!$R44,"","Error") -> Error | B47: ='[2]Existing Trunk Assets'!B44 -> 0 | C47: ='[2]Existing Trunk Assets'!C44 -> 0 | E47: ='[2]Existing Trunk Assets'!E44 -> Wastewater Pump Stations | F47: ='[2]Existing Trunk Assets'!F44 -> SPS No C5 | G47: ='[2]Existing Trunk Assets'!G44 -> 0 | I47: ='[2]Existing Trunk Assets'!J44 -> 0 | J47: ='[2]Existing Trunk Assets'!K44 -> 0 | L47: ='[2]Existing Trunk Assets'!$M$12 ->  | M47: ='[2]Existing Trunk Assets'!N44 -> 320400 | O47: 1 | P47: 320400 | S47: =IF(Q47="",'Unit Rates - Land'!landcst,IF($E$8="Landuse",VLOOKUP(Q47,LAndcost3,2,FALSE),IF($E$8="Location",VLOOKUP(Q47,Landcost2,2,FALSE),"Error"))) -> 0 | T47: 0 | U47: ='[2]Existing Trunk Assets'!O44 -> 2009 | V47: =IFERROR(('General Input Sheet'!$G$38/(VLOOKUP(U47,'General Input Sheet'!$E$38:$G$44,3,FALSE))),1) -> 1.061076605 | W47: 339968.9441 | X47: ='[2]Existing Trunk Assets'!S44 -> 0 | Y47: ='[2]Existing Trunk Assets'!T44 -> 0 | Z47: ='[2]Existing Trunk Assets'!U44 -> 0 | AA47: ='[2]Existing Trunk Assets'!V44 -> 0 | AB47: ='[2]Existing Trunk Assets'!W44 -> 0 | AC47: ='[2]Existing Trunk Assets'!X44 -> 0 | AD47: ='[2]Existing Trunk Assets'!Y44 -> 0 | AE47: ='[2]Existing Trunk Assets'!Z44 -> 0 | AF47: ='[2]Existing Trunk Assets'!AA44 -> 0 | AG47: ='[2]Existing Trunk Assets'!AB44 -> 0 | AH47: ='[2]Existing Trunk Assets'!AC44 -> 0 | AI47: ='[2]Existing Trunk Assets'!AD44 -> 0 | AJ47: ='[2]Existing Trunk Assets'!AE44 -> 0 | AK47: ='[2]Existing Trunk Assets'!AF44 -> 0 | AL47: ='[2]Existing Trunk Assets'!AG44 -> 0 | AM47: ='[2]Existing Trunk Assets'!AH44 -> 0 | AN47: ='[2]Existing Trunk Assets'!AI44 -> 0 | AR47: ='[2]Existing Trunk Assets'!AM44 -> 0 | AS47: ='[2]Existing Trunk Assets'!AN44 -> 0 | AT47: ='[2]Existing Trunk Assets'!AO44 -> 0 | AU47: ='[2]Existing Trunk Assets'!AP44 -> y | AV47: ='[2]Existing Trunk Assets'!AQ44 -> 0 | AW47: ='[2]Existing Trunk Assets'!AR44 -> 0 | BR47: =IF(AM47="y",BR$14,IF(AND(AM47>0,AM47<=1),AM47*BR$14,"")) ->  | BZ47: 7937 | CG47: 7937 | DF47: 339968.9441 | DL47: =IF(CF47="","",(CF47/$CG47)*$W47) -> 
A48: =IF(W48='[2]Existing Trunk Assets'!$R45,"","Error") -> Error | B48: ='[2]Existing Trunk Assets'!B45 -> 0 | C48: ='[2]Existing Trunk Assets'!C45 -> 0 | E48: ='[2]Existing Trunk Assets'!E45 -> Wastewater Pump Stations | F48: ='[2]Existing Trunk Assets'!F45 -> SPS No C6 | G48: ='[2]Existing Trunk Assets'!G45 -> 0 | I48: ='[2]Existing Trunk Assets'!J45 -> 0 | J48: ='[2]Existing Trunk Assets'!K45 -> 0 | L48: ='[2]Existing Trunk Assets'!$M$12 ->  | M48: ='[2]Existing Trunk Assets'!N45 -> 217700 | O48: 1 | P48: 217700 | S48: =IF(Q48="",'Unit Rates - Land'!landcst,IF($E$8="Landuse",VLOOKUP(Q48,LAndcost3,2,FALSE),IF($E$8="Location",VLOOKUP(Q48,Landcost2,2,FALSE),"Error"))) -> 0 | T48: 0 | U48: ='[2]Existing Trunk Assets'!O45 -> 2009 | V48: =IFERROR(('General Input Sheet'!$G$38/(VLOOKUP(U48,'General Input Sheet'!$E$38:$G$44,3,FALSE))),1) -> 1.061076605 | W48: 230996.3768 | X48: ='[2]Existing Trunk Assets'!S45 -> 0 | Y48: ='[2]Existing Trunk Assets'!T45 -> 0 | Z48: ='[2]Existing Trunk Assets'!U45 -> 0 | AA48: ='[2]Existing Trunk Assets'!V45 -> 0 | AB48: ='[2]Existing Trunk Assets'!W45 -> 0 | AC48: ='[2]Existing Trunk Assets'!X45 -> 0 | AD48: ='[2]Existing Trunk Assets'!Y45 -> 0 | AE48: ='[2]Existing Trunk Assets'!Z45 -> 0 | AF48: ='[2]Existing Trunk Assets'!AA45 -> 0 | AG48: ='[2]Existing Trunk Assets'!AB45 -> 0 | AH48: ='[2]Existing Trunk Assets'!AC45 -> 0 | AI48: ='[2]Existing Trunk Assets'!AD45 -> 0 | AJ48: ='[2]Existing Trunk Assets'!AE45 -> 0 | AK48: ='[2]Existing Trunk Assets'!AF45 -> 0 | AL48: ='[2]Existing Trunk Assets'!AG45 -> 0 | AM48: ='[2]Existing Trunk Assets'!AH45 -> 0 | AN48: ='[2]Existing Trunk Assets'!AI45 -> 0 | AR48: ='[2]Existing Trunk Assets'!AM45 -> 0 | AS48: ='[2]Existing Trunk Assets'!AN45 -> 0 | AT48: ='[2]Existing Trunk Assets'!AO45 -> 0 | AU48: ='[2]Existing Trunk Assets'!AP45 -> y | AV48: ='[2]Existing Trunk Assets'!AQ45 -> 0 | AW48: ='[2]Existing Trunk Assets'!AR45 -> 0 | BC48: =IF(X48="y",BC$14,IF(AND(X48>0,X48<=1),X48*BC$14,"")) ->  | BZ48: 7937 | CG48: 7937 | CI48: =IF(BC48="","",(BC48/$CG48)*$W48) ->  | CY48: =IF(BS48="","",(BS48/$CG48)*$W48) ->  | DF48: 230996.3768
A49: =IF(W49='[2]Existing Trunk Assets'!$R46,"","Error") -> Error | B49: ='[2]Existing Trunk Assets'!B46 -> 58595 | C49: ='[2]Existing Trunk Assets'!C46 -> 0 | E49: ='[2]Existing Trunk Assets'!E46 -> Gravity Main | F49: ='[2]Existing Trunk Assets'!F46 -> 0 | G49: ='[2]Existing Trunk Assets'!G46 -> 33m of 225mm dia | I49: ='[2]Existing Trunk Assets'!J46 -> 33 | J49: ='[2]Existing Trunk Assets'!K46 -> 225 | L49: ='[2]Existing Trunk Assets'!$M$12 ->  | M49: ='[2]Existing Trunk Assets'!N46 -> 11808.29421 | O49: 1 | P49: 11808.29421 | S49: =IF(Q49="",'Unit Rates - Land'!landcst,IF($E$8="Landuse",VLOOKUP(Q49,LAndcost3,2,FALSE),IF($E$8="Location",VLOOKUP(Q49,Landcost2,2,FALSE),"Error"))) -> 0 | T49: 0 | U49: ='[2]Existing Trunk Assets'!O46 -> 2009 | V49: =IFERROR(('General Input Sheet'!$G$38/(VLOOKUP(U49,'General Input Sheet'!$E$38:$G$44,3,FALSE))),1) -> 1.061076605 | W49: 12529.50473 | X49: ='[2]Existing Trunk Assets'!S46 -> 0 | Y49: ='[2]Existing Trunk Assets'!T46 -> 0 | Z49: ='[2]Existing Trunk Assets'!U46 -> 0 | AA49: ='[2]Existing Trunk Assets'!V46 -> 0 | AB49: ='[2]Existing Trunk Assets'!W46 -> 0 | AC49: ='[2]Existing Trunk Assets'!X46 -> 0 | AD49: ='[2]Existing Trunk Assets'!Y46 -> 0 | AE49: ='[2]Existing Trunk Assets'!Z46 -> 0 | AF49: ='[2]Existing Trunk Assets'!AA46 -> 0 | AG49: ='[2]Existing Trunk Assets'!AB46 -> 0 | AH49: ='[2]Existing Trunk Assets'!AC46 -> 0 | AI49: ='[2]Existing Trunk Assets'!AD46 -> 0 | AJ49: ='[2]Existing Trunk Assets'!AE46 -> 0 | AK49: ='[2]Existing Trunk Assets'!AF46 -> 0 | AL49: ='[2]Existing Trunk Assets'!AG46 -> 0 | AM49: ='[2]Existing Trunk Assets'!AH46 -> 0 | AN49: ='[2]Existing Trunk Assets'!AI46 -> 0 | AR49: ='[2]Existing Trunk Assets'!AM46 -> 0 | AS49: ='[2]Existing Trunk Assets'!AN46 -> 0 | AT49: ='[2]Existing Trunk Assets'!AO46 -> y | AU49: ='[2]Existing Trunk Assets'!AP46 ->  | AV49: ='[2]Existing Trunk Assets'!AQ46 -> 0 | AW49: ='[2]Existing Trunk Assets'!AR46 -> 0 | BY49: 9466 | CG49: 9466 | DE49: 12529.50473
A50: =IF(W50='[2]Existing Trunk Assets'!$R47,"","Error") -> Error | B50: ='[2]Existing Trunk Assets'!B47 -> 58596 | C50: ='[2]Existing Trunk Assets'!C47 -> 0 | E50: ='[2]Existing Trunk Assets'!E47 -> Gravity Main | F50: ='[2]Existing Trunk Assets'!F47 -> 0 | G50: ='[2]Existing Trunk Assets'!G47 -> 56m of 225mm dia | I50: ='[2]Existing Trunk Assets'!J47 -> 56 | J50: ='[2]Existing Trunk Assets'!K47 -> 225 | L50: ='[2]Existing Trunk Assets'!$M$12 ->  | M50: ='[2]Existing Trunk Assets'!N47 -> 20038.31745 | O50: 1 | P50: 20038.31745 | S50: =IF(Q50="",'Unit Rates - Land'!landcst,IF($E$8="Landuse",VLOOKUP(Q50,LAndcost3,2,FALSE),IF($E$8="Location",VLOOKUP(Q50,Landcost2,2,FALSE),"Error"))) -> 0 | T50: 0 | U50: ='[2]Existing Trunk Assets'!O47 -> 2009 | V50: =IFERROR(('General Input Sheet'!$G$38/(VLOOKUP(U50,'General Input Sheet'!$E$38:$G$44,3,FALSE))),1) -> 1.061076605 | W50: 21262.18984 | X50: ='[2]Existing Trunk Assets'!S47 -> 0 | Y50: ='[2]Existing Trunk Assets'!T47 -> 0 | Z50: ='[2]Existing Trunk Assets'!U47 -> 0 | AA50: ='[2]Existing Trunk Assets'!V47 -> 0 | AB50: ='[2]Existing Trunk Assets'!W47 -> 0 | AC50: ='[2]Existing Trunk Assets'!X47 -> 0 | AD50: ='[2]Existing Trunk Assets'!Y47 -> 0 | AE50: ='[2]Existing Trunk Assets'!Z47 -> 0 | AF50: ='[2]Existing Trunk Assets'!AA47 -> 0 | AG50: ='[2]Existing Trunk Assets'!AB47 -> 0 | AH50: ='[2]Existing Trunk Assets'!AC47 -> 0 | AI50: ='[2]Existing Trunk Assets'!AD47 -> 0 | AJ50: ='[2]Existing Trunk Assets'!AE47 -> 0 | AK50: ='[2]Existing Trunk Assets'!AF47 -> 0 | AL50: ='[2]Existing Trunk Assets'!AG47 -> 0 | AM50: ='[2]Existing Trunk Assets'!AH47 -> 0 | AN50: ='[2]Existing Trunk Assets'!AI47 -> 0 | AR50: ='[2]Existing Trunk Assets'!AM47 -> 0 | AS50: ='[2]Existing Trunk Assets'!AN47 -> 0 | AT50: ='[2]Existing Trunk Assets'!AO47 -> y | AU50: ='[2]Existing Trunk Assets'!AP47 ->  | AV50: ='[2]Existing Trunk Assets'!AQ47 -> 0 | AW50: ='[2]Existing Trunk Assets'!AR47 -> 0 | BY50: 9466 | CG50: 9466 | DE50: 21262.18984
A51: =IF(W51='[2]Existing Trunk Assets'!$R48,"","Error") -> Error | B51: ='[2]Existing Trunk Assets'!B48 -> 58599 | C51: ='[2]Existing Trunk Assets'!C48 -> 0 | E51: ='[2]Existing Trunk Assets'!E48 -> Gravity Main | F51: ='[2]Existing Trunk Assets'!F48 -> 0 | G51: ='[2]Existing Trunk Assets'!G48 -> 48m of 225mm dia | I51: ='[2]Existing Trunk Assets'!J48 -> 48 | J51: ='[2]Existing Trunk Assets'!K48 -> 225 | L51: ='[2]Existing Trunk Assets'!$M$12 ->  | M51: ='[2]Existing Trunk Assets'!N48 -> 17175.70067 | O51: 1 | P51: 17175.70067 | S51: =IF(Q51="",'Unit Rates - Land'!landcst,IF($E$8="Landuse",VLOOKUP(Q51,LAndcost3,2,FALSE),IF($E$8="Location",VLOOKUP(Q51,Landcost2,2,FALSE),"Error"))) -> 0 | T51: 0 | U51: ='[2]Existing Trunk Assets'!O48 -> 2009 | V51: =IFERROR(('General Input Sheet'!$G$38/(VLOOKUP(U51,'General Input Sheet'!$E$38:$G$44,3,FALSE))),1) -> 1.061076605 | W51: 18224.73415 | X51: ='[2]Existing Trunk Assets'!S48 -> 0 | Y51: ='[2]Existing Trunk Assets'!T48 -> 0 | Z51: ='[2]Existing Trunk Assets'!U48 -> 0 | AA51: ='[2]Existing Trunk Assets'!V48 -> 0 | AB51: ='[2]Existing Trunk Assets'!W48 -> 0 | AC51: ='[2]Existing Trunk Assets'!X48 -> 0 | AD51: ='[2]Existing Trunk Assets'!Y48 -> 0 | AE51: ='[2]Existing Trunk Assets'!Z48 -> 0 | AF51: ='[2]Existing Trunk Assets'!AA48 -> 0 | AG51: ='[2]Existing Trunk Assets'!AB48 -> 0 | AH51: ='[2]Existing Trunk Assets'!AC48 -> 0 | AI51: ='[2]Existing Trunk Assets'!AD48 -> 0 | AJ51: ='[2]Existing Trunk Assets'!AE48 -> 0 | AK51: ='[2]Existing Trunk Assets'!AF48 -> 0 | AL51: ='[2]Existing Trunk Assets'!AG48 -> 0 | AM51: ='[2]Existing Trunk Assets'!AH48 -> 0 | AN51: ='[2]Existing Trunk Assets'!AI48 -> 0 | AR51: ='[2]Existing Trunk Assets'!AM48 -> 0 | AS51: ='[2]Existing Trunk Assets'!AN48 -> 0 | AT51: ='[2]Existing Trunk Assets'!AO48 -> y | AU51: ='[2]Existing Trunk Assets'!AP48 ->  | AV51: ='[2]Existing Trunk Assets'!AQ48 -> 0 | AW51: ='[2]Existing Trunk Assets'!AR48 -> 0 | BY51: 9466 | CG51: 9466 | DE51: 18224.73415
A52: =IF(W52='[2]Existing Trunk Assets'!$R49,"","Error") -> Error | B52: ='[2]Existing Trunk Assets'!B49 -> 58604 | C52: ='[2]Existing Trunk Assets'!C49 -> 0 | E52: ='[2]Existing Trunk Assets'!E49 -> Gravity Main | F52: ='[2]Existing Trunk Assets'!F49 -> 0 | G52: ='[2]Existing Trunk Assets'!G49 -> 41m of 225mm dia | I52: ='[2]Existing Trunk Assets'!J49 -> 41 | J52: ='[2]Existing Trunk Assets'!K49 -> 225 | L52: ='[2]Existing Trunk Assets'!$M$12 ->  | M52: ='[2]Existing Trunk Assets'!N49 -> 14670.91099 | O52: 1 | P52: 14670.91099 | S52: =IF(Q52="",'Unit Rates - Land'!landcst,IF($E$8="Landuse",VLOOKUP(Q52,LAndcost3,2,FALSE),IF($E$8="Location",VLOOKUP(Q52,Landcost2,2,FALSE),"Error"))) -> 0 | T52: 0 | U52: ='[2]Existing Trunk Assets'!O49 -> 2009 | V52: =IFERROR(('General Input Sheet'!$G$38/(VLOOKUP(U52,'General Input Sheet'!$E$38:$G$44,3,FALSE))),1) -> 1.061076605 | W52: 15566.96042 | X52: ='[2]Existing Trunk Assets'!S49 -> 0 | Y52: ='[2]Existing Trunk Assets'!T49 -> 0 | Z52: ='[2]Existing Trunk Assets'!U49 -> 0 | AA52: ='[2]Existing Trunk Assets'!V49 -> 0 | AB52: ='[2]Existing Trunk Assets'!W49 -> 0 | AC52: ='[2]Existing Trunk Assets'!X49 -> 0 | AD52: ='[2]Existing Trunk Assets'!Y49 -> 0 | AE52: ='[2]Existing Trunk Assets'!Z49 -> 0 | AF52: ='[2]Existing Trunk Assets'!AA49 -> 0 | AG52: ='[2]Existing Trunk Assets'!AB49 -> 0 | AH52: ='[2]Existing Trunk Assets'!AC49 -> 0 | AI52: ='[2]Existing Trunk Assets'!AD49 -> 0 | AJ52: ='[2]Existing Trunk Assets'!AE49 -> 0 | AK52: ='[2]Existing Trunk Assets'!AF49 -> 0 | AL52: ='[2]Existing Trunk Assets'!AG49 -> 0 | AM52: ='[2]Existing Trunk Assets'!AH49 -> 0 | AN52: ='[2]Existing Trunk Assets'!AI49 -> 0 | AR52: ='[2]Existing Trunk Assets'!AM49 -> 0 | AS52: ='[2]Existing Trunk Assets'!AN49 -> 0 | AT52: ='[2]Existing Trunk Assets'!AO49 -> y | AU52: ='[2]Existing Trunk Assets'!AP49 ->  | AV52: ='[2]Existing Trunk Assets'!AQ49 -> 0 | AW52: ='[2]Existing Trunk Assets'!AR49 -> 0 | BY52: 9466 | CG52: 9466 | DE52: 15566.96042
